Workbook

Sheet Overview
A2: CDCM Annual Review Pack
A4: Company: | B4: ='CDCM Forecast Data'!E3 -> Electricity North West
A5: Date of Issue: | B5: ='CDCM Forecast Data'!E4 -> 2015-12-31
A7: ="Although every effort has been made to ensure the accuracy of the information provided in this annual review pack, " & 'CDCM Forecast Data'!E3 & " does not accept any liability for the accuracy of the information contained herein and, in particular, " & 'CDCM Forecast Data'!E3 & " or any of its employees, shall not be held liable for any misstatement or opinion on which the recipient of this statement relies or seeks to rely." -> Although every effort has been made to ensure the accuracy of the information provided in this annual review pack, Electricity North West does not accept any liability for the accuracy of the information contained herein and, in particular, Electricity North West or any of its employees, shall not be held liable for any misstatement or opinion on which the recipient of this statement relies or seeks to rely.
A12: Contents:
A14: Sheet Name | B14: Detail
A15: Commentary | B15: This sheet contains the DNO's commentary on the forecast input CDCM data for the forecast over the 5 year period.
A16: CDCM Forecast Data | B16: This sheet contains historical and forecast data for all CDCM inputs except for volume data (table 1053) and matrix of applicability data (table 1025 - 1028). The RPI forecast is separated out and listed as a standalone assumption. Any forecasts that relate to RPI will be linked to this row. Comments are provided alongside each forecast explaining any assumptions made by the DNO.
A17: Table 1 | B17: This sheet contains the DNO's table 1 produced in accordance with DCUSA Schedule 15 "cost information table".
A18: Mat of App | B18: This sheet contains the forecast CDCM matrix of applicability data (table 1025 - 1028). The default value is that the same matrix will be used for each of the five years.
A19: CDCM Volume Forecasts | B19: This sheet contains forecast CDCM volume data (table 1053). The matrix at the top can be used to apply different growth rates to groups of customers.
A20: CDCM Timebands | B20: Contains the time bands that the DNO plans to use for the coming year and advance warning of any changes.
A21: CDCM Input Sheet (Y) | B21: This sheet contains the CDCM input sheet for base year 0 (Y) in a format that can be copy and pasted (paste-value) into the CDCM spreadsheet model.
A22: CDCM Input Sheet (Y + 1) | B22: This sheet contains the CDCM input sheet for base year +1 (Y+1) in a format that can be copy and pasted (paste-value) into the CDCM spreadsheet model.
A23: CDCM Input Sheet (Y + 2) | B23: This sheet contains the CDCM input sheet for base year +2 (Y+2) in a format that can be copy and pasted (paste-value) into the CDCM spreadsheet model.
A24: CDCM Input Sheet (Y + 3) | B24: This sheet contains the CDCM input sheet for base year +3 (Y+3) in a format that can be copy and pasted (paste-value) into the CDCM spreadsheet model.
A25: CDCM Input Sheet (Y + 4) | B25: This sheet contains the CDCM input sheet for base year +4 (Y+4) in a format that can be copy and pasted (paste-value) into the CDCM spreadsheet model.
A26: Tariffs ARP | B26: This sheet contains the CDCM tariffs that are produced from the CDCM input data, after the Macro on this sheet has been run. It contains the tariffs for each of the 5 years.
A29: This document, model or dataset has been prepared by Reckon LLP on the instructions of the DCUSA Panel or
A30: one of its working groups. Only the DCUSA Panel and its working groups have authority to approve this
A31: material as meeting their requirements. Reckon LLP makes no representation about the suitability of this
A32: material for the purposes of complying with any licence conditions or furthering any relevant objective.

Sheet Commentary
B3: ='CDCM Forecast Data'!E3 -> Electricity North West

Sheet CDCM Forecast Data
D3: Company: | E3: Electricity North West
D4: Date of Issue: | E4: 2015-12-31
D5: Status | E5: April 2017 FINAL
C9: Historical CDCM Input Data (Actuals) | E9: ="CDCM Values - "&E5 -> CDCM Values - April 2017 FINAL | F9: Forecast CDCM Values
B10: Year Ref -> | C10: Y-2 | D10: Y-1 | E10: Y | F10: Y+1 | G10: Y+2 | H10: Y+3 | I10: Y+4
B11: Charging Year -> | C11: 2015/16 | D11: 2016/17 | E11: 2017/18 | F11: 2018/19 | G11: 2019/20 | H11: 2020/21 | I11: 2021/22
B12: DPCR -> | C12: RIIO - ED1 | D12: RIIO - ED1 | E12: RIIO - ED1 | F12: RIIO - ED1 | G12: RIIO - ED1 | H12: RIIO - ED1 | I12: RIIO - ED1 | J12: Assumptions
B13: RPI Forecast: | F13: 0.02825 | G13: 0.031 | H13: 0.031 | I13: 0.031 | J13: As per HM Treasury forecast for 2018/19, 3.1% thereafter
A14: 1 | B14: 1000 Company name, charging year and model version
A15: 2 | B15: Company | C15: ENWL | D15: ENWL | E15: ENWL | F15: ENWL | G15: ENWL | H15: ENWL | I15: ENWL
A16: 3 | B16: Year | C16: 2015/16 | D16: 2016/17 | E16: 2017/18 | F16: 2018/19 | G16: 2019/20 | H16: 2020/21 | I16: 2021/22
A17: 4 | B17: Version | C17: v1 | D17: v1 | E17: v1 | F17: v1 | G17: v1 | H17: v1 | I17: v1
A18: 5 | B18: 1010 Financial and general assumptions
A19: 6 | B19: Rate of return | C19: 0.056 | D19: 0.042 | E19: 0.0417 | F19: =E19 -> 0.0417 | G19: =F19 -> 0.0417 | H19: 0.0417 | I19: 0.0417 | J19: Assumed constant from 2017/18
A20: 7 | B20: Annualisation period (years) | C20: 40 | D20: 40 | E20: 40 | F20: 40 | G20: 40 | H20: 40 | I20: 40 | J20: Assumed constant
A21: 8 | B21: Power factor | C21: 0.95 | D21: 0.95 | E21: 0.95 | F21: 0.95 | G21: 0.95 | H21: 0.95 | I21: 0.95 | J21: Assumed constant
A22: 9 | B22: Days in the charging period | C22: 366 | D22: 365 | E22: 365 | F22: 365 | G22: 366 | H22: 365 | I22: 365 | J22: Leap year in 2015/16 and 2019/2020
A23: 10 | B23: 1017 Diversity allowance between top and bottom of network level
A24: 11 | B24: GSPs | C24: 0.114 | D24: 0.08164011631 | E24: 0.07420180118 | F24: =E24 -> 0.07420180118 | G24: =F24 -> 0.07420180118 | H24: 0.07420180118 | I24: 0.07420180118 | J24: Assumed constant from 2017/18, with RPI applied
A25: 12 | B25: 132kV | C25: 0.049 | D25: 0.049 | E25: 0.04679205393 | F25: =E25 -> 0.04679205393 | G25: 0.04679205393 | H25: 0.04679205393 | I25: 0.04679205393 | J25: Assumed constant from 2017/18, with RPI applied
A26: 13 | B26: EHV | C26: 0.07 | D26: 0.06653429705 | E26: 0.0868884238 | F26: =E26 -> 0.0868884238 | G26: 0.0868884238 | H26: 0.0868884238 | I26: 0.0868884238 | J26: Assumed constant from 2017/18, with RPI applied
A27: 14 | B27: HV | C27: 0.34 | D27: 0.3056153455 | E27: 0.3056153455 | F27: =E27 -> 0.3056153455 | G27: 0.3056153455 | H27: 0.3056153455 | I27: 0.3056153455 | J27: Assumed constant from 2017/18, with RPI applied
A28: 15 | B28: 1018 Proportion of relevant load going through 132kV/HV direct transformation | C28: 0 | D28: 0 | E28: 0 | F28: =E28 -> 0 | G28: 0 | H28: 0 | I28: 0 | J28: Assumed constant from 2017/18, with RPI applied
A29: 16 | B29: 1019 Network model GSP demand (MW) | C29: 500 | D29: 500 | E29: 500 | F29: =E29 -> 500 | G29: 500 | H29: 500 | I29: 500 | J29: Assumed constant from 2017/18, with RPI applied
A30: 17 | B30: 1020 Gross asset cost by network level (£)
A31: 18 | B31: 132kV | C31: 83368102.69 | D31: 88430333.73 | E31: 93700604.94 | F31: =E31*(1+F$13) -> 96347647.03 | G31: =F31*(1+G$13) -> 99334424.08 | H31: 102413791.2 | I31: =H31*(1+I$13) -> 105588618.8 | J31: Assumed constant from 2017/18, with RPI applied
A32: 19 | B32: 132kV/EHV | C32: 34102423.29 | D32: 35408417.71 | E32: 37063778.58 | F32: =E32*(1+F$13) -> 38110830.32 | G32: 39292266.06 | H32: 40510326.31 | I32: 41766146.43 | J32: Assumed constant from 2017/18, with RPI applied
A33: 20 | B33: EHV | C33: 84319183.47 | D33: 80625641.92 | E33: 93588546.74 | F33: =E33*(1+F$13) -> 96232423.18 | G33: 99215628.3 | H33: 102291312.8 | I33: 105462343.5 | J33: Assumed constant from 2017/18, with RPI applied
A34: 21 | B34: EHV/HV | C34: 61366613.59 | D34: 56826402.11 | E34: 59035973.2 | F34: =E34*(1+F$13) -> 60703739.44 | G34: 62585555.36 | H34: 64525707.58 | I34: 66526004.51 | J34: Assumed constant from 2017/18, with RPI applied
A35: 22 | B35: 132kV/HV | C35: 0 | D35: 0 | E35: 0 | F35: =E35*(1+F$13) -> 0 | G35: 0 | H35: 0 | I35: 0 | J35: Assumed constant from 2017/18, with RPI applied
A36: 23 | B36: HV | C36: 107407524 | D36: 105110360.2 | E36: 107178668.3 | F36: =E36*(1+F$13) -> 110206465.7 | G36: 113622866.1 | H36: 117145175 | I36: 120776675.4 | J36: Assumed constant from 2017/18, with RPI applied
A37: 24 | B37: HV/LV | C37: 88717503.72 | D37: 95431840.51 | E37: 97309699.62 | F37: =E37*(1+F$13) -> 100058698.6 | G37: 103160518.3 | H37: 106358494.4 | I37: 109655607.7 | J37: Assumed constant from 2017/18, with RPI applied
A38: 25 | B38: LV circuits | C38: 56877258.37 | D38: 52903758.2 | E38: 53944771.39 | F38: =E38*(1+F$13) -> 55468711.18 | G38: 57188241.22 | H38: 58961076.7 | I38: 60788870.08 | J38: Assumed constant from 2017/18, with RPI applied
A39: 26 | B39: 1022 LV service model asset cost (£)
A40: 27 | B40: LV service model 1 | C40: 9801.997385 | D40: 10042.78468 | E40: 10240.40148 | F40: =E40*(1+F$13) -> 10529.69282 | G40: 10856.11329 | H40: 11192.65281 | I40: 11539.62504 | J40: Assumed constant from 2017/18, with RPI applied
A41: 28 | B41: LV service model 2 | C41: 490.0998692 | D41: 502.1392339 | E41: 512.0200738 | F41: =E41*(1+F$13) -> 526.4846409 | G41: 542.8056647 | H41: 559.6326403 | I41: 576.9812522 | J41: Assumed constant from 2017/18, with RPI applied
A42: 29 | B42: LV service model 3 | C42: 2347.400002 | D42: 2360.703536 | E42: 2407.156257 | F42: =E42*(1+F$13) -> 2475.158421 | G42: 2551.888332 | H42: 2630.996871 | I42: 2712.557774 | J42: Assumed constant from 2017/18, with RPI applied
A43: 30 | B43: LV service model 4 | C43: 7517.031302 | D43: 7578.139443 | E43: 7727.258208 | F43: =E43*(1+F$13) -> 7945.553252 | G43: 8191.865403 | H43: 8445.813231 | I43: 8707.633441 | J43: Assumed constant from 2017/18, with RPI applied
A44: 31 | B44: LV service model 5 | C44: 271.9836973 | D44: 276.0055187 | E44: 281.4366146 | F44: =E44*(1+F$13) -> 289.3871989 | G44: 298.3582021 | H44: 307.6073064 | I44: 317.1431329 | J44: Assumed constant from 2017/18, with RPI applied
A45: 32 | B45: LV service model 6 | C45: 0 | D45: 0 | E45: 0 | F45: =E45*(1+F$13) -> 0 | G45: 0 | H45: 0 | I45: 0 | J45: Assumed constant from 2017/18, with RPI applied
A46: 33 | B46: LV service model 7 | C46: 0 | D46: 0 | E46: 0 | F46: =E46*(1+F$13) -> 0 | G46: 0 | H46: 0 | I46: 0 | J46: Assumed constant from 2017/18, with RPI applied
A47: 34 | B47: LV service model 8 | C47: 0 | D47: 0 | E47: 0 | F47: =E47*(1+F$13) -> 0 | G47: 0 | H47: 0 | I47: 0 | J47: Assumed constant from 2017/18, with RPI applied
A48: 35 | B48: 1023 HV service model asset cost (£)
A49: 36 | B49: HV service model 1 | C49: 18868.15825 | D49: 18851.02254 | E49: 19221.96335 | F49: =E49*(1+F$13) -> 19764.98382 | G49: 20377.69832 | H49: 21009.40696 | I49: 21660.69858 | J49: Assumed constant from 2017/18, with RPI applied
A50: 37 | B50: HV service model 2 | C50: 16696.82258 | D50: 16663.31822 | E50: 16991.2105 | F50: =E50*(1+F$13) -> 17471.2122 | G50: 18012.81978 | H50: 18571.21719 | I50: 19146.92492 | J50: Assumed constant from 2017/18, with RPI applied
A51: 38 | B51: HV service model 3 | C51: 1187.91403 | D51: 1136.64 | E51: 1144.1325 | F51: =E51*(1+F$13) -> 1176.454243 | G51: 1212.924325 | H51: 1250.524979 | I51: 1289.291253 | J51: Assumed constant from 2017/18, with RPI applied
A52: 39 | B52: HV service model 4 | C52: - | D52: 0 | E52: 0 | F52: =E52*(1+F$13) -> 0 | G52: 0 | H52: 0 | I52: 0 | J52: Assumed constant from 2017/18, with RPI applied
A53: 40 | B53: HV service model 5 | C53: - | D53: 0 | E53: 0 | F53: =E53*(1+F$13) -> 0 | G53: 0 | H53: 0 | I53: 0 | J53: Assumed constant from 2017/18, with RPI applied
A54: 41 | B54: 1025 Matrix of applicability of LV service models to tariffs with fixed charges
A55: 42 | B55: 1026 Matrix of applicability of LV service models to unmetered tariffs
A56: 43 | B56: 1028 Matrix of applicability of HV service models to tariffs with fixed charges
A57: 44 | B57: 1032 Loss adjustment factors to transmission
A58: 45 | B58: 132kV | C58: 1.010413289 | D58: 1.010207653 | E58: 1.010207653 | F58: =E58 -> 1.010207653 | G58: 1.010207653 | H58: 1.010207653 | I58: 1.010207653 | J58: Assumed constant from 2017/18
A59: 46 | B59: 132kV/EHV | C59: 1.015393496 | D59: 1.015167952 | E59: 1.015167952 | F59: =E59 -> 1.015167952 | G59: 1.015167952 | H59: 1.015167952 | I59: 1.015167952 | J59: Assumed constant from 2017/18
A60: 47 | B60: EHV | C60: 1.021993876 | D60: 1.021613121 | E60: 1.021613121 | F60: =E60 -> 1.021613121 | G60: 1.021613121 | H60: 1.021613121 | I60: 1.021613121 | J60: Assumed constant from 2017/18
A61: 48 | B61: EHV/HV | C61: 1.027559519 | D61: 1.027143717 | E61: 1.027143717 | F61: =E61 -> 1.027143717 | G61: 1.027143717 | H61: 1.027143717 | I61: 1.027143717 | J61: Assumed constant from 2017/18
A62: 49 | B62: HV | C62: 1.040166974 | D62: 1.039482236 | E62: 1.039482236 | F62: =E62 -> 1.039482236 | G62: 1.039482236 | H62: 1.039482236 | I62: 1.039482236 | J62: Assumed constant from 2017/18
A63: 50 | B63: HV/LV | C63: 1.053696394 | D63: 1.053113103 | E63: 1.053113103 | F63: =E63 -> 1.053113103 | G63: 1.053113103 | H63: 1.053113103 | I63: 1.053113103 | J63: Assumed constant from 2017/18
A64: 51 | B64: LV circuits | C64: 1.107034802 | D64: 1.105523229 | E64: 1.105523229 | F64: =E64 -> 1.105523229 | G64: 1.105523229 | H64: 1.105523229 | I64: 1.105523229 | J64: Assumed constant from 2017/18
A65: 52 | B65: 1037 Embedded network (LDNO) discounts
A66: 53 | B66: LDNO LV: LV user | C66: 0.3352006641 | D66: 0.3552200251 | E66: 0.3545481139 | F66: =E66 -> 0.3545481139 | G66: 0.3545481139 | H66: 0.3545481139 | I66: 0.3545481139 | J66: Assumed constant from 2017/18
A67: 54 | B67: LDNO HV: LV user | C67: 0.5639251225 | D67: 0.5771827471 | E67: 0.5759919482 | F67: =E67 -> 0.5759919482 | G67: 0.5759919482 | H67: 0.5759919482 | I67: 0.5759919482 | J67: Assumed constant from 2017/18
A68: 55 | B68: LDNO HV: LV sub user | C68: 0.323780574 | D68: 0.3362904126 | E68: 0.3351316791 | F68: =E68 -> 0.3351316791 | G68: 0.3351316791 | H68: 0.3351316791 | I68: 0.3351316791 | J68: Assumed constant from 2017/18
A69: 56 | B69: LDNO HV: HV user | C69: 0.2035063224 | D69: 0.215755758 | E69: 0.2148277515 | F69: =E69 -> 0.2148277515 | G69: 0.2148277515 | H69: 0.2148277515 | I69: 0.2148277515 | J69: Assumed constant from 2017/18
A70: 57 | B70: 1041 Load profile data for demand users: coincidence factor
A71: 58 | B71: Domestic Unrestricted | C71: 0.8719950359 | D71: 0.8913703454 | E71: 0.8913703454 | F71: =E71 -> 0.8913703454 | G71: 0.8913703454 | H71: 0.8913703454 | I71: 0.8913703454 | J71: Assumed constant from 2017/18
A72: 59 | B72: Domestic Two Rate | C72: 0.2892028269 | D72: 0.2951047042 | E72: 0.2951047042 | F72: =E72 -> 0.2951047042 | G72: 0.2951047042 | H72: 0.2951047042 | I72: 0.2951047042 | J72: Assumed constant from 2017/18
A73: 60 | B73: Domestic Off Peak (related MPAN) | J73: Assumed constant from 2017/18
A74: 61 | B74: Small Non Domestic Unrestricted | C74: 0.6751420264 | D74: 0.675023322 | E74: 0.675023322 | F74: =E74 -> 0.675023322 | G74: 0.675023322 | H74: 0.675023322 | I74: 0.675023322 | J74: Assumed constant from 2017/18
A75: 62 | B75: Small Non Domestic Two Rate | C75: 0.6939934609 | D75: 0.7022639753 | E75: 0.7022639753 | F75: =E75 -> 0.7022639753 | G75: 0.7022639753 | H75: 0.7022639753 | I75: 0.7022639753 | J75: Assumed constant from 2017/18
A76: 63 | B76: Small Non Domestic Off Peak (related MPAN) | J76: Assumed constant from 2017/18
A77: 64 | B77: LV Medium Non-Domestic | C77: 0.8373261501 | D77: 0.8299720136 | E77: 0.8299720136 | F77: =E77 -> 0.8299720136 | G77: 0.8299720136 | H77: 0.8299720136 | I77: 0.8299720136 | J77: Assumed constant from 2017/18
A78: 65 | B78: LV Sub Medium Non-Domestic | C78: 0.8085620113 | D78: 0.7822989923 | E78: 0.7822989923 | F78: =E78 -> 0.7822989923 | G78: 0.7822989923 | H78: 0.7822989923 | I78: 0.7822989923 | J78: Assumed constant from 2017/18
A79: 66 | B79: HV Medium Non-Domestic | C79: 0.7394620182 | D79: 0.7647764369 | E79: 0.7647764369 | F79: =E79 -> 0.7647764369 | G79: 0.7647764369 | H79: 0.7647764369 | I79: 0.7647764369 | J79: Assumed constant from 2017/18
A80: 67 | B80: LV Network Domestic | C80: 0.8719950359 | D80: 0.8913703454 | E80: 0.8913703454 | F80: =E80 -> 0.8913703454 | G80: 0.8913703454 | H80: 0.8913703454 | I80: 0.8913703454 | J80: Assumed constant from 2017/18
A81: 68 | B81: LV Network Non-Domestic Non-CT | C81: 0.6751420264 | D81: 0.675023322 | E81: 0.675023322 | F81: =E81 -> 0.675023322 | G81: 0.675023322 | H81: 0.675023322 | I81: 0.675023322 | J81: Assumed constant from 2017/18
A82: 69 | B82: LV HH Metered | C82: 0.8134580127 | D82: 0.8187070533 | E82: 0.8187070533 | F82: =E82 -> 0.8187070533 | G82: 0.8187070533 | H82: 0.8187070533 | I82: 0.8187070533 | J82: Assumed constant from 2017/18
A83: 70 | B83: LV Sub HH Metered | C83: 0.7861625851 | D83: 0.7867578525 | E83: 0.7867578525 | F83: =E83 -> 0.7867578525 | G83: 0.7867578525 | H83: 0.7867578525 | I83: 0.7867578525 | J83: Assumed constant from 2017/18
A84: 71 | B84: HV HH Metered | C84: 0.8548488611 | D84: 0.8573132903 | E84: 0.8573132903 | F84: =E84 -> 0.8573132903 | G84: 0.8573132903 | H84: 0.8573132903 | I84: 0.8573132903 | J84: Assumed constant from 2017/18
A85: 72 | B85: NHH UMS category A | C85: 1 | D85: 1 | E85: 1 | F85: =E85 -> 1 | G85: 1 | H85: 1 | I85: 1 | J85: Assumed constant from 2017/18
A86: 73 | B86: NHH UMS category B | C86: 1 | D86: 1 | E86: 1 | F86: =E86 -> 1 | G86: 1 | H86: 1 | I86: 1 | J86: Assumed constant from 2017/18
A87: 74 | B87: NHH UMS category C | C87: 1 | D87: 1 | E87: 1 | F87: =E87 -> 1 | G87: 1 | H87: 1 | I87: 1 | J87: Assumed constant from 2017/18
A88: 75 | B88: NHH UMS category D | C88: 0 | D88: 0 | E88: 0 | F88: =E88 -> 0 | G88: 0 | H88: 0 | I88: 0 | J88: Assumed constant from 2017/18
A89: 76 | B89: LV UMS (Pseudo HH Metered) | C89: 0.9774688096 | D89: 0.9795893947 | E89: 0.9795893947 | F89: =E89 -> 0.9795893947 | G89: 0.9795893947 | H89: 0.9795893947 | I89: 0.9795893947 | J89: Assumed constant from 2017/18
A90: 77 | B90: 1041 Load profile data for demand users: load factor
A91: 78 | B91: Domestic Unrestricted | C91: 0.4417027055 | D91: 0.4462668473 | E91: 0.4462668473 | F91: =E91 -> 0.4462668473 | G91: 0.4462668473 | H91: 0.4462668473 | I91: 0.4462668473 | J91: Assumed constant from 2017/18
A92: 79 | B92: Domestic Two Rate | C92: 0.241915909 | D92: 0.2467650034 | E92: 0.2467650034 | F92: =E92 -> 0.2467650034 | G92: 0.2467650034 | H92: 0.2467650034 | I92: 0.2467650034 | J92: Assumed constant from 2017/18
A93: 80 | B93: Domestic Off Peak (related MPAN) | C93: 0.1615288733 | D93: 0.1659632593 | E93: 0.1659632593 | F93: =E93 -> 0.1659632593 | G93: 0.1659632593 | H93: 0.1659632593 | I93: 0.1659632593 | J93: Assumed constant from 2017/18
A94: 81 | B94: Small Non Domestic Unrestricted | C94: 0.394823 | D94: 0.3939683153 | E94: 0.3939683153 | F94: =E94 -> 0.3939683153 | G94: 0.3939683153 | H94: 0.3939683153 | I94: 0.3939683153 | J94: Assumed constant from 2017/18
A95: 82 | B95: Small Non Domestic Two Rate | C95: 0.5341090403 | D95: 0.5394924636 | E95: 0.5394924636 | F95: =E95 -> 0.5394924636 | G95: 0.5394924636 | H95: 0.5394924636 | I95: 0.5394924636 | J95: Assumed constant from 2017/18
A96: 83 | B96: Small Non Domestic Off Peak (related MPAN) | C96: 0.1637428864 | D96: 0.1655384635 | E96: 0.1655384635 | F96: =E96 -> 0.1655384635 | G96: 0.1655384635 | H96: 0.1655384635 | I96: 0.1655384635 | J96: Assumed constant from 2017/18
A97: 84 | B97: LV Medium Non-Domestic | C97: 0.5689406855 | D97: 0.5627043404 | E97: 0.5627043404 | F97: =E97 -> 0.5627043404 | G97: 0.5627043404 | H97: 0.5627043404 | I97: 0.5627043404 | J97: Assumed constant from 2017/18
A98: 85 | B98: LV Sub Medium Non-Domestic | C98: 0.5569858525 | D98: 0.5370681653 | E98: 0.5370681653 | F98: =E98 -> 0.5370681653 | G98: 0.5370681653 | H98: 0.5370681653 | I98: 0.5370681653 | J98: Assumed constant from 2017/18
A99: 86 | B99: HV Medium Non-Domestic | C99: 0.490716446 | D99: 0.5247366167 | E99: 0.5247366167 | F99: =E99 -> 0.5247366167 | G99: 0.5247366167 | H99: 0.5247366167 | I99: 0.5247366167 | J99: Assumed constant from 2017/18
A100: 87 | B100: LV Network Domestic | C100: 0.4417027055 | D100: 0.4462668473 | E100: 0.4462668473 | F100: =E100 -> 0.4462668473 | G100: 0.4462668473 | H100: 0.4462668473 | I100: 0.4462668473 | J100: Assumed constant from 2017/18
A101: 88 | B101: LV Network Non-Domestic Non-CT | C101: 0.394823 | D101: 0.3939683153 | E101: 0.3939683153 | F101: =E101 -> 0.3939683153 | G101: 0.3939683153 | H101: 0.3939683153 | I101: 0.3939683153 | J101: Assumed constant from 2017/18
A102: 89 | B102: LV HH Metered | C102: 0.5556497797 | D102: 0.5579677074 | E102: 0.5579677074 | F102: =E102 -> 0.5579677074 | G102: 0.5579677074 | H102: 0.5579677074 | I102: 0.5579677074 | J102: Assumed constant from 2017/18
A103: 90 | B103: LV Sub HH Metered | C103: 0.5560856276 | D103: 0.5593063082 | E103: 0.5593063082 | F103: =E103 -> 0.5593063082 | G103: 0.5593063082 | H103: 0.5593063082 | I103: 0.5593063082 | J103: Assumed constant from 2017/18
A104: 91 | B104: HV HH Metered | C104: 0.7107054151 | D104: 0.7117228058 | E104: 0.7117228058 | F104: =E104 -> 0.7117228058 | G104: 0.7117228058 | H104: 0.7117228058 | I104: 0.7117228058 | J104: Assumed constant from 2017/18
A105: 92 | B105: NHH UMS category A | C105: 1 | D105: 1 | E105: 1 | F105: =E105 -> 1 | G105: 1 | H105: 1 | I105: 1 | J105: Assumed constant from 2017/18
A106: 93 | B106: NHH UMS category B | C106: 0.474 | D106: 0.4737220928 | E106: 0.4737220928 | F106: =E106 -> 0.4737220928 | G106: 0.4737220928 | H106: 0.4737220928 | I106: 0.4737220928 | J106: Assumed constant from 2017/18
A107: 94 | B107: NHH UMS category C | C107: 0.258 | D107: 0.2580136568 | E107: 0.2580136568 | F107: =E107 -> 0.2580136568 | G107: 0.2580136568 | H107: 0.2580136568 | I107: 0.2580136568 | J107: Assumed constant from 2017/18
A108: 95 | B108: NHH UMS category D | C108: 0.554 | D108: 0.5539154947 | E108: 0.5539154947 | F108: =E108 -> 0.5539154947 | G108: 0.5539154947 | H108: 0.5539154947 | I108: 0.5539154947 | J108: Assumed constant from 2017/18
A109: 96 | B109: LV UMS (Pseudo HH Metered) | C109: 0.4829227126 | D109: 0.4777791708 | E109: 0.4777791708 | F109: =E109 -> 0.4777791708 | G109: 0.4777791708 | H109: 0.4777791708 | I109: 0.4777791708 | J109: Assumed constant from 2017/18
A110: 97 | B110: 1053. Volume forecasts for the charging year
A111: 98 | B111: 1055 Transmission exit charges (£/year) | C111: 17073628 | D111: 18227377.85 | E111: 18525180.79 | F111: =E111*(1+F$13) -> 19048517.15 | G111: =F111*(1+G$13) -> 19639021.18 | H111: 20247830.84 | I111: 20875513.59 | J111: Assumed constant from 2017/18, with RPI applied
A112: 99 | B112: 1059 Other Expenditure (£/year)
A113: 100 | B113: Direct cost (£/year) | C113: 27793060 | D113: 26927874.2 | E113: 27174344.18 | F113: 28213355.58 | G113: =F113*(1+G$13) -> 29087969.6 | H113: =G113*(1+H$13) -> 29989696.66 | I113: =H113*(1+I$13) -> 30919377.26 | J113: Latest Assumptions to 18/19, then assumed to increase with RPI
A114: 101 | B114: Indirect cost (£/year) | C114: 104673255 | D114: 97591340.41 | E114: 97208506.38 | F114: 98110772.09 | G114: =F114*(1+G$13) -> 101152206 | H114: 104287924.4 | I114: =H114*(1+I$13) -> 107520850.1 | J114: Latest Assumptions to 18/19, then assumed to increase with RPI
A115: 102 | B115: Indirect cost proportion | C115: 0.6 | D115: 0.6 | E115: 0.6 | F115: =E115 -> 0.6 | G115: 0.6 | H115: 0.6 | I115: 0.6 | J115: Assumed constant
A116: 103 | B116: Network rates (£/year) | C116: 26640502 | D116: 26968945.77 | E116: 28145721.2 | F116: 29302590.35 | G116: =F116*(1+G$13) -> 30210970.65 | H116: =G116*(1+H$13) -> 31147510.74 | I116: =H116*(1+I$13) -> 32113083.57 | J116: Latest Assumptions to 18/19, then assumed to increase with RPI
A117: 104 | B117: 1060 Customer contributions under current connection charging policy
A118: 105 | B118: LV network
A119: 106 | B119: Assets 132kV | D119: 0 | E119: 0 | F119: =E119 -> 0 | G119: 0 | H119: 0 | I119: 0 | J119: Assumed constant from 2017/18
A120: 107 | B120: Assets 132kV/EHV | D120: 0 | E120: 0 | F120: =E120 -> 0 | G120: 0 | H120: 0 | I120: 0 | J120: Assumed constant from 2017/18
A121: 108 | B121: Assets EHV | C121: 0 | D121: 0 | E121: 0 | F121: =E121 -> 0 | G121: 0 | H121: 0 | I121: 0 | J121: Assumed constant from 2017/18
A122: 109 | B122: Assets EHV/HV | C122: 0 | D122: 0 | E122: 0 | F122: =E122 -> 0 | G122: 0 | H122: 0 | I122: 0 | J122: Assumed constant from 2017/18
A123: 110 | B123: Assets 132kV/HV | C123: 0 | D123: 0 | E123: 0 | F123: =E123 -> 0 | G123: 0 | H123: 0 | I123: 0 | J123: Assumed constant from 2017/18
A124: 111 | B124: Assets HV | C124: 0.3 | D124: 0.3 | E124: 0.3 | F124: =E124 -> 0.3 | G124: 0.3 | H124: 0.3 | I124: 0.3 | J124: Assumed constant from 2017/18
A125: 112 | B125: Assets HV/LV | C125: 0.3 | D125: 0.3 | E125: 0.3 | F125: =E125 -> 0.3 | G125: 0.3 | H125: 0.3 | I125: 0.3 | J125: Assumed constant from 2017/18
A126: 113 | B126: Assets LV circuits | C126: 0.97 | D126: 0.97 | E126: 0.97 | F126: =E126 -> 0.97 | G126: 0.97 | H126: 0.97 | I126: 0.97 | J126: Assumed constant from 2017/18
A127: 114 | B127: LV substation
A128: 115 | B128: Assets 132kV | D128: 0 | E128: 0 | F128: =E128 -> 0 | G128: 0 | H128: 0 | I128: 0 | J128: Assumed constant from 2017/18
A129: 116 | B129: Assets 132kV/EHV | D129: 0 | E129: 0 | F129: =E129 -> 0 | G129: 0 | H129: 0 | I129: 0 | J129: Assumed constant from 2017/18
A130: 117 | B130: Assets EHV | C130: 0 | D130: 0 | E130: 0 | F130: =E130 -> 0 | G130: 0 | H130: 0 | I130: 0 | J130: Assumed constant from 2017/18
A131: 118 | B131: Assets EHV/HV | C131: 0 | D131: 0 | E131: 0 | F131: =E131 -> 0 | G131: 0 | H131: 0 | I131: 0 | J131: Assumed constant from 2017/18
A132: 119 | B132: Assets 132kV/HV | D132: 0 | E132: 0 | F132: =E132 -> 0 | G132: 0 | H132: 0 | I132: 0 | J132: Assumed constant from 2017/18
A133: 120 | B133: Assets HV | C133: 0.3 | D133: 0.3 | E133: 0.3 | F133: =E133 -> 0.3 | G133: 0.3 | H133: 0.3 | I133: 0.3 | J133: Assumed constant from 2017/18
A134: 121 | B134: Assets HV/LV | C134: 0.97 | D134: 0.97 | E134: 0.97 | F134: =E134 -> 0.97 | G134: 0.97 | H134: 0.97 | I134: 0.97 | J134: Assumed constant from 2017/18
A135: 122 | B135: HV network
A136: 123 | B136: Assets 132kV | D136: 0 | E136: 0 | F136: =E136 -> 0 | G136: 0 | H136: 0 | I136: 0 | J136: Assumed constant from 2017/18
A137: 124 | B137: Assets 132kV/EHV | D137: 0 | E137: 0 | F137: =E137 -> 0 | G137: 0 | H137: 0 | I137: 0 | J137: Assumed constant from 2017/18
A138: 125 | B138: Assets EHV | D138: 0 | E138: 0 | F138: =E138 -> 0 | G138: 0 | H138: 0 | I138: 0 | J138: Assumed constant from 2017/18
A139: 126 | B139: Assets EHV/HV | C139: 0.57 | D139: 0.57 | E139: 0.57 | F139: =E139 -> 0.57 | G139: 0.57 | H139: 0.57 | I139: 0.57 | J139: Assumed constant from 2017/18
A140: 127 | B140: Assets 132kV/HV | D140: 0 | E140: 0 | F140: =E140 -> 0 | G140: 0 | H140: 0 | I140: 0 | J140: Assumed constant from 2017/18
A141: 128 | B141: Assets HV | C141: 0.91 | D141: 0.91 | E141: 0.91 | F141: =E141 -> 0.91 | G141: 0.91 | H141: 0.91 | I141: 0.91 | J141: Assumed constant from 2017/18
A142: 129 | B142: HV substation
A143: 130 | B143: Assets 132kV | D143: 0 | E143: 0 | F143: =E143 -> 0 | G143: 0 | H143: 0 | I143: 0 | J143: Assumed constant from 2017/18
A144: 131 | B144: Assets 132kV/EHV | D144: 0 | E144: 0 | F144: =E144 -> 0 | G144: 0 | H144: 0 | I144: 0 | J144: Assumed constant from 2017/18
A145: 132 | B145: Assets EHV | C145: 0.57 | D145: 0.57 | E145: 0.57 | F145: =E145 -> 0.57 | G145: 0.57 | H145: 0.57 | I145: 0.57 | J145: Assumed constant from 2017/18
A146: 133 | B146: Assets EHV/HV | C146: 0.92 | D146: 0.92 | E146: 0.92 | F146: =E146 -> 0.92 | G146: 0.92 | H146: 0.92 | I146: 0.92 | J146: Assumed constant from 2017/18
A147: 134 | B147: 1061 Average split of rate 1 units by distribution time band
A148: 135 | B148: RED
A149: 136 | B149: Domestic Unrestricted | C149: 0.1265129573 | D149: 0.1267129394 | E149: 0.1267129394 | F149: =E149 -> 0.1267129394 | G149: 0.1267129394 | H149: 0.1267129394 | I149: 0.1267129394 | J149: Assumed constant from 2017/18
A150: 137 | B150: Domestic Two Rate | C150: 0.1338905581 | D150: 0.1354229874 | E150: 0.1354229874 | F150: =E150 -> 0.1354229874 | G150: 0.1354229874 | H150: 0.1354229874 | I150: 0.1354229874 | J150: Assumed constant from 2017/18
A151: 138 | B151: Domestic Off Peak (related MPAN) | C151: 0.005197087863 | D151: 0.005295933963 | E151: 0.005295933963 | F151: =E151 -> 0.005295933963 | G151: 0.005295933963 | H151: 0.005295933963 | I151: 0.005295933963 | J151: Assumed constant from 2017/18
A152: 139 | B152: Small Non Domestic Unrestricted | C152: 0.1100380052 | D152: 0.1092743142 | E152: 0.1092743142 | F152: =E152 -> 0.1092743142 | G152: 0.1092743142 | H152: 0.1092743142 | I152: 0.1092743142 | J152: Assumed constant from 2017/18
A153: 140 | B153: Small Non Domestic Two Rate | C153: 0.1221373672 | D153: 0.1224154854 | E153: 0.1224154854 | F153: =E153 -> 0.1224154854 | G153: 0.1224154854 | H153: 0.1224154854 | I153: 0.1224154854 | J153: Assumed constant from 2017/18
A154: 141 | B154: Small Non Domestic Off Peak (related MPAN) | C154: 0.001419653633 | D154: 0.001575559271 | E154: 0.001575559271 | F154: =E154 -> 0.001575559271 | G154: 0.001575559271 | H154: 0.001575559271 | I154: 0.001575559271 | J154: Assumed constant from 2017/18
A155: 142 | B155: LV Medium Non-Domestic | C155: 0.1362142947 | D155: 0.1359911403 | E155: 0.1359911403 | F155: =E155 -> 0.1359911403 | G155: 0.1359911403 | H155: 0.1359911403 | I155: 0.1359911403 | J155: Assumed constant from 2017/18
A156: 143 | B156: LV Sub Medium Non-Domestic | C156: 0.1342936723 | D156: 0.1337574391 | E156: 0.1337574391 | F156: =E156 -> 0.1337574391 | G156: 0.1337574391 | H156: 0.1337574391 | I156: 0.1337574391 | J156: Assumed constant from 2017/18
A157: 144 | B157: HV Medium Non-Domestic | C157: 0.1307128479 | D157: 0.1309576271 | E157: 0.1309576271 | F157: =E157 -> 0.1309576271 | G157: 0.1309576271 | H157: 0.1309576271 | I157: 0.1309576271 | J157: Assumed constant from 2017/18
A158: 145 | B158: AMBER
A159: 146 | B159: Domestic Unrestricted | C159: 0.3290364251 | D159: 0.3318115729 | E159: 0.3318115729 | F159: =E159 -> 0.3318115729 | G159: 0.3318115729 | H159: 0.3318115729 | I159: 0.3318115729 | J159: Assumed constant from 2017/18
A160: 147 | B160: Domestic Two Rate | C160: 0.3442653464 | D160: 0.3484118589 | E160: 0.3484118589 | F160: =E160 -> 0.3484118589 | G160: 0.3484118589 | H160: 0.3484118589 | I160: 0.3484118589 | J160: Assumed constant from 2017/18
A161: 148 | B161: Domestic Off Peak (related MPAN) | C161: 0.09393634787 | D161: 0.09414184204 | E161: 0.09414184204 | F161: =E161 -> 0.09414184204 | G161: 0.09414184204 | H161: 0.09414184204 | I161: 0.09414184204 | J161: Assumed constant from 2017/18
A162: 149 | B162: Small Non Domestic Unrestricted | C162: 0.4508709331 | D162: 0.4478278324 | E162: 0.4478278324 | F162: =E162 -> 0.4478278324 | G162: 0.4478278324 | H162: 0.4478278324 | I162: 0.4478278324 | J162: Assumed constant from 2017/18
A163: 150 | B163: Small Non Domestic Two Rate | C163: 0.4592249679 | D163: 0.4608940278 | E163: 0.4608940278 | F163: =E163 -> 0.4608940278 | G163: 0.4608940278 | H163: 0.4608940278 | I163: 0.4608940278 | J163: Assumed constant from 2017/18
A164: 151 | B164: Small Non Domestic Off Peak (related MPAN) | C164: 0.04957809505 | D164: 0.05077890421 | E164: 0.05077890421 | F164: =E164 -> 0.05077890421 | G164: 0.05077890421 | H164: 0.05077890421 | I164: 0.05077890421 | J164: Assumed constant from 2017/18
A165: 152 | B165: LV Medium Non-Domestic | C165: 0.4849309772 | D165: 0.4850036297 | E165: 0.4850036297 | F165: =E165 -> 0.4850036297 | G165: 0.4850036297 | H165: 0.4850036297 | I165: 0.4850036297 | J165: Assumed constant from 2017/18
A166: 153 | B166: LV Sub Medium Non-Domestic | C166: 0.4818157011 | D166: 0.4814344485 | E166: 0.4814344485 | F166: =E166 -> 0.4814344485 | G166: 0.4814344485 | H166: 0.4814344485 | I166: 0.4814344485 | J166: Assumed constant from 2017/18
A167: 154 | B167: HV Medium Non-Domestic | C167: 0.4904338035 | D167: 0.4893393738 | E167: 0.4893393738 | F167: =E167 -> 0.4893393738 | G167: 0.4893393738 | H167: 0.4893393738 | I167: 0.4893393738 | J167: Assumed constant from 2017/18
A168: 155 | B168: GREEN
A169: 156 | B169: Domestic Unrestricted | C169: 0.5444506176 | D169: 0.5414754877 | E169: 0.5414754877 | F169: =E169 -> 0.5414754877 | G169: 0.5414754877 | H169: 0.5414754877 | I169: 0.5414754877 | J169: Assumed constant from 2017/18
A170: 157 | B170: Domestic Two Rate | C170: 0.5218440956 | D170: 0.5161651537 | E170: 0.5161651537 | F170: =E170 -> 0.5161651537 | G170: 0.5161651537 | H170: 0.5161651537 | I170: 0.5161651537 | J170: Assumed constant from 2017/18
A171: 158 | B171: Domestic Off Peak (related MPAN) | C171: 0.9008665643 | D171: 0.900562224 | E171: 0.900562224 | F171: =E171 -> 0.900562224 | G171: 0.900562224 | H171: 0.900562224 | I171: 0.900562224 | J171: Assumed constant from 2017/18
A172: 159 | B172: Small Non Domestic Unrestricted | C172: 0.4390910618 | D172: 0.4428978534 | E172: 0.4428978534 | F172: =E172 -> 0.4428978534 | G172: 0.4428978534 | H172: 0.4428978534 | I172: 0.4428978534 | J172: Assumed constant from 2017/18
A173: 160 | B173: Small Non Domestic Two Rate | C173: 0.4186376649 | D173: 0.4166904869 | E173: 0.4166904869 | F173: =E173 -> 0.4166904869 | G173: 0.4166904869 | H173: 0.4166904869 | I173: 0.4166904869 | J173: Assumed constant from 2017/18
A174: 161 | B174: Small Non Domestic Off Peak (related MPAN) | C174: 0.9490022513 | D174: 0.9476455365 | E174: 0.9476455365 | F174: =E174 -> 0.9476455365 | G174: 0.9476455365 | H174: 0.9476455365 | I174: 0.9476455365 | J174: Assumed constant from 2017/18
A175: 162 | B175: LV Medium Non-Domestic | C175: 0.3788547281 | D175: 0.37900523 | E175: 0.37900523 | F175: =E175 -> 0.37900523 | G175: 0.37900523 | H175: 0.37900523 | I175: 0.37900523 | J175: Assumed constant from 2017/18
A176: 163 | B176: LV Sub Medium Non-Domestic | C176: 0.3838906267 | D176: 0.3848081123 | E176: 0.3848081123 | F176: =E176 -> 0.3848081123 | G176: 0.3848081123 | H176: 0.3848081123 | I176: 0.3848081123 | J176: Assumed constant from 2017/18
A177: 164 | B177: HV Medium Non-Domestic | C177: 0.3788533486 | D177: 0.3797029991 | E177: 0.3797029991 | F177: =E177 -> 0.3797029991 | G177: 0.3797029991 | H177: 0.3797029991 | I177: 0.3797029991 | J177: Assumed constant from 2017/18
A178: 165 | B178: 1062 Average split of rate 2 units by distribution time band
A179: 166 | B179: RED
A180: 167 | B180: Domestic Two Rate | C180: 0 | D180: 0 | E180: 0 | F180: =E180 -> 0 | G180: 0 | H180: 0 | I180: 0 | J180: Assumed constant from 2017/18
A181: 168 | B181: Small Non Domestic Two Rate | C181: 0 | D181: 0 | E181: 0 | F181: =E181 -> 0 | G181: 0 | H181: 0 | I181: 0 | J181: Assumed constant from 2017/18
A182: 169 | B182: LV Medium Non-Domestic | C182: 0 | D182: 0 | E182: 0 | F182: =E182 -> 0 | G182: 0 | H182: 0 | I182: 0 | J182: Assumed constant from 2017/18
A183: 170 | B183: LV Sub Medium Non-Domestic | C183: 0 | D183: 0 | E183: 0 | F183: =E183 -> 0 | G183: 0 | H183: 0 | I183: 0 | J183: Assumed constant from 2017/18
A184: 171 | B184: HV Medium Non-Domestic | C184: 0 | D184: 0 | E184: 0 | F184: =E184 -> 0 | G184: 0 | H184: 0 | I184: 0 | J184: Assumed constant from 2017/18
A185: 172 | B185: AMBER
A186: 173 | B186: Domestic Two Rate | C186: 0 | D186: 0 | E186: 0 | F186: =E186 -> 0 | G186: 0 | H186: 0 | I186: 0 | J186: Assumed constant from 2017/18
A187: 174 | B187: Small Non Domestic Two Rate | C187: 0 | D187: 0 | E187: 0 | F187: =E187 -> 0 | G187: 0 | H187: 0 | I187: 0 | J187: Assumed constant from 2017/18
A188: 175 | B188: LV Medium Non-Domestic | C188: 0 | D188: 0 | E188: 0 | F188: =E188 -> 0 | G188: 0 | H188: 0 | I188: 0 | J188: Assumed constant from 2017/18
A189: 176 | B189: LV Sub Medium Non-Domestic | C189: 0 | D189: 0 | E189: 0 | F189: =E189 -> 0 | G189: 0 | H189: 0 | I189: 0 | J189: Assumed constant from 2017/18
A190: 177 | B190: HV Medium Non-Domestic | C190: 0 | D190: 0 | E190: 0 | F190: =E190 -> 0 | G190: 0 | H190: 0 | I190: 0 | J190: Assumed constant from 2017/18
A191: 178 | B191: GREEN
A192: 179 | B192: Domestic Two Rate | C192: 1 | D192: 1 | E192: 1 | F192: =E192 -> 1 | G192: 1 | H192: 1 | I192: 1 | J192: Assumed constant from 2017/18
A193: 180 | B193: Small Non Domestic Two Rate | C193: 1 | D193: 1 | E193: 1 | F193: =E193 -> 1 | G193: 1 | H193: 1 | I193: 1 | J193: Assumed constant from 2017/18
A194: 181 | B194: LV Medium Non-Domestic | C194: 1 | D194: 1 | E194: 1 | F194: =E194 -> 1 | G194: 1 | H194: 1 | I194: 1 | J194: Assumed constant from 2017/18
A195: 182 | B195: LV Sub Medium Non-Domestic | C195: 1 | D195: 1 | E195: 1 | F195: =E195 -> 1 | G195: 1 | H195: 1 | I195: 1 | J195: Assumed constant from 2017/18
A196: 183 | B196: HV Medium Non-Domestic | C196: 1 | D196: 1 | E196: 1 | F196: =E196 -> 1 | G196: 1 | H196: 1 | I196: 1 | J196: Assumed constant from 2017/18
A197: 184 | B197: 1064. Average split of rate 1 units by special distribution time band
A198: 185 | B198: BLACK
A199: 186 | B199: NHH UMS category A | C199: 0.02945205479 | D199: 0.02945205479 | E199: 0.02945205479 | F199: =E199 -> 0.02945205479 | G199: 0.02945205479 | H199: 0.02945205479 | I199: 0.02945205479 | J199: Assumed constant from 2017/18
A200: 187 | B200: NHH UMS category B | C200: 0.05005787061 | D200: 0.05005787061 | E200: 0.05005787061 | F200: =E200 -> 0.05005787061 | G200: 0.05005787061 | H200: 0.05005787061 | I200: 0.05005787061 | J200: Assumed constant from 2017/18
A201: 188 | B201: NHH UMS category C | C201: 0.09587863667 | D201: 0.09587863667 | E201: 0.09587863667 | F201: =E201 -> 0.09587863667 | G201: 0.09587863667 | H201: 0.09587863667 | I201: 0.09587863667 | J201: Assumed constant from 2017/18
A202: 189 | B202: NHH UMS category D | C202: 0.01671247611 | D202: 0.01671247611 | E202: 0.01671247611 | F202: =E202 -> 0.01671247611 | G202: 0.01671247611 | H202: 0.01671247611 | I202: 0.01671247611 | J202: Assumed constant from 2017/18
A203: 190 | B203: YELLOW
A204: 191 | B204: NHH UMS category A | C204: 0.3488013699 | D204: 0.3488013699 | E204: 0.3488013699 | F204: =E204 -> 0.3488013699 | G204: 0.3488013699 | H204: 0.3488013699 | I204: 0.3488013699 | J204: Assumed constant from 2017/18
A205: 192 | B205: NHH UMS category B | C205: 0.08381804923 | D205: 0.08381804923 | E205: 0.08381804923 | F205: =E205 -> 0.08381804923 | G205: 0.08381804923 | H205: 0.08381804923 | I205: 0.08381804923 | J205: Assumed constant from 2017/18
... 66 more rows

Sheet Table 1
A1: Schedule 15 table 1
A2: ="Company Name: "&'CDCM Forecast Data'!E3 -> Company Name: Electricity North West
A3: Date:
A5: Description | B5: Licence Term | C5: CRC | K5: Assumptions
A6: Regulatory Year | D6: t-2 | E6: t-1 | F6: t | G6: t+1 | H6: t+2 | I6: t+3 | J6: t+4
A7: Regulatory Year | D7: ='CDCM Forecast Data'!C11 -> 2015/16 | E7: ='CDCM Forecast Data'!D11 -> 2016/17 | F7: ='CDCM Forecast Data'!E11 -> 2017/18 | G7: ='CDCM Forecast Data'!F11 -> 2018/19 | H7: ='CDCM Forecast Data'!G11 -> 2019/20 | I7: ='CDCM Forecast Data'!H11 -> 2020/21 | J7: ='CDCM Forecast Data'!I11 -> 2021/22
A8: Base Demand Before Inflation (A1) | B8: PUt | C8: CRC3 | D8: 372.9994411 | E8: 379.9378697 | F8: 360.9368197 | G8: 357.3265994 | H8: 353.7542374 | I8: 350.218739 | J8: 350.2170412
A9: RPI Effective % (A2) | B9: PIADt | C9: CRC3 | D9: 1.082 | E9: 1.087 | F9: 1.121 | G9: 1.151329458 | H9: 1.187020671 | I9: 1.223818312 | J9: 1.26175668
A10: Merger adjustment (A3) | B10: MGt | C10: CRC3 | E10: 3.4784 | F10: 8.310323818 | K10: MOD and Tru term (signage reversed as formula deducts the entry)
A11: Base Demand Revenue (A): [A = A1 * A2 - A3] | B11: BRt | C11: CRC3 | D11: =D8*D9-D10 -> 403.5853953 | E11: =E8*E9-E10 -> 409.5140644 | F11: =F8*F9-F10 -> 396.2998511 | G11: =G8*G9-G10 -> 411.40064 | H11: 419.9135923 | I11: 428.604106 | J11: 441.8886911 | K11: A = A1 * A2 - A3
A12: Pass-Through Business Rates (B1) | B12: RBt | C12: CRC4 | D12: 0 | E12: 0 | F12: 0 | G12: 0 | H12: 0 | I12: 0 | J12: 0
A13: Pass-Through Licence Fees (B2) | B13: LFt | C13: CRC4 | D13: 0 | E13: 0 | F13: 0 | G13: 0 | H13: 0 | I13: 0 | J13: 0
A14: Pass-Through Transmission Exit (B3) | B14: TBt | C14: CRC4 | D14: 0 | E14: 0 | F14: 0 | G14: 0 | H14: 0 | I14: 0 | J14: 0
A15: Price Control Reopener (B4) | B15: UNCt | C15: CRC4 | D15: 0 | E15: 0 | F15: 0 | G15: 0 | H15: 0 | I15: 0 | J15: 0
A16: Pass-Through Others (B5) | B16: MPTt, HBt, IEDt | C16: CRC4 | D16: 0 | E16: 0 | F16: 0 | G16: 0 | H16: 0 | I16: 0 | J16: 0
A17: Allowed Pass-Through Items (B): [B = B1 + B2 + B3 +B4 + B5] | B17: PTt | C17: CRC3 | D17: =SUM(D12:D16) -> 0 | E17: =SUM(E12:E16) -> 0 | F17: 0 | G17: 0 | H17: 0 | I17: 0 | J17: 0 | K17: B = B1 + B2 + B3 +B4 + B5
A18: Losses Incentive (C1) | B18: UILt | C18: CRC7 | D18: 0 | E18: 0 | F18: 0 | G18: 0 | H18: 0 | I18: 0 | J18: 0
B19: PCOLt | C19: CRC7 | D19: 0 | E19: 0 | F19: 0 | G19: 0 | H19: 0 | I19: 0 | J19: 0
B20: -COLt | C20: CRC7 | D20: 0 | E20: 0 | F20: 0 | G20: 0 | H20: 0 | I20: 0 | J20: 0
B21: PPLt | C21: CRC7 | D21: -11.6 | E21: -11.36553768 | F21: 0 | G21: 0 | H21: 0 | I21: 0 | J21: 0
A22: Quality of service incentive adjustment (C2) | B22: IQt | C22: CRC8 | D22: 8.4 | E22: 15.91891417 | F22: 12.3 | G22: 12.9 | H22: 12.9 | I22: 12.9 | J22: 12.9
A23: Transmission connection point charges incentive adjustment (C3) | B23: ITt | C23: CRC9 | D23: 0 | E23: 0 | F23: 0 | G23: 0 | H23: 0 | I23: 0 | J23: 0
A24: Innovation funding incentive adjustment (C4) | B24: IFIt | C24: CRC10 | D24: 0 | E24: 0 | F24: 0 | G24: 0 | H24: 0 | I24: 0 | J24: 0
A25: Incentive revenue for Distributed Generation (C5) | B25: IGt | C25: CRC11 | D25: 0 | E25: 0 | F25: 0 | G25: 0 | H25: 0 | I25: 0 | J25: 0
A26: Connection Guaranteed Standards Systems & Processes penalty (C6) | B26: CGSRAt,CGSSPt & AUMt | C26: CRC12 | D26: 0 | E26: 0 | F26: 0 | G26: 0 | H26: 0 | I26: 0 | J26: 0
A27: Low Carbon Networks Fund (C7) | B27: LCN1t | C27: CRC13 | D27: 0 | E27: 0 | F27: 0 | G27: 0 | H27: 0 | I27: 0 | J27: 0
B28: LCN2t | C28: CRC13 | D28: 1.6 | E28: 0 | F28: 0 | G28: 0 | H28: 0 | I28: 0 | J28: 0
B29: LCN3t | C29: CRC13 | D29: 2.825097767 | E29: 2.87948159 | F29: 2.821292575 | G29: 2.884014781 | H29: 2.94402033 | I29: 2.995336434 | J29: 3.08901171
A30: Incentive Revenue and Other Adjustments (C): [C = C1 + C2 + C3 + C4 + C5 + C6 + C7] | D30: =SUM(D18:D29) -> 1.225097767 | E30: =SUM(E18:E29) -> 7.43285808 | F30: 15.12129258 | G30: 15.78401478 | H30: 15.84402033 | I30: 15.89533643 | J30: 15.98901171 | K30: C = C1 + C2 + C3 + C4 + C5 + C6 + C7
A31: Correction Factor (D) | B31: -Kt | C31: CRC3 | D31: 0 | E31: 31.011117 | F31: -13.73 | G31: 0 | H31: 0 | I31: 0 | J31: 0
A32: Tax Trigger Mechanism Adjustment (E) | B32: CTRAt | C32: CRC3 | D32: 0 | E32: 0 | F32: -0.13329898 | G32: -0.101869802 | H32: -0.0572347356 | I32: -1.429391159 | J32: -1.354639074
A33: Total allowed Revenue (F): [F= A + B + C + D + E] | B33: ARt | D33: =D11+D17+D30+D31+D32 -> 404.8104931 | E33: =E11+E17+E30+E31+E32 -> 447.9580395 | F33: 397.5578447 | G33: 427.082785 | H33: 435.7003779 | I33: 443.0700513 | J33: 456.5230637 | K33: F= A + B + C + D + E
A34: Other 1. Excluded services - Top-up, standby, and enhanced system security (G1) | B34: ES4 | C34: CRC15 | D34: 0 | E34: 0 | F34: 0 | G34: 0 | H34: 0 | I34: 0 | J34: 0
A35: Other 2. Excluded services - Revenue protection services (G2) | B35: ES5 | C35: CRC15 | D35: 0 | E35: 0 | F35: 0 | G35: 0 | H35: 0 | I35: 0 | J35: 0
A36: Other 3. Excluded services - Miscellaneous (G3) | B36: ES7 | C36: CRC15 | D36: 0 | E36: 0 | F36: 0 | G36: 0 | H36: 0 | I36: 0 | J36: 0
A37: Other 4. - blank or if required please provide description (G4) | D37: 0 | E37: 0 | F37: 0 | G37: 0 | H37: 0 | I37: 0 | J37: 0
A38: Other 5. - blank or if required please provide description (G5) | D38: 0 | E38: 0 | F38: 0 | G38: 0 | H38: 0 | I38: 0 | J38: 0
A39: Total Other Revenue to be recovered by Use of System Charges (G): [G = G1 + G2 + G3 + G4 +G5] | D39: =SUM(D34:D38) -> 0 | E39: =SUM(E34:E38) -> 0 | F39: 0 | G39: 0 | H39: 0 | I39: 0 | J39: 0 | K39: G = G1 + G2 + G3 + G4 +G5
A40: Total Revenue for Use of System Charges (H): [H =F + G] | D40: =D39+D33 -> 404.8104931 | E40: =E39+E33 -> 447.9580395 | F40: 397.5578447 | G40: 427.082785 | H40: 435.7003779 | I40: 443.0700513 | J40: 456.5230637 | K40: H = F + G
A41: 1. Revenue raised outside CDCM - EDCM and interconnector charges (I1) | D41: 14.25 | E41: 14.45933249 | F41: 14.57289988 | G41: 14.52594467 | H41: 14.82652435 | I41: 15.13337346 | J41: 15.6024324
A42: 2. Revenue raised outside CDCM - Voluntary under-recovery (I2) | D42: 0 | E42: 0 | F42: 0 | G42: 0 | H42: 0 | I42: 0 | J42: 0
A43: 3. Revenue raised outside CDCM - blank or if required please provide description (I3) | D43: 0 | E43: 0 | F43: 0 | G43: 0 | H43: 0 | I43: 0 | J43: 0
A44: 4. Revenue raised outside CDCM - blank or if required please provide description (I4) | D44: 0 | E44: 0 | F44: 0 | G44: 0 | H44: 0 | I44: 0 | J44: 0
A45: Total Revenue to be raised outside the CDCM (I): [I = I1 + I2 + I3 + I4] | D45: =D41+D42+D43+D44 -> 14.25 | E45: =E41+E42+E43+E44 -> 14.45933249 | F45: 14.57289988 | G45: 14.52594467 | H45: 14.82652435 | I45: 15.13337346 | J45: 15.6024324 | K45: I = I1 + I2 + I3 + I4
A46: Latest forecast of CDCM Collected Revenue (J): [J = H - I] | D46: =D40-D45 -> 390.5604931 | E46: =E40-E45 -> 433.498707 | F46: 382.9849448 | G46: 412.5568404 | H46: 420.8738535 | I46: 427.9366778 | J46: 440.9206313 | K46: J = H - I
A47: CDCM Revenue Used in Charging Model | D47: 379.6 | E47: 433.498707 | F47: 382.9849448 | G47: 412.5568404 | H47: 420.8738535 | I47: 427.9366778 | J47: 440.9206313
A48: Final Collected Revenue Forecast (K) | D48: 418.0104931 | E48: 447.9580395 | F48: 397.5578447 | G48: 427.082785 | H48: 435.7003779 | I48: 443.0700513 | J48: 456.5230637
A49: Forecast Over / (Under) Recovery [being (K - G - F + I2] | D49: =D48-D39-D33+D42 -> 13.2 | E49: =E48-E39-E33+E42 -> 0 | F49: 0 | G49: 0 | H49: 0 | I49: 0 | J49: 0 | K49: being K - G - F + I2
A50: Forecast overall percentage change to Allowed Revenue (L) | D50: -0.2340698864 | E50: =E33/D33-1 -> 0.1065870256 | F50: -0.1125109727 | G50: 0.0742657722 | H50: 0.02017780431 | I50: 0.01691454445 | J50: 0.03036317254 | K50: Ft / Ft-1
A51: Overall % change to Use of System Charges effective 1st April of Regulatory Year to balance (M) | D51: -0.1649885701 | E51: =E48/D48-1 -> 0.07164304933 | F51: -0.1125109727 | G51: 0.0742657722 | H51: 0.02017780431 | I51: 0.01691454445 | J51: 0.03036317254

Sheet Smoothed Input Details
A1: DNO | B1: =+'CDCM Forecast Data'!E3 -> Electricity North West
A2: Charges for (year Y) | B2: =+'CDCM Forecast Data'!E11 -> 2017/18
A4: Year charges are set (year Y-1) | B4: =+'CDCM Forecast Data'!D11 -> 2016/17
A6: Year to which input data relates
A7: Year Y-2 | B7: 2015/16
A8: Year Y - 3 | B8: 2014/15
A9: Year Y - 4 | B9: 2013/14
A11: 1041 - load profile for demand users - coincidence factors
A12: Charges for year Y are set in Y-1 using historical data for the previous three years
B14: Y - 4 | C14: Y - 3 | D14: Y - 2 | E14: Information to be used calculating tariffs in year t
A15: Domestic Unrestricted | B15: 0.8581044475 | C15: 0.8818861814 | D15: 0.9341204074 | E15: =AVERAGE(B15:D15) -> 0.8913703454
A16: Domestic Two Rate | B16: 0.2710178272 | C16: 0.3054960297 | D16: 0.3088002557 | E16: =AVERAGE(B16:D16) -> 0.2951047042
A17: Domestic Off Peak (related MPAN)
A18: Small Non Domestic Unrestricted | B18: 0.7472520808 | C18: 0.6341767824 | D18: 0.6436411028 | E18: =AVERAGE(B18:D18) -> 0.675023322
A19: Small Non Domestic Two Rate | B19: 0.6804607509 | C19: 0.7083027282 | D19: 0.7180284469 | E19: =AVERAGE(B19:D19) -> 0.7022639753
A20: Small Non Domestic Off Peak (related MPAN)
A21: LV Medium Non-Domestic | B21: 0.8712874334 | C21: 0.8173381809 | D21: 0.8012904266 | E21: =AVERAGE(B21:D21) -> 0.8299720136
A22: LV Sub Medium Non-Domestic | B22: 0.859747255 | C22: 0.780681088 | D22: 0.706468634 | E22: 0.7822989923
A23: HV Medium Non-Domestic | B23: 0.8282623394 | C23: 0.7013610889 | D23: 0.7647058824 | E23: 0.7647764369
A24: LV Network Domestic | B24: =+B15 -> 0.8581044475 | C24: =+C15 -> 0.8818861814 | D24: =+D15 -> 0.9341204074 | E24: =AVERAGE(B24:D24) -> 0.8913703454
A25: LV Network Non-Domestic Non-CT | B25: =+B18 -> 0.7472520808 | C25: =+C18 -> 0.6341767824 | D25: 0.6436411028 | E25: 0.675023322
A26: LV HH Metered | B26: 0.8610914613 | C26: 0.7955610196 | D26: 0.7994686789 | E26: 0.8187070533
A27: LV Sub HH Metered | B27: 0.8298355661 | C27: 0.7703176776 | D27: 0.7601203138 | E27: 0.7867578525
A28: HV HH Metered | B28: 0.8856275653 | C28: 0.8411943506 | D28: 0.845117955 | E28: 0.8573132903
A29: NHH UMS category A | B29: 1 | C29: 1 | D29: 1 | E29: =AVERAGE(B29:D29) -> 1
A30: NHH UMS category B | B30: 1 | C30: 1 | D30: 1 | E30: 1
A31: NHH UMS category C | B31: 1 | C31: 1 | D31: 1 | E31: =AVERAGE(B31:D31) -> 1
A32: NHH UMS category D | B32: 0 | C32: 0 | D32: 0 | E32: 0
A33: LV UMS (Pseudo HH Metered) | B33: 0.9927620623 | C33: 0.9731821171 | D33: 0.9728240047 | E33: 0.9795893947
A37: 1041 - load profile for demand users - load factors
A38: Charges for year Y are set in Y-1 using historical data for the previous three years
B41: Y - 4 | C41: Y - 3 | D41: Y - 2 | E41: Information to be used calculating tariffs in year t
A42: Domestic Unrestricted | B42: 0.4429541431 | C42: 0.4458847204 | D42: 0.4499616783 | E42: =AVERAGE(B42:D42) -> 0.4462668473
A43: Domestic Two Rate | B43: 0.235652164 | C43: 0.260958218 | D43: 0.2436846281 | E43: 0.2467650034
A44: Domestic Off Peak (related MPAN) | B44: 0.1644645207 | C44: 0.171641171 | D44: 0.1617840863 | E44: 0.1659632593
A45: Small Non Domestic Unrestricted | B45: 0.3851249321 | C45: 0.40718203 | D45: 0.3895979838 | E45: 0.3939683153
A46: Small Non Domestic Two Rate | B46: 0.4810446063 | C46: 0.5817242122 | D46: 0.5557085723 | E46: 0.5394924636
A47: Small Non Domestic Off Peak (related MPAN) | B47: 0.1647748375 | C47: 0.1724224171 | D47: 0.1594181357 | E47: 0.1655384635
A48: LV Medium Non-Domestic | B48: 0.559701953 | C48: 0.5813952742 | D48: 0.547015794 | E48: 0.5627043404
A49: LV Sub Medium Non-Domestic | B49: 0.5706733221 | C49: 0.5520380099 | D49: 0.4884931641 | E49: 0.5370681653
A50: HV Medium Non-Domestic | B50: 0.4982585342 | C50: 0.5387323557 | D50: 0.5372189601 | E50: 0.5247366167
A51: LV Network Domestic | B51: =+B42 -> 0.4429541431 | C51: =+C42 -> 0.4458847204 | D51: =+D42 -> 0.4499616783 | E51: =AVERAGE(B51:D51) -> 0.4462668473
A52: LV Network Non-Domestic Non-CT | B52: =+B45 -> 0.3851249321 | C52: =+C45 -> 0.40718203 | D52: 0.3895979838 | E52: 0.3939683153
A53: LV HH Metered | B53: 0.5515647613 | C53: 0.5668044745 | D53: 0.5555338865 | E53: 0.5579677074
A54: LV Sub HH Metered | B54: 0.5571912198 | C54: 0.5667514985 | D54: 0.5539762064 | E54: 0.5593063082
A55: HV HH Metered | B55: 0.7075622406 | C55: 0.7193144645 | D55: 0.7082917123 | E55: 0.7117228058
A56: NHH UMS category A | B56: 1 | C56: 1 | D56: 1 | E56: 1
A57: NHH UMS category B | B57: 0.474 | C57: 0.474 | D57: 0.4731662785 | E57: 0.4737220928
A58: NHH UMS category C | B58: 0.258 | C58: 0.258 | D58: 0.2580409703 | E58: 0.2580136568
A59: NHH UMS category D | B59: 0.554 | C59: 0.554 | D59: 0.553746484 | E59: 0.5539154947
A60: LV UMS (Pseudo HH Metered) | B60: 0.4875795651 | C60: 0.4749056141 | D60: 0.4708523333 | E60: 0.4777791708
A64: 1061 - Average split of rate 1 units by distribution time band
A65: Charges for year Y are set in Y-1 using historical data for the previous three years
B68: Y - 4 | E68: Y - 3 | H68: Y - 2 | K68: Information to be used calculating tariffs in year t
B69: Red | C69: Amber | D69: Green | E69: Red | F69: Amber | G69: Green | H69: Red | I69: Amber | J69: Green | K69: Red | L69: Amber | M69: Green
A70: Domestic Unrestricted | B70: 0.1263346578 | C70: 0.3306978237 | D70: 0.5429675185 | E70: 0.1269639499 | F70: 0.3317443395 | G70: 0.5412917106 | H70: 0.1268402106 | I70: 0.3329925555 | J70: 0.5401672339 | K70: =AVERAGE(B70,E70,H70) -> 0.1267129394 | L70: =AVERAGE(C70,F70,I70) -> 0.3318115729 | M70: =AVERAGE(D70,G70,J70) -> 0.5414754877
A71: Domestic Two Rate | B71: 0.1329147759 | C71: 0.3431825457 | D71: 0.5239026784 | E71: 0.1356919388 | F71: 0.3473432916 | G71: 0.5169647695 | H71: 0.1376622475 | I71: 0.3547097392 | J71: 0.5076280133 | K71: =AVERAGE(B71,E71,H71) -> 0.1354229874 | L71: =AVERAGE(C71,F71,I71) -> 0.3484118589 | M71: =AVERAGE(D71,G71,J71) -> 0.5161651537
A72: Domestic Off Peak (related MPAN) | B72: 0.004947070924 | C72: 0.09383309084 | D72: 0.9012198382 | E72: 0.0053231722 | F72: 0.09433186469 | G72: 0.9003449631 | H72: 0.005617558764 | I72: 0.0942605706 | J72: 0.9001218706 | K72: 0.005295933963 | L72: 0.09414184204 | M72: 0.900562224
A73: Small Non Domestic Unrestricted | B73: 0.1087225422 | C73: 0.4502700977 | D73: 0.4410073602 | E73: 0.109992476 | F73: 0.4500180296 | G73: 0.4399894945 | H73: 0.1091079245 | I73: 0.44319537 | J73: 0.4476967055 | K73: =AVERAGE(B73,E73,H73) -> 0.1092743142 | L73: 0.4478278324 | M73: 0.4428978534
A74: Small Non Domestic Two Rate | B74: 0.1211711243 | C74: 0.4592146969 | D74: 0.4196141788 | E74: 0.1224352156 | F74: 0.4612051514 | G74: 0.416359633 | H74: 0.1236401161 | I74: 0.462262235 | J74: 0.4140976489 | K74: 0.1224154854 | L74: 0.4608940278 | M74: 0.4166904869
A75: Small Non Domestic Off Peak (related MPAN) | B75: 0.00137793809 | C75: 0.04928885293 | D75: 0.949333209 | E75: 0.001667481978 | F75: 0.05179618737 | G75: 0.9465363307 | H75: 0.001681257743 | I75: 0.05125167235 | J75: 0.9470670699 | K75: 0.001575559271 | L75: 0.05077890421 | M75: 0.9476455365
A76: LV Medium Non-Domestic | B76: 0.1342167538 | C76: 0.4810414896 | D76: 0.3847417566 | E76: 0.1383245816 | F76: 0.4925273933 | G76: 0.3691480252 | H76: 0.1354320856 | I76: 0.4814420062 | J76: 0.3831259082 | K76: 0.1359911403 | L76: 0.4850036297 | M76: 0.37900523
A77: LV Sub Medium Non-Domestic | B77: 0.1334687113 | C77: 0.4801713755 | D77: 0.3863599133 | E77: 0.134539425 | F77: 0.4817965441 | G77: 0.3836640309 | H77: 0.1332641811 | I77: 0.4823354261 | J77: 0.3844003928 | K77: 0.1337574391 | L77: 0.4814344485 | M77: 0.3848081123
A78: HV Medium Non-Domestic | B78: 0.1302382602 | C78: 0.489648371 | D78: 0.3801133688 | E78: 0.1298565229 | F78: 0.4912108727 | G78: 0.3789326044 | H78: 0.132778098 | I78: 0.4871588779 | J78: 0.3800630241 | K78: 0.1309576271 | L78: 0.4893393738 | M78: 0.3797029991
A82: 1062 - Average split of rate 2 units by distribution time band
A83: Charges for year Y are set in Y-1 using historical data for the previous three years
B86: Y - 4 | E86: Y - 3 | H86: Y - 2 | K86: Information to be used calculating tariffs in year t
B87: Red | C87: Amber | D87: Green | E87: Red | F87: Amber | G87: Green | H87: Red | I87: Amber | J87: Green | K87: Red | L87: Amber | M87: Green
A88: Domestic Two Rate | B88: 0 | C88: 0 | D88: 1 | E88: 0 | F88: 0 | G88: 1 | H88: 0 | I88: 0 | J88: 1 | K88: =AVERAGE(B88,E88,H88) -> 0 | L88: 0 | M88: 1
A89: Small Non Domestic Two Rate | B89: 0 | C89: 0 | D89: 1 | E89: 0 | F89: 0 | G89: 1 | H89: 0 | I89: 0 | J89: 1 | K89: 0 | L89: 0 | M89: 1
A90: LV Medium Non-Domestic | B90: 0 | C90: 0 | D90: 1 | E90: 0 | F90: 0 | G90: 1 | H90: 0 | I90: 0 | J90: 1 | K90: 0 | L90: 0 | M90: 1
A91: LV Sub Medium Non-Domestic | B91: 0 | C91: 0 | D91: 1 | E91: 0 | F91: 0 | G91: 1 | H91: 0 | I91: 0 | J91: 1 | K91: 0 | L91: 0 | M91: 1
A92: HV Medium Non-Domestic | B92: 0 | C92: 0 | D92: 1 | E92: 0 | F92: 0 | G92: 1 | H92: 0 | I92: 0 | J92: 1 | K92: 0 | L92: 0 | M92: 1
A96: 1064. Average split of rate 1 units by special distribution time band
B100: Y - 4 | E100: Y - 3 | H100: Y - 2 | K100: Information to be used calculating tariffs in year t
B101: Red | C101: Amber | D101: Green | E101: Red | F101: Amber | G101: Green | H101: Red | I101: Amber | J101: Green | K101: Red | L101: Amber | M101: Green
A102: NHH UMS category A | B102: 0.02945205479 | C102: 0.3488013699 | D102: 0.6217465753 | E102: 0.02945205479 | F102: 0.3488013699 | G102: 0.6217465753 | H102: 0.02910958904 | I102: 0.3491438356 | J102: 0.6217465753 | K102: =AVERAGE(B102,E102,H102) -> 0.02933789954 | L102: =AVERAGE(C102,F102,I102) -> 0.3489155251 | M102: =AVERAGE(D102,G102,J102) -> 0.6217465753
A103: NHH UMS category B | B103: 0.05005787061 | C103: 0.08381804923 | D103: 0.8661240802 | E103: 0.05005787061 | F103: 0.08381804923 | G103: 0.8661240802 | H103: 0.04918277882 | I103: 0.08469314102 | J103: 0.8661240802 | K103: 0.04976617334 | L103: 0.0841097465 | M103: 0.8661240802
A104: NHH UMS category C | B104: 0.09587863667 | C104: 0.1645901157 | D104: 0.7395312477 | E104: 0.09587863667 | F104: 0.1645901157 | G104: 0.7395312477 | H104: 0.09587863667 | I104: 0.1645901157 | J104: 0.7395312477 | K104: 0.09587863667 | L104: 0.1645901157 | M104: =AVERAGE(D104,G104,J104) -> 0.7395312477
A105: NHH UMS category D | B105: 0.01671247611 | C105: 0.5674766852 | D105: 0.4158108387 | E105: 0.01671247611 | F105: 0.5674766852 | G105: 0.4158108387 | H105: 0.0165632642 | I105: 0.567556548 | J105: 0.4158801878 | K105: 0.01666273881 | L105: 0.5675033061 | M105: 0.4158339551
A109: 1069 - Peaking probabilities by network level
A110: Charges for year Y are set in Y-1 using historical data for the previous three years
B113: Y - 4 | E113: Y - 3 | H113: Y - 2 | K113: Information to be used calculating tariffs in year t
B114: Red | C114: Amber | D114: Green | E114: Red | F114: Amber | G114: Green | H114: Red | I114: Amber | J114: Green | K114: Red | L114: Amber | M114: Green
A115: GSPs | B115: 0.8823529412 | C115: 0.1176470588 | D115: 0 | E115: 0.8947368421 | F115: 0.1052631579 | G115: 0 | H115: 0.8947368421 | I115: 0.05263157895 | J115: 0.05263157895 | K115: =AVERAGE(B115,E115,H115) -> 0.8906088751 | L115: =AVERAGE(C115,F115,I115) -> 0.09184726522 | M115: =AVERAGE(D115,G115,J115) -> 0.01754385965
A116: 132kV | B116: 0.7285714286 | C116: 0.2142857143 | D116: 0.05714285714 | E116: 0.7323943662 | F116: 0.1971830986 | G116: 0.07042253521 | H116: 0.6575342466 | I116: 0.2739726027 | J116: 0.06849315068 | K116: 0.7061666804 | L116: 0.2284804719 | M116: 0.06535284768
A117: 132kV/EHV | B117: 0.7285714286 | C117: 0.2142857143 | D117: 0.05714285714 | E117: 0.7323943662 | F117: 0.1971830986 | G117: 0.07042253521 | H117: 0.6575342466 | I117: 0.2739726027 | J117: 0.06849315068 | K117: 0.7061666804 | L117: 0.2284804719 | M117: 0.06535284768
A118: EHV | B118: 0.6145552561 | C118: 0.307277628 | D118: 0.0781671159 | E118: 0.5929919137 | F118: 0.3045822102 | G118: 0.102425876 | H118: 0.5799457995 | I118: 0.3279132791 | J118: 0.09214092141 | K118: 0.5958309898 | L118: 0.3132577058 | M118: 0.09091130444
A119: EHV/HV | B119: 0.6145552561 | C119: 0.307277628 | D119: 0.0781671159 | E119: 0.5929919137 | F119: 0.3045822102 | G119: 0.102425876 | H119: 0.5799457995 | I119: 0.3279132791 | J119: 0.09214092141 | K119: 0.5958309898 | L119: 0.3132577058 | M119: 0.09091130444
A120: 132kV/HV | B120: 0.6145552561 | C120: 0.307277628 | D120: 0.0781671159 | E120: 0.5929919137 | F120: 0.3045822102 | G120: 0.102425876 | H120: 0.5799457995 | I120: 0.3279132791 | J120: 0.09214092141 | K120: 0.5958309898 | L120: 0.3132577058 | M120: 0.09091130444
A121: HV | B121: 0.6145552561 | C121: 0.307277628 | D121: 0.0781671159 | E121: 0.5929919137 | F121: 0.3045822102 | G121: 0.102425876 | H121: 0.5799457995 | I121: 0.3279132791 | J121: 0.09214092141 | K121: 0.5958309898 | L121: 0.3132577058 | M121: 0.09091130444
A122: HV/LV | B122: 0.6145552561 | C122: 0.307277628 | D122: 0.0781671159 | E122: 0.5929919137 | F122: 0.3045822102 | G122: 0.102425876 | H122: 0.5799457995 | I122: 0.3279132791 | J122: 0.09214092141 | K122: 0.5958309898 | L122: 0.3132577058 | M122: 0.09091130444
A123: LV circuits | B123: 0.6145552561 | C123: 0.307277628 | D123: 0.0781671159 | E123: 0.5929919137 | F123: 0.3045822102 | G123: 0.102425876 | H123: 0.5799457995 | I123: 0.3279132791 | J123: 0.09214092141 | K123: 0.5958309898 | L123: 0.3132577058 | M123: 0.09091130444

Sheet Mat of App
B3: 1025. Matrix of applicability of LV service models to tariffs with fixed charges
C5: ='CDCM Forecast Data'!$E$11 -> 2017/18 | K5: ='CDCM Forecast Data'!$F$11 -> 2018/19 | S5: ='CDCM Forecast Data'!$G$11 -> 2019/20 | AA5: ='CDCM Forecast Data'!$H$11 -> 2020/21 | AI5: ='CDCM Forecast Data'!$I$11 -> 2021/22
C6: LV service model 1 | D6: LV service model 2 | E6: LV service model 3 | F6: LV service model 4 | G6: LV service model 5 | H6: LV service model 6 | I6: LV service model 7 | J6: LV service model 8 | K6: LV service model 1 | L6: LV service model 2 | M6: LV service model 3 | N6: LV service model 4 | O6: LV service model 5 | P6: LV service model 6 | Q6: LV service model 7 | R6: LV service model 8 | S6: LV service model 1 | T6: LV service model 2 | U6: LV service model 3 | V6: LV service model 4 | W6: LV service model 5 | X6: LV service model 6 | Y6: LV service model 7 | Z6: LV service model 8 | AA6: LV service model 1 | AB6: LV service model 2 | AC6: LV service model 3 | AD6: LV service model 4 | AE6: LV service model 5 | AF6: LV service model 6 | AG6: LV service model 7 | AH6: LV service model 8 | AI6: LV service model 1 | AJ6: LV service model 2 | AK6: LV service model 3 | AL6: LV service model 4 | AM6: LV service model 5 | AN6: LV service model 6 | AO6: LV service model 7 | AP6: LV service model 8
B7: Domestic Unrestricted | C7: 0.05 | D7: 0 | E7: 0 | F7: 0 | G7: 0 | H7: 0 | I7: 0 | J7: 0 | K7: =C7 -> 0.05 | L7: =D7 -> 0 | M7: =E7 -> 0 | N7: =F7 -> 0 | O7: =G7 -> 0 | P7: =H7 -> 0 | Q7: =I7 -> 0 | R7: =J7 -> 0 | S7: =K7 -> 0.05 | T7: =L7 -> 0 | U7: =M7 -> 0 | V7: =N7 -> 0 | W7: =O7 -> 0 | X7: =P7 -> 0 | Y7: =Q7 -> 0 | Z7: =R7 -> 0 | AA7: =S7 -> 0.05 | AB7: =T7 -> 0 | AC7: =U7 -> 0 | AD7: =V7 -> 0 | AE7: =W7 -> 0 | AF7: =X7 -> 0 | AG7: =Y7 -> 0 | AH7: =Z7 -> 0 | AI7: =AA7 -> 0.05 | AJ7: =AB7 -> 0 | AK7: =AC7 -> 0 | AL7: =AD7 -> 0 | AM7: =AE7 -> 0 | AN7: =AF7 -> 0 | AO7: =AG7 -> 0 | AP7: =AH7 -> 0
B8: Domestic Two Rate | C8: 0.05 | D8: 0 | E8: 0 | F8: 0 | G8: 0 | H8: 0 | I8: 0 | J8: 0 | K8: 0.05 | L8: 0 | M8: 0 | N8: 0 | O8: 0 | P8: 0 | Q8: 0 | R8: 0 | S8: 0.05 | T8: 0 | U8: 0 | V8: 0 | W8: 0 | X8: 0 | Y8: 0 | Z8: 0 | AA8: 0.05 | AB8: 0 | AC8: 0 | AD8: 0 | AE8: 0 | AF8: 0 | AG8: 0 | AH8: 0 | AI8: 0.05 | AJ8: 0 | AK8: 0 | AL8: 0 | AM8: 0 | AN8: 0 | AO8: 0 | AP8: 0
B9: Small Non Domestic Unrestricted | C9: 0 | D9: 1 | E9: 0 | F9: 0 | G9: 0 | H9: 0 | I9: 0 | J9: 0 | K9: 0 | L9: 1 | M9: 0 | N9: 0 | O9: 0 | P9: 0 | Q9: 0 | R9: 0 | S9: 0 | T9: 1 | U9: 0 | V9: 0 | W9: 0 | X9: 0 | Y9: 0 | Z9: 0 | AA9: 0 | AB9: 1 | AC9: 0 | AD9: 0 | AE9: 0 | AF9: 0 | AG9: 0 | AH9: 0 | AI9: 0 | AJ9: 1 | AK9: 0 | AL9: 0 | AM9: 0 | AN9: 0 | AO9: 0 | AP9: 0
B10: Small Non Domestic Two Rate | C10: 0 | D10: 1 | E10: 0 | F10: 0 | G10: 0 | H10: 0 | I10: 0 | J10: 0 | K10: 0 | L10: 1 | M10: 0 | N10: 0 | O10: 0 | P10: 0 | Q10: 0 | R10: 0 | S10: 0 | T10: 1 | U10: 0 | V10: 0 | W10: 0 | X10: 0 | Y10: 0 | Z10: 0 | AA10: 0 | AB10: 1 | AC10: 0 | AD10: 0 | AE10: 0 | AF10: 0 | AG10: 0 | AH10: 0 | AI10: 0 | AJ10: 1 | AK10: 0 | AL10: 0 | AM10: 0 | AN10: 0 | AO10: 0 | AP10: 0
B11: LV Medium Non-Domestic | C11: 0 | D11: 0.1918509044 | E11: 0.8081490956 | F11: 0 | G11: 0 | H11: 0 | I11: 0 | J11: 0 | K11: =C11 -> 0 | L11: =D11 -> 0.1918509044 | M11: =E11 -> 0.8081490956 | N11: =F11 -> 0 | O11: =G11 -> 0 | P11: =H11 -> 0 | Q11: =I11 -> 0 | R11: =J11 -> 0 | S11: =K11 -> 0 | T11: =L11 -> 0.1918509044 | U11: =M11 -> 0.8081490956 | V11: =N11 -> 0 | W11: =O11 -> 0 | X11: =P11 -> 0 | Y11: =Q11 -> 0 | Z11: =R11 -> 0 | AA11: =S11 -> 0 | AB11: =T11 -> 0.1918509044 | AC11: =U11 -> 0.8081490956 | AD11: =V11 -> 0 | AE11: =W11 -> 0 | AF11: =X11 -> 0 | AG11: =Y11 -> 0 | AH11: =Z11 -> 0 | AI11: =AA11 -> 0 | AJ11: =AB11 -> 0.1918509044 | AK11: =AC11 -> 0.8081490956 | AL11: =AD11 -> 0 | AM11: =AE11 -> 0 | AN11: =AF11 -> 0 | AO11: =AG11 -> 0 | AP11: =AH11 -> 0
B12: LV Sub Medium Non-Domestic | C12: 0 | D12: 0 | E12: 0 | F12: 1 | G12: 0 | H12: 0 | I12: 0 | J12: 0 | K12: 0 | L12: 0 | M12: 0 | N12: 1 | O12: 0 | P12: 0 | Q12: 0 | R12: 0 | S12: 0 | T12: 0 | U12: 0 | V12: 1 | W12: 0 | X12: 0 | Y12: 0 | Z12: 0 | AA12: 0 | AB12: 0 | AC12: 0 | AD12: 1 | AE12: 0 | AF12: 0 | AG12: 0 | AH12: 0 | AI12: 0 | AJ12: 0 | AK12: 0 | AL12: 1 | AM12: 0 | AN12: 0 | AO12: 0 | AP12: 0
B13: LV Network Domestic | C13: 0.05 | D13: 0 | E13: 0 | F13: 0 | G13: 0 | H13: 0 | I13: 0 | J13: 0 | K13: 0.05 | L13: 0 | M13: 0 | N13: 0 | O13: 0 | P13: 0 | Q13: 0 | R13: 0 | S13: 0.05 | T13: 0 | U13: 0 | V13: 0 | W13: 0 | X13: 0 | Y13: 0 | Z13: 0 | AA13: 0.05 | AB13: 0 | AC13: 0 | AD13: 0 | AE13: 0 | AF13: 0 | AG13: 0 | AH13: 0 | AI13: 0.05 | AJ13: 0 | AK13: 0 | AL13: 0 | AM13: 0 | AN13: 0 | AO13: 0 | AP13: 0
B14: LV Network Non-Domestic Non-CT | C14: 0 | D14: 1 | E14: 0 | F14: 0 | G14: 0 | H14: 0 | I14: 0 | J14: 0 | K14: 0 | L14: 1 | M14: 0 | N14: 0 | O14: 0 | P14: 0 | Q14: 0 | R14: 0 | S14: 0 | T14: 1 | U14: 0 | V14: 0 | W14: 0 | X14: 0 | Y14: 0 | Z14: 0 | AA14: 0 | AB14: 1 | AC14: 0 | AD14: 0 | AE14: 0 | AF14: 0 | AG14: 0 | AH14: 0 | AI14: 0 | AJ14: 1 | AK14: 0 | AL14: 0 | AM14: 0 | AN14: 0 | AO14: 0 | AP14: 0
B15: LV HH Metered | C15: 0 | D15: 0 | E15: 1 | F15: 0 | G15: 0 | H15: 0 | I15: 0 | J15: 0 | K15: 0 | L15: 0 | M15: 1 | N15: 0 | O15: 0 | P15: 0 | Q15: 0 | R15: 0 | S15: 0 | T15: 0 | U15: 1 | V15: 0 | W15: 0 | X15: 0 | Y15: 0 | Z15: 0 | AA15: 0 | AB15: 0 | AC15: 1 | AD15: 0 | AE15: 0 | AF15: 0 | AG15: 0 | AH15: 0 | AI15: 0 | AJ15: 0 | AK15: 1 | AL15: 0 | AM15: 0 | AN15: 0 | AO15: 0 | AP15: 0
B16: LV Sub HH Metered | C16: 0 | D16: 0 | E16: 0 | F16: 1 | G16: 0 | H16: 0 | I16: 0 | J16: 0 | K16: 0 | L16: 0 | M16: 0 | N16: 1 | O16: 0 | P16: 0 | Q16: 0 | R16: 0 | S16: 0 | T16: 0 | U16: 0 | V16: 1 | W16: 0 | X16: 0 | Y16: 0 | Z16: 0 | AA16: 0 | AB16: 0 | AC16: 0 | AD16: 1 | AE16: 0 | AF16: 0 | AG16: 0 | AH16: 0 | AI16: 0 | AJ16: 0 | AK16: 0 | AL16: 1 | AM16: 0 | AN16: 0 | AO16: 0 | AP16: 0
B17: LV Generation NHH or Aggregate HH | C17: 0 | D17: 0 | E17: 0 | F17: 0 | G17: 0 | H17: 0 | I17: 0 | J17: 0 | K17: 0 | L17: 0 | M17: 0 | N17: 0 | O17: 0 | P17: 0 | Q17: 0 | R17: 0 | S17: 0 | T17: 0 | U17: 0 | V17: 0 | W17: 0 | X17: 0 | Y17: 0 | Z17: 0 | AA17: 0 | AB17: 0 | AC17: 0 | AD17: 0 | AE17: 0 | AF17: 0 | AG17: 0 | AH17: 0 | AI17: 0 | AJ17: 0 | AK17: 0 | AL17: 0 | AM17: 0 | AN17: 0 | AO17: 0 | AP17: 0
B18: LV Sub Generation NHH | C18: 0 | D18: 0 | E18: 0 | F18: 0 | G18: 0 | H18: 0 | I18: 0 | J18: 0 | K18: 0 | L18: 0 | M18: 0 | N18: 0 | O18: 0 | P18: 0 | Q18: 0 | R18: 0 | S18: 0 | T18: 0 | U18: 0 | V18: 0 | W18: 0 | X18: 0 | Y18: 0 | Z18: 0 | AA18: 0 | AB18: 0 | AC18: 0 | AD18: 0 | AE18: 0 | AF18: 0 | AG18: 0 | AH18: 0 | AI18: 0 | AJ18: 0 | AK18: 0 | AL18: 0 | AM18: 0 | AN18: 0 | AO18: 0 | AP18: 0
B19: LV Generation Intermittent | C19: 0 | D19: 0 | E19: 0 | F19: 0 | G19: 0 | H19: 0 | I19: 0 | J19: 0 | K19: 0 | L19: 0 | M19: 0 | N19: 0 | O19: 0 | P19: 0 | Q19: 0 | R19: 0 | S19: 0 | T19: 0 | U19: 0 | V19: 0 | W19: 0 | X19: 0 | Y19: 0 | Z19: 0 | AA19: 0 | AB19: 0 | AC19: 0 | AD19: 0 | AE19: 0 | AF19: 0 | AG19: 0 | AH19: 0 | AI19: 0 | AJ19: 0 | AK19: 0 | AL19: 0 | AM19: 0 | AN19: 0 | AO19: 0 | AP19: 0
B20: LV Generation Non-Intermittent | C20: 0 | D20: 0 | E20: 0 | F20: 0 | G20: 0 | H20: 0 | I20: 0 | J20: 0 | K20: 0 | L20: 0 | M20: 0 | N20: 0 | O20: 0 | P20: 0 | Q20: 0 | R20: 0 | S20: 0 | T20: 0 | U20: 0 | V20: 0 | W20: 0 | X20: 0 | Y20: 0 | Z20: 0 | AA20: 0 | AB20: 0 | AC20: 0 | AD20: 0 | AE20: 0 | AF20: 0 | AG20: 0 | AH20: 0 | AI20: 0 | AJ20: 0 | AK20: 0 | AL20: 0 | AM20: 0 | AN20: 0 | AO20: 0 | AP20: 0
B21: LV Sub Generation Intermittent | C21: 0 | D21: 0 | E21: 0 | F21: 0 | G21: 0 | H21: 0 | I21: 0 | J21: 0 | K21: 0 | L21: 0 | M21: 0 | N21: 0 | O21: 0 | P21: 0 | Q21: 0 | R21: 0 | S21: 0 | T21: 0 | U21: 0 | V21: 0 | W21: 0 | X21: 0 | Y21: 0 | Z21: 0 | AA21: 0 | AB21: 0 | AC21: 0 | AD21: 0 | AE21: 0 | AF21: 0 | AG21: 0 | AH21: 0 | AI21: 0 | AJ21: 0 | AK21: 0 | AL21: 0 | AM21: 0 | AN21: 0 | AO21: 0 | AP21: 0
B22: LV Sub Generation Non-Intermittent | C22: 0 | D22: 0 | E22: 0 | F22: 0 | G22: 0 | H22: 0 | I22: 0 | J22: 0 | K22: 0 | L22: 0 | M22: 0 | N22: 0 | O22: 0 | P22: 0 | Q22: 0 | R22: 0 | S22: 0 | T22: 0 | U22: 0 | V22: 0 | W22: 0 | X22: 0 | Y22: 0 | Z22: 0 | AA22: 0 | AB22: 0 | AC22: 0 | AD22: 0 | AE22: 0 | AF22: 0 | AG22: 0 | AH22: 0 | AI22: 0 | AJ22: 0 | AK22: 0 | AL22: 0 | AM22: 0 | AN22: 0 | AO22: 0 | AP22: 0
B24: 1026. Matrix of applicability of LV service models to unmetered tariffs
B26: Source: service models
B27: Proportion of service model involved in connecting load of 1 MWh/year | C27: ='CDCM Forecast Data'!$E$11 -> 2017/18 | K27: ='CDCM Forecast Data'!$F$11 -> 2018/19 | S27: ='CDCM Forecast Data'!$G$11 -> 2019/20 | AA27: ='CDCM Forecast Data'!$H$11 -> 2020/21 | AI27: ='CDCM Forecast Data'!$I$11 -> 2021/22
C28: LV service model 1 | D28: LV service model 2 | E28: LV service model 3 | F28: LV service model 4 | G28: LV service model 5 | H28: LV service model 6 | I28: LV service model 7 | J28: LV service model 8 | K28: LV service model 1 | L28: LV service model 2 | M28: LV service model 3 | N28: LV service model 4 | O28: LV service model 5 | P28: LV service model 6 | Q28: LV service model 7 | R28: LV service model 8 | S28: LV service model 1 | T28: LV service model 2 | U28: LV service model 3 | V28: LV service model 4 | W28: LV service model 5 | X28: LV service model 6 | Y28: LV service model 7 | Z28: LV service model 8 | AA28: LV service model 1 | AB28: LV service model 2 | AC28: LV service model 3 | AD28: LV service model 4 | AE28: LV service model 5 | AF28: LV service model 6 | AG28: LV service model 7 | AH28: LV service model 8 | AI28: LV service model 1 | AJ28: LV service model 2 | AK28: LV service model 3 | AL28: LV service model 4 | AM28: LV service model 5 | AN28: LV service model 6 | AO28: LV service model 7 | AP28: LV service model 8
B29: All LV unmetered tariffs | C29: 0 | D29: 0 | E29: 0 | F29: 0 | G29: 2.872632768 | H29: 0 | I29: 0 | J29: 0 | K29: =C29 -> 0 | L29: 0 | M29: 0 | N29: 0 | O29: 2.872632768 | P29: 0 | Q29: 0 | R29: 0 | S29: =K29 -> 0 | T29: =L29 -> 0 | U29: =M29 -> 0 | V29: =N29 -> 0 | W29: =O29 -> 2.872632768 | X29: =P29 -> 0 | Y29: =Q29 -> 0 | Z29: =R29 -> 0 | AA29: =S29 -> 0 | AB29: =T29 -> 0 | AC29: =U29 -> 0 | AD29: =V29 -> 0 | AE29: =W29 -> 2.872632768 | AF29: =X29 -> 0 | AG29: =Y29 -> 0 | AH29: =Z29 -> 0 | AI29: =AA29 -> 0 | AJ29: =AB29 -> 0 | AK29: =AC29 -> 0 | AL29: =AD29 -> 0 | AM29: =AE29 -> 2.872632768 | AN29: =AF29 -> 0 | AO29: =AG29 -> 0 | AP29: =AH29 -> 0
B31: 1028. Matrix of applicability of HV service models to tariffs with fixed charges
C32: ='CDCM Forecast Data'!$E$11 -> 2017/18 | H32: =+'CDCM Forecast Data'!F11 -> 2018/19 | M32: =+'CDCM Forecast Data'!G11 -> 2019/20 | R32: =+'CDCM Forecast Data'!H11 -> 2020/21 | W32: =+'CDCM Forecast Data'!I11 -> 2021/22
C33: HV service model 1 | D33: HV service model 2 | E33: HV service model 3 | F33: HV service model 4 | G33: HV service model 5 | H33: HV service model 1 | I33: HV service model 2 | J33: HV service model 3 | K33: HV service model 4 | L33: HV service model 5 | M33: HV service model 1 | N33: HV service model 2 | O33: HV service model 3 | P33: HV service model 4 | Q33: HV service model 5 | R33: HV service model 1 | S33: HV service model 2 | T33: HV service model 3 | U33: HV service model 4 | V33: HV service model 5 | W33: HV service model 1 | X33: HV service model 2 | Y33: HV service model 3 | Z33: HV service model 4 | AA33: HV service model 5
B34: HV Medium Non-Domestic | C34: 0 | D34: 1 | E34: 0 | F34: 0 | G34: 0 | H34: =C34 -> 0 | I34: =D34 -> 1 | J34: =E34 -> 0 | K34: =F34 -> 0 | L34: =G34 -> 0 | M34: =H34 -> 0 | N34: =I34 -> 1 | O34: =J34 -> 0 | P34: =K34 -> 0 | Q34: =L34 -> 0 | R34: =M34 -> 0 | S34: =N34 -> 1 | T34: =O34 -> 0 | U34: =P34 -> 0 | V34: =Q34 -> 0 | W34: =R34 -> 0 | X34: =S34 -> 1 | Y34: =T34 -> 0 | Z34: =U34 -> 0 | AA34: =V34 -> 0
B35: HV HH Metered | C35: 0 | D35: 1 | E35: 0 | F35: 0 | G35: 0 | H35: 0 | I35: 1 | J35: 0 | K35: 0 | L35: 0 | M35: 0 | N35: 1 | O35: 0 | P35: 0 | Q35: 0 | R35: 0 | S35: 1 | T35: 0 | U35: 0 | V35: 0 | W35: 0 | X35: 1 | Y35: 0 | Z35: 0 | AA35: 0
B36: HV Generation Intermittent | C36: 0 | D36: 0 | E36: 1 | F36: 0 | G36: 0 | H36: 0 | I36: 0 | J36: 1 | K36: 0 | L36: 0 | M36: 0 | N36: 0 | O36: 1 | P36: 0 | Q36: 0 | R36: 0 | S36: 0 | T36: 1 | U36: 0 | V36: 0 | W36: 0 | X36: 0 | Y36: 1 | Z36: 0 | AA36: 0
B37: HV Generation Non-Intermittent | C37: 0 | D37: 0 | E37: 1 | F37: 0 | G37: 0 | H37: 0 | I37: 0 | J37: 1 | K37: 0 | L37: 0 | M37: 0 | N37: 0 | O37: 1 | P37: 0 | Q37: 0 | R37: 0 | S37: 0 | T37: 1 | U37: 0 | V37: 0 | W37: 0 | X37: 0 | Y37: 1 | Z37: 0 | AA37: 0

Sheet CDCM Volume Forecasts
G3: Growth Rates (%)
G4: VOLUME - RED BAND | L4: VOLUME - AMBER BAND | P4: VOLUME - GREEN BAND | T4: CUSTOMER NUMBERS | X4: IMPORT CAPACITY | AB4: REACTIVE POWER
G5: Y | H5: Y + 1 | I5: Y + 2 | J5: Y + 3 | K5: Y + 4 | L5: Y + 1 | M5: Y + 2 | N5: Y + 3 | O5: Y + 4 | P5: Y + 1 | Q5: Y + 2 | R5: Y + 3 | S5: Y + 4 | T5: Y + 1 | U5: Y + 2 | V5: Y + 3 | W5: Y + 4 | X5: Y + 1 | Y5: Y + 2 | Z5: Y + 3 | AA5: Y + 4 | AB5: Y + 1 | AC5: Y + 2 | AD5: Y + 3 | AE5: Y + 4
E6: Customer Category | F6: Description | G6: =+'CDCM Forecast Data'!E11 -> 2017/18 | H6: =+'CDCM Forecast Data'!F11 -> 2018/19 | I6: =+'CDCM Forecast Data'!G11 -> 2019/20 | J6: =+'CDCM Forecast Data'!H11 -> 2020/21 | K6: =+'CDCM Forecast Data'!I11 -> 2021/22 | L6: =+H6 -> 2018/19 | M6: 2019/20 | N6: 2020/21 | O6: 2021/22 | P6: 2018/19 | Q6: 2019/20 | R6: 2020/21 | S6: 2021/22 | T6: 2018/19 | U6: 2019/20 | V6: 2020/21 | W6: 2021/22 | X6: 2018/19 | Y6: 2019/20 | Z6: 2020/21 | AA6: 2021/22 | AB6: 2018/19 | AC6: 2019/20 | AD6: 2020/21 | AE6: 2021/22 | AF6: Assumptions
E7: 1 | F7: Aggregated demand | H7: -0.01 | I7: -0.01 | J7: -0.01 | K7: -0.01 | L7: -0.01 | M7: -0.01 | N7: -0.01 | O7: -0.01 | P7: -0.01 | Q7: -0.01 | R7: -0.01 | S7: -0.01 | T7: 0.0039 | U7: 0.0039 | V7: 0.0039 | W7: 0.0039 | X7: -0.01 | Y7: -0.01 | Z7: -0.01 | AA7: -0.01 | AB7: 0 | AC7: 0 | AD7: 0 | AE7: 0
E8: 2 | F8: Site-specific demand | H8: -0.01 | I8: -0.01 | J8: -0.01 | K8: -0.01 | L8: -0.01 | M8: -0.01 | N8: -0.01 | O8: -0.01 | P8: -0.01 | Q8: -0.01 | R8: -0.01 | S8: -0.01 | T8: 0.0039 | U8: 0.0039 | V8: 0.0039 | W8: 0.0039 | X8: -0.01 | Y8: -0.01 | Z8: -0.01 | AA8: -0.01 | AB8: 0 | AC8: 0 | AD8: 0 | AE8: 0
E9: 3 | F9: Not used
E10: 4 | F10: Generation | H10: 0.01 | I10: 0.01 | J10: 0.01 | K10: 0.01 | L10: 0.01 | M10: 0.01 | N10: 0.01 | O10: 0.01 | P10: 0.01 | Q10: 0.01 | R10: 0.01 | S10: 0.01 | T10: 0.0039 | U10: 0.0039 | V10: 0.0039 | W10: 0.0039 | X10: 0.01 | Y10: 0.01 | Z10: 0.01 | AA10: 0.01 | AB10: 0 | AC10: 0 | AD10: 0 | AE10: 0
E11: 5 | F11: Not used
E12: 6 | F12: Not used
E13: 7 | F13: Not used
E14: 8 | F14: Not used
E15: 9 | F15: Not used
E16: 10 | F16: Not used
E18: Summary Data | F18: Year | G18: =G6 -> 2017/18 | H18: =H6 -> 2018/19 | I18: =I6 -> 2019/20 | J18: =J6 -> 2020/21 | K18: =K6 -> 2021/22
F19: Total Volume | G19: =SUM(D28:F123) -> 20533991.23 | H19: =SUM(J28:L123) -> 20347112.66 | I19: =SUM(P28:R123) -> 20162287.49 | J19: =SUM(V28:X123) -> 19979497.04 | K19: =SUM(AB28:AD123) -> 19798722.81
F20: No. of MPANs | G20: =SUM(G28:G123) -> 2428067 | H20: =SUM(M28:M123) -> 2437536.461 | I20: =SUM(S28:S123) -> 2447042.853 | J20: =SUM(Y28:Y123) -> 2456586.321 | K20: =SUM(AE28:AE123) -> 2466167.007
F21: Total Import Capacity | G21: =SUM(H28:H123) -> 4226857.871 | H21: =SUM(N28:N123) -> 4184589.293 | I21: =SUM(T28:T123) -> 4142743.4 | J21: =SUM(Z28:Z123) -> 4101315.966 | K21: =SUM(AF28:AF123) -> 4060302.806
F22: Total Reactive | G22: =SUM(I28:I123) -> 794665.6501 | H22: =SUM(O28:O123) -> 794665.6501 | I22: =SUM(U28:U123) -> 794665.6501 | J22: =SUM(AA28:AA123) -> 794665.6501 | K22: =SUM(AG28:AG123) -> 794665.6501
C25: 1053. Volume forecasts for the charging year: | D25: =G6& " - ("&G5&")" -> 2017/18 - (Y) | J25: =H6& " - ("&H5&")" -> 2018/19 - (Y + 1) | P25: =I6& " - ("&I5&")" -> 2019/20 - (Y + 2) | V25: =J6& " - ("&J5&")" -> 2020/21 - (Y + 3) | AB25: =K6& " - ("&K5&")" -> 2021/22 - (Y + 4)
B26: Customer Category | C26: Tariff | D26: Rate 1 units (MWh) | E26: Rate 2 units (MWh) | F26: Rate 3 units (MWh) | G26: MPANs | H26: Import capacity (kVA) | I26: Reactive power units (MVArh) | J26: Rate 1 units (MWh) | K26: Rate 2 units (MWh) | L26: Rate 3 units (MWh) | M26: MPANs | N26: Import capacity (kVA) | O26: Reactive power units (MVArh) | P26: Rate 1 units (MWh) | Q26: Rate 2 units (MWh) | R26: Rate 3 units (MWh) | S26: MPANs | T26: Import capacity (kVA) | U26: Reactive power units (MVArh) | V26: Rate 1 units (MWh) | W26: Rate 2 units (MWh) | X26: Rate 3 units (MWh) | Y26: MPANs | Z26: Import capacity (kVA) | AA26: Reactive power units (MVArh) | AB26: Rate 1 units (MWh) | AC26: Rate 2 units (MWh) | AD26: Rate 3 units (MWh) | AE26: MPANs | AF26: Import capacity (kVA) | AG26: Reactive power units (MVArh)
A27: 1 | C27: > Domestic Unrestricted
A28: =A27+1 -> 2 | B28: 1 | C28: Domestic Unrestricted | D28: 6548048.323 | G28: 2004921 | J28: =IF(D28,((VLOOKUP($B28,$E$7:$AE$16,4)+1)*D28),) -> 6482567.84 | K28: =IF(E28,((VLOOKUP($B28,$E$7:$AE$16,8)+1)*E28),) -> 0 | L28: =IF(F28,((VLOOKUP($B28,$E$7:$AE$16,12)+1)*F28),) -> 0 | M28: =IF(G28,((VLOOKUP($B28,$E$7:$AE$16,16)+1)*G28),) -> 2012740.192 | N28: =IF(H28,((VLOOKUP($B28,$E$7:$AE$16,20)+1)*H28),) -> 0 | O28: =IF(I28,((VLOOKUP($B28,$E$7:$AE$16,24)+1)*I28),) -> 0 | P28: =IF(D28,((VLOOKUP($B28,$E$7:$AE$16,5)+1)*J28),) -> 6417742.161 | Q28: =IF(E28,((VLOOKUP($B28,$E$7:$AE$16,5+4)+1)*K28),) -> 0 | R28: =IF(F28,((VLOOKUP($B28,$E$7:$AE$16,5+8)+1)*L28),) -> 0 | S28: =IF(G28,((VLOOKUP($B28,$E$7:$AE$16,5+12)+1)*M28),) -> 2020589.879 | T28: =IF(H28,((VLOOKUP($B28,$E$7:$AE$16,5+16)+1)*N28),) -> 0 | U28: =IF(I28,((VLOOKUP($B28,$E$7:$AE$16,5+20)+1)*O28),) -> 0 | V28: =IF(D28,((VLOOKUP($B28,$E$7:$AE$16,6)+1)*P28),) -> 6353564.74 | W28: =IF(E28,((VLOOKUP($B28,$E$7:$AE$16,6+4)+1)*Q28),) -> 0 | X28: =IF(F28,((VLOOKUP($B28,$E$7:$AE$16,6+8)+1)*R28),) -> 0 | Y28: =IF(G28,((VLOOKUP($B28,$E$7:$AE$16,6+12)+1)*S28),) -> 2028470.179 | Z28: =IF(H28,((VLOOKUP($B28,$E$7:$AE$16,6+16)+1)*T28),) -> 0 | AA28: =IF(I28,((VLOOKUP($B28,$E$7:$AE$16,6+20)+1)*U28),) -> 0 | AB28: =IF(D28,((VLOOKUP($B28,$E$7:$AE$16,7)+1)*V28),) -> 6290029.092 | AC28: =IF(E28,((VLOOKUP($B28,$E$7:$AE$16,7+4)+1)*W28),) -> 0 | AD28: =IF(F28,((VLOOKUP($B28,$E$7:$AE$16,7+8)+1)*X28),) -> 0 | AE28: =IF(G28,((VLOOKUP($B28,$E$7:$AE$16,7+12)+1)*Y28),) -> 2036381.213 | AF28: =IF(H28,((VLOOKUP($B28,$E$7:$AE$16,7+16)+1)*Z28),) -> 0 | AG28: =IF(I28,((VLOOKUP($B28,$E$7:$AE$16,7+20)+1)*AA28),) -> 0
A29: =A28+1 -> 3 | B29: 1 | C29: LDNO LV: Domestic Unrestricted | D29: 107357.0234 | G29: 34780 | J29: =IF(D29,((VLOOKUP($B29,$E$7:$AE$16,4)+1)*D29),) -> 106283.4531 | K29: =IF(E29,((VLOOKUP($B29,$E$7:$AE$16,8)+1)*E29),) -> 0 | L29: =IF(F29,((VLOOKUP($B29,$E$7:$AE$16,12)+1)*F29),) -> 0 | M29: =IF(G29,((VLOOKUP($B29,$E$7:$AE$16,16)+1)*G29),) -> 34915.642 | N29: =IF(H29,((VLOOKUP($B29,$E$7:$AE$16,20)+1)*H29),) -> 0 | O29: =IF(I29,((VLOOKUP($B29,$E$7:$AE$16,24)+1)*I29),) -> 0 | P29: =IF(D29,((VLOOKUP($B29,$E$7:$AE$16,5)+1)*J29),) -> 105220.6186 | Q29: =IF(E29,((VLOOKUP($B29,$E$7:$AE$16,5+4)+1)*K29),) -> 0 | R29: =IF(F29,((VLOOKUP($B29,$E$7:$AE$16,5+8)+1)*L29),) -> 0 | S29: =IF(G29,((VLOOKUP($B29,$E$7:$AE$16,5+12)+1)*M29),) -> 35051.813 | T29: =IF(H29,((VLOOKUP($B29,$E$7:$AE$16,5+16)+1)*N29),) -> 0 | U29: =IF(I29,((VLOOKUP($B29,$E$7:$AE$16,5+20)+1)*O29),) -> 0 | V29: =IF(D29,((VLOOKUP($B29,$E$7:$AE$16,6)+1)*P29),) -> 104168.4124 | W29: =IF(E29,((VLOOKUP($B29,$E$7:$AE$16,6+4)+1)*Q29),) -> 0 | X29: =IF(F29,((VLOOKUP($B29,$E$7:$AE$16,6+8)+1)*R29),) -> 0 | Y29: =IF(G29,((VLOOKUP($B29,$E$7:$AE$16,6+12)+1)*S29),) -> 35188.51507 | Z29: =IF(H29,((VLOOKUP($B29,$E$7:$AE$16,6+16)+1)*T29),) -> 0 | AA29: =IF(I29,((VLOOKUP($B29,$E$7:$AE$16,6+20)+1)*U29),) -> 0 | AB29: =IF(D29,((VLOOKUP($B29,$E$7:$AE$16,7)+1)*V29),) -> 103126.7283 | AC29: =IF(E29,((VLOOKUP($B29,$E$7:$AE$16,7+4)+1)*W29),) -> 0 | AD29: =IF(F29,((VLOOKUP($B29,$E$7:$AE$16,7+8)+1)*X29),) -> 0 | AE29: =IF(G29,((VLOOKUP($B29,$E$7:$AE$16,7+12)+1)*Y29),) -> 35325.75028 | AF29: =IF(H29,((VLOOKUP($B29,$E$7:$AE$16,7+16)+1)*Z29),) -> 0 | AG29: =IF(I29,((VLOOKUP($B29,$E$7:$AE$16,7+20)+1)*AA29),) -> 0
A30: 4 | B30: 1 | C30: LDNO HV: Domestic Unrestricted | D30: 61406.53153 | G30: 18242 | J30: =IF(D30,((VLOOKUP($B30,$E$7:$AE$16,4)+1)*D30),) -> 60792.46622 | K30: =IF(E30,((VLOOKUP($B30,$E$7:$AE$16,8)+1)*E30),) -> 0 | L30: =IF(F30,((VLOOKUP($B30,$E$7:$AE$16,12)+1)*F30),) -> 0 | M30: =IF(G30,((VLOOKUP($B30,$E$7:$AE$16,16)+1)*G30),) -> 18313.1438 | N30: =IF(H30,((VLOOKUP($B30,$E$7:$AE$16,20)+1)*H30),) -> 0 | O30: =IF(I30,((VLOOKUP($B30,$E$7:$AE$16,24)+1)*I30),) -> 0 | P30: =IF(D30,((VLOOKUP($B30,$E$7:$AE$16,5)+1)*J30),) -> 60184.54155 | Q30: =IF(E30,((VLOOKUP($B30,$E$7:$AE$16,5+4)+1)*K30),) -> 0 | R30: =IF(F30,((VLOOKUP($B30,$E$7:$AE$16,5+8)+1)*L30),) -> 0 | S30: =IF(G30,((VLOOKUP($B30,$E$7:$AE$16,5+12)+1)*M30),) -> 18384.56506 | T30: =IF(H30,((VLOOKUP($B30,$E$7:$AE$16,5+16)+1)*N30),) -> 0 | U30: =IF(I30,((VLOOKUP($B30,$E$7:$AE$16,5+20)+1)*O30),) -> 0 | V30: =IF(D30,((VLOOKUP($B30,$E$7:$AE$16,6)+1)*P30),) -> 59582.69614 | W30: =IF(E30,((VLOOKUP($B30,$E$7:$AE$16,6+4)+1)*Q30),) -> 0 | X30: =IF(F30,((VLOOKUP($B30,$E$7:$AE$16,6+8)+1)*R30),) -> 0 | Y30: =IF(G30,((VLOOKUP($B30,$E$7:$AE$16,6+12)+1)*S30),) -> 18456.26486 | Z30: =IF(H30,((VLOOKUP($B30,$E$7:$AE$16,6+16)+1)*T30),) -> 0 | AA30: =IF(I30,((VLOOKUP($B30,$E$7:$AE$16,6+20)+1)*U30),) -> 0 | AB30: =IF(D30,((VLOOKUP($B30,$E$7:$AE$16,7)+1)*V30),) -> 58986.86918 | AC30: =IF(E30,((VLOOKUP($B30,$E$7:$AE$16,7+4)+1)*W30),) -> 0 | AD30: =IF(F30,((VLOOKUP($B30,$E$7:$AE$16,7+8)+1)*X30),) -> 0 | AE30: =IF(G30,((VLOOKUP($B30,$E$7:$AE$16,7+12)+1)*Y30),) -> 18528.2443 | AF30: =IF(H30,((VLOOKUP($B30,$E$7:$AE$16,7+16)+1)*Z30),) -> 0 | AG30: =IF(I30,((VLOOKUP($B30,$E$7:$AE$16,7+20)+1)*AA30),) -> 0
A31: 5 | C31: > Domestic Two Rate
A32: 6 | B32: 1 | C32: Domestic Two Rate | D32: 473331.2285 | E32: 475601.886 | G32: 179874 | J32: =IF(D32,((VLOOKUP($B32,$E$7:$AE$16,4)+1)*D32),) -> 468597.9162 | K32: =IF(E32,((VLOOKUP($B32,$E$7:$AE$16,8)+1)*E32),) -> 470845.8671 | L32: =IF(F32,((VLOOKUP($B32,$E$7:$AE$16,12)+1)*F32),) -> 0 | M32: =IF(G32,((VLOOKUP($B32,$E$7:$AE$16,16)+1)*G32),) -> 180575.5086 | N32: =IF(H32,((VLOOKUP($B32,$E$7:$AE$16,20)+1)*H32),) -> 0 | O32: =IF(I32,((VLOOKUP($B32,$E$7:$AE$16,24)+1)*I32),) -> 0 | P32: =IF(D32,((VLOOKUP($B32,$E$7:$AE$16,5)+1)*J32),) -> 463911.9371 | Q32: =IF(E32,((VLOOKUP($B32,$E$7:$AE$16,5+4)+1)*K32),) -> 466137.4085 | R32: =IF(F32,((VLOOKUP($B32,$E$7:$AE$16,5+8)+1)*L32),) -> 0 | S32: =IF(G32,((VLOOKUP($B32,$E$7:$AE$16,5+12)+1)*M32),) -> 181279.7531 | T32: =IF(H32,((VLOOKUP($B32,$E$7:$AE$16,5+16)+1)*N32),) -> 0 | U32: =IF(I32,((VLOOKUP($B32,$E$7:$AE$16,5+20)+1)*O32),) -> 0 | V32: =IF(D32,((VLOOKUP($B32,$E$7:$AE$16,6)+1)*P32),) -> 459272.8177 | W32: =IF(E32,((VLOOKUP($B32,$E$7:$AE$16,6+4)+1)*Q32),) -> 461476.0344 | X32: =IF(F32,((VLOOKUP($B32,$E$7:$AE$16,6+8)+1)*R32),) -> 0 | Y32: =IF(G32,((VLOOKUP($B32,$E$7:$AE$16,6+12)+1)*S32),) -> 181986.7441 | Z32: =IF(H32,((VLOOKUP($B32,$E$7:$AE$16,6+16)+1)*T32),) -> 0 | AA32: =IF(I32,((VLOOKUP($B32,$E$7:$AE$16,6+20)+1)*U32),) -> 0 | AB32: =IF(D32,((VLOOKUP($B32,$E$7:$AE$16,7)+1)*V32),) -> 454680.0895 | AC32: =IF(E32,((VLOOKUP($B32,$E$7:$AE$16,7+4)+1)*W32),) -> 456861.274 | AD32: =IF(F32,((VLOOKUP($B32,$E$7:$AE$16,7+8)+1)*X32),) -> 0 | AE32: =IF(G32,((VLOOKUP($B32,$E$7:$AE$16,7+12)+1)*Y32),) -> 182696.4924 | AF32: =IF(H32,((VLOOKUP($B32,$E$7:$AE$16,7+16)+1)*Z32),) -> 0 | AG32: =IF(I32,((VLOOKUP($B32,$E$7:$AE$16,7+20)+1)*AA32),) -> 0
A33: 7 | B33: 1 | C33: LDNO LV: Domestic Two Rate | D33: 392.0490129 | E33: 105.0348008 | G33: 145 | J33: =IF(D33,((VLOOKUP($B33,$E$7:$AE$16,4)+1)*D33),) -> 388.1285228 | K33: =IF(E33,((VLOOKUP($B33,$E$7:$AE$16,8)+1)*E33),) -> 103.9844528 | L33: =IF(F33,((VLOOKUP($B33,$E$7:$AE$16,12)+1)*F33),) -> 0 | M33: =IF(G33,((VLOOKUP($B33,$E$7:$AE$16,16)+1)*G33),) -> 145.5655 | N33: =IF(H33,((VLOOKUP($B33,$E$7:$AE$16,20)+1)*H33),) -> 0 | O33: =IF(I33,((VLOOKUP($B33,$E$7:$AE$16,24)+1)*I33),) -> 0 | P33: =IF(D33,((VLOOKUP($B33,$E$7:$AE$16,5)+1)*J33),) -> 384.2472375 | Q33: =IF(E33,((VLOOKUP($B33,$E$7:$AE$16,5+4)+1)*K33),) -> 102.9446083 | R33: =IF(F33,((VLOOKUP($B33,$E$7:$AE$16,5+8)+1)*L33),) -> 0 | S33: =IF(G33,((VLOOKUP($B33,$E$7:$AE$16,5+12)+1)*M33),) -> 146.1332055 | T33: =IF(H33,((VLOOKUP($B33,$E$7:$AE$16,5+16)+1)*N33),) -> 0 | U33: =IF(I33,((VLOOKUP($B33,$E$7:$AE$16,5+20)+1)*O33),) -> 0 | V33: =IF(D33,((VLOOKUP($B33,$E$7:$AE$16,6)+1)*P33),) -> 380.4047652 | W33: =IF(E33,((VLOOKUP($B33,$E$7:$AE$16,6+4)+1)*Q33),) -> 101.9151622 | X33: =IF(F33,((VLOOKUP($B33,$E$7:$AE$16,6+8)+1)*R33),) -> 0 | Y33: =IF(G33,((VLOOKUP($B33,$E$7:$AE$16,6+12)+1)*S33),) -> 146.703125 | Z33: =IF(H33,((VLOOKUP($B33,$E$7:$AE$16,6+16)+1)*T33),) -> 0 | AA33: =IF(I33,((VLOOKUP($B33,$E$7:$AE$16,6+20)+1)*U33),) -> 0 | AB33: =IF(D33,((VLOOKUP($B33,$E$7:$AE$16,7)+1)*V33),) -> 376.6007175 | AC33: =IF(E33,((VLOOKUP($B33,$E$7:$AE$16,7+4)+1)*W33),) -> 100.8960106 | AD33: =IF(F33,((VLOOKUP($B33,$E$7:$AE$16,7+8)+1)*X33),) -> 0 | AE33: =IF(G33,((VLOOKUP($B33,$E$7:$AE$16,7+12)+1)*Y33),) -> 147.2752671 | AF33: =IF(H33,((VLOOKUP($B33,$E$7:$AE$16,7+16)+1)*Z33),) -> 0 | AG33: =IF(I33,((VLOOKUP($B33,$E$7:$AE$16,7+20)+1)*AA33),) -> 0
A34: 8 | B34: 1 | C34: LDNO HV: Domestic Two Rate | D34: 3041.302096 | E34: 2188.483791 | G34: 1046 | J34: =IF(D34,((VLOOKUP($B34,$E$7:$AE$16,4)+1)*D34),) -> 3010.889075 | K34: =IF(E34,((VLOOKUP($B34,$E$7:$AE$16,8)+1)*E34),) -> 2166.598953 | L34: =IF(F34,((VLOOKUP($B34,$E$7:$AE$16,12)+1)*F34),) -> 0 | M34: =IF(G34,((VLOOKUP($B34,$E$7:$AE$16,16)+1)*G34),) -> 1050.0794 | N34: =IF(H34,((VLOOKUP($B34,$E$7:$AE$16,20)+1)*H34),) -> 0 | O34: =IF(I34,((VLOOKUP($B34,$E$7:$AE$16,24)+1)*I34),) -> 0 | P34: =IF(D34,((VLOOKUP($B34,$E$7:$AE$16,5)+1)*J34),) -> 2980.780184 | Q34: =IF(E34,((VLOOKUP($B34,$E$7:$AE$16,5+4)+1)*K34),) -> 2144.932964 | R34: =IF(F34,((VLOOKUP($B34,$E$7:$AE$16,5+8)+1)*L34),) -> 0 | S34: =IF(G34,((VLOOKUP($B34,$E$7:$AE$16,5+12)+1)*M34),) -> 1054.17471 | T34: =IF(H34,((VLOOKUP($B34,$E$7:$AE$16,5+16)+1)*N34),) -> 0 | U34: =IF(I34,((VLOOKUP($B34,$E$7:$AE$16,5+20)+1)*O34),) -> 0 | V34: =IF(D34,((VLOOKUP($B34,$E$7:$AE$16,6)+1)*P34),) -> 2950.972382 | W34: =IF(E34,((VLOOKUP($B34,$E$7:$AE$16,6+4)+1)*Q34),) -> 2123.483634 | X34: =IF(F34,((VLOOKUP($B34,$E$7:$AE$16,6+8)+1)*R34),) -> 0 | Y34: =IF(G34,((VLOOKUP($B34,$E$7:$AE$16,6+12)+1)*S34),) -> 1058.285991 | Z34: =IF(H34,((VLOOKUP($B34,$E$7:$AE$16,6+16)+1)*T34),) -> 0 | AA34: =IF(I34,((VLOOKUP($B34,$E$7:$AE$16,6+20)+1)*U34),) -> 0 | AB34: =IF(D34,((VLOOKUP($B34,$E$7:$AE$16,7)+1)*V34),) -> 2921.462658 | AC34: =IF(E34,((VLOOKUP($B34,$E$7:$AE$16,7+4)+1)*W34),) -> 2102.248798 | AD34: =IF(F34,((VLOOKUP($B34,$E$7:$AE$16,7+8)+1)*X34),) -> 0 | AE34: =IF(G34,((VLOOKUP($B34,$E$7:$AE$16,7+12)+1)*Y34),) -> 1062.413306 | AF34: =IF(H34,((VLOOKUP($B34,$E$7:$AE$16,7+16)+1)*Z34),) -> 0 | AG34: =IF(I34,((VLOOKUP($B34,$E$7:$AE$16,7+20)+1)*AA34),) -> 0
A35: 9 | C35: > Domestic Off Peak (related MPAN)
A36: 10 | B36: 1 | C36: Domestic Off Peak (related MPAN) | D36: 16657.96408 | G36: 5278 | J36: =IF(D36,((VLOOKUP($B36,$E$7:$AE$16,4)+1)*D36),) -> 16491.38444 | K36: =IF(E36,((VLOOKUP($B36,$E$7:$AE$16,8)+1)*E36),) -> 0 | L36: =IF(F36,((VLOOKUP($B36,$E$7:$AE$16,12)+1)*F36),) -> 0 | M36: =IF(G36,((VLOOKUP($B36,$E$7:$AE$16,16)+1)*G36),) -> 5298.5842 | N36: =IF(H36,((VLOOKUP($B36,$E$7:$AE$16,20)+1)*H36),) -> 0 | O36: =IF(I36,((VLOOKUP($B36,$E$7:$AE$16,24)+1)*I36),) -> 0 | P36: =IF(D36,((VLOOKUP($B36,$E$7:$AE$16,5)+1)*J36),) -> 16326.4706 | Q36: =IF(E36,((VLOOKUP($B36,$E$7:$AE$16,5+4)+1)*K36),) -> 0 | R36: =IF(F36,((VLOOKUP($B36,$E$7:$AE$16,5+8)+1)*L36),) -> 0 | S36: =IF(G36,((VLOOKUP($B36,$E$7:$AE$16,5+12)+1)*M36),) -> 5319.248678 | T36: =IF(H36,((VLOOKUP($B36,$E$7:$AE$16,5+16)+1)*N36),) -> 0 | U36: =IF(I36,((VLOOKUP($B36,$E$7:$AE$16,5+20)+1)*O36),) -> 0 | V36: =IF(D36,((VLOOKUP($B36,$E$7:$AE$16,6)+1)*P36),) -> 16163.20589 | W36: =IF(E36,((VLOOKUP($B36,$E$7:$AE$16,6+4)+1)*Q36),) -> 0 | X36: =IF(F36,((VLOOKUP($B36,$E$7:$AE$16,6+8)+1)*R36),) -> 0 | Y36: =IF(G36,((VLOOKUP($B36,$E$7:$AE$16,6+12)+1)*S36),) -> 5339.993748 | Z36: =IF(H36,((VLOOKUP($B36,$E$7:$AE$16,6+16)+1)*T36),) -> 0 | AA36: =IF(I36,((VLOOKUP($B36,$E$7:$AE$16,6+20)+1)*U36),) -> 0 | AB36: =IF(D36,((VLOOKUP($B36,$E$7:$AE$16,7)+1)*V36),) -> 16001.57383 | AC36: =IF(E36,((VLOOKUP($B36,$E$7:$AE$16,7+4)+1)*W36),) -> 0 | AD36: =IF(F36,((VLOOKUP($B36,$E$7:$AE$16,7+8)+1)*X36),) -> 0 | AE36: =IF(G36,((VLOOKUP($B36,$E$7:$AE$16,7+12)+1)*Y36),) -> 5360.819724 | AF36: =IF(H36,((VLOOKUP($B36,$E$7:$AE$16,7+16)+1)*Z36),) -> 0 | AG36: =IF(I36,((VLOOKUP($B36,$E$7:$AE$16,7+20)+1)*AA36),) -> 0
A37: 11 | B37: 1 | C37: LDNO LV: Domestic Off Peak (related MPAN) | D37: 0 | G37: 0 | J37: =IF(D37,((VLOOKUP($B37,$E$7:$AE$16,4)+1)*D37),) -> 0 | K37: =IF(E37,((VLOOKUP($B37,$E$7:$AE$16,8)+1)*E37),) -> 0 | L37: =IF(F37,((VLOOKUP($B37,$E$7:$AE$16,12)+1)*F37),) -> 0 | M37: =IF(G37,((VLOOKUP($B37,$E$7:$AE$16,16)+1)*G37),) -> 0 | N37: =IF(H37,((VLOOKUP($B37,$E$7:$AE$16,20)+1)*H37),) -> 0 | O37: =IF(I37,((VLOOKUP($B37,$E$7:$AE$16,24)+1)*I37),) -> 0 | P37: =IF(D37,((VLOOKUP($B37,$E$7:$AE$16,5)+1)*J37),) -> 0 | Q37: =IF(E37,((VLOOKUP($B37,$E$7:$AE$16,5+4)+1)*K37),) -> 0 | R37: =IF(F37,((VLOOKUP($B37,$E$7:$AE$16,5+8)+1)*L37),) -> 0 | S37: =IF(G37,((VLOOKUP($B37,$E$7:$AE$16,5+12)+1)*M37),) -> 0 | T37: =IF(H37,((VLOOKUP($B37,$E$7:$AE$16,5+16)+1)*N37),) -> 0 | U37: =IF(I37,((VLOOKUP($B37,$E$7:$AE$16,5+20)+1)*O37),) -> 0 | V37: =IF(D37,((VLOOKUP($B37,$E$7:$AE$16,6)+1)*P37),) -> 0 | W37: =IF(E37,((VLOOKUP($B37,$E$7:$AE$16,6+4)+1)*Q37),) -> 0 | X37: =IF(F37,((VLOOKUP($B37,$E$7:$AE$16,6+8)+1)*R37),) -> 0 | Y37: =IF(G37,((VLOOKUP($B37,$E$7:$AE$16,6+12)+1)*S37),) -> 0 | Z37: =IF(H37,((VLOOKUP($B37,$E$7:$AE$16,6+16)+1)*T37),) -> 0 | AA37: =IF(I37,((VLOOKUP($B37,$E$7:$AE$16,6+20)+1)*U37),) -> 0 | AB37: =IF(D37,((VLOOKUP($B37,$E$7:$AE$16,7)+1)*V37),) -> 0 | AC37: =IF(E37,((VLOOKUP($B37,$E$7:$AE$16,7+4)+1)*W37),) -> 0 | AD37: =IF(F37,((VLOOKUP($B37,$E$7:$AE$16,7+8)+1)*X37),) -> 0 | AE37: =IF(G37,((VLOOKUP($B37,$E$7:$AE$16,7+12)+1)*Y37),) -> 0 | AF37: =IF(H37,((VLOOKUP($B37,$E$7:$AE$16,7+16)+1)*Z37),) -> 0 | AG37: =IF(I37,((VLOOKUP($B37,$E$7:$AE$16,7+20)+1)*AA37),) -> 0
A38: 12 | B38: 1 | C38: LDNO HV: Domestic Off Peak (related MPAN) | D38: 0 | G38: 0 | J38: =IF(D38,((VLOOKUP($B38,$E$7:$AE$16,4)+1)*D38),) -> 0 | K38: =IF(E38,((VLOOKUP($B38,$E$7:$AE$16,8)+1)*E38),) -> 0 | L38: =IF(F38,((VLOOKUP($B38,$E$7:$AE$16,12)+1)*F38),) -> 0 | M38: =IF(G38,((VLOOKUP($B38,$E$7:$AE$16,16)+1)*G38),) -> 0 | N38: =IF(H38,((VLOOKUP($B38,$E$7:$AE$16,20)+1)*H38),) -> 0 | O38: =IF(I38,((VLOOKUP($B38,$E$7:$AE$16,24)+1)*I38),) -> 0 | P38: =IF(D38,((VLOOKUP($B38,$E$7:$AE$16,5)+1)*J38),) -> 0 | Q38: =IF(E38,((VLOOKUP($B38,$E$7:$AE$16,5+4)+1)*K38),) -> 0 | R38: =IF(F38,((VLOOKUP($B38,$E$7:$AE$16,5+8)+1)*L38),) -> 0 | S38: =IF(G38,((VLOOKUP($B38,$E$7:$AE$16,5+12)+1)*M38),) -> 0 | T38: =IF(H38,((VLOOKUP($B38,$E$7:$AE$16,5+16)+1)*N38),) -> 0 | U38: =IF(I38,((VLOOKUP($B38,$E$7:$AE$16,5+20)+1)*O38),) -> 0 | V38: =IF(D38,((VLOOKUP($B38,$E$7:$AE$16,6)+1)*P38),) -> 0 | W38: =IF(E38,((VLOOKUP($B38,$E$7:$AE$16,6+4)+1)*Q38),) -> 0 | X38: =IF(F38,((VLOOKUP($B38,$E$7:$AE$16,6+8)+1)*R38),) -> 0 | Y38: =IF(G38,((VLOOKUP($B38,$E$7:$AE$16,6+12)+1)*S38),) -> 0 | Z38: =IF(H38,((VLOOKUP($B38,$E$7:$AE$16,6+16)+1)*T38),) -> 0 | AA38: =IF(I38,((VLOOKUP($B38,$E$7:$AE$16,6+20)+1)*U38),) -> 0 | AB38: =IF(D38,((VLOOKUP($B38,$E$7:$AE$16,7)+1)*V38),) -> 0 | AC38: =IF(E38,((VLOOKUP($B38,$E$7:$AE$16,7+4)+1)*W38),) -> 0 | AD38: =IF(F38,((VLOOKUP($B38,$E$7:$AE$16,7+8)+1)*X38),) -> 0 | AE38: =IF(G38,((VLOOKUP($B38,$E$7:$AE$16,7+12)+1)*Y38),) -> 0 | AF38: =IF(H38,((VLOOKUP($B38,$E$7:$AE$16,7+16)+1)*Z38),) -> 0 | AG38: =IF(I38,((VLOOKUP($B38,$E$7:$AE$16,7+20)+1)*AA38),) -> 0
A39: 13 | C39: > Small Non Domestic Unrestricted
A40: 14 | B40: 1 | C40: Small Non Domestic Unrestricted | D40: 1571617.926 | G40: 123214 | J40: =IF(D40,((VLOOKUP($B40,$E$7:$AE$16,4)+1)*D40),) -> 1555901.747 | K40: =IF(E40,((VLOOKUP($B40,$E$7:$AE$16,8)+1)*E40),) -> 0 | L40: =IF(F40,((VLOOKUP($B40,$E$7:$AE$16,12)+1)*F40),) -> 0 | M40: =IF(G40,((VLOOKUP($B40,$E$7:$AE$16,16)+1)*G40),) -> 123694.5346 | N40: =IF(H40,((VLOOKUP($B40,$E$7:$AE$16,20)+1)*H40),) -> 0 | O40: =IF(I40,((VLOOKUP($B40,$E$7:$AE$16,24)+1)*I40),) -> 0 | P40: =IF(D40,((VLOOKUP($B40,$E$7:$AE$16,5)+1)*J40),) -> 1540342.73 | Q40: =IF(E40,((VLOOKUP($B40,$E$7:$AE$16,5+4)+1)*K40),) -> 0 | R40: =IF(F40,((VLOOKUP($B40,$E$7:$AE$16,5+8)+1)*L40),) -> 0 | S40: =IF(G40,((VLOOKUP($B40,$E$7:$AE$16,5+12)+1)*M40),) -> 124176.9433 | T40: =IF(H40,((VLOOKUP($B40,$E$7:$AE$16,5+16)+1)*N40),) -> 0 | U40: =IF(I40,((VLOOKUP($B40,$E$7:$AE$16,5+20)+1)*O40),) -> 0 | V40: =IF(D40,((VLOOKUP($B40,$E$7:$AE$16,6)+1)*P40),) -> 1524939.302 | W40: =IF(E40,((VLOOKUP($B40,$E$7:$AE$16,6+4)+1)*Q40),) -> 0 | X40: =IF(F40,((VLOOKUP($B40,$E$7:$AE$16,6+8)+1)*R40),) -> 0 | Y40: =IF(G40,((VLOOKUP($B40,$E$7:$AE$16,6+12)+1)*S40),) -> 124661.2334 | Z40: =IF(H40,((VLOOKUP($B40,$E$7:$AE$16,6+16)+1)*T40),) -> 0 | AA40: =IF(I40,((VLOOKUP($B40,$E$7:$AE$16,6+20)+1)*U40),) -> 0 | AB40: =IF(D40,((VLOOKUP($B40,$E$7:$AE$16,7)+1)*V40),) -> 1509689.909 | AC40: =IF(E40,((VLOOKUP($B40,$E$7:$AE$16,7+4)+1)*W40),) -> 0 | AD40: =IF(F40,((VLOOKUP($B40,$E$7:$AE$16,7+8)+1)*X40),) -> 0 | AE40: =IF(G40,((VLOOKUP($B40,$E$7:$AE$16,7+12)+1)*Y40),) -> 125147.4122 | AF40: =IF(H40,((VLOOKUP($B40,$E$7:$AE$16,7+16)+1)*Z40),) -> 0 | AG40: =IF(I40,((VLOOKUP($B40,$E$7:$AE$16,7+20)+1)*AA40),) -> 0
A41: 15 | B41: 1 | C41: LDNO LV: Small Non Domestic Unrestricted | D41: 2761.666876 | G41: 331 | J41: =IF(D41,((VLOOKUP($B41,$E$7:$AE$16,4)+1)*D41),) -> 2734.050207 | K41: =IF(E41,((VLOOKUP($B41,$E$7:$AE$16,8)+1)*E41),) -> 0 | L41: =IF(F41,((VLOOKUP($B41,$E$7:$AE$16,12)+1)*F41),) -> 0 | M41: =IF(G41,((VLOOKUP($B41,$E$7:$AE$16,16)+1)*G41),) -> 332.2909 | N41: =IF(H41,((VLOOKUP($B41,$E$7:$AE$16,20)+1)*H41),) -> 0 | O41: =IF(I41,((VLOOKUP($B41,$E$7:$AE$16,24)+1)*I41),) -> 0 | P41: =IF(D41,((VLOOKUP($B41,$E$7:$AE$16,5)+1)*J41),) -> 2706.709705 | Q41: =IF(E41,((VLOOKUP($B41,$E$7:$AE$16,5+4)+1)*K41),) -> 0 | R41: =IF(F41,((VLOOKUP($B41,$E$7:$AE$16,5+8)+1)*L41),) -> 0 | S41: =IF(G41,((VLOOKUP($B41,$E$7:$AE$16,5+12)+1)*M41),) -> 333.5868345 | T41: =IF(H41,((VLOOKUP($B41,$E$7:$AE$16,5+16)+1)*N41),) -> 0 | U41: =IF(I41,((VLOOKUP($B41,$E$7:$AE$16,5+20)+1)*O41),) -> 0 | V41: =IF(D41,((VLOOKUP($B41,$E$7:$AE$16,6)+1)*P41),) -> 2679.642608 | W41: =IF(E41,((VLOOKUP($B41,$E$7:$AE$16,6+4)+1)*Q41),) -> 0 | X41: =IF(F41,((VLOOKUP($B41,$E$7:$AE$16,6+8)+1)*R41),) -> 0 | Y41: =IF(G41,((VLOOKUP($B41,$E$7:$AE$16,6+12)+1)*S41),) -> 334.8878232 | Z41: =IF(H41,((VLOOKUP($B41,$E$7:$AE$16,6+16)+1)*T41),) -> 0 | AA41: =IF(I41,((VLOOKUP($B41,$E$7:$AE$16,6+20)+1)*U41),) -> 0 | AB41: =IF(D41,((VLOOKUP($B41,$E$7:$AE$16,7)+1)*V41),) -> 2652.846182 | AC41: =IF(E41,((VLOOKUP($B41,$E$7:$AE$16,7+4)+1)*W41),) -> 0 | AD41: =IF(F41,((VLOOKUP($B41,$E$7:$AE$16,7+8)+1)*X41),) -> 0 | AE41: =IF(G41,((VLOOKUP($B41,$E$7:$AE$16,7+12)+1)*Y41),) -> 336.1938857 | AF41: =IF(H41,((VLOOKUP($B41,$E$7:$AE$16,7+16)+1)*Z41),) -> 0 | AG41: =IF(I41,((VLOOKUP($B41,$E$7:$AE$16,7+20)+1)*AA41),) -> 0
A42: 16 | B42: 1 | C42: LDNO HV: Small Non Domestic Unrestricted | D42: 6019.563797 | G42: 492 | J42: =IF(D42,((VLOOKUP($B42,$E$7:$AE$16,4)+1)*D42),) -> 5959.368159 | K42: =IF(E42,((VLOOKUP($B42,$E$7:$AE$16,8)+1)*E42),) -> 0 | L42: =IF(F42,((VLOOKUP($B42,$E$7:$AE$16,12)+1)*F42),) -> 0 | M42: =IF(G42,((VLOOKUP($B42,$E$7:$AE$16,16)+1)*G42),) -> 493.9188 | N42: =IF(H42,((VLOOKUP($B42,$E$7:$AE$16,20)+1)*H42),) -> 0 | O42: =IF(I42,((VLOOKUP($B42,$E$7:$AE$16,24)+1)*I42),) -> 0 | P42: =IF(D42,((VLOOKUP($B42,$E$7:$AE$16,5)+1)*J42),) -> 5899.774477 | Q42: =IF(E42,((VLOOKUP($B42,$E$7:$AE$16,5+4)+1)*K42),) -> 0 | R42: =IF(F42,((VLOOKUP($B42,$E$7:$AE$16,5+8)+1)*L42),) -> 0 | S42: =IF(G42,((VLOOKUP($B42,$E$7:$AE$16,5+12)+1)*M42),) -> 495.8450833 | T42: =IF(H42,((VLOOKUP($B42,$E$7:$AE$16,5+16)+1)*N42),) -> 0 | U42: =IF(I42,((VLOOKUP($B42,$E$7:$AE$16,5+20)+1)*O42),) -> 0 | V42: =IF(D42,((VLOOKUP($B42,$E$7:$AE$16,6)+1)*P42),) -> 5840.776733 | W42: =IF(E42,((VLOOKUP($B42,$E$7:$AE$16,6+4)+1)*Q42),) -> 0 | X42: =IF(F42,((VLOOKUP($B42,$E$7:$AE$16,6+8)+1)*R42),) -> 0 | Y42: =IF(G42,((VLOOKUP($B42,$E$7:$AE$16,6+12)+1)*S42),) -> 497.7788791 | Z42: =IF(H42,((VLOOKUP($B42,$E$7:$AE$16,6+16)+1)*T42),) -> 0 | AA42: =IF(I42,((VLOOKUP($B42,$E$7:$AE$16,6+20)+1)*U42),) -> 0 | AB42: =IF(D42,((VLOOKUP($B42,$E$7:$AE$16,7)+1)*V42),) -> 5782.368965 | AC42: =IF(E42,((VLOOKUP($B42,$E$7:$AE$16,7+4)+1)*W42),) -> 0 | AD42: =IF(F42,((VLOOKUP($B42,$E$7:$AE$16,7+8)+1)*X42),) -> 0 | AE42: =IF(G42,((VLOOKUP($B42,$E$7:$AE$16,7+12)+1)*Y42),) -> 499.7202168 | AF42: =IF(H42,((VLOOKUP($B42,$E$7:$AE$16,7+16)+1)*Z42),) -> 0 | AG42: =IF(I42,((VLOOKUP($B42,$E$7:$AE$16,7+20)+1)*AA42),) -> 0
A43: 17 | C43: > Small Non Domestic Two Rate
A44: 18 | B44: 1 | C44: Small Non Domestic Two Rate | D44: 568937.2659 | E44: 222476.7168 | G44: 33422 | J44: =IF(D44,((VLOOKUP($B44,$E$7:$AE$16,4)+1)*D44),) -> 563247.8933 | K44: =IF(E44,((VLOOKUP($B44,$E$7:$AE$16,8)+1)*E44),) -> 220251.9496 | L44: =IF(F44,((VLOOKUP($B44,$E$7:$AE$16,12)+1)*F44),) -> 0 | M44: =IF(G44,((VLOOKUP($B44,$E$7:$AE$16,16)+1)*G44),) -> 33552.3458 | N44: =IF(H44,((VLOOKUP($B44,$E$7:$AE$16,20)+1)*H44),) -> 0 | O44: =IF(I44,((VLOOKUP($B44,$E$7:$AE$16,24)+1)*I44),) -> 0 | P44: =IF(D44,((VLOOKUP($B44,$E$7:$AE$16,5)+1)*J44),) -> 557615.4143 | Q44: =IF(E44,((VLOOKUP($B44,$E$7:$AE$16,5+4)+1)*K44),) -> 218049.4301 | R44: =IF(F44,((VLOOKUP($B44,$E$7:$AE$16,5+8)+1)*L44),) -> 0 | S44: =IF(G44,((VLOOKUP($B44,$E$7:$AE$16,5+12)+1)*M44),) -> 33683.19995 | T44: =IF(H44,((VLOOKUP($B44,$E$7:$AE$16,5+16)+1)*N44),) -> 0 | U44: =IF(I44,((VLOOKUP($B44,$E$7:$AE$16,5+20)+1)*O44),) -> 0 | V44: =IF(D44,((VLOOKUP($B44,$E$7:$AE$16,6)+1)*P44),) -> 552039.2602 | W44: =IF(E44,((VLOOKUP($B44,$E$7:$AE$16,6+4)+1)*Q44),) -> 215868.9358 | X44: =IF(F44,((VLOOKUP($B44,$E$7:$AE$16,6+8)+1)*R44),) -> 0 | Y44: =IF(G44,((VLOOKUP($B44,$E$7:$AE$16,6+12)+1)*S44),) -> 33814.56443 | Z44: =IF(H44,((VLOOKUP($B44,$E$7:$AE$16,6+16)+1)*T44),) -> 0 | AA44: =IF(I44,((VLOOKUP($B44,$E$7:$AE$16,6+20)+1)*U44),) -> 0 | AB44: =IF(D44,((VLOOKUP($B44,$E$7:$AE$16,7)+1)*V44),) -> 546518.8676 | AC44: =IF(E44,((VLOOKUP($B44,$E$7:$AE$16,7+4)+1)*W44),) -> 213710.2464 | AD44: =IF(F44,((VLOOKUP($B44,$E$7:$AE$16,7+8)+1)*X44),) -> 0 | AE44: =IF(G44,((VLOOKUP($B44,$E$7:$AE$16,7+12)+1)*Y44),) -> 33946.44123 | AF44: =IF(H44,((VLOOKUP($B44,$E$7:$AE$16,7+16)+1)*Z44),) -> 0 | AG44: =IF(I44,((VLOOKUP($B44,$E$7:$AE$16,7+20)+1)*AA44),) -> 0
A45: 19 | B45: 1 | C45: LDNO LV: Small Non Domestic Two Rate | D45: 52.28009524 | E45: 50.5447381 | G45: 31 | J45: 51.75729429 | K45: 50.03929071 | L45: 0 | M45: 31.1209 | N45: 0 | O45: 0 | P45: 51.23972134 | Q45: 49.53889781 | R45: 0 | S45: 31.24227151 | T45: 0 | U45: 0 | V45: 50.72732413 | W45: 49.04350883 | X45: 0 | Y45: 31.36411637 | Z45: 0 | AA45: 0 | AB45: 50.22005089 | AC45: 48.55307374 | AD45: 0 | AE45: 31.48643642 | AF45: 0 | AG45: 0
A46: 20 | B46: 1 | C46: LDNO HV: Small Non Domestic Two Rate | D46: 0 | E46: 0 | G46: 0 | J46: 0 | K46: 0 | L46: 0 | M46: 0 | N46: 0 | O46: 0 | P46: 0 | Q46: 0 | R46: 0 | S46: 0 | T46: 0 | U46: 0 | V46: 0 | W46: 0 | X46: 0 | Y46: 0 | Z46: 0 | AA46: 0 | AB46: 0 | AC46: 0 | AD46: 0 | AE46: 0 | AF46: 0 | AG46: 0
A47: 21 | C47: > Small Non Domestic Off Peak (related MPAN) | J47: 0 | K47: 0 | L47: 0 | M47: 0 | N47: 0 | O47: 0 | P47: 0 | Q47: 0 | R47: 0 | S47: 0 | T47: 0 | U47: 0 | V47: 0 | W47: 0 | X47: 0 | Y47: 0 | Z47: 0 | AA47: 0 | AB47: 0 | AC47: 0 | AD47: 0 | AE47: 0 | AF47: 0 | AG47: 0
A48: 22 | B48: 1 | C48: Small Non Domestic Off Peak (related MPAN) | D48: 18224.06563 | G48: 3531 | J48: 18041.82497 | K48: 0 | L48: 0 | M48: 3544.7709 | N48: 0 | O48: 0 | P48: 17861.40673 | Q48: 0 | R48: 0 | S48: 3558.595507 | T48: 0 | U48: 0 | V48: 17682.79266 | W48: 0 | X48: 0 | Y48: 3572.474029 | Z48: 0 | AA48: 0 | AB48: 17505.96473 | AC48: 0 | AD48: 0 | AE48: 3586.406678 | AF48: 0 | AG48: 0
A49: 23 | B49: 1 | C49: LDNO LV: Small Non Domestic Off Peak (related MPAN) | D49: 0 | G49: 0 | J49: 0 | K49: 0 | L49: 0 | M49: 0 | N49: 0 | O49: 0 | P49: 0 | Q49: 0 | R49: 0 | S49: 0 | T49: 0 | U49: 0 | V49: 0 | W49: 0 | X49: 0 | Y49: 0 | Z49: 0 | AA49: 0 | AB49: 0 | AC49: 0 | AD49: 0 | AE49: 0 | AF49: 0 | AG49: 0
A50: 24 | B50: 1 | C50: LDNO HV: Small Non Domestic Off Peak (related MPAN) | D50: 0 | G50: 0 | J50: 0 | K50: 0 | L50: 0 | M50: 0 | N50: 0 | O50: 0 | P50: 0 | Q50: 0 | R50: 0 | S50: 0 | T50: 0 | U50: 0 | V50: 0 | W50: 0 | X50: 0 | Y50: 0 | Z50: 0 | AA50: 0 | AB50: 0 | AC50: 0 | AD50: 0 | AE50: 0 | AF50: 0 | AG50: 0
A51: 25 | C51: > LV Medium Non-Domestic | J51: 0 | K51: 0 | L51: 0 | M51: 0 | N51: 0 | O51: 0 | P51: 0 | Q51: 0 | R51: 0 | S51: 0 | T51: 0 | U51: 0 | V51: 0 | W51: 0 | X51: 0 | Y51: 0 | Z51: 0 | AA51: 0 | AB51: 0 | AC51: 0 | AD51: 0 | AE51: 0 | AF51: 0 | AG51: 0
A52: 26 | B52: 1 | C52: LV Medium Non-Domestic | D52: 0 | E52: 0 | G52: 0 | J52: 0 | K52: 0 | L52: 0 | M52: 0 | N52: 0 | O52: 0 | P52: 0 | Q52: 0 | R52: 0 | S52: 0 | T52: 0 | U52: 0 | V52: 0 | W52: 0 | X52: 0 | Y52: 0 | Z52: 0 | AA52: 0 | AB52: 0 | AC52: 0 | AD52: 0 | AE52: 0 | AF52: 0 | AG52: 0
A53: 27 | B53: 1 | C53: LDNO LV: LV Medium Non-Domestic | D53: 0 | E53: 0 | G53: 0 | J53: 0 | K53: 0 | L53: 0 | M53: 0 | N53: 0 | O53: 0 | P53: 0 | Q53: 0 | R53: 0 | S53: 0 | T53: 0 | U53: 0 | V53: 0 | W53: 0 | X53: 0 | Y53: 0 | Z53: 0 | AA53: 0 | AB53: 0 | AC53: 0 | AD53: 0 | AE53: 0 | AF53: 0 | AG53: 0
A54: 28 | B54: 1 | C54: LDNO HV: LV Medium Non-Domestic | D54: 0 | E54: 0 | G54: 0 | J54: 0 | K54: 0 | L54: 0 | M54: 0 | N54: 0 | O54: 0 | P54: 0 | Q54: 0 | R54: 0 | S54: 0 | T54: 0 | U54: 0 | V54: 0 | W54: 0 | X54: 0 | Y54: 0 | Z54: 0 | AA54: 0 | AB54: 0 | AC54: 0 | AD54: 0 | AE54: 0 | AF54: 0 | AG54: 0
A55: 29 | C55: > LV Sub Medium Non-Domestic | J55: 0 | K55: 0 | L55: 0 | M55: 0 | N55: 0 | O55: 0 | P55: 0 | Q55: 0 | R55: 0 | S55: 0 | T55: 0 | U55: 0 | V55: 0 | W55: 0 | X55: 0 | Y55: 0 | Z55: 0 | AA55: 0 | AB55: 0 | AC55: 0 | AD55: 0 | AE55: 0 | AF55: 0 | AG55: 0
A56: 30 | B56: 1 | C56: LV Sub Medium Non-Domestic | D56: 0 | E56: 0 | G56: 0 | J56: 0 | K56: 0 | L56: 0 | M56: 0 | N56: 0 | O56: 0 | P56: 0 | Q56: 0 | R56: 0 | S56: 0 | T56: 0 | U56: 0 | V56: 0 | W56: 0 | X56: 0 | Y56: 0 | Z56: 0 | AA56: 0 | AB56: 0 | AC56: 0 | AD56: 0 | AE56: 0 | AF56: 0 | AG56: 0
A57: 31 | C57: > HV Medium Non-Domestic | J57: 0 | K57: 0 | L57: 0 | M57: 0 | N57: 0 | O57: 0 | P57: 0 | Q57: 0 | R57: 0 | S57: 0 | T57: 0 | U57: 0 | V57: 0 | W57: 0 | X57: 0 | Y57: 0 | Z57: 0 | AA57: 0 | AB57: 0 | AC57: 0 | AD57: 0 | AE57: 0 | AF57: 0 | AG57: 0
A58: 32 | B58: 1 | C58: HV Medium Non-Domestic | D58: 5720.366044 | E58: 1573.219987 | G58: 60 | J58: 5663.162383 | K58: 1557.487787 | L58: 0 | M58: 60.234 | N58: 0 | O58: 0 | P58: 5606.53076 | Q58: 1541.91291 | R58: 0 | S58: 60.4689126 | T58: 0 | U58: 0 | V58: 5550.465452 | W58: 1526.493781 | X58: 0 | Y58: 60.70474136 | Z58: 0 | AA58: 0 | AB58: 5494.960797 | AC58: 1511.228843 | AD58: 0 | AE58: 60.94148985 | AF58: 0 | AG58: 0
A59: 33 | C59: > LV Network Domestic | J59: 0 | K59: 0 | L59: 0 | M59: 0 | N59: 0 | O59: 0 | P59: 0 | Q59: 0 | R59: 0 | S59: 0 | T59: 0 | U59: 0 | V59: 0 | W59: 0 | X59: 0 | Y59: 0 | Z59: 0 | AA59: 0 | AB59: 0 | AC59: 0 | AD59: 0 | AE59: 0 | AF59: 0 | AG59: 0
A60: 34 | B60: 1 | C60: LV Network Domestic | D60: 0 | E60: 0 | F60: 0 | G60: 0 | J60: 0 | K60: 0 | L60: 0 | M60: 0 | N60: 0 | O60: 0 | P60: 0 | Q60: 0 | R60: 0 | S60: 0 | T60: 0 | U60: 0 | V60: 0 | W60: 0 | X60: 0 | Y60: 0 | Z60: 0 | AA60: 0 | AB60: 0 | AC60: 0 | AD60: 0 | AE60: 0 | AF60: 0 | AG60: 0
A61: 35 | B61: 1 | C61: LDNO LV: LV Network Domestic | D61: 0 | E61: 0 | F61: 0 | G61: 0 | J61: 0 | K61: 0 | L61: 0 | M61: 0 | N61: 0 | O61: 0 | P61: 0 | Q61: 0 | R61: 0 | S61: 0 | T61: 0 | U61: 0 | V61: 0 | W61: 0 | X61: 0 | Y61: 0 | Z61: 0 | AA61: 0 | AB61: 0 | AC61: 0 | AD61: 0 | AE61: 0 | AF61: 0 | AG61: 0
A62: 36 | B62: 1 | C62: LDNO HV: LV Network Domestic | D62: 0 | E62: 0 | F62: 0 | G62: 0 | J62: 0 | K62: 0 | L62: 0 | M62: 0 | N62: 0 | O62: 0 | P62: 0 | Q62: 0 | R62: 0 | S62: 0 | T62: 0 | U62: 0 | V62: 0 | W62: 0 | X62: 0 | Y62: 0 | Z62: 0 | AA62: 0 | AB62: 0 | AC62: 0 | AD62: 0 | AE62: 0 | AF62: 0 | AG62: 0
A63: 37 | C63: > LV Network Non-Domestic Non-CT | J63: 0 | K63: 0 | L63: 0 | M63: 0 | N63: 0 | O63: 0 | P63: 0 | Q63: 0 | R63: 0 | S63: 0 | T63: 0 | U63: 0 | V63: 0 | W63: 0 | X63: 0 | Y63: 0 | Z63: 0 | AA63: 0 | AB63: 0 | AC63: 0 | AD63: 0 | AE63: 0 | AF63: 0 | AG63: 0
A64: 38 | B64: 1 | C64: LV Network Non-Domestic Non-CT | D64: 55950.10331 | E64: 198560.7481 | F64: 257739.1294 | G64: 5419.348 | J64: 55390.60228 | K64: 196575.1406 | L64: 255161.7381 | M64: 5440.483457 | N64: 0 | O64: 0 | P64: 54836.69626 | Q64: 194609.3892 | R64: 252610.1208 | S64: 5461.701343 | T64: 0 | U64: 0 | V64: 54288.32929 | W64: 192663.2953 | X64: 250084.0196 | Y64: 5483.001978 | Z64: 0 | AA64: 0 | AB64: 53745.446 | AC64: 190736.6623 | AD64: 247583.1794 | AE64: 5504.385686 | AF64: 0 | AG64: 0
A65: 39 | B65: 1 | C65: LDNO LV: LV Network Non-Domestic Non-CT | D65: 0 | E65: 0 | F65: 0 | G65: 0 | J65: 0 | K65: 0 | L65: 0 | M65: 0 | N65: 0 | O65: 0 | P65: 0 | Q65: 0 | R65: 0 | S65: 0 | T65: 0 | U65: 0 | V65: 0 | W65: 0 | X65: 0 | Y65: 0 | Z65: 0 | AA65: 0 | AB65: 0 | AC65: 0 | AD65: 0 | AE65: 0 | AF65: 0 | AG65: 0
A66: 40 | B66: 1 | C66: LDNO HV: LV Network Non-Domestic Non-CT | D66: 0 | E66: 0 | F66: 0 | G66: 0 | J66: 0 | K66: 0 | L66: 0 | M66: 0 | N66: 0 | O66: 0 | P66: 0 | Q66: 0 | R66: 0 | S66: 0 | T66: 0 | U66: 0 | V66: 0 | W66: 0 | X66: 0 | Y66: 0 | Z66: 0 | AA66: 0 | AB66: 0 | AC66: 0 | AD66: 0 | AE66: 0 | AF66: 0 | AG66: 0
A67: 41 | C67: > LV HH Metered | J67: 0 | K67: 0 | L67: 0 | M67: 0 | N67: 0 | O67: 0 | P67: 0 | Q67: 0 | R67: 0 | S67: 0 | T67: 0 | U67: 0 | V67: 0 | W67: 0 | X67: 0 | Y67: 0 | Z67: 0 | AA67: 0 | AB67: 0 | AC67: 0 | AD67: 0 | AE67: 0 | AF67: 0 | AG67: 0
A68: 42 | B68: 2 | C68: LV HH Metered | D68: 244292.4644 | E68: 866967.0226 | F68: 1125354.975 | G68: 11578.652 | H68: 1587209.939 | I68: 265954.621 | J68: 241849.5398 | K68: 858297.3524 | L68: 1114101.425 | M68: 11623.80874 | N68: 1571337.839 | O68: 265954.621 | P68: 239431.0444 | Q68: 849714.3788 | R68: 1102960.411 | S68: 11669.1416 | T68: 1555624.461 | U68: 265954.621 | V68: 237036.7339 | W68: 841217.2351 | X68: 1091930.807 | Y68: 11714.65125 | Z68: 1540068.216 | AA68: 265954.621 | AB68: 234666.3666 | AC68: 832805.0627 | AD68: 1081011.499 | AE68: 11760.33839 | AF68: 1524667.534 | AG68: 265954.621
A69: 43 | B69: 2 | C69: LDNO LV: LV HH Metered | D69: 361.5360613 | E69: 1449.294398 | F69: 1870.006068 | G69: 14 | H69: 2646.113944 | I69: 225.8115 | J69: 357.9207006 | K69: 1434.801454 | L69: 1851.306008 | M69: 14.0546 | N69: 2619.652805 | O69: 225.8115 | P69: 354.3414936 | Q69: 1420.45344 | R69: 1832.792948 | S69: 14.10941294 | T69: 2593.456277 | U69: 225.8115 | V69: 350.7980787 | W69: 1406.248905 | X69: 1814.465018 | Y69: 14.16443965 | Z69: 2567.521714 | AA69: 225.8115 | AB69: 347.2900979 | AC69: 1392.186416 | AD69: 1796.320368 | AE69: 14.21968097 | AF69: 2541.846497 | AG69: 225.8115
A70: 44 | B70: 2 | C70: LDNO HV: LV HH Metered | D70: 4260.096819 | E70: 18802.33796 | F70: 26301.19828 | G70: 103 | H70: 32190.17166 | I70: 1419.72137 | J70: 4217.495851 | K70: 18614.31458 | L70: 26038.1863 | M70: 103.4017 | N70: 31868.26995 | O70: 1419.72137 | P70: 4175.320892 | Q70: 18428.17143 | R70: 25777.80444 | S70: 103.8049666 | T70: 31549.58725 | U70: 1419.72137 | V70: 4133.567684 | W70: 18243.88972 | X70: 25520.02639 | Y70: 104.209806 | Z70: 31234.09137 | AA70: 1419.72137 | AB70: 4092.232007 | AC70: 18061.45082 | AD70: 25264.82613 | AE70: 104.6162242 | AF70: 30921.75046 | AG70: 1419.72137
A71: 45 | C71: > LV Sub HH Metered | J71: 0 | K71: 0 | L71: 0 | M71: 0 | N71: 0 | O71: 0 | P71: 0 | Q71: 0 | R71: 0 | S71: 0 | T71: 0 | U71: 0 | V71: 0 | W71: 0 | X71: 0 | Y71: 0 | Z71: 0 | AA71: 0 | AB71: 0 | AC71: 0 | AD71: 0 | AE71: 0 | AF71: 0 | AG71: 0
A72: 46 | B72: 2 | C72: LV Sub HH Metered | D72: 136748.2527 | E72: 496870.2637 | F72: 664276.6984 | G72: 2212 | H72: 761063.6018 | I72: 114518.556 | J72: 135380.7701 | K72: 491901.5611 | L72: 657633.9315 | M72: 2220.6268 | N72: 753452.9658 | O72: 114518.556 | P72: 134026.9624 | Q72: 486982.5455 | R72: 651057.5921 | S72: 2229.287245 | T72: 745918.4361 | U72: 114518.556 | V72: 132686.6928 | W72: 482112.72 | X72: 644547.0162 | Y72: 2237.981465 | Z72: 738459.2518 | AA72: 114518.556 | AB72: 131359.8259 | AC72: 477291.5928 | AD72: 638101.5461 | AE72: 2246.709592 | AF72: 731074.6593 | AG72: 114518.556
A73: 47 | B73: 2 | C73: LDNO HV: LV Sub HH Metered | D73: 55.898 | E73: 263.531 | F73: 372.9865 | G73: 3 | H73: 1283.550564 | I73: 2.403 | J73: 55.33902 | K73: 260.89569 | L73: 369.256635 | M73: 3.0117 | N73: 1270.715058 | O73: 2.403 | P73: 54.7856298 | Q73: 258.2867331 | R73: 365.5640686 | S73: 3.02344563 | T73: 1258.007908 | U73: 2.403 | V73: 54.2377735 | W73: 255.7038658 | X73: 361.908428 | Y73: 3.035237068 | Z73: 1245.427829 | AA73: 2.403 | AB73: 53.69539577 | AC73: 253.1468271 | AD73: 358.2893437 | AE73: 3.047074493 | AF73: 1232.97355 | AG73: 2.403
A74: 48 | C74: > HV HH Metered | J74: =IF(D74,((VLOOKUP($B74,$E$7:$AE$16,4)+1)*D74),) -> 0 | K74: =IF(E74,((VLOOKUP($B74,$E$7:$AE$16,8)+1)*E74),) -> 0 | L74: =IF(F74,((VLOOKUP($B74,$E$7:$AE$16,12)+1)*F74),) -> 0 | M74: =IF(G74,((VLOOKUP($B74,$E$7:$AE$16,16)+1)*G74),) -> 0 | N74: =IF(H74,((VLOOKUP($B74,$E$7:$AE$16,20)+1)*H74),) -> 0 | O74: =IF(I74,((VLOOKUP($B74,$E$7:$AE$16,24)+1)*I74),) -> 0 | P74: =IF(D74,((VLOOKUP($B74,$E$7:$AE$16,5)+1)*J74),) -> 0 | Q74: =IF(E74,((VLOOKUP($B74,$E$7:$AE$16,5+4)+1)*K74),) -> 0 | R74: =IF(F74,((VLOOKUP($B74,$E$7:$AE$16,5+8)+1)*L74),) -> 0 | S74: =IF(G74,((VLOOKUP($B74,$E$7:$AE$16,5+12)+1)*M74),) -> 0 | T74: =IF(H74,((VLOOKUP($B74,$E$7:$AE$16,5+16)+1)*N74),) -> 0 | U74: =IF(I74,((VLOOKUP($B74,$E$7:$AE$16,5+20)+1)*O74),) -> 0 | V74: =IF(D74,((VLOOKUP($B74,$E$7:$AE$16,6)+1)*P74),) -> 0 | W74: =IF(E74,((VLOOKUP($B74,$E$7:$AE$16,6+4)+1)*Q74),) -> 0 | X74: =IF(F74,((VLOOKUP($B74,$E$7:$AE$16,6+8)+1)*R74),) -> 0 | Y74: =IF(G74,((VLOOKUP($B74,$E$7:$AE$16,6+12)+1)*S74),) -> 0 | Z74: =IF(H74,((VLOOKUP($B74,$E$7:$AE$16,6+16)+1)*T74),) -> 0 | AA74: =IF(I74,((VLOOKUP($B74,$E$7:$AE$16,6+20)+1)*U74),) -> 0 | AB74: =IF(D74,((VLOOKUP($B74,$E$7:$AE$16,7)+1)*V74),) -> 0 | AC74: =IF(E74,((VLOOKUP($B74,$E$7:$AE$16,7+4)+1)*W74),) -> 0 | AD74: =IF(F74,((VLOOKUP($B74,$E$7:$AE$16,7+8)+1)*X74),) -> 0 | AE74: =IF(G74,((VLOOKUP($B74,$E$7:$AE$16,7+12)+1)*Y74),) -> 0 | AF74: =IF(H74,((VLOOKUP($B74,$E$7:$AE$16,7+16)+1)*Z74),) -> 0 | AG74: =IF(I74,((VLOOKUP($B74,$E$7:$AE$16,7+20)+1)*AA74),) -> 0
A75: 49 | B75: 2 | C75: HV HH Metered | D75: 509012.1883 | E75: 1735465.954 | F75: 2850377.001 | G75: 2113 | H75: 1827943.009 | I75: 388553.7762 | J75: 503922.0664 | K75: 1718111.295 | L75: 2821873.231 | M75: 2121.2407 | N75: 1809663.578 | O75: 388553.7762 | P75: 498882.8458 | Q75: 1700930.182 | R75: 2793654.499 | S75: 2129.513539 | T75: 1791566.943 | U75: 388553.7762 | V75: 493894.0173 | W75: 1683920.88 | X75: 2765717.954 | Y75: 2137.818642 | Z75: 1773651.273 | AA75: 388553.7762 | AB75: 488955.0771 | AC75: 1667081.671 | AD75: 2738060.774 | AE75: 2146.156134 | AF75: 1755914.761 | AG75: 388553.7762
A76: 50 | B76: 2 | C76: LDNO HV: HV HH Metered | D76: 1687.666718 | E76: 7361.053297 | F76: 13066.88076 | G76: 9 | H76: 14521.48613 | I76: 78.66968 | J76: 1670.79005 | K76: 7287.442764 | L76: 12936.21195 | M76: 9.0351 | N76: 14376.27127 | O76: 78.66968 | P76: 1654.08215 | Q76: 7214.568337 | R76: 12806.84983 | S76: 9.07033689 | T76: 14232.50856 | U76: 78.66968 | V76: 1637.541328 | W76: 7142.422653 | X76: 12678.78133 | Y76: 9.105711204 | Z76: 14090.18347 | AA76: 78.66968 | AB76: 1621.165915 | AC76: 7070.998427 | AD76: 12551.99352 | AE76: 9.141223478 | AF76: 13949.28164 | AG76: 78.66968
A77: 51 | C77: > NHH UMS category A | J77: 0 | K77: 0 | L77: 0 | M77: 0 | N77: 0 | O77: 0 | P77: 0 | Q77: 0 | R77: 0 | S77: 0 | T77: 0 | U77: 0 | V77: 0 | W77: 0 | X77: 0 | Y77: 0 | Z77: 0 | AA77: 0 | AB77: 0 | AC77: 0 | AD77: 0 | AE77: 0 | AF77: 0 | AG77: 0
A78: 52 | B78: 1 | C78: NHH UMS category A | D78: 36671.23271 | G78: 244 | J78: 36304.52038 | K78: 0 | L78: 0 | M78: 244.9516 | N78: 0 | O78: 0 | P78: 35941.47518 | Q78: 0 | R78: 0 | S78: 245.9069112 | T78: 0 | U78: 0 | V78: 35582.06043 | W78: 0 | X78: 0 | Y78: 246.8659482 | Z78: 0 | AA78: 0 | AB78: 35226.23982 | AC78: 0 | AD78: 0 | AE78: 247.8287254 | AF78: 0 | AG78: 0
A79: 53 | B79: 1 | C79: LDNO LV: NHH UMS category A | D79: 0 | G79: 0 | J79: 0 | K79: 0 | L79: 0 | M79: 0 | N79: 0 | O79: 0 | P79: 0 | Q79: 0 | R79: 0 | S79: 0 | T79: 0 | U79: 0 | V79: 0 | W79: 0 | X79: 0 | Y79: 0 | Z79: 0 | AA79: 0 | AB79: 0 | AC79: 0 | AD79: 0 | AE79: 0 | AF79: 0 | AG79: 0
A80: 54 | B80: 1 | C80: LDNO HV: NHH UMS category A | D80: 0 | G80: 0 | J80: 0 | K80: 0 | L80: 0 | M80: 0 | N80: 0 | O80: 0 | P80: 0 | Q80: 0 | R80: 0 | S80: 0 | T80: 0 | U80: 0 | V80: 0 | W80: 0 | X80: 0 | Y80: 0 | Z80: 0 | AA80: 0 | AB80: 0 | AC80: 0 | AD80: 0 | AE80: 0 | AF80: 0 | AG80: 0
A81: 55 | C81: > NHH UMS category B | J81: 0 | K81: 0 | L81: 0 | M81: 0 | N81: 0 | O81: 0 | P81: 0 | Q81: 0 | R81: 0 | S81: 0 | T81: 0 | U81: 0 | V81: 0 | W81: 0 | X81: 0 | Y81: 0 | Z81: 0 | AA81: 0 | AB81: 0 | AC81: 0 | AD81: 0 | AE81: 0 | AF81: 0 | AG81: 0
A82: 56 | B82: 1 | C82: NHH UMS category B | D82: 9979.077425 | G82: 314 | J82: 9879.286651 | K82: 0 | L82: 0 | M82: 315.2246 | N82: 0 | O82: 0 | P82: 9780.493785 | Q82: 0 | R82: 0 | S82: 316.4539759 | T82: 0 | U82: 0 | V82: 9682.688847 | W82: 0 | X82: 0 | Y82: 317.6881464 | Z82: 0 | AA82: 0 | AB82: 9585.861958 | AC82: 0 | AD82: 0 | AE82: 318.9271302 | AF82: 0 | AG82: 0
A83: 57 | B83: 1 | C83: LDNO LV: NHH UMS category B | D83: 149.5019649 | G83: 61 | J83: 148.0069452 | K83: 0 | L83: 0 | M83: 61.2379 | N83: 0 | O83: 0 | P83: 146.5268758 | Q83: 0 | R83: 0 | S83: 61.47672781 | T83: 0 | U83: 0 | V83: 145.061607 | W83: 0 | X83: 0 | Y83: 61.71648705 | Z83: 0 | AA83: 0 | AB83: 143.6109909 | AC83: 0 | AD83: 0 | AE83: 61.95718135 | AF83: 0 | AG83: 0
A84: 58 | B84: 1 | C84: LDNO HV: NHH UMS category B | D84: 173.1893333 | G84: 16 | J84: 171.45744 | K84: 0 | L84: 0 | M84: 16.0624 | N84: 0 | O84: 0 | P84: 169.7428656 | Q84: 0 | R84: 0 | S84: 16.12504336 | T84: 0 | U84: 0 | V84: 168.0454369 | W84: 0 | X84: 0 | Y84: 16.18793103 | Z84: 0 | AA84: 0 | AB84: 166.3649826 | AC84: 0 | AD84: 0 | AE84: 16.25106396 | AF84: 0 | AG84: 0
A85: 59 | C85: > NHH UMS category C | J85: 0 | K85: 0 | L85: 0 | M85: 0 | N85: 0 | O85: 0 | P85: 0 | Q85: 0 | R85: 0 | S85: 0 | T85: 0 | U85: 0 | V85: 0 | W85: 0 | X85: 0 | Y85: 0 | Z85: 0 | AA85: 0 | AB85: 0 | AC85: 0 | AD85: 0 | AE85: 0 | AF85: 0 | AG85: 0
A86: 60 | B86: 1 | C86: NHH UMS category C | D86: 265.8081874 | G86: 7 | J86: 263.1501055 | K86: 0 | L86: 0 | M86: 7.0273 | N86: 0 | O86: 0 | P86: 260.5186045 | Q86: 0 | R86: 0 | S86: 7.05470647 | T86: 0 | U86: 0 | V86: 257.9134184 | W86: 0 | X86: 0 | Y86: 7.082219825 | Z86: 0 | AA86: 0 | AB86: 255.3342842 | AC86: 0 | AD86: 0 | AE86: 7.109840483 | AF86: 0 | AG86: 0
A87: 61 | B87: 1 | C87: LDNO LV: NHH UMS category C | D87: 0 | G87: 0 | J87: 0 | K87: 0 | L87: 0 | M87: 0 | N87: 0 | O87: 0 | P87: 0 | Q87: 0 | R87: 0 | S87: 0 | T87: 0 | U87: 0 | V87: 0 | W87: 0 | X87: 0 | Y87: 0 | Z87: 0 | AA87: 0 | AB87: 0 | AC87: 0 | AD87: 0 | AE87: 0 | AF87: 0 | AG87: 0
A88: 62 | B88: 1 | C88: LDNO HV: NHH UMS category C | D88: 0 | G88: 0 | J88: 0 | K88: 0 | L88: 0 | M88: 0 | N88: 0 | O88: 0 | P88: 0 | Q88: 0 | R88: 0 | S88: 0 | T88: 0 | U88: 0 | V88: 0 | W88: 0 | X88: 0 | Y88: 0 | Z88: 0 | AA88: 0 | AB88: 0 | AC88: 0 | AD88: 0 | AE88: 0 | AF88: 0 | AG88: 0
A89: 63 | C89: > NHH UMS category D | J89: 0 | K89: 0 | L89: 0 | M89: 0 | N89: 0 | O89: 0 | P89: 0 | Q89: 0 | R89: 0 | S89: 0 | T89: 0 | U89: 0 | V89: 0 | W89: 0 | X89: 0 | Y89: 0 | Z89: 0 | AA89: 0 | AB89: 0 | AC89: 0 | AD89: 0 | AE89: 0 | AF89: 0 | AG89: 0
A90: 64 | B90: 1 | C90: NHH UMS category D | D90: 0.07863787515 | G90: 1 | J90: 0.0778514964 | K90: 0 | L90: 0 | M90: 1.0039 | N90: 0 | O90: 0 | P90: 0.07707298143 | Q90: 0 | R90: 0 | S90: 1.00781521 | T90: 0 | U90: 0 | V90: 0.07630225162 | W90: 0 | X90: 0 | Y90: 1.011745689 | Z90: 0 | AA90: 0 | AB90: 0.0755392291 | AC90: 0 | AD90: 0 | AE90: 1.015691498 | AF90: 0 | AG90: 0
A91: 65 | B91: 1 | C91: LDNO LV: NHH UMS category D | D91: 0 | G91: 0 | J91: 0 | K91: 0 | L91: 0 | M91: 0 | N91: 0 | O91: 0 | P91: 0 | Q91: 0 | R91: 0 | S91: 0 | T91: 0 | U91: 0 | V91: 0 | W91: 0 | X91: 0 | Y91: 0 | Z91: 0 | AA91: 0 | AB91: 0 | AC91: 0 | AD91: 0 | AE91: 0 | AF91: 0 | AG91: 0
A92: 66 | B92: 1 | C92: LDNO HV: NHH UMS category D | D92: 0 | G92: 0 | J92: 0 | K92: 0 | L92: 0 | M92: 0 | N92: 0 | O92: 0 | P92: 0 | Q92: 0 | R92: 0 | S92: 0 | T92: 0 | U92: 0 | V92: 0 | W92: 0 | X92: 0 | Y92: 0 | Z92: 0 | AA92: 0 | AB92: 0 | AC92: 0 | AD92: 0 | AE92: 0 | AF92: 0 | AG92: 0
A93: =A92+1 -> 67 | C93: > LV UMS (Pseudo HH Metered) | J93: 0 | K93: 0 | L93: 0 | M93: 0 | N93: 0 | O93: 0 | P93: 0 | Q93: 0 | R93: 0 | S93: 0 | T93: 0 | U93: 0 | V93: 0 | W93: 0 | X93: 0 | Y93: 0 | Z93: 0 | AA93: 0 | AB93: 0 | AC93: 0 | AD93: 0 | AE93: 0 | AF93: 0 | AG93: 0
A94: 68 | B94: 2 | C94: LV UMS (Pseudo HH Metered) | D94: 14294.45497 | E94: 32942.96692 | F94: 213416.9559 | G94: 23 | J94: 14151.51042 | K94: 32613.53725 | L94: 211282.7864 | M94: 23.0897 | N94: 0 | O94: 0 | P94: 14009.99532 | Q94: 32287.40188 | R94: 209169.9585 | S94: 23.17974983 | T94: 0 | U94: 0 | V94: 13869.89536 | W94: 31964.52786 | X94: 207078.2589 | Y94: 23.27015085 | Z94: 0 | AA94: 0 | AB94: 13731.19641 | AC94: 31644.88258 | AD94: 205007.4763 | AE94: 23.36090444 | AF94: 0 | AG94: 0
A95: 69 | B95: 2 | C95: LDNO LV: LV UMS (Pseudo HH Metered) | D95: 0 | E95: 0 | F95: 0 | G95: 0 | J95: 0 | K95: 0 | L95: 0 | M95: 0 | N95: 0 | O95: 0 | P95: 0 | Q95: 0 | R95: 0 | S95: 0 | T95: 0 | U95: 0 | V95: 0 | W95: 0 | X95: 0 | Y95: 0 | Z95: 0 | AA95: 0 | AB95: 0 | AC95: 0 | AD95: 0 | AE95: 0 | AF95: 0 | AG95: 0
A96: 70 | B96: 2 | C96: LDNO HV: LV UMS (Pseudo HH Metered) | D96: 0 | E96: 0 | F96: 0 | G96: 0 | J96: 0 | K96: 0 | L96: 0 | M96: 0 | N96: 0 | O96: 0 | P96: 0 | Q96: 0 | R96: 0 | S96: 0 | T96: 0 | U96: 0 | V96: 0 | W96: 0 | X96: 0 | Y96: 0 | Z96: 0 | AA96: 0 | AB96: 0 | AC96: 0 | AD96: 0 | AE96: 0 | AF96: 0 | AG96: 0
A97: 71 | C97: > LV Generation NHH or Aggregate HH | J97: 0 | K97: 0 | L97: 0 | M97: 0 | N97: 0 | O97: 0 | P97: 0 | Q97: 0 | R97: 0 | S97: 0 | T97: 0 | U97: 0 | V97: 0 | W97: 0 | X97: 0 | Y97: 0 | Z97: 0 | AA97: 0 | AB97: 0 | AC97: 0 | AD97: 0 | AE97: 0 | AF97: 0 | AG97: 0
A98: 72 | B98: 4 | C98: LV Generation NHH or Aggregate HH | D98: 762.5555429 | G98: 61 | J98: 770.1810983 | K98: 0 | L98: 0 | M98: 61.2379 | N98: 0 | O98: 0 | P98: 777.8829093 | Q98: 0 | R98: 0 | S98: 61.47672781 | T98: 0 | U98: 0 | V98: 785.6617384 | W98: 0 | X98: 0 | Y98: 61.71648705 | Z98: 0 | AA98: 0 | AB98: 793.5183558 | AC98: 0 | AD98: 0 | AE98: 61.95718135 | AF98: 0 | AG98: 0
A99: 73 | B99: 4 | C99: LDNO LV: LV Generation NHH or Aggregate HH | D99: 0 | G99: 0 | J99: 0 | K99: 0 | L99: 0 | M99: 0 | N99: 0 | O99: 0 | P99: 0 | Q99: 0 | R99: 0 | S99: 0 | T99: 0 | U99: 0 | V99: 0 | W99: 0 | X99: 0 | Y99: 0 | Z99: 0 | AA99: 0 | AB99: 0 | AC99: 0 | AD99: 0 | AE99: 0 | AF99: 0 | AG99: 0
A100: 74 | B100: 4 | C100: LDNO HV: LV Generation NHH or Aggregate HH | D100: 0 | G100: 0 | J100: 0 | K100: 0 | L100: 0 | M100: 0 | N100: 0 | O100: 0 | P100: 0 | Q100: 0 | R100: 0 | S100: 0 | T100: 0 | U100: 0 | V100: 0 | W100: 0 | X100: 0 | Y100: 0 | Z100: 0 | AA100: 0 | AB100: 0 | AC100: 0 | AD100: 0 | AE100: 0 | AF100: 0 | AG100: 0
A101: 75 | C101: > LV Sub Generation NHH | J101: 0 | K101: 0 | L101: 0 | M101: 0 | N101: 0 | O101: 0 | P101: 0 | Q101: 0 | R101: 0 | S101: 0 | T101: 0 | U101: 0 | V101: 0 | W101: 0 | X101: 0 | Y101: 0 | Z101: 0 | AA101: 0 | AB101: 0 | AC101: 0 | AD101: 0 | AE101: 0 | AF101: 0 | AG101: 0
A102: 76 | B102: 4 | C102: LV Sub Generation NHH | D102: 0 | G102: 0 | J102: 0 | K102: 0 | L102: 0 | M102: 0 | N102: 0 | O102: 0 | P102: 0 | Q102: 0 | R102: 0 | S102: 0 | T102: 0 | U102: 0 | V102: 0 | W102: 0 | X102: 0 | Y102: 0 | Z102: 0 | AA102: 0 | AB102: 0 | AC102: 0 | AD102: 0 | AE102: 0 | AF102: 0 | AG102: 0
A103: 77 | B103: 4 | C103: LDNO HV: LV Sub Generation NHH | D103: 0 | G103: 0 | J103: 0 | K103: 0 | L103: 0 | M103: 0 | N103: 0 | O103: 0 | P103: 0 | Q103: 0 | R103: 0 | S103: 0 | T103: 0 | U103: 0 | V103: 0 | W103: 0 | X103: 0 | Y103: 0 | Z103: 0 | AA103: 0 | AB103: 0 | AC103: 0 | AD103: 0 | AE103: 0 | AF103: 0 | AG103: 0
A104: 78 | C104: > LV Generation Intermittent | J104: 0 | K104: 0 | L104: 0 | M104: 0 | N104: 0 | O104: 0 | P104: 0 | Q104: 0 | R104: 0 | S104: 0 | T104: 0 | U104: 0 | V104: 0 | W104: 0 | X104: 0 | Y104: 0 | Z104: 0 | AA104: 0 | AB104: 0 | AC104: 0 | AD104: 0 | AE104: 0 | AF104: 0 | AG104: 0
A105: 79 | B105: 4 | C105: LV Generation Intermittent | D105: 29085.81854 | G105: 203 | I105: 1127.6162 | J105: 29376.67673 | K105: 0 | L105: 0 | M105: 203.7917 | N105: 0 | O105: 1127.6162 | P105: 29670.4435 | Q105: 0 | R105: 0 | S105: 204.5864876 | T105: 0 | U105: 1127.6162 | V105: 29967.14793 | W105: 0 | X105: 0 | Y105: 205.3843749 | Z105: 0 | AA105: 1127.6162 | AB105: 30266.81941 | AC105: 0 | AD105: 0 | AE105: 206.185374 | AF105: 0 | AG105: 1127.6162
A106: 80 | B106: 4 | C106: LDNO LV: LV Generation Intermittent | D106: 0 | G106: 0 | I106: 0 | J106: =IF(D106,((VLOOKUP($B106,$E$7:$AE$16,4)+1)*D106),) -> 0 | K106: =IF(E106,((VLOOKUP($B106,$E$7:$AE$16,8)+1)*E106),) -> 0 | L106: =IF(F106,((VLOOKUP($B106,$E$7:$AE$16,12)+1)*F106),) -> 0 | M106: =IF(G106,((VLOOKUP($B106,$E$7:$AE$16,16)+1)*G106),) -> 0 | N106: =IF(H106,((VLOOKUP($B106,$E$7:$AE$16,20)+1)*H106),) -> 0 | O106: =IF(I106,((VLOOKUP($B106,$E$7:$AE$16,24)+1)*I106),) -> 0 | P106: =IF(D106,((VLOOKUP($B106,$E$7:$AE$16,5)+1)*J106),) -> 0 | Q106: =IF(E106,((VLOOKUP($B106,$E$7:$AE$16,5+4)+1)*K106),) -> 0 | R106: =IF(F106,((VLOOKUP($B106,$E$7:$AE$16,5+8)+1)*L106),) -> 0 | S106: =IF(G106,((VLOOKUP($B106,$E$7:$AE$16,5+12)+1)*M106),) -> 0 | T106: =IF(H106,((VLOOKUP($B106,$E$7:$AE$16,5+16)+1)*N106),) -> 0 | U106: =IF(I106,((VLOOKUP($B106,$E$7:$AE$16,5+20)+1)*O106),) -> 0 | V106: =IF(D106,((VLOOKUP($B106,$E$7:$AE$16,6)+1)*P106),) -> 0 | W106: =IF(E106,((VLOOKUP($B106,$E$7:$AE$16,6+4)+1)*Q106),) -> 0 | X106: =IF(F106,((VLOOKUP($B106,$E$7:$AE$16,6+8)+1)*R106),) -> 0 | Y106: =IF(G106,((VLOOKUP($B106,$E$7:$AE$16,6+12)+1)*S106),) -> 0 | Z106: =IF(H106,((VLOOKUP($B106,$E$7:$AE$16,6+16)+1)*T106),) -> 0 | AA106: =IF(I106,((VLOOKUP($B106,$E$7:$AE$16,6+20)+1)*U106),) -> 0 | AB106: =IF(D106,((VLOOKUP($B106,$E$7:$AE$16,7)+1)*V106),) -> 0 | AC106: =IF(E106,((VLOOKUP($B106,$E$7:$AE$16,7+4)+1)*W106),) -> 0 | AD106: =IF(F106,((VLOOKUP($B106,$E$7:$AE$16,7+8)+1)*X106),) -> 0 | AE106: =IF(G106,((VLOOKUP($B106,$E$7:$AE$16,7+12)+1)*Y106),) -> 0 | AF106: =IF(H106,((VLOOKUP($B106,$E$7:$AE$16,7+16)+1)*Z106),) -> 0 | AG106: =IF(I106,((VLOOKUP($B106,$E$7:$AE$16,7+20)+1)*AA106),) -> 0
A107: 81 | B107: 4 | C107: LDNO HV: LV Generation Intermittent | D107: 0 | G107: 0 | I107: 0 | J107: 0 | K107: 0 | L107: 0 | M107: 0 | N107: 0 | O107: 0 | P107: 0 | Q107: 0 | R107: 0 | S107: 0 | T107: 0 | U107: 0 | V107: 0 | W107: 0 | X107: 0 | Y107: 0 | Z107: 0 | AA107: 0 | AB107: 0 | AC107: 0 | AD107: 0 | AE107: 0 | AF107: 0 | AG107: 0
A108: 82 | C108: > LV Generation Non-Intermittent | J108: 0 | K108: 0 | L108: 0 | M108: 0 | N108: 0 | O108: 0 | P108: 0 | Q108: 0 | R108: 0 | S108: 0 | T108: 0 | U108: 0 | V108: 0 | W108: 0 | X108: 0 | Y108: 0 | Z108: 0 | AA108: 0 | AB108: 0 | AC108: 0 | AD108: 0 | AE108: 0 | AF108: 0 | AG108: 0
A109: 83 | B109: 4 | C109: LV Generation Non-Intermittent | D109: 185.2772293 | E109: 727.6203214 | F109: 1587.459123 | G109: 21 | I109: 47.8726 | J109: 187.1300016 | K109: 734.8965246 | L109: 1603.333714 | M109: 21.0819 | N109: 0 | O109: 47.8726 | P109: 189.0013016 | Q109: 742.2454898 | R109: 1619.367051 | S109: 21.16411941 | T109: 0 | U109: 47.8726 | V109: 190.8913146 | W109: 749.6679447 | X109: 1635.560721 | Y109: 21.24665948 | Z109: 0 | AA109: 47.8726 | AB109: 192.8002278 | AC109: 757.1646242 | AD109: 1651.916329 | AE109: 21.32952145 | AF109: 0 | AG109: 47.8726
A110: 84 | B110: 4 | C110: LDNO LV: LV Generation Non-Intermittent | D110: 4.1045 | E110: 21.0403 | F110: 11.5663 | G110: 2 | I110: 1.6612 | J110: 4.145545 | K110: 21.250703 | L110: 11.681963 | M110: 2.0078 | N110: 0 | O110: 1.6612 | P110: 4.18700045 | Q110: 21.46321003 | R110: 11.79878263 | S110: 2.01563042 | T110: 0 | U110: 1.6612 | V110: 4.228870454 | W110: 21.67784213 | X110: 11.91677046 | Y110: 2.023491379 | Z110: 0 | AA110: 1.6612 | AB110: 4.271159159 | AC110: 21.89462055 | AD110: 12.03593816 | AE110: 2.031382995 | AF110: 0 | AG110: 1.6612
A111: 85 | B111: 4 | C111: LDNO HV: LV Generation Non-Intermittent | D111: 0 | E111: 0 | F111: 0 | G111: 0 | I111: 0 | J111: 0 | K111: 0 | L111: 0 | M111: 0 | N111: 0 | O111: 0 | P111: 0 | Q111: 0 | R111: 0 | S111: 0 | T111: 0 | U111: 0 | V111: 0 | W111: 0 | X111: 0 | Y111: 0 | Z111: 0 | AA111: 0 | AB111: 0 | AC111: 0 | AD111: 0 | AE111: 0 | AF111: 0 | AG111: 0
A112: 86 | C112: > LV Sub Generation Intermittent | J112: 0 | K112: 0 | L112: 0 | M112: 0 | N112: 0 | O112: 0 | P112: 0 | Q112: 0 | R112: 0 | S112: 0 | T112: 0 | U112: 0 | V112: 0 | W112: 0 | X112: 0 | Y112: 0 | Z112: 0 | AA112: 0 | AB112: 0 | AC112: 0 | AD112: 0 | AE112: 0 | AF112: 0 | AG112: 0
A113: 87 | B113: 4 | C113: LV Sub Generation Intermittent | D113: 1410.54147 | G113: 24 | I113: 35.7122 | J113: 1424.646885 | K113: 0 | L113: 0 | M113: 24.0936 | N113: 0 | O113: 35.7122 | P113: 1438.893354 | Q113: 0 | R113: 0 | S113: 24.18756504 | T113: 0 | U113: 35.7122 | V113: 1453.282287 | W113: 0 | X113: 0 | Y113: 24.28189654 | Z113: 0 | AA113: 35.7122 | AB113: 1467.81511 | AC113: 0 | AD113: 0 | AE113: 24.37659594 | AF113: 0 | AG113: 35.7122
A114: 88 | B114: 4 | C114: LDNO HV: LV Sub Generation Intermittent | D114: 0 | G114: 0 | I114: 0 | J114: 0 | K114: 0 | L114: 0 | M114: 0 | N114: 0 | O114: 0 | P114: 0 | Q114: 0 | R114: 0 | S114: 0 | T114: 0 | U114: 0 | V114: 0 | W114: 0 | X114: 0 | Y114: 0 | Z114: 0 | AA114: 0 | AB114: 0 | AC114: 0 | AD114: 0 | AE114: 0 | AF114: 0 | AG114: 0
A115: 89 | C115: > LV Sub Generation Non-Intermittent | J115: 0 | K115: 0 | L115: 0 | M115: 0 | N115: 0 | O115: 0 | P115: 0 | Q115: 0 | R115: 0 | S115: 0 | T115: 0 | U115: 0 | V115: 0 | W115: 0 | X115: 0 | Y115: 0 | Z115: 0 | AA115: 0 | AB115: 0 | AC115: 0 | AD115: 0 | AE115: 0 | AF115: 0 | AG115: 0
A116: 90 | B116: 4 | C116: LV Sub Generation Non-Intermittent | D116: 40.4072 | E116: 74.7668 | F116: 276.0731 | G116: 9 | I116: 485.7572 | J116: =IF(D116,((VLOOKUP($B116,$E$7:$AE$16,4)+1)*D116),) -> 40.811272 | K116: =IF(E116,((VLOOKUP($B116,$E$7:$AE$16,8)+1)*E116),) -> 75.514468 | L116: =IF(F116,((VLOOKUP($B116,$E$7:$AE$16,12)+1)*F116),) -> 278.833831 | M116: =IF(G116,((VLOOKUP($B116,$E$7:$AE$16,16)+1)*G116),) -> 9.0351 | N116: =IF(H116,((VLOOKUP($B116,$E$7:$AE$16,20)+1)*H116),) -> 0 | O116: =IF(I116,((VLOOKUP($B116,$E$7:$AE$16,24)+1)*I116),) -> 485.7572 | P116: =IF(D116,((VLOOKUP($B116,$E$7:$AE$16,5)+1)*J116),) -> 41.21938472 | Q116: =IF(E116,((VLOOKUP($B116,$E$7:$AE$16,5+4)+1)*K116),) -> 76.26961268 | R116: =IF(F116,((VLOOKUP($B116,$E$7:$AE$16,5+8)+1)*L116),) -> 281.6221693 | S116: =IF(G116,((VLOOKUP($B116,$E$7:$AE$16,5+12)+1)*M116),) -> 9.07033689 | T116: =IF(H116,((VLOOKUP($B116,$E$7:$AE$16,5+16)+1)*N116),) -> 0 | U116: =IF(I116,((VLOOKUP($B116,$E$7:$AE$16,5+20)+1)*O116),) -> 485.7572 | V116: =IF(D116,((VLOOKUP($B116,$E$7:$AE$16,6)+1)*P116),) -> 41.63157857 | W116: =IF(E116,((VLOOKUP($B116,$E$7:$AE$16,6+4)+1)*Q116),) -> 77.03230881 | X116: =IF(F116,((VLOOKUP($B116,$E$7:$AE$16,6+8)+1)*R116),) -> 284.438391 | Y116: =IF(G116,((VLOOKUP($B116,$E$7:$AE$16,6+12)+1)*S116),) -> 9.105711204 | Z116: =IF(H116,((VLOOKUP($B116,$E$7:$AE$16,6+16)+1)*T116),) -> 0 | AA116: =IF(I116,((VLOOKUP($B116,$E$7:$AE$16,6+20)+1)*U116),) -> 485.7572 | AB116: =IF(D116,((VLOOKUP($B116,$E$7:$AE$16,7)+1)*V116),) -> 42.04789435 | AC116: =IF(E116,((VLOOKUP($B116,$E$7:$AE$16,7+4)+1)*W116),) -> 77.80263189 | AD116: =IF(F116,((VLOOKUP($B116,$E$7:$AE$16,7+8)+1)*X116),) -> 287.2827749 | AE116: =IF(G116,((VLOOKUP($B116,$E$7:$AE$16,7+12)+1)*Y116),) -> 9.141223478 | AF116: =IF(H116,((VLOOKUP($B116,$E$7:$AE$16,7+16)+1)*Z116),) -> 0 | AG116: =IF(I116,((VLOOKUP($B116,$E$7:$AE$16,7+20)+1)*AA116),) -> 485.7572
A117: 91 | B117: 4 | C117: LDNO HV: LV Sub Generation Non-Intermittent | D117: 0 | E117: 0 | F117: 0 | G117: 0 | I117: 0 | J117: 0 | K117: 0 | L117: 0 | M117: 0 | N117: 0 | O117: 0 | P117: 0 | Q117: 0 | R117: 0 | S117: 0 | T117: 0 | U117: 0 | V117: 0 | W117: 0 | X117: 0 | Y117: 0 | Z117: 0 | AA117: 0 | AB117: 0 | AC117: 0 | AD117: 0 | AE117: 0 | AF117: 0 | AG117: 0
A118: 92 | C118: > HV Generation Intermittent | J118: 0 | K118: 0 | L118: 0 | M118: 0 | N118: 0 | O118: 0 | P118: 0 | Q118: 0 | R118: 0 | S118: 0 | T118: 0 | U118: 0 | V118: 0 | W118: 0 | X118: 0 | Y118: 0 | Z118: 0 | AA118: 0 | AB118: 0 | AC118: 0 | AD118: 0 | AE118: 0 | AF118: 0 | AG118: 0
A119: 93 | B119: 4 | C119: HV Generation Intermittent | D119: 352888.2803 | G119: 136 | I119: 9441.6513 | J119: 356417.1631 | K119: 0 | L119: 0 | M119: 136.5304 | N119: 0 | O119: 9441.6513 | P119: 359981.3347 | Q119: 0 | R119: 0 | S119: 137.0628686 | T119: 0 | U119: 9441.6513 | V119: 363581.1481 | W119: 0 | X119: 0 | Y119: 137.5974137 | Z119: 0 | AA119: 9441.6513 | AB119: 367216.9595 | AC119: 0 | AD119: 0 | AE119: 138.1340437 | AF119: 0 | AG119: 9441.6513
A120: 94 | B120: 4 | C120: LDNO HV: HV Generation Intermittent | D120: 0 | G120: 0 | I120: 0 | J120: 0 | K120: 0 | L120: 0 | M120: 0 | N120: 0 | O120: 0 | P120: 0 | Q120: 0 | R120: 0 | S120: 0 | T120: 0 | U120: 0 | V120: 0 | W120: 0 | X120: 0 | Y120: 0 | Z120: 0 | AA120: 0 | AB120: 0 | AC120: 0 | AD120: 0 | AE120: 0 | AF120: 0 | AG120: 0
A121: 95 | C121: > HV Generation Non-Intermittent | J121: 0 | K121: 0 | L121: 0 | M121: 0 | N121: 0 | O121: 0 | P121: 0 | Q121: 0 | R121: 0 | S121: 0 | T121: 0 | U121: 0 | V121: 0 | W121: 0 | X121: 0 | Y121: 0 | Z121: 0 | AA121: 0 | AB121: 0 | AC121: 0 | AD121: 0 | AE121: 0 | AF121: 0 | AG121: 0
A122: 96 | B122: 4 | C122: HV Generation Non-Intermittent | D122: 41856.72196 | E122: 160926.1045 | F122: 333208.8975 | G122: 126 | I122: 12771.8207 | J122: =IF(D122,((VLOOKUP($B122,$E$7:$AE$16,4)+1)*D122),) -> 42275.28918 | K122: =IF(E122,((VLOOKUP($B122,$E$7:$AE$16,8)+1)*E122),) -> 162535.3655 | L122: =IF(F122,((VLOOKUP($B122,$E$7:$AE$16,12)+1)*F122),) -> 336540.9864 | M122: =IF(G122,((VLOOKUP($B122,$E$7:$AE$16,16)+1)*G122),) -> 126.4914 | N122: =IF(H122,((VLOOKUP($B122,$E$7:$AE$16,20)+1)*H122),) -> 0 | O122: =IF(I122,((VLOOKUP($B122,$E$7:$AE$16,24)+1)*I122),) -> 12771.8207 | P122: =IF(D122,((VLOOKUP($B122,$E$7:$AE$16,5)+1)*J122),) -> 42698.04208 | Q122: =IF(E122,((VLOOKUP($B122,$E$7:$AE$16,5+4)+1)*K122),) -> 164160.7192 | R122: =IF(F122,((VLOOKUP($B122,$E$7:$AE$16,5+8)+1)*L122),) -> 339906.3963 | S122: =IF(G122,((VLOOKUP($B122,$E$7:$AE$16,5+12)+1)*M122),) -> 126.9847165 | T122: =IF(H122,((VLOOKUP($B122,$E$7:$AE$16,5+16)+1)*N122),) -> 0 | U122: =IF(I122,((VLOOKUP($B122,$E$7:$AE$16,5+20)+1)*O122),) -> 12771.8207 | V122: =IF(D122,((VLOOKUP($B122,$E$7:$AE$16,6)+1)*P122),) -> 43125.0225 | W122: =IF(E122,((VLOOKUP($B122,$E$7:$AE$16,6+4)+1)*Q122),) -> 165802.3264 | X122: =IF(F122,((VLOOKUP($B122,$E$7:$AE$16,6+8)+1)*R122),) -> 343305.4603 | Y122: =IF(G122,((VLOOKUP($B122,$E$7:$AE$16,6+12)+1)*S122),) -> 127.4799569 | Z122: =IF(H122,((VLOOKUP($B122,$E$7:$AE$16,6+16)+1)*T122),) -> 0 | AA122: =IF(I122,((VLOOKUP($B122,$E$7:$AE$16,6+20)+1)*U122),) -> 12771.8207 | AB122: =IF(D122,((VLOOKUP($B122,$E$7:$AE$16,7)+1)*V122),) -> 43556.27272 | AC122: =IF(E122,((VLOOKUP($B122,$E$7:$AE$16,7+4)+1)*W122),) -> 167460.3497 | AD122: =IF(F122,((VLOOKUP($B122,$E$7:$AE$16,7+8)+1)*X122),) -> 346738.5149 | AE122: =IF(G122,((VLOOKUP($B122,$E$7:$AE$16,7+12)+1)*Y122),) -> 127.9771287 | AF122: =IF(H122,((VLOOKUP($B122,$E$7:$AE$16,7+16)+1)*Z122),) -> 0 | AG122: =IF(I122,((VLOOKUP($B122,$E$7:$AE$16,7+20)+1)*AA122),) -> 12771.8207
A123: 97 | B123: 4 | C123: LDNO HV: HV Generation Non-Intermittent | D123: 0 | E123: 0 | F123: 0 | G123: 0 | I123: 0 | J123: 0 | K123: 0 | L123: 0 | M123: 0 | N123: 0 | O123: 0 | P123: 0 | Q123: 0 | R123: 0 | S123: 0 | T123: 0 | U123: 0 | V123: 0 | W123: 0 | X123: 0 | Y123: 0 | Z123: 0 | AA123: 0 | AB123: 0 | AC123: 0 | AD123: 0 | AE123: 0 | AF123: 0 | AG123: 0

Sheet CDCM Timebands
B2: CDCM Timebands
C4: 2017/18
C5: WD (incl. bank holidays) | D5: WE | E5: 2018/19 | F5: 2019/20 | G5: 2020/21 | H5: 2021/22
B6: Red | C6: 16:00 to 19:00 | E6: No change from 2017/18 | F6: No change from 2017/18 | G6: No change from 2017/18 | H6: No change from 2017/18
B8: Amber | C8: 09:00 to 16:00 | D8: 16:00 to 19:00
C9: 19:00 to 20:30
B11: Green | C11: 00:00 to 09:00 | D11: 00:00 to 16:00
C12: 20:30 to 24:00 | D12: 19:00 to 24:00
C14: 2017/18
C15: WD (incl. bank holidays) Nov to Feb | D15: WD (incl. bank holidays) Mar to Oct | E15: WE | F15: 2018/19 | G15: 2019/20 | H15: 2020/21 | I15: 2021/22
B16: Black | C16: 16:00 to 19:00 | F16: No change from 2017/18 | G16: No change from 2017/18 | H16: No change from 2017/18 | I16: No change from 2017/18
B18: Yellow | C18: 09:00 to 16:00 | D18: 09:00 to 20:30 | E18: 16:00 to 19:00
C19: 19:00 to 20:30
B21: Green | C21: 00:00 to 09:00 | D21: 00:00 to 09:00 | E21: 00:00 to 16:00
C22: 20:30 to 24:00 | D22: 20:30 to 24:00 | E22: 19:00 to 24:00

Sheet (Y)
A1: Input data (Y)
A4: 1000. Company, charging year, data version
B6: Company | C6: Year | D6: Version
A7: Company, charging year, data version | B7: =VLOOKUP(Vlookup!B7,'CDCM Forecast Data'!$A$14:$I$271,5,FALSE) -> ENWL | C7: =VLOOKUP(Vlookup!C7,'CDCM Forecast Data'!$A$14:$I$271,5,FALSE) -> 2017/18 | D7: =VLOOKUP(Vlookup!D7,'CDCM Forecast Data'!$A$14:$I$271,5,FALSE) -> v1
A9: 1010. Financial and general assumptions
A11: Sources: financial assumptions; calendar; network model.
A12: These financial assumptions determine the annuity rate applied to convert the asset values of the network model into an annual charge.
B13: Rate of return | C13: Annualisation period (years) | D13: Annuity proportion for customer-contributed assets | E13: Power factor | F13: Days in the charging period
A14: Financial and general assumptions | B14: =VLOOKUP(Vlookup!B14,'CDCM Forecast Data'!$A$14:$I$271,5,FALSE) -> 0.0417 | C14: =VLOOKUP(Vlookup!C14,'CDCM Forecast Data'!$A$14:$I$271,5,FALSE) -> 40 | E14: =VLOOKUP(Vlookup!E14,'CDCM Forecast Data'!$A$14:$I$271,5,FALSE) -> 0.95 | F14: =VLOOKUP(Vlookup!F14,'CDCM Forecast Data'!$A$14:$I$271,5,FALSE) -> 365
A16: 1017. Diversity allowance between top and bottom of network level
A18: Source: operational data analysis and/or network model.
A19: The diversity figure against GSP is the diversity between GSP Group (the whole system) and individual GSPs.
A20: The diversity figure against 132kV is the diversity between GSPs (the top of the 132kV network) and 132kV/EHV bulk supply points (the bottom of the 132kV network).
A21: The diversity figure against EHV is the diversity between 132kV/EHV bulk supply points (the top of the EHV network) and EHV/HV primary substations (the bottom of the EHV network).
A22: The diversity figure against HV is the diversity between EHV/HV primary substations (the top of the HV network) and HV/LV substations (the bottom of the HV network).
B23: Diversity allowance between top and bottom of network level
A24: GSPs | B24: =VLOOKUP(Vlookup!B24,'CDCM Forecast Data'!$A$14:$I$271,5,FALSE) -> 0.07420180118
A25: 132kV | B25: =VLOOKUP(Vlookup!B25,'CDCM Forecast Data'!$A$14:$I$271,5,FALSE) -> 0.04679205393
A26: 132kV/EHV
A27: EHV | B27: =VLOOKUP(Vlookup!B27,'CDCM Forecast Data'!$A$14:$I$271,5,FALSE) -> 0.0868884238
A28: EHV/HV
A29: HV | B29: =VLOOKUP(Vlookup!B29,'CDCM Forecast Data'!$A$14:$I$271,5,FALSE) -> 0.3056153455
A30: HV/LV
A31: LV circuits
A33: 1018. Proportion of relevant load going through 132kV/HV direct transformation
B35: 132kV/HV
A36: EHV/HV | B36: =VLOOKUP(Vlookup!B36,'CDCM Forecast Data'!$A$14:$I$271,5,FALSE) -> 0
A38: 1019. Network model GSP peak demand (MW)
B40: Network model GSP peak demand (MW)
A41: Network model GSP peak demand (MW) | B41: =VLOOKUP(Vlookup!B41,'CDCM Forecast Data'!$A$14:$I$271,5,FALSE) -> 500
A43: 1020. Gross asset cost by network level (£)
B45: Gross assets £
A46: 132kV | B46: =VLOOKUP(Vlookup!B46,'CDCM Forecast Data'!$A$14:$I$271,5,FALSE) -> 93700604.94
A47: 132kV/EHV | B47: =VLOOKUP(Vlookup!B47,'CDCM Forecast Data'!$A$14:$I$271,5,FALSE) -> 37063778.58
A48: EHV | B48: =VLOOKUP(Vlookup!B48,'CDCM Forecast Data'!$A$14:$I$271,5,FALSE) -> 93588546.74
A49: EHV/HV | B49: =VLOOKUP(Vlookup!B49,'CDCM Forecast Data'!$A$14:$I$271,5,FALSE) -> 59035973.2
A50: 132kV/HV | B50: =VLOOKUP(Vlookup!B50,'CDCM Forecast Data'!$A$14:$I$271,5,FALSE) -> 0
A51: HV | B51: =VLOOKUP(Vlookup!B51,'CDCM Forecast Data'!$A$14:$I$271,5,FALSE) -> 107178668.3
A52: HV/LV | B52: =VLOOKUP(Vlookup!B52,'CDCM Forecast Data'!$A$14:$I$271,5,FALSE) -> 97309699.62
A53: LV circuits | B53: =VLOOKUP(Vlookup!B53,'CDCM Forecast Data'!$A$14:$I$271,5,FALSE) -> 53944771.39
A55: 1022. LV service model asset cost (£)
B57: LV service model 1 | C57: LV service model 2 | D57: LV service model 3 | E57: LV service model 4 | F57: LV service model 5 | G57: LV service model 6 | H57: LV service model 7 | I57: LV service model 8
A58: LV service model asset cost (£) | B58: =VLOOKUP(Vlookup!B58,'CDCM Forecast Data'!$A$14:$I$271,5,FALSE) -> 10240.40148 | C58: =VLOOKUP(Vlookup!C58,'CDCM Forecast Data'!$A$14:$I$271,5,FALSE) -> 512.0200738 | D58: =VLOOKUP(Vlookup!D58,'CDCM Forecast Data'!$A$14:$I$271,5,FALSE) -> 2407.156257 | E58: =VLOOKUP(Vlookup!E58,'CDCM Forecast Data'!$A$14:$I$271,5,FALSE) -> 7727.258208 | F58: =VLOOKUP(Vlookup!F58,'CDCM Forecast Data'!$A$14:$I$271,5,FALSE) -> 281.4366146 | G58: =VLOOKUP(Vlookup!G58,'CDCM Forecast Data'!$A$14:$I$271,5,FALSE) -> 0 | H58: =VLOOKUP(Vlookup!H58,'CDCM Forecast Data'!$A$14:$I$271,5,FALSE) -> 0 | I58: =VLOOKUP(Vlookup!I58,'CDCM Forecast Data'!$A$14:$I$271,5,FALSE) -> 0
A60: 1023. HV service model asset cost (£)
B62: HV service model 1 | C62: HV service model 2 | D62: HV service model 3 | E62: HV service model 4 | F62: HV service model 5
A63: HV service model asset cost (£) | B63: =VLOOKUP(Vlookup!B63,'CDCM Forecast Data'!$A$14:$I$271,5,FALSE) -> 19221.96335 | C63: =VLOOKUP(Vlookup!C63,'CDCM Forecast Data'!$A$14:$I$271,5,FALSE) -> 16991.2105 | D63: =VLOOKUP(Vlookup!D63,'CDCM Forecast Data'!$A$14:$I$271,5,FALSE) -> 1144.1325 | E63: =VLOOKUP(Vlookup!E63,'CDCM Forecast Data'!$A$14:$I$271,5,FALSE) -> 0 | F63: =VLOOKUP(Vlookup!F63,'CDCM Forecast Data'!$A$14:$I$271,5,FALSE) -> 0
A65: 1025. Matrix of applicability of LV service models to tariffs with fixed charges
B66: 2 | C66: =B66+1 -> 3 | D66: 4 | E66: 5 | F66: 6 | G66: 7 | H66: 8 | I66: 9
B67: LV service model 1 | C67: LV service model 2 | D67: LV service model 3 | E67: LV service model 4 | F67: LV service model 5 | G67: LV service model 6 | H67: LV service model 7 | I67: LV service model 8
A68: Domestic Unrestricted | B68: =VLOOKUP($A68,'Mat of App'!$B$7:$AP$37,B$66,FALSE) -> 0.05 | C68: =VLOOKUP($A68,'Mat of App'!$B$7:$AP$37,C$66,FALSE) -> 0 | D68: =VLOOKUP($A68,'Mat of App'!$B$7:$AP$37,D$66,FALSE) -> 0 | E68: =VLOOKUP($A68,'Mat of App'!$B$7:$AP$37,E$66,FALSE) -> 0 | F68: =VLOOKUP($A68,'Mat of App'!$B$7:$AP$37,F$66,FALSE) -> 0 | G68: =VLOOKUP($A68,'Mat of App'!$B$7:$AP$37,G$66,FALSE) -> 0 | H68: =VLOOKUP($A68,'Mat of App'!$B$7:$AP$37,H$66,FALSE) -> 0 | I68: =VLOOKUP($A68,'Mat of App'!$B$7:$AP$37,I$66,FALSE) -> 0
A69: Domestic Two Rate | B69: =VLOOKUP($A69,'Mat of App'!$B$7:$AP$37,B$66,FALSE) -> 0.05 | C69: =VLOOKUP($A69,'Mat of App'!$B$7:$AP$37,C$66,FALSE) -> 0 | D69: =VLOOKUP($A69,'Mat of App'!$B$7:$AP$37,D$66,FALSE) -> 0 | E69: =VLOOKUP($A69,'Mat of App'!$B$7:$AP$37,E$66,FALSE) -> 0 | F69: =VLOOKUP($A69,'Mat of App'!$B$7:$AP$37,F$66,FALSE) -> 0 | G69: =VLOOKUP($A69,'Mat of App'!$B$7:$AP$37,G$66,FALSE) -> 0 | H69: =VLOOKUP($A69,'Mat of App'!$B$7:$AP$37,H$66,FALSE) -> 0 | I69: =VLOOKUP($A69,'Mat of App'!$B$7:$AP$37,I$66,FALSE) -> 0
A70: Small Non Domestic Unrestricted | B70: =VLOOKUP($A70,'Mat of App'!$B$7:$AP$37,B$66,FALSE) -> 0 | C70: =VLOOKUP($A70,'Mat of App'!$B$7:$AP$37,C$66,FALSE) -> 1 | D70: =VLOOKUP($A70,'Mat of App'!$B$7:$AP$37,D$66,FALSE) -> 0 | E70: =VLOOKUP($A70,'Mat of App'!$B$7:$AP$37,E$66,FALSE) -> 0 | F70: =VLOOKUP($A70,'Mat of App'!$B$7:$AP$37,F$66,FALSE) -> 0 | G70: =VLOOKUP($A70,'Mat of App'!$B$7:$AP$37,G$66,FALSE) -> 0 | H70: =VLOOKUP($A70,'Mat of App'!$B$7:$AP$37,H$66,FALSE) -> 0 | I70: =VLOOKUP($A70,'Mat of App'!$B$7:$AP$37,I$66,FALSE) -> 0
A71: Small Non Domestic Two Rate | B71: =VLOOKUP($A71,'Mat of App'!$B$7:$AP$37,B$66,FALSE) -> 0 | C71: =VLOOKUP($A71,'Mat of App'!$B$7:$AP$37,C$66,FALSE) -> 1 | D71: =VLOOKUP($A71,'Mat of App'!$B$7:$AP$37,D$66,FALSE) -> 0 | E71: =VLOOKUP($A71,'Mat of App'!$B$7:$AP$37,E$66,FALSE) -> 0 | F71: =VLOOKUP($A71,'Mat of App'!$B$7:$AP$37,F$66,FALSE) -> 0 | G71: =VLOOKUP($A71,'Mat of App'!$B$7:$AP$37,G$66,FALSE) -> 0 | H71: =VLOOKUP($A71,'Mat of App'!$B$7:$AP$37,H$66,FALSE) -> 0 | I71: =VLOOKUP($A71,'Mat of App'!$B$7:$AP$37,I$66,FALSE) -> 0
A72: LV Medium Non-Domestic | B72: =VLOOKUP($A72,'Mat of App'!$B$7:$AP$37,B$66,FALSE) -> 0 | C72: =VLOOKUP($A72,'Mat of App'!$B$7:$AP$37,C$66,FALSE) -> 0.1918509044 | D72: =VLOOKUP($A72,'Mat of App'!$B$7:$AP$37,D$66,FALSE) -> 0.8081490956 | E72: =VLOOKUP($A72,'Mat of App'!$B$7:$AP$37,E$66,FALSE) -> 0 | F72: =VLOOKUP($A72,'Mat of App'!$B$7:$AP$37,F$66,FALSE) -> 0 | G72: =VLOOKUP($A72,'Mat of App'!$B$7:$AP$37,G$66,FALSE) -> 0 | H72: =VLOOKUP($A72,'Mat of App'!$B$7:$AP$37,H$66,FALSE) -> 0 | I72: =VLOOKUP($A72,'Mat of App'!$B$7:$AP$37,I$66,FALSE) -> 0
A73: LV Sub Medium Non-Domestic | B73: =VLOOKUP($A73,'Mat of App'!$B$7:$AP$37,B$66,FALSE) -> 0 | C73: =VLOOKUP($A73,'Mat of App'!$B$7:$AP$37,C$66,FALSE) -> 0 | D73: =VLOOKUP($A73,'Mat of App'!$B$7:$AP$37,D$66,FALSE) -> 0 | E73: =VLOOKUP($A73,'Mat of App'!$B$7:$AP$37,E$66,FALSE) -> 1 | F73: =VLOOKUP($A73,'Mat of App'!$B$7:$AP$37,F$66,FALSE) -> 0 | G73: =VLOOKUP($A73,'Mat of App'!$B$7:$AP$37,G$66,FALSE) -> 0 | H73: =VLOOKUP($A73,'Mat of App'!$B$7:$AP$37,H$66,FALSE) -> 0 | I73: =VLOOKUP($A73,'Mat of App'!$B$7:$AP$37,I$66,FALSE) -> 0
A74: LV Network Domestic | B74: =VLOOKUP($A74,'Mat of App'!$B$7:$AP$37,B$66,FALSE) -> 0.05 | C74: =VLOOKUP($A74,'Mat of App'!$B$7:$AP$37,C$66,FALSE) -> 0 | D74: =VLOOKUP($A74,'Mat of App'!$B$7:$AP$37,D$66,FALSE) -> 0 | E74: =VLOOKUP($A74,'Mat of App'!$B$7:$AP$37,E$66,FALSE) -> 0 | F74: =VLOOKUP($A74,'Mat of App'!$B$7:$AP$37,F$66,FALSE) -> 0 | G74: =VLOOKUP($A74,'Mat of App'!$B$7:$AP$37,G$66,FALSE) -> 0 | H74: =VLOOKUP($A74,'Mat of App'!$B$7:$AP$37,H$66,FALSE) -> 0 | I74: =VLOOKUP($A74,'Mat of App'!$B$7:$AP$37,I$66,FALSE) -> 0
A75: LV Network Non-Domestic Non-CT | B75: =VLOOKUP($A75,'Mat of App'!$B$7:$AP$37,B$66,FALSE) -> 0 | C75: =VLOOKUP($A75,'Mat of App'!$B$7:$AP$37,C$66,FALSE) -> 1 | D75: =VLOOKUP($A75,'Mat of App'!$B$7:$AP$37,D$66,FALSE) -> 0 | E75: =VLOOKUP($A75,'Mat of App'!$B$7:$AP$37,E$66,FALSE) -> 0 | F75: =VLOOKUP($A75,'Mat of App'!$B$7:$AP$37,F$66,FALSE) -> 0 | G75: =VLOOKUP($A75,'Mat of App'!$B$7:$AP$37,G$66,FALSE) -> 0 | H75: =VLOOKUP($A75,'Mat of App'!$B$7:$AP$37,H$66,FALSE) -> 0 | I75: =VLOOKUP($A75,'Mat of App'!$B$7:$AP$37,I$66,FALSE) -> 0
A76: LV HH Metered | B76: =VLOOKUP($A76,'Mat of App'!$B$7:$AP$37,B$66,FALSE) -> 0 | C76: =VLOOKUP($A76,'Mat of App'!$B$7:$AP$37,C$66,FALSE) -> 0 | D76: =VLOOKUP($A76,'Mat of App'!$B$7:$AP$37,D$66,FALSE) -> 1 | E76: =VLOOKUP($A76,'Mat of App'!$B$7:$AP$37,E$66,FALSE) -> 0 | F76: =VLOOKUP($A76,'Mat of App'!$B$7:$AP$37,F$66,FALSE) -> 0 | G76: =VLOOKUP($A76,'Mat of App'!$B$7:$AP$37,G$66,FALSE) -> 0 | H76: =VLOOKUP($A76,'Mat of App'!$B$7:$AP$37,H$66,FALSE) -> 0 | I76: =VLOOKUP($A76,'Mat of App'!$B$7:$AP$37,I$66,FALSE) -> 0
A77: LV Sub HH Metered | B77: =VLOOKUP($A77,'Mat of App'!$B$7:$AP$37,B$66,FALSE) -> 0 | C77: =VLOOKUP($A77,'Mat of App'!$B$7:$AP$37,C$66,FALSE) -> 0 | D77: =VLOOKUP($A77,'Mat of App'!$B$7:$AP$37,D$66,FALSE) -> 0 | E77: =VLOOKUP($A77,'Mat of App'!$B$7:$AP$37,E$66,FALSE) -> 1 | F77: =VLOOKUP($A77,'Mat of App'!$B$7:$AP$37,F$66,FALSE) -> 0 | G77: =VLOOKUP($A77,'Mat of App'!$B$7:$AP$37,G$66,FALSE) -> 0 | H77: =VLOOKUP($A77,'Mat of App'!$B$7:$AP$37,H$66,FALSE) -> 0 | I77: =VLOOKUP($A77,'Mat of App'!$B$7:$AP$37,I$66,FALSE) -> 0
A78: LV Generation NHH or Aggregate HH | B78: =VLOOKUP($A78,'Mat of App'!$B$7:$AP$37,B$66,FALSE) -> 0 | C78: =VLOOKUP($A78,'Mat of App'!$B$7:$AP$37,C$66,FALSE) -> 0 | D78: =VLOOKUP($A78,'Mat of App'!$B$7:$AP$37,D$66,FALSE) -> 0 | E78: =VLOOKUP($A78,'Mat of App'!$B$7:$AP$37,E$66,FALSE) -> 0 | F78: =VLOOKUP($A78,'Mat of App'!$B$7:$AP$37,F$66,FALSE) -> 0 | G78: =VLOOKUP($A78,'Mat of App'!$B$7:$AP$37,G$66,FALSE) -> 0 | H78: =VLOOKUP($A78,'Mat of App'!$B$7:$AP$37,H$66,FALSE) -> 0 | I78: =VLOOKUP($A78,'Mat of App'!$B$7:$AP$37,I$66,FALSE) -> 0
A79: LV Sub Generation NHH | B79: =VLOOKUP($A79,'Mat of App'!$B$7:$AP$37,B$66,FALSE) -> 0 | C79: =VLOOKUP($A79,'Mat of App'!$B$7:$AP$37,C$66,FALSE) -> 0 | D79: =VLOOKUP($A79,'Mat of App'!$B$7:$AP$37,D$66,FALSE) -> 0 | E79: =VLOOKUP($A79,'Mat of App'!$B$7:$AP$37,E$66,FALSE) -> 0 | F79: =VLOOKUP($A79,'Mat of App'!$B$7:$AP$37,F$66,FALSE) -> 0 | G79: =VLOOKUP($A79,'Mat of App'!$B$7:$AP$37,G$66,FALSE) -> 0 | H79: =VLOOKUP($A79,'Mat of App'!$B$7:$AP$37,H$66,FALSE) -> 0 | I79: =VLOOKUP($A79,'Mat of App'!$B$7:$AP$37,I$66,FALSE) -> 0
A80: LV Generation Intermittent | B80: =VLOOKUP($A80,'Mat of App'!$B$7:$AP$37,B$66,FALSE) -> 0 | C80: =VLOOKUP($A80,'Mat of App'!$B$7:$AP$37,C$66,FALSE) -> 0 | D80: =VLOOKUP($A80,'Mat of App'!$B$7:$AP$37,D$66,FALSE) -> 0 | E80: =VLOOKUP($A80,'Mat of App'!$B$7:$AP$37,E$66,FALSE) -> 0 | F80: =VLOOKUP($A80,'Mat of App'!$B$7:$AP$37,F$66,FALSE) -> 0 | G80: =VLOOKUP($A80,'Mat of App'!$B$7:$AP$37,G$66,FALSE) -> 0 | H80: =VLOOKUP($A80,'Mat of App'!$B$7:$AP$37,H$66,FALSE) -> 0 | I80: =VLOOKUP($A80,'Mat of App'!$B$7:$AP$37,I$66,FALSE) -> 0
A81: LV Generation Non-Intermittent | B81: =VLOOKUP($A81,'Mat of App'!$B$7:$AP$37,B$66,FALSE) -> 0 | C81: =VLOOKUP($A81,'Mat of App'!$B$7:$AP$37,C$66,FALSE) -> 0 | D81: =VLOOKUP($A81,'Mat of App'!$B$7:$AP$37,D$66,FALSE) -> 0 | E81: =VLOOKUP($A81,'Mat of App'!$B$7:$AP$37,E$66,FALSE) -> 0 | F81: =VLOOKUP($A81,'Mat of App'!$B$7:$AP$37,F$66,FALSE) -> 0 | G81: =VLOOKUP($A81,'Mat of App'!$B$7:$AP$37,G$66,FALSE) -> 0 | H81: =VLOOKUP($A81,'Mat of App'!$B$7:$AP$37,H$66,FALSE) -> 0 | I81: =VLOOKUP($A81,'Mat of App'!$B$7:$AP$37,I$66,FALSE) -> 0
A82: LV Sub Generation Intermittent | B82: =VLOOKUP($A82,'Mat of App'!$B$7:$AP$37,B$66,FALSE) -> 0 | C82: =VLOOKUP($A82,'Mat of App'!$B$7:$AP$37,C$66,FALSE) -> 0 | D82: =VLOOKUP($A82,'Mat of App'!$B$7:$AP$37,D$66,FALSE) -> 0 | E82: =VLOOKUP($A82,'Mat of App'!$B$7:$AP$37,E$66,FALSE) -> 0 | F82: =VLOOKUP($A82,'Mat of App'!$B$7:$AP$37,F$66,FALSE) -> 0 | G82: =VLOOKUP($A82,'Mat of App'!$B$7:$AP$37,G$66,FALSE) -> 0 | H82: =VLOOKUP($A82,'Mat of App'!$B$7:$AP$37,H$66,FALSE) -> 0 | I82: =VLOOKUP($A82,'Mat of App'!$B$7:$AP$37,I$66,FALSE) -> 0
A83: LV Sub Generation Non-Intermittent | B83: =VLOOKUP($A83,'Mat of App'!$B$7:$AP$37,B$66,FALSE) -> 0 | C83: =VLOOKUP($A83,'Mat of App'!$B$7:$AP$37,C$66,FALSE) -> 0 | D83: =VLOOKUP($A83,'Mat of App'!$B$7:$AP$37,D$66,FALSE) -> 0 | E83: =VLOOKUP($A83,'Mat of App'!$B$7:$AP$37,E$66,FALSE) -> 0 | F83: =VLOOKUP($A83,'Mat of App'!$B$7:$AP$37,F$66,FALSE) -> 0 | G83: =VLOOKUP($A83,'Mat of App'!$B$7:$AP$37,G$66,FALSE) -> 0 | H83: =VLOOKUP($A83,'Mat of App'!$B$7:$AP$37,H$66,FALSE) -> 0 | I83: =VLOOKUP($A83,'Mat of App'!$B$7:$AP$37,I$66,FALSE) -> 0
A85: 1026. Matrix of applicability of LV service models to unmetered tariffs
A87: Source: service models
A88: Proportion of service model involved in connecting load of 1 MWh/year
B89: LV service model 1 | C89: LV service model 2 | D89: LV service model 3 | E89: LV service model 4 | F89: LV service model 5 | G89: LV service model 6 | H89: LV service model 7 | I89: LV service model 8
A90: All LV unmetered tariffs | B90: =VLOOKUP($A90,'Mat of App'!$B$7:$AP$37,B$66,FALSE) -> 0 | C90: =VLOOKUP($A90,'Mat of App'!$B$7:$AP$37,C$66,FALSE) -> 0 | D90: =VLOOKUP($A90,'Mat of App'!$B$7:$AP$37,D$66,FALSE) -> 0 | E90: =VLOOKUP($A90,'Mat of App'!$B$7:$AP$37,E$66,FALSE) -> 0 | F90: =VLOOKUP($A90,'Mat of App'!$B$7:$AP$37,F$66,FALSE) -> 2.872632768 | G90: =VLOOKUP($A90,'Mat of App'!$B$7:$AP$37,G$66,FALSE) -> 0 | H90: =VLOOKUP($A90,'Mat of App'!$B$7:$AP$37,H$66,FALSE) -> 0 | I90: =VLOOKUP($A90,'Mat of App'!$B$7:$AP$37,I$66,FALSE) -> 0
A92: 1028. Matrix of applicability of HV service models to tariffs with fixed charges
B93: 2 | C93: =B93+1 -> 3 | D93: =C93+1 -> 4 | E93: =D93+1 -> 5 | F93: =E93+1 -> 6
B94: HV service model 1 | C94: HV service model 2 | D94: HV service model 3 | E94: HV service model 4 | F94: HV service model 5
A95: HV Medium Non-Domestic | B95: =VLOOKUP($A95,'Mat of App'!$B$7:$AP$37,B$93,FALSE) -> 0 | C95: =VLOOKUP($A95,'Mat of App'!$B$7:$AP$37,C$93,FALSE) -> 1 | D95: =VLOOKUP($A95,'Mat of App'!$B$7:$AP$37,D$93,FALSE) -> 0 | E95: =VLOOKUP($A95,'Mat of App'!$B$7:$AP$37,E$93,FALSE) -> 0 | F95: =VLOOKUP($A95,'Mat of App'!$B$7:$AP$37,F$93,FALSE) -> 0
A96: HV HH Metered | B96: =VLOOKUP($A96,'Mat of App'!$B$7:$AP$37,B$93,FALSE) -> 0 | C96: =VLOOKUP($A96,'Mat of App'!$B$7:$AP$37,C$93,FALSE) -> 1 | D96: =VLOOKUP($A96,'Mat of App'!$B$7:$AP$37,D$93,FALSE) -> 0 | E96: =VLOOKUP($A96,'Mat of App'!$B$7:$AP$37,E$93,FALSE) -> 0 | F96: =VLOOKUP($A96,'Mat of App'!$B$7:$AP$37,F$93,FALSE) -> 0
A97: HV Generation Intermittent | B97: =VLOOKUP($A97,'Mat of App'!$B$7:$AP$37,B$93,FALSE) -> 0 | C97: =VLOOKUP($A97,'Mat of App'!$B$7:$AP$37,C$93,FALSE) -> 0 | D97: =VLOOKUP($A97,'Mat of App'!$B$7:$AP$37,D$93,FALSE) -> 1 | E97: =VLOOKUP($A97,'Mat of App'!$B$7:$AP$37,E$93,FALSE) -> 0 | F97: =VLOOKUP($A97,'Mat of App'!$B$7:$AP$37,F$93,FALSE) -> 0
A98: HV Generation Non-Intermittent | B98: =VLOOKUP($A98,'Mat of App'!$B$7:$AP$37,B$93,FALSE) -> 0 | C98: =VLOOKUP($A98,'Mat of App'!$B$7:$AP$37,C$93,FALSE) -> 0 | D98: =VLOOKUP($A98,'Mat of App'!$B$7:$AP$37,D$93,FALSE) -> 1 | E98: =VLOOKUP($A98,'Mat of App'!$B$7:$AP$37,E$93,FALSE) -> 0 | F98: =VLOOKUP($A98,'Mat of App'!$B$7:$AP$37,F$93,FALSE) -> 0
A100: 1032. Loss adjustment factors to transmission
A102: Source: losses model or loss adjustment factors at time of system peak.
B103: 132kV | C103: 132kV/EHV | D103: EHV | E103: EHV/HV | F103: HV | G103: HV/LV | H103: LV circuits
A104: Loss adjustment factor | B104: =VLOOKUP(Vlookup!B69,'CDCM Forecast Data'!$A$14:$I$271,5,FALSE) -> 1.010207653 | C104: =VLOOKUP(Vlookup!C69,'CDCM Forecast Data'!$A$14:$I$271,5,FALSE) -> 1.015167952 | D104: =VLOOKUP(Vlookup!D69,'CDCM Forecast Data'!$A$14:$I$271,5,FALSE) -> 1.021613121 | E104: =VLOOKUP(Vlookup!E69,'CDCM Forecast Data'!$A$14:$I$271,5,FALSE) -> 1.027143717 | F104: =VLOOKUP(Vlookup!F69,'CDCM Forecast Data'!$A$14:$I$271,5,FALSE) -> 1.039482236 | G104: =VLOOKUP(Vlookup!G69,'CDCM Forecast Data'!$A$14:$I$271,5,FALSE) -> 1.053113103 | H104: =VLOOKUP(Vlookup!H69,'CDCM Forecast Data'!$A$14:$I$271,5,FALSE) -> 1.105523229
A106: 1037. Embedded network (LDNO) discounts
A108: Source: separate price control disaggregation model.
B109: No discount | C109: LDNO LV: LV user | D109: LDNO HV: LV user | E109: LDNO HV: LV sub user | F109: LDNO HV: HV user
A110: LDNO discount | C110: =VLOOKUP(Vlookup!C75,'CDCM Forecast Data'!$A$14:$I$271,5,FALSE) -> 0.3545481139 | D110: =VLOOKUP(Vlookup!D75,'CDCM Forecast Data'!$A$14:$I$271,5,FALSE) -> 0.5759919482 | E110: =VLOOKUP(Vlookup!E75,'CDCM Forecast Data'!$A$14:$I$271,5,FALSE) -> 0.3351316791 | F110: =VLOOKUP(Vlookup!F75,'CDCM Forecast Data'!$A$14:$I$271,5,FALSE) -> 0.2148277515
A112: 1041. Load profile data for demand users
A114: Source: load data analysis.
B115: Coincidence factor | C115: Load factor
A116: Domestic Unrestricted | B116: =VLOOKUP(Vlookup!B81,'CDCM Forecast Data'!$A$14:$I$271,5,FALSE) -> 0.8913703454 | C116: =VLOOKUP(Vlookup!C81,'CDCM Forecast Data'!$A$14:$I$271,5,FALSE) -> 0.4462668473
A117: Domestic Two Rate | B117: =VLOOKUP(Vlookup!B82,'CDCM Forecast Data'!$A$14:$I$271,5,FALSE) -> 0.2951047042 | C117: =VLOOKUP(Vlookup!C82,'CDCM Forecast Data'!$A$14:$I$271,5,FALSE) -> 0.2467650034
A118: Domestic Off Peak (related MPAN) | C118: =VLOOKUP(Vlookup!C83,'CDCM Forecast Data'!$A$14:$I$271,5,FALSE) -> 0.1659632593
A119: Small Non Domestic Unrestricted | B119: =VLOOKUP(Vlookup!B84,'CDCM Forecast Data'!$A$14:$I$271,5,FALSE) -> 0.675023322 | C119: =VLOOKUP(Vlookup!C84,'CDCM Forecast Data'!$A$14:$I$271,5,FALSE) -> 0.3939683153
A120: Small Non Domestic Two Rate | B120: =VLOOKUP(Vlookup!B85,'CDCM Forecast Data'!$A$14:$I$271,5,FALSE) -> 0.7022639753 | C120: =VLOOKUP(Vlookup!C85,'CDCM Forecast Data'!$A$14:$I$271,5,FALSE) -> 0.5394924636
A121: Small Non Domestic Off Peak (related MPAN) | C121: =VLOOKUP(Vlookup!C86,'CDCM Forecast Data'!$A$14:$I$271,5,FALSE) -> 0.1655384635
A122: LV Medium Non-Domestic | B122: =VLOOKUP(Vlookup!B87,'CDCM Forecast Data'!$A$14:$I$271,5,FALSE) -> 0.8299720136 | C122: =VLOOKUP(Vlookup!C87,'CDCM Forecast Data'!$A$14:$I$271,5,FALSE) -> 0.5627043404
A123: LV Sub Medium Non-Domestic | B123: =VLOOKUP(Vlookup!B88,'CDCM Forecast Data'!$A$14:$I$271,5,FALSE) -> 0.7822989923 | C123: =VLOOKUP(Vlookup!C88,'CDCM Forecast Data'!$A$14:$I$271,5,FALSE) -> 0.5370681653
A124: HV Medium Non-Domestic | B124: =VLOOKUP(Vlookup!B89,'CDCM Forecast Data'!$A$14:$I$271,5,FALSE) -> 0.7647764369 | C124: =VLOOKUP(Vlookup!C89,'CDCM Forecast Data'!$A$14:$I$271,5,FALSE) -> 0.5247366167
A125: LV Network Domestic | B125: =VLOOKUP(Vlookup!B90,'CDCM Forecast Data'!$A$14:$I$271,5,FALSE) -> 0.8913703454 | C125: =VLOOKUP(Vlookup!C90,'CDCM Forecast Data'!$A$14:$I$271,5,FALSE) -> 0.4462668473
A126: LV Network Non-Domestic Non-CT | B126: =VLOOKUP(Vlookup!B91,'CDCM Forecast Data'!$A$14:$I$271,5,FALSE) -> 0.675023322 | C126: =VLOOKUP(Vlookup!C91,'CDCM Forecast Data'!$A$14:$I$271,5,FALSE) -> 0.3939683153
A127: LV HH Metered | B127: =VLOOKUP(Vlookup!B92,'CDCM Forecast Data'!$A$14:$I$271,5,FALSE) -> 0.8187070533 | C127: =VLOOKUP(Vlookup!C92,'CDCM Forecast Data'!$A$14:$I$271,5,FALSE) -> 0.5579677074
A128: LV Sub HH Metered | B128: =VLOOKUP(Vlookup!B93,'CDCM Forecast Data'!$A$14:$I$271,5,FALSE) -> 0.7867578525 | C128: =VLOOKUP(Vlookup!C93,'CDCM Forecast Data'!$A$14:$I$271,5,FALSE) -> 0.5593063082
A129: HV HH Metered | B129: =VLOOKUP(Vlookup!B94,'CDCM Forecast Data'!$A$14:$I$271,5,FALSE) -> 0.8573132903 | C129: =VLOOKUP(Vlookup!C94,'CDCM Forecast Data'!$A$14:$I$271,5,FALSE) -> 0.7117228058
A130: NHH UMS category A | B130: =VLOOKUP(Vlookup!B95,'CDCM Forecast Data'!$A$14:$I$271,5,FALSE) -> 1 | C130: =VLOOKUP(Vlookup!C95,'CDCM Forecast Data'!$A$14:$I$271,5,FALSE) -> 1
A131: NHH UMS category B | B131: =VLOOKUP(Vlookup!B96,'CDCM Forecast Data'!$A$14:$I$271,5,FALSE) -> 1 | C131: =VLOOKUP(Vlookup!C96,'CDCM Forecast Data'!$A$14:$I$271,5,FALSE) -> 0.4737220928
A132: NHH UMS category C | B132: =VLOOKUP(Vlookup!B97,'CDCM Forecast Data'!$A$14:$I$271,5,FALSE) -> 1 | C132: =VLOOKUP(Vlookup!C97,'CDCM Forecast Data'!$A$14:$I$271,5,FALSE) -> 0.2580136568
A133: NHH UMS category D | B133: =VLOOKUP(Vlookup!B98,'CDCM Forecast Data'!$A$14:$I$271,5,FALSE) -> 0 | C133: =VLOOKUP(Vlookup!C98,'CDCM Forecast Data'!$A$14:$I$271,5,FALSE) -> 0.5539154947
A134: LV UMS (Pseudo HH Metered) | B134: =VLOOKUP(Vlookup!B99,'CDCM Forecast Data'!$A$14:$I$271,5,FALSE) -> 0.9795893947 | C134: =VLOOKUP(Vlookup!C99,'CDCM Forecast Data'!$A$14:$I$271,5,FALSE) -> 0.4777791708
A136: 1053. Volume forecasts for the charging year
B137: 4 | C137: 5 | D137: 6 | E137: 7 | F137: 8 | G137: 9
A138: Source: forecast.
A139: Please include MPAN counts for tariffs with no fixed charge (e.g. off-peak tariffs),
A140: but exclude MPANs on tariffs with a fixed charge that are not subject to a fixed charge due to a site grouping arrangement.
B141: Rate 1 units (MWh) | C141: Rate 2 units (MWh) | D141: Rate 3 units (MWh) | E141: MPANs | F141: Import capacity (kVA) | G141: Reactive power units (MVArh)
A142: > Domestic Unrestricted | B142: =VLOOKUP(Vlookup!$B107,'CDCM Volume Forecasts'!$A$27:$AG$123,B$137,FALSE) -> 0 | C142: =VLOOKUP(Vlookup!$B107,'CDCM Volume Forecasts'!$A$27:$AG$123,C$137,FALSE) -> 0 | D142: =VLOOKUP(Vlookup!$B107,'CDCM Volume Forecasts'!$A$27:$AG$123,D$137,FALSE) -> 0 | E142: =VLOOKUP(Vlookup!$B107,'CDCM Volume Forecasts'!$A$27:$AG$123,E$137,FALSE) -> 0 | F142: =VLOOKUP(Vlookup!$B107,'CDCM Volume Forecasts'!$A$27:$AG$123,F$137,FALSE) -> 0 | G142: =VLOOKUP(Vlookup!$B107,'CDCM Volume Forecasts'!$A$27:$AG$123,G$137,FALSE) -> 0
A143: Domestic Unrestricted | B143: =VLOOKUP(Vlookup!$B108,'CDCM Volume Forecasts'!$A$27:$AG$123,B$137,FALSE) -> 6548048.323 | C143: =VLOOKUP(Vlookup!$B108,'CDCM Volume Forecasts'!$A$27:$AG$123,C$137,FALSE) -> 0 | D143: =VLOOKUP(Vlookup!$B108,'CDCM Volume Forecasts'!$A$27:$AG$123,D$137,FALSE) -> 0 | E143: =VLOOKUP(Vlookup!$B108,'CDCM Volume Forecasts'!$A$27:$AG$123,E$137,FALSE) -> 2004921 | F143: =VLOOKUP(Vlookup!$B108,'CDCM Volume Forecasts'!$A$27:$AG$123,F$137,FALSE) -> 0 | G143: =VLOOKUP(Vlookup!$B108,'CDCM Volume Forecasts'!$A$27:$AG$123,G$137,FALSE) -> 0
A144: LDNO LV: Domestic Unrestricted | B144: =VLOOKUP(Vlookup!$B109,'CDCM Volume Forecasts'!$A$27:$AG$123,B$137,FALSE) -> 107357.0234 | C144: =VLOOKUP(Vlookup!$B109,'CDCM Volume Forecasts'!$A$27:$AG$123,C$137,FALSE) -> 0 | D144: =VLOOKUP(Vlookup!$B109,'CDCM Volume Forecasts'!$A$27:$AG$123,D$137,FALSE) -> 0 | E144: =VLOOKUP(Vlookup!$B109,'CDCM Volume Forecasts'!$A$27:$AG$123,E$137,FALSE) -> 34780 | F144: =VLOOKUP(Vlookup!$B109,'CDCM Volume Forecasts'!$A$27:$AG$123,F$137,FALSE) -> 0 | G144: =VLOOKUP(Vlookup!$B109,'CDCM Volume Forecasts'!$A$27:$AG$123,G$137,FALSE) -> 0
A145: LDNO HV: Domestic Unrestricted | B145: =VLOOKUP(Vlookup!$B110,'CDCM Volume Forecasts'!$A$27:$AG$123,B$137,FALSE) -> 61406.53153 | C145: =VLOOKUP(Vlookup!$B110,'CDCM Volume Forecasts'!$A$27:$AG$123,C$137,FALSE) -> 0 | D145: =VLOOKUP(Vlookup!$B110,'CDCM Volume Forecasts'!$A$27:$AG$123,D$137,FALSE) -> 0 | E145: =VLOOKUP(Vlookup!$B110,'CDCM Volume Forecasts'!$A$27:$AG$123,E$137,FALSE) -> 18242 | F145: =VLOOKUP(Vlookup!$B110,'CDCM Volume Forecasts'!$A$27:$AG$123,F$137,FALSE) -> 0 | G145: =VLOOKUP(Vlookup!$B110,'CDCM Volume Forecasts'!$A$27:$AG$123,G$137,FALSE) -> 0
A146: > Domestic Two Rate | B146: =VLOOKUP(Vlookup!$B111,'CDCM Volume Forecasts'!$A$27:$AG$123,B$137,FALSE) -> 0 | C146: =VLOOKUP(Vlookup!$B111,'CDCM Volume Forecasts'!$A$27:$AG$123,C$137,FALSE) -> 0 | D146: =VLOOKUP(Vlookup!$B111,'CDCM Volume Forecasts'!$A$27:$AG$123,D$137,FALSE) -> 0 | E146: =VLOOKUP(Vlookup!$B111,'CDCM Volume Forecasts'!$A$27:$AG$123,E$137,FALSE) -> 0 | F146: =VLOOKUP(Vlookup!$B111,'CDCM Volume Forecasts'!$A$27:$AG$123,F$137,FALSE) -> 0 | G146: =VLOOKUP(Vlookup!$B111,'CDCM Volume Forecasts'!$A$27:$AG$123,G$137,FALSE) -> 0
A147: Domestic Two Rate | B147: =VLOOKUP(Vlookup!$B112,'CDCM Volume Forecasts'!$A$27:$AG$123,B$137,FALSE) -> 473331.2285 | C147: =VLOOKUP(Vlookup!$B112,'CDCM Volume Forecasts'!$A$27:$AG$123,C$137,FALSE) -> 475601.886 | D147: =VLOOKUP(Vlookup!$B112,'CDCM Volume Forecasts'!$A$27:$AG$123,D$137,FALSE) -> 0 | E147: =VLOOKUP(Vlookup!$B112,'CDCM Volume Forecasts'!$A$27:$AG$123,E$137,FALSE) -> 179874 | F147: =VLOOKUP(Vlookup!$B112,'CDCM Volume Forecasts'!$A$27:$AG$123,F$137,FALSE) -> 0 | G147: =VLOOKUP(Vlookup!$B112,'CDCM Volume Forecasts'!$A$27:$AG$123,G$137,FALSE) -> 0
A148: LDNO LV: Domestic Two Rate | B148: =VLOOKUP(Vlookup!$B113,'CDCM Volume Forecasts'!$A$27:$AG$123,B$137,FALSE) -> 392.0490129 | C148: =VLOOKUP(Vlookup!$B113,'CDCM Volume Forecasts'!$A$27:$AG$123,C$137,FALSE) -> 105.0348008 | D148: =VLOOKUP(Vlookup!$B113,'CDCM Volume Forecasts'!$A$27:$AG$123,D$137,FALSE) -> 0 | E148: =VLOOKUP(Vlookup!$B113,'CDCM Volume Forecasts'!$A$27:$AG$123,E$137,FALSE) -> 145 | F148: =VLOOKUP(Vlookup!$B113,'CDCM Volume Forecasts'!$A$27:$AG$123,F$137,FALSE) -> 0 | G148: =VLOOKUP(Vlookup!$B113,'CDCM Volume Forecasts'!$A$27:$AG$123,G$137,FALSE) -> 0
A149: LDNO HV: Domestic Two Rate | B149: =VLOOKUP(Vlookup!$B114,'CDCM Volume Forecasts'!$A$27:$AG$123,B$137,FALSE) -> 3041.302096 | C149: =VLOOKUP(Vlookup!$B114,'CDCM Volume Forecasts'!$A$27:$AG$123,C$137,FALSE) -> 2188.483791 | D149: =VLOOKUP(Vlookup!$B114,'CDCM Volume Forecasts'!$A$27:$AG$123,D$137,FALSE) -> 0 | E149: =VLOOKUP(Vlookup!$B114,'CDCM Volume Forecasts'!$A$27:$AG$123,E$137,FALSE) -> 1046 | F149: =VLOOKUP(Vlookup!$B114,'CDCM Volume Forecasts'!$A$27:$AG$123,F$137,FALSE) -> 0 | G149: =VLOOKUP(Vlookup!$B114,'CDCM Volume Forecasts'!$A$27:$AG$123,G$137,FALSE) -> 0
A150: > Domestic Off Peak (related MPAN) | B150: =VLOOKUP(Vlookup!$B115,'CDCM Volume Forecasts'!$A$27:$AG$123,B$137,FALSE) -> 0 | C150: =VLOOKUP(Vlookup!$B115,'CDCM Volume Forecasts'!$A$27:$AG$123,C$137,FALSE) -> 0 | D150: =VLOOKUP(Vlookup!$B115,'CDCM Volume Forecasts'!$A$27:$AG$123,D$137,FALSE) -> 0 | E150: =VLOOKUP(Vlookup!$B115,'CDCM Volume Forecasts'!$A$27:$AG$123,E$137,FALSE) -> 0 | F150: =VLOOKUP(Vlookup!$B115,'CDCM Volume Forecasts'!$A$27:$AG$123,F$137,FALSE) -> 0 | G150: =VLOOKUP(Vlookup!$B115,'CDCM Volume Forecasts'!$A$27:$AG$123,G$137,FALSE) -> 0
A151: Domestic Off Peak (related MPAN) | B151: =VLOOKUP(Vlookup!$B116,'CDCM Volume Forecasts'!$A$27:$AG$123,B$137,FALSE) -> 16657.96408 | C151: =VLOOKUP(Vlookup!$B116,'CDCM Volume Forecasts'!$A$27:$AG$123,C$137,FALSE) -> 0 | D151: =VLOOKUP(Vlookup!$B116,'CDCM Volume Forecasts'!$A$27:$AG$123,D$137,FALSE) -> 0 | E151: =VLOOKUP(Vlookup!$B116,'CDCM Volume Forecasts'!$A$27:$AG$123,E$137,FALSE) -> 5278 | F151: =VLOOKUP(Vlookup!$B116,'CDCM Volume Forecasts'!$A$27:$AG$123,F$137,FALSE) -> 0 | G151: =VLOOKUP(Vlookup!$B116,'CDCM Volume Forecasts'!$A$27:$AG$123,G$137,FALSE) -> 0
A152: LDNO LV: Domestic Off Peak (related MPAN) | B152: =VLOOKUP(Vlookup!$B117,'CDCM Volume Forecasts'!$A$27:$AG$123,B$137,FALSE) -> 0 | C152: =VLOOKUP(Vlookup!$B117,'CDCM Volume Forecasts'!$A$27:$AG$123,C$137,FALSE) -> 0 | D152: =VLOOKUP(Vlookup!$B117,'CDCM Volume Forecasts'!$A$27:$AG$123,D$137,FALSE) -> 0 | E152: =VLOOKUP(Vlookup!$B117,'CDCM Volume Forecasts'!$A$27:$AG$123,E$137,FALSE) -> 0 | F152: =VLOOKUP(Vlookup!$B117,'CDCM Volume Forecasts'!$A$27:$AG$123,F$137,FALSE) -> 0 | G152: =VLOOKUP(Vlookup!$B117,'CDCM Volume Forecasts'!$A$27:$AG$123,G$137,FALSE) -> 0
A153: LDNO HV: Domestic Off Peak (related MPAN) | B153: =VLOOKUP(Vlookup!$B118,'CDCM Volume Forecasts'!$A$27:$AG$123,B$137,FALSE) -> 0 | C153: =VLOOKUP(Vlookup!$B118,'CDCM Volume Forecasts'!$A$27:$AG$123,C$137,FALSE) -> 0 | D153: =VLOOKUP(Vlookup!$B118,'CDCM Volume Forecasts'!$A$27:$AG$123,D$137,FALSE) -> 0 | E153: =VLOOKUP(Vlookup!$B118,'CDCM Volume Forecasts'!$A$27:$AG$123,E$137,FALSE) -> 0 | F153: =VLOOKUP(Vlookup!$B118,'CDCM Volume Forecasts'!$A$27:$AG$123,F$137,FALSE) -> 0 | G153: =VLOOKUP(Vlookup!$B118,'CDCM Volume Forecasts'!$A$27:$AG$123,G$137,FALSE) -> 0
A154: > Small Non Domestic Unrestricted | B154: =VLOOKUP(Vlookup!$B119,'CDCM Volume Forecasts'!$A$27:$AG$123,B$137,FALSE) -> 0 | C154: =VLOOKUP(Vlookup!$B119,'CDCM Volume Forecasts'!$A$27:$AG$123,C$137,FALSE) -> 0 | D154: =VLOOKUP(Vlookup!$B119,'CDCM Volume Forecasts'!$A$27:$AG$123,D$137,FALSE) -> 0 | E154: =VLOOKUP(Vlookup!$B119,'CDCM Volume Forecasts'!$A$27:$AG$123,E$137,FALSE) -> 0 | F154: =VLOOKUP(Vlookup!$B119,'CDCM Volume Forecasts'!$A$27:$AG$123,F$137,FALSE) -> 0 | G154: =VLOOKUP(Vlookup!$B119,'CDCM Volume Forecasts'!$A$27:$AG$123,G$137,FALSE) -> 0
A155: Small Non Domestic Unrestricted | B155: =VLOOKUP(Vlookup!$B120,'CDCM Volume Forecasts'!$A$27:$AG$123,B$137,FALSE) -> 1571617.926 | C155: =VLOOKUP(Vlookup!$B120,'CDCM Volume Forecasts'!$A$27:$AG$123,C$137,FALSE) -> 0 | D155: =VLOOKUP(Vlookup!$B120,'CDCM Volume Forecasts'!$A$27:$AG$123,D$137,FALSE) -> 0 | E155: =VLOOKUP(Vlookup!$B120,'CDCM Volume Forecasts'!$A$27:$AG$123,E$137,FALSE) -> 123214 | F155: =VLOOKUP(Vlookup!$B120,'CDCM Volume Forecasts'!$A$27:$AG$123,F$137,FALSE) -> 0 | G155: =VLOOKUP(Vlookup!$B120,'CDCM Volume Forecasts'!$A$27:$AG$123,G$137,FALSE) -> 0
A156: LDNO LV: Small Non Domestic Unrestricted | B156: =VLOOKUP(Vlookup!$B121,'CDCM Volume Forecasts'!$A$27:$AG$123,B$137,FALSE) -> 2761.666876 | C156: =VLOOKUP(Vlookup!$B121,'CDCM Volume Forecasts'!$A$27:$AG$123,C$137,FALSE) -> 0 | D156: =VLOOKUP(Vlookup!$B121,'CDCM Volume Forecasts'!$A$27:$AG$123,D$137,FALSE) -> 0 | E156: =VLOOKUP(Vlookup!$B121,'CDCM Volume Forecasts'!$A$27:$AG$123,E$137,FALSE) -> 331 | F156: =VLOOKUP(Vlookup!$B121,'CDCM Volume Forecasts'!$A$27:$AG$123,F$137,FALSE) -> 0 | G156: =VLOOKUP(Vlookup!$B121,'CDCM Volume Forecasts'!$A$27:$AG$123,G$137,FALSE) -> 0
A157: LDNO HV: Small Non Domestic Unrestricted | B157: =VLOOKUP(Vlookup!$B122,'CDCM Volume Forecasts'!$A$27:$AG$123,B$137,FALSE) -> 6019.563797 | C157: =VLOOKUP(Vlookup!$B122,'CDCM Volume Forecasts'!$A$27:$AG$123,C$137,FALSE) -> 0 | D157: =VLOOKUP(Vlookup!$B122,'CDCM Volume Forecasts'!$A$27:$AG$123,D$137,FALSE) -> 0 | E157: =VLOOKUP(Vlookup!$B122,'CDCM Volume Forecasts'!$A$27:$AG$123,E$137,FALSE) -> 492 | F157: =VLOOKUP(Vlookup!$B122,'CDCM Volume Forecasts'!$A$27:$AG$123,F$137,FALSE) -> 0 | G157: =VLOOKUP(Vlookup!$B122,'CDCM Volume Forecasts'!$A$27:$AG$123,G$137,FALSE) -> 0
A158: > Small Non Domestic Two Rate | B158: =VLOOKUP(Vlookup!$B123,'CDCM Volume Forecasts'!$A$27:$AG$123,B$137,FALSE) -> 0 | C158: =VLOOKUP(Vlookup!$B123,'CDCM Volume Forecasts'!$A$27:$AG$123,C$137,FALSE) -> 0 | D158: =VLOOKUP(Vlookup!$B123,'CDCM Volume Forecasts'!$A$27:$AG$123,D$137,FALSE) -> 0 | E158: =VLOOKUP(Vlookup!$B123,'CDCM Volume Forecasts'!$A$27:$AG$123,E$137,FALSE) -> 0 | F158: =VLOOKUP(Vlookup!$B123,'CDCM Volume Forecasts'!$A$27:$AG$123,F$137,FALSE) -> 0 | G158: =VLOOKUP(Vlookup!$B123,'CDCM Volume Forecasts'!$A$27:$AG$123,G$137,FALSE) -> 0
A159: Small Non Domestic Two Rate | B159: =VLOOKUP(Vlookup!$B124,'CDCM Volume Forecasts'!$A$27:$AG$123,B$137,FALSE) -> 568937.2659 | C159: =VLOOKUP(Vlookup!$B124,'CDCM Volume Forecasts'!$A$27:$AG$123,C$137,FALSE) -> 222476.7168 | D159: =VLOOKUP(Vlookup!$B124,'CDCM Volume Forecasts'!$A$27:$AG$123,D$137,FALSE) -> 0 | E159: =VLOOKUP(Vlookup!$B124,'CDCM Volume Forecasts'!$A$27:$AG$123,E$137,FALSE) -> 33422 | F159: =VLOOKUP(Vlookup!$B124,'CDCM Volume Forecasts'!$A$27:$AG$123,F$137,FALSE) -> 0 | G159: =VLOOKUP(Vlookup!$B124,'CDCM Volume Forecasts'!$A$27:$AG$123,G$137,FALSE) -> 0
A160: LDNO LV: Small Non Domestic Two Rate | B160: =VLOOKUP(Vlookup!$B125,'CDCM Volume Forecasts'!$A$27:$AG$123,B$137,FALSE) -> 52.28009524 | C160: =VLOOKUP(Vlookup!$B125,'CDCM Volume Forecasts'!$A$27:$AG$123,C$137,FALSE) -> 50.5447381 | D160: =VLOOKUP(Vlookup!$B125,'CDCM Volume Forecasts'!$A$27:$AG$123,D$137,FALSE) -> 0 | E160: =VLOOKUP(Vlookup!$B125,'CDCM Volume Forecasts'!$A$27:$AG$123,E$137,FALSE) -> 31 | F160: =VLOOKUP(Vlookup!$B125,'CDCM Volume Forecasts'!$A$27:$AG$123,F$137,FALSE) -> 0 | G160: =VLOOKUP(Vlookup!$B125,'CDCM Volume Forecasts'!$A$27:$AG$123,G$137,FALSE) -> 0
A161: LDNO HV: Small Non Domestic Two Rate | B161: =VLOOKUP(Vlookup!$B126,'CDCM Volume Forecasts'!$A$27:$AG$123,B$137,FALSE) -> 0 | C161: =VLOOKUP(Vlookup!$B126,'CDCM Volume Forecasts'!$A$27:$AG$123,C$137,FALSE) -> 0 | D161: =VLOOKUP(Vlookup!$B126,'CDCM Volume Forecasts'!$A$27:$AG$123,D$137,FALSE) -> 0 | E161: =VLOOKUP(Vlookup!$B126,'CDCM Volume Forecasts'!$A$27:$AG$123,E$137,FALSE) -> 0 | F161: =VLOOKUP(Vlookup!$B126,'CDCM Volume Forecasts'!$A$27:$AG$123,F$137,FALSE) -> 0 | G161: =VLOOKUP(Vlookup!$B126,'CDCM Volume Forecasts'!$A$27:$AG$123,G$137,FALSE) -> 0
A162: > Small Non Domestic Off Peak (related MPAN) | B162: =VLOOKUP(Vlookup!$B127,'CDCM Volume Forecasts'!$A$27:$AG$123,B$137,FALSE) -> 0 | C162: =VLOOKUP(Vlookup!$B127,'CDCM Volume Forecasts'!$A$27:$AG$123,C$137,FALSE) -> 0 | D162: =VLOOKUP(Vlookup!$B127,'CDCM Volume Forecasts'!$A$27:$AG$123,D$137,FALSE) -> 0 | E162: =VLOOKUP(Vlookup!$B127,'CDCM Volume Forecasts'!$A$27:$AG$123,E$137,FALSE) -> 0 | F162: =VLOOKUP(Vlookup!$B127,'CDCM Volume Forecasts'!$A$27:$AG$123,F$137,FALSE) -> 0 | G162: =VLOOKUP(Vlookup!$B127,'CDCM Volume Forecasts'!$A$27:$AG$123,G$137,FALSE) -> 0
A163: Small Non Domestic Off Peak (related MPAN) | B163: =VLOOKUP(Vlookup!$B128,'CDCM Volume Forecasts'!$A$27:$AG$123,B$137,FALSE) -> 18224.06563 | C163: =VLOOKUP(Vlookup!$B128,'CDCM Volume Forecasts'!$A$27:$AG$123,C$137,FALSE) -> 0 | D163: =VLOOKUP(Vlookup!$B128,'CDCM Volume Forecasts'!$A$27:$AG$123,D$137,FALSE) -> 0 | E163: =VLOOKUP(Vlookup!$B128,'CDCM Volume Forecasts'!$A$27:$AG$123,E$137,FALSE) -> 3531 | F163: =VLOOKUP(Vlookup!$B128,'CDCM Volume Forecasts'!$A$27:$AG$123,F$137,FALSE) -> 0 | G163: =VLOOKUP(Vlookup!$B128,'CDCM Volume Forecasts'!$A$27:$AG$123,G$137,FALSE) -> 0
A164: LDNO LV: Small Non Domestic Off Peak (related MPAN) | B164: =VLOOKUP(Vlookup!$B129,'CDCM Volume Forecasts'!$A$27:$AG$123,B$137,FALSE) -> 0 | C164: =VLOOKUP(Vlookup!$B129,'CDCM Volume Forecasts'!$A$27:$AG$123,C$137,FALSE) -> 0 | D164: =VLOOKUP(Vlookup!$B129,'CDCM Volume Forecasts'!$A$27:$AG$123,D$137,FALSE) -> 0 | E164: =VLOOKUP(Vlookup!$B129,'CDCM Volume Forecasts'!$A$27:$AG$123,E$137,FALSE) -> 0 | F164: =VLOOKUP(Vlookup!$B129,'CDCM Volume Forecasts'!$A$27:$AG$123,F$137,FALSE) -> 0 | G164: =VLOOKUP(Vlookup!$B129,'CDCM Volume Forecasts'!$A$27:$AG$123,G$137,FALSE) -> 0
A165: LDNO HV: Small Non Domestic Off Peak (related MPAN) | B165: =VLOOKUP(Vlookup!$B130,'CDCM Volume Forecasts'!$A$27:$AG$123,B$137,FALSE) -> 0 | C165: =VLOOKUP(Vlookup!$B130,'CDCM Volume Forecasts'!$A$27:$AG$123,C$137,FALSE) -> 0 | D165: =VLOOKUP(Vlookup!$B130,'CDCM Volume Forecasts'!$A$27:$AG$123,D$137,FALSE) -> 0 | E165: =VLOOKUP(Vlookup!$B130,'CDCM Volume Forecasts'!$A$27:$AG$123,E$137,FALSE) -> 0 | F165: =VLOOKUP(Vlookup!$B130,'CDCM Volume Forecasts'!$A$27:$AG$123,F$137,FALSE) -> 0 | G165: =VLOOKUP(Vlookup!$B130,'CDCM Volume Forecasts'!$A$27:$AG$123,G$137,FALSE) -> 0
A166: > LV Medium Non-Domestic | B166: =VLOOKUP(Vlookup!$B131,'CDCM Volume Forecasts'!$A$27:$AG$123,B$137,FALSE) -> 0 | C166: =VLOOKUP(Vlookup!$B131,'CDCM Volume Forecasts'!$A$27:$AG$123,C$137,FALSE) -> 0 | D166: =VLOOKUP(Vlookup!$B131,'CDCM Volume Forecasts'!$A$27:$AG$123,D$137,FALSE) -> 0 | E166: =VLOOKUP(Vlookup!$B131,'CDCM Volume Forecasts'!$A$27:$AG$123,E$137,FALSE) -> 0 | F166: =VLOOKUP(Vlookup!$B131,'CDCM Volume Forecasts'!$A$27:$AG$123,F$137,FALSE) -> 0 | G166: =VLOOKUP(Vlookup!$B131,'CDCM Volume Forecasts'!$A$27:$AG$123,G$137,FALSE) -> 0
A167: LV Medium Non-Domestic | B167: =VLOOKUP(Vlookup!$B132,'CDCM Volume Forecasts'!$A$27:$AG$123,B$137,FALSE) -> 0 | C167: =VLOOKUP(Vlookup!$B132,'CDCM Volume Forecasts'!$A$27:$AG$123,C$137,FALSE) -> 0 | D167: =VLOOKUP(Vlookup!$B132,'CDCM Volume Forecasts'!$A$27:$AG$123,D$137,FALSE) -> 0 | E167: =VLOOKUP(Vlookup!$B132,'CDCM Volume Forecasts'!$A$27:$AG$123,E$137,FALSE) -> 0 | F167: =VLOOKUP(Vlookup!$B132,'CDCM Volume Forecasts'!$A$27:$AG$123,F$137,FALSE) -> 0 | G167: =VLOOKUP(Vlookup!$B132,'CDCM Volume Forecasts'!$A$27:$AG$123,G$137,FALSE) -> 0
A168: LDNO LV: LV Medium Non-Domestic | B168: =VLOOKUP(Vlookup!$B133,'CDCM Volume Forecasts'!$A$27:$AG$123,B$137,FALSE) -> 0 | C168: =VLOOKUP(Vlookup!$B133,'CDCM Volume Forecasts'!$A$27:$AG$123,C$137,FALSE) -> 0 | D168: =VLOOKUP(Vlookup!$B133,'CDCM Volume Forecasts'!$A$27:$AG$123,D$137,FALSE) -> 0 | E168: =VLOOKUP(Vlookup!$B133,'CDCM Volume Forecasts'!$A$27:$AG$123,E$137,FALSE) -> 0 | F168: =VLOOKUP(Vlookup!$B133,'CDCM Volume Forecasts'!$A$27:$AG$123,F$137,FALSE) -> 0 | G168: =VLOOKUP(Vlookup!$B133,'CDCM Volume Forecasts'!$A$27:$AG$123,G$137,FALSE) -> 0
A169: LDNO HV: LV Medium Non-Domestic | B169: =VLOOKUP(Vlookup!$B134,'CDCM Volume Forecasts'!$A$27:$AG$123,B$137,FALSE) -> 0 | C169: =VLOOKUP(Vlookup!$B134,'CDCM Volume Forecasts'!$A$27:$AG$123,C$137,FALSE) -> 0 | D169: =VLOOKUP(Vlookup!$B134,'CDCM Volume Forecasts'!$A$27:$AG$123,D$137,FALSE) -> 0 | E169: =VLOOKUP(Vlookup!$B134,'CDCM Volume Forecasts'!$A$27:$AG$123,E$137,FALSE) -> 0 | F169: =VLOOKUP(Vlookup!$B134,'CDCM Volume Forecasts'!$A$27:$AG$123,F$137,FALSE) -> 0 | G169: =VLOOKUP(Vlookup!$B134,'CDCM Volume Forecasts'!$A$27:$AG$123,G$137,FALSE) -> 0
A170: > LV Sub Medium Non-Domestic | B170: =VLOOKUP(Vlookup!$B135,'CDCM Volume Forecasts'!$A$27:$AG$123,B$137,FALSE) -> 0 | C170: =VLOOKUP(Vlookup!$B135,'CDCM Volume Forecasts'!$A$27:$AG$123,C$137,FALSE) -> 0 | D170: =VLOOKUP(Vlookup!$B135,'CDCM Volume Forecasts'!$A$27:$AG$123,D$137,FALSE) -> 0 | E170: =VLOOKUP(Vlookup!$B135,'CDCM Volume Forecasts'!$A$27:$AG$123,E$137,FALSE) -> 0 | F170: =VLOOKUP(Vlookup!$B135,'CDCM Volume Forecasts'!$A$27:$AG$123,F$137,FALSE) -> 0 | G170: =VLOOKUP(Vlookup!$B135,'CDCM Volume Forecasts'!$A$27:$AG$123,G$137,FALSE) -> 0
A171: LV Sub Medium Non-Domestic | B171: =VLOOKUP(Vlookup!$B136,'CDCM Volume Forecasts'!$A$27:$AG$123,B$137,FALSE) -> 0 | C171: =VLOOKUP(Vlookup!$B136,'CDCM Volume Forecasts'!$A$27:$AG$123,C$137,FALSE) -> 0 | D171: =VLOOKUP(Vlookup!$B136,'CDCM Volume Forecasts'!$A$27:$AG$123,D$137,FALSE) -> 0 | E171: =VLOOKUP(Vlookup!$B136,'CDCM Volume Forecasts'!$A$27:$AG$123,E$137,FALSE) -> 0 | F171: =VLOOKUP(Vlookup!$B136,'CDCM Volume Forecasts'!$A$27:$AG$123,F$137,FALSE) -> 0 | G171: =VLOOKUP(Vlookup!$B136,'CDCM Volume Forecasts'!$A$27:$AG$123,G$137,FALSE) -> 0
A172: > HV Medium Non-Domestic | B172: =VLOOKUP(Vlookup!$B137,'CDCM Volume Forecasts'!$A$27:$AG$123,B$137,FALSE) -> 0 | C172: =VLOOKUP(Vlookup!$B137,'CDCM Volume Forecasts'!$A$27:$AG$123,C$137,FALSE) -> 0 | D172: =VLOOKUP(Vlookup!$B137,'CDCM Volume Forecasts'!$A$27:$AG$123,D$137,FALSE) -> 0 | E172: =VLOOKUP(Vlookup!$B137,'CDCM Volume Forecasts'!$A$27:$AG$123,E$137,FALSE) -> 0 | F172: =VLOOKUP(Vlookup!$B137,'CDCM Volume Forecasts'!$A$27:$AG$123,F$137,FALSE) -> 0 | G172: =VLOOKUP(Vlookup!$B137,'CDCM Volume Forecasts'!$A$27:$AG$123,G$137,FALSE) -> 0
A173: HV Medium Non-Domestic | B173: =VLOOKUP(Vlookup!$B138,'CDCM Volume Forecasts'!$A$27:$AG$123,B$137,FALSE) -> 5720.366044 | C173: =VLOOKUP(Vlookup!$B138,'CDCM Volume Forecasts'!$A$27:$AG$123,C$137,FALSE) -> 1573.219987 | D173: =VLOOKUP(Vlookup!$B138,'CDCM Volume Forecasts'!$A$27:$AG$123,D$137,FALSE) -> 0 | E173: =VLOOKUP(Vlookup!$B138,'CDCM Volume Forecasts'!$A$27:$AG$123,E$137,FALSE) -> 60 | F173: =VLOOKUP(Vlookup!$B138,'CDCM Volume Forecasts'!$A$27:$AG$123,F$137,FALSE) -> 0 | G173: =VLOOKUP(Vlookup!$B138,'CDCM Volume Forecasts'!$A$27:$AG$123,G$137,FALSE) -> 0
A174: > LV Network Domestic | B174: =VLOOKUP(Vlookup!$B139,'CDCM Volume Forecasts'!$A$27:$AG$123,B$137,FALSE) -> 0 | C174: =VLOOKUP(Vlookup!$B139,'CDCM Volume Forecasts'!$A$27:$AG$123,C$137,FALSE) -> 0 | D174: =VLOOKUP(Vlookup!$B139,'CDCM Volume Forecasts'!$A$27:$AG$123,D$137,FALSE) -> 0 | E174: =VLOOKUP(Vlookup!$B139,'CDCM Volume Forecasts'!$A$27:$AG$123,E$137,FALSE) -> 0 | F174: =VLOOKUP(Vlookup!$B139,'CDCM Volume Forecasts'!$A$27:$AG$123,F$137,FALSE) -> 0 | G174: =VLOOKUP(Vlookup!$B139,'CDCM Volume Forecasts'!$A$27:$AG$123,G$137,FALSE) -> 0
A175: LV Network Domestic | B175: =VLOOKUP(Vlookup!$B140,'CDCM Volume Forecasts'!$A$27:$AG$123,B$137,FALSE) -> 0 | C175: =VLOOKUP(Vlookup!$B140,'CDCM Volume Forecasts'!$A$27:$AG$123,C$137,FALSE) -> 0 | D175: =VLOOKUP(Vlookup!$B140,'CDCM Volume Forecasts'!$A$27:$AG$123,D$137,FALSE) -> 0 | E175: =VLOOKUP(Vlookup!$B140,'CDCM Volume Forecasts'!$A$27:$AG$123,E$137,FALSE) -> 0 | F175: =VLOOKUP(Vlookup!$B140,'CDCM Volume Forecasts'!$A$27:$AG$123,F$137,FALSE) -> 0 | G175: =VLOOKUP(Vlookup!$B140,'CDCM Volume Forecasts'!$A$27:$AG$123,G$137,FALSE) -> 0
A176: LDNO LV: LV Network Domestic | B176: =VLOOKUP(Vlookup!$B141,'CDCM Volume Forecasts'!$A$27:$AG$123,B$137,FALSE) -> 0 | C176: =VLOOKUP(Vlookup!$B141,'CDCM Volume Forecasts'!$A$27:$AG$123,C$137,FALSE) -> 0 | D176: =VLOOKUP(Vlookup!$B141,'CDCM Volume Forecasts'!$A$27:$AG$123,D$137,FALSE) -> 0 | E176: =VLOOKUP(Vlookup!$B141,'CDCM Volume Forecasts'!$A$27:$AG$123,E$137,FALSE) -> 0 | F176: =VLOOKUP(Vlookup!$B141,'CDCM Volume Forecasts'!$A$27:$AG$123,F$137,FALSE) -> 0 | G176: =VLOOKUP(Vlookup!$B141,'CDCM Volume Forecasts'!$A$27:$AG$123,G$137,FALSE) -> 0
A177: LDNO HV: LV Network Domestic | B177: =VLOOKUP(Vlookup!$B142,'CDCM Volume Forecasts'!$A$27:$AG$123,B$137,FALSE) -> 0 | C177: =VLOOKUP(Vlookup!$B142,'CDCM Volume Forecasts'!$A$27:$AG$123,C$137,FALSE) -> 0 | D177: =VLOOKUP(Vlookup!$B142,'CDCM Volume Forecasts'!$A$27:$AG$123,D$137,FALSE) -> 0 | E177: =VLOOKUP(Vlookup!$B142,'CDCM Volume Forecasts'!$A$27:$AG$123,E$137,FALSE) -> 0 | F177: =VLOOKUP(Vlookup!$B142,'CDCM Volume Forecasts'!$A$27:$AG$123,F$137,FALSE) -> 0 | G177: =VLOOKUP(Vlookup!$B142,'CDCM Volume Forecasts'!$A$27:$AG$123,G$137,FALSE) -> 0
A178: > LV Network Non-Domestic Non-CT | B178: =VLOOKUP(Vlookup!$B143,'CDCM Volume Forecasts'!$A$27:$AG$123,B$137,FALSE) -> 0 | C178: =VLOOKUP(Vlookup!$B143,'CDCM Volume Forecasts'!$A$27:$AG$123,C$137,FALSE) -> 0 | D178: =VLOOKUP(Vlookup!$B143,'CDCM Volume Forecasts'!$A$27:$AG$123,D$137,FALSE) -> 0 | E178: =VLOOKUP(Vlookup!$B143,'CDCM Volume Forecasts'!$A$27:$AG$123,E$137,FALSE) -> 0 | F178: =VLOOKUP(Vlookup!$B143,'CDCM Volume Forecasts'!$A$27:$AG$123,F$137,FALSE) -> 0 | G178: =VLOOKUP(Vlookup!$B143,'CDCM Volume Forecasts'!$A$27:$AG$123,G$137,FALSE) -> 0
A179: LV Network Non-Domestic Non-CT | B179: =VLOOKUP(Vlookup!$B144,'CDCM Volume Forecasts'!$A$27:$AG$123,B$137,FALSE) -> 55950.10331 | C179: =VLOOKUP(Vlookup!$B144,'CDCM Volume Forecasts'!$A$27:$AG$123,C$137,FALSE) -> 198560.7481 | D179: =VLOOKUP(Vlookup!$B144,'CDCM Volume Forecasts'!$A$27:$AG$123,D$137,FALSE) -> 257739.1294 | E179: =VLOOKUP(Vlookup!$B144,'CDCM Volume Forecasts'!$A$27:$AG$123,E$137,FALSE) -> 5419.348 | F179: =VLOOKUP(Vlookup!$B144,'CDCM Volume Forecasts'!$A$27:$AG$123,F$137,FALSE) -> 0 | G179: =VLOOKUP(Vlookup!$B144,'CDCM Volume Forecasts'!$A$27:$AG$123,G$137,FALSE) -> 0
A180: LDNO LV: LV Network Non-Domestic Non-CT | B180: =VLOOKUP(Vlookup!$B145,'CDCM Volume Forecasts'!$A$27:$AG$123,B$137,FALSE) -> 0 | C180: =VLOOKUP(Vlookup!$B145,'CDCM Volume Forecasts'!$A$27:$AG$123,C$137,FALSE) -> 0 | D180: =VLOOKUP(Vlookup!$B145,'CDCM Volume Forecasts'!$A$27:$AG$123,D$137,FALSE) -> 0 | E180: =VLOOKUP(Vlookup!$B145,'CDCM Volume Forecasts'!$A$27:$AG$123,E$137,FALSE) -> 0 | F180: =VLOOKUP(Vlookup!$B145,'CDCM Volume Forecasts'!$A$27:$AG$123,F$137,FALSE) -> 0 | G180: =VLOOKUP(Vlookup!$B145,'CDCM Volume Forecasts'!$A$27:$AG$123,G$137,FALSE) -> 0
A181: LDNO HV: LV Network Non-Domestic Non-CT | B181: =VLOOKUP(Vlookup!$B146,'CDCM Volume Forecasts'!$A$27:$AG$123,B$137,FALSE) -> 0 | C181: =VLOOKUP(Vlookup!$B146,'CDCM Volume Forecasts'!$A$27:$AG$123,C$137,FALSE) -> 0 | D181: =VLOOKUP(Vlookup!$B146,'CDCM Volume Forecasts'!$A$27:$AG$123,D$137,FALSE) -> 0 | E181: =VLOOKUP(Vlookup!$B146,'CDCM Volume Forecasts'!$A$27:$AG$123,E$137,FALSE) -> 0 | F181: =VLOOKUP(Vlookup!$B146,'CDCM Volume Forecasts'!$A$27:$AG$123,F$137,FALSE) -> 0 | G181: =VLOOKUP(Vlookup!$B146,'CDCM Volume Forecasts'!$A$27:$AG$123,G$137,FALSE) -> 0
A182: > LV HH Metered | B182: =VLOOKUP(Vlookup!$B147,'CDCM Volume Forecasts'!$A$27:$AG$123,B$137,FALSE) -> 0 | C182: =VLOOKUP(Vlookup!$B147,'CDCM Volume Forecasts'!$A$27:$AG$123,C$137,FALSE) -> 0 | D182: =VLOOKUP(Vlookup!$B147,'CDCM Volume Forecasts'!$A$27:$AG$123,D$137,FALSE) -> 0 | E182: =VLOOKUP(Vlookup!$B147,'CDCM Volume Forecasts'!$A$27:$AG$123,E$137,FALSE) -> 0 | F182: =VLOOKUP(Vlookup!$B147,'CDCM Volume Forecasts'!$A$27:$AG$123,F$137,FALSE) -> 0 | G182: =VLOOKUP(Vlookup!$B147,'CDCM Volume Forecasts'!$A$27:$AG$123,G$137,FALSE) -> 0
A183: LV HH Metered | B183: =VLOOKUP(Vlookup!$B148,'CDCM Volume Forecasts'!$A$27:$AG$123,B$137,FALSE) -> 244292.4644 | C183: =VLOOKUP(Vlookup!$B148,'CDCM Volume Forecasts'!$A$27:$AG$123,C$137,FALSE) -> 866967.0226 | D183: =VLOOKUP(Vlookup!$B148,'CDCM Volume Forecasts'!$A$27:$AG$123,D$137,FALSE) -> 1125354.975 | E183: =VLOOKUP(Vlookup!$B148,'CDCM Volume Forecasts'!$A$27:$AG$123,E$137,FALSE) -> 11578.652 | F183: =VLOOKUP(Vlookup!$B148,'CDCM Volume Forecasts'!$A$27:$AG$123,F$137,FALSE) -> 1587209.939 | G183: =VLOOKUP(Vlookup!$B148,'CDCM Volume Forecasts'!$A$27:$AG$123,G$137,FALSE) -> 265954.621
A184: LDNO LV: LV HH Metered | B184: =VLOOKUP(Vlookup!$B149,'CDCM Volume Forecasts'!$A$27:$AG$123,B$137,FALSE) -> 361.5360613 | C184: =VLOOKUP(Vlookup!$B149,'CDCM Volume Forecasts'!$A$27:$AG$123,C$137,FALSE) -> 1449.294398 | D184: =VLOOKUP(Vlookup!$B149,'CDCM Volume Forecasts'!$A$27:$AG$123,D$137,FALSE) -> 1870.006068 | E184: =VLOOKUP(Vlookup!$B149,'CDCM Volume Forecasts'!$A$27:$AG$123,E$137,FALSE) -> 14 | F184: =VLOOKUP(Vlookup!$B149,'CDCM Volume Forecasts'!$A$27:$AG$123,F$137,FALSE) -> 2646.113944 | G184: =VLOOKUP(Vlookup!$B149,'CDCM Volume Forecasts'!$A$27:$AG$123,G$137,FALSE) -> 225.8115
A185: LDNO HV: LV HH Metered | B185: =VLOOKUP(Vlookup!$B150,'CDCM Volume Forecasts'!$A$27:$AG$123,B$137,FALSE) -> 4260.096819 | C185: =VLOOKUP(Vlookup!$B150,'CDCM Volume Forecasts'!$A$27:$AG$123,C$137,FALSE) -> 18802.33796 | D185: =VLOOKUP(Vlookup!$B150,'CDCM Volume Forecasts'!$A$27:$AG$123,D$137,FALSE) -> 26301.19828 | E185: =VLOOKUP(Vlookup!$B150,'CDCM Volume Forecasts'!$A$27:$AG$123,E$137,FALSE) -> 103 | F185: =VLOOKUP(Vlookup!$B150,'CDCM Volume Forecasts'!$A$27:$AG$123,F$137,FALSE) -> 32190.17166 | G185: =VLOOKUP(Vlookup!$B150,'CDCM Volume Forecasts'!$A$27:$AG$123,G$137,FALSE) -> 1419.72137
A186: > LV Sub HH Metered | B186: =VLOOKUP(Vlookup!$B151,'CDCM Volume Forecasts'!$A$27:$AG$123,B$137,FALSE) -> 0 | C186: =VLOOKUP(Vlookup!$B151,'CDCM Volume Forecasts'!$A$27:$AG$123,C$137,FALSE) -> 0 | D186: =VLOOKUP(Vlookup!$B151,'CDCM Volume Forecasts'!$A$27:$AG$123,D$137,FALSE) -> 0 | E186: =VLOOKUP(Vlookup!$B151,'CDCM Volume Forecasts'!$A$27:$AG$123,E$137,FALSE) -> 0 | F186: =VLOOKUP(Vlookup!$B151,'CDCM Volume Forecasts'!$A$27:$AG$123,F$137,FALSE) -> 0 | G186: =VLOOKUP(Vlookup!$B151,'CDCM Volume Forecasts'!$A$27:$AG$123,G$137,FALSE) -> 0
A187: LV Sub HH Metered | B187: =VLOOKUP(Vlookup!$B152,'CDCM Volume Forecasts'!$A$27:$AG$123,B$137,FALSE) -> 136748.2527 | C187: =VLOOKUP(Vlookup!$B152,'CDCM Volume Forecasts'!$A$27:$AG$123,C$137,FALSE) -> 496870.2637 | D187: =VLOOKUP(Vlookup!$B152,'CDCM Volume Forecasts'!$A$27:$AG$123,D$137,FALSE) -> 664276.6984 | E187: =VLOOKUP(Vlookup!$B152,'CDCM Volume Forecasts'!$A$27:$AG$123,E$137,FALSE) -> 2212 | F187: =VLOOKUP(Vlookup!$B152,'CDCM Volume Forecasts'!$A$27:$AG$123,F$137,FALSE) -> 761063.6018 | G187: =VLOOKUP(Vlookup!$B152,'CDCM Volume Forecasts'!$A$27:$AG$123,G$137,FALSE) -> 114518.556
A188: LDNO HV: LV Sub HH Metered | B188: =VLOOKUP(Vlookup!$B153,'CDCM Volume Forecasts'!$A$27:$AG$123,B$137,FALSE) -> 55.898 | C188: =VLOOKUP(Vlookup!$B153,'CDCM Volume Forecasts'!$A$27:$AG$123,C$137,FALSE) -> 263.531 | D188: =VLOOKUP(Vlookup!$B153,'CDCM Volume Forecasts'!$A$27:$AG$123,D$137,FALSE) -> 372.9865 | E188: =VLOOKUP(Vlookup!$B153,'CDCM Volume Forecasts'!$A$27:$AG$123,E$137,FALSE) -> 3 | F188: =VLOOKUP(Vlookup!$B153,'CDCM Volume Forecasts'!$A$27:$AG$123,F$137,FALSE) -> 1283.550564 | G188: =VLOOKUP(Vlookup!$B153,'CDCM Volume Forecasts'!$A$27:$AG$123,G$137,FALSE) -> 2.403
A189: > HV HH Metered | B189: =VLOOKUP(Vlookup!$B154,'CDCM Volume Forecasts'!$A$27:$AG$123,B$137,FALSE) -> 0 | C189: =VLOOKUP(Vlookup!$B154,'CDCM Volume Forecasts'!$A$27:$AG$123,C$137,FALSE) -> 0 | D189: =VLOOKUP(Vlookup!$B154,'CDCM Volume Forecasts'!$A$27:$AG$123,D$137,FALSE) -> 0 | E189: =VLOOKUP(Vlookup!$B154,'CDCM Volume Forecasts'!$A$27:$AG$123,E$137,FALSE) -> 0 | F189: =VLOOKUP(Vlookup!$B154,'CDCM Volume Forecasts'!$A$27:$AG$123,F$137,FALSE) -> 0 | G189: =VLOOKUP(Vlookup!$B154,'CDCM Volume Forecasts'!$A$27:$AG$123,G$137,FALSE) -> 0
A190: HV HH Metered | B190: =VLOOKUP(Vlookup!$B155,'CDCM Volume Forecasts'!$A$27:$AG$123,B$137,FALSE) -> 509012.1883 | C190: =VLOOKUP(Vlookup!$B155,'CDCM Volume Forecasts'!$A$27:$AG$123,C$137,FALSE) -> 1735465.954 | D190: =VLOOKUP(Vlookup!$B155,'CDCM Volume Forecasts'!$A$27:$AG$123,D$137,FALSE) -> 2850377.001 | E190: =VLOOKUP(Vlookup!$B155,'CDCM Volume Forecasts'!$A$27:$AG$123,E$137,FALSE) -> 2113 | F190: =VLOOKUP(Vlookup!$B155,'CDCM Volume Forecasts'!$A$27:$AG$123,F$137,FALSE) -> 1827943.009 | G190: =VLOOKUP(Vlookup!$B155,'CDCM Volume Forecasts'!$A$27:$AG$123,G$137,FALSE) -> 388553.7762
A191: LDNO HV: HV HH Metered | B191: =VLOOKUP(Vlookup!$B156,'CDCM Volume Forecasts'!$A$27:$AG$123,B$137,FALSE) -> 1687.666718 | C191: =VLOOKUP(Vlookup!$B156,'CDCM Volume Forecasts'!$A$27:$AG$123,C$137,FALSE) -> 7361.053297 | D191: =VLOOKUP(Vlookup!$B156,'CDCM Volume Forecasts'!$A$27:$AG$123,D$137,FALSE) -> 13066.88076 | E191: =VLOOKUP(Vlookup!$B156,'CDCM Volume Forecasts'!$A$27:$AG$123,E$137,FALSE) -> 9 | F191: =VLOOKUP(Vlookup!$B156,'CDCM Volume Forecasts'!$A$27:$AG$123,F$137,FALSE) -> 14521.48613 | G191: =VLOOKUP(Vlookup!$B156,'CDCM Volume Forecasts'!$A$27:$AG$123,G$137,FALSE) -> 78.66968
A192: > NHH UMS category A | B192: =VLOOKUP(Vlookup!$B157,'CDCM Volume Forecasts'!$A$27:$AG$123,B$137,FALSE) -> 0 | C192: =VLOOKUP(Vlookup!$B157,'CDCM Volume Forecasts'!$A$27:$AG$123,C$137,FALSE) -> 0 | D192: =VLOOKUP(Vlookup!$B157,'CDCM Volume Forecasts'!$A$27:$AG$123,D$137,FALSE) -> 0 | E192: =VLOOKUP(Vlookup!$B157,'CDCM Volume Forecasts'!$A$27:$AG$123,E$137,FALSE) -> 0 | F192: =VLOOKUP(Vlookup!$B157,'CDCM Volume Forecasts'!$A$27:$AG$123,F$137,FALSE) -> 0 | G192: =VLOOKUP(Vlookup!$B157,'CDCM Volume Forecasts'!$A$27:$AG$123,G$137,FALSE) -> 0
A193: NHH UMS category A | B193: =VLOOKUP(Vlookup!$B158,'CDCM Volume Forecasts'!$A$27:$AG$123,B$137,FALSE) -> 36671.23271 | C193: =VLOOKUP(Vlookup!$B158,'CDCM Volume Forecasts'!$A$27:$AG$123,C$137,FALSE) -> 0 | D193: =VLOOKUP(Vlookup!$B158,'CDCM Volume Forecasts'!$A$27:$AG$123,D$137,FALSE) -> 0 | E193: =VLOOKUP(Vlookup!$B158,'CDCM Volume Forecasts'!$A$27:$AG$123,E$137,FALSE) -> 244 | F193: =VLOOKUP(Vlookup!$B158,'CDCM Volume Forecasts'!$A$27:$AG$123,F$137,FALSE) -> 0 | G193: =VLOOKUP(Vlookup!$B158,'CDCM Volume Forecasts'!$A$27:$AG$123,G$137,FALSE) -> 0
A194: LDNO LV: NHH UMS category A | B194: =VLOOKUP(Vlookup!$B159,'CDCM Volume Forecasts'!$A$27:$AG$123,B$137,FALSE) -> 0 | C194: =VLOOKUP(Vlookup!$B159,'CDCM Volume Forecasts'!$A$27:$AG$123,C$137,FALSE) -> 0 | D194: =VLOOKUP(Vlookup!$B159,'CDCM Volume Forecasts'!$A$27:$AG$123,D$137,FALSE) -> 0 | E194: =VLOOKUP(Vlookup!$B159,'CDCM Volume Forecasts'!$A$27:$AG$123,E$137,FALSE) -> 0 | F194: =VLOOKUP(Vlookup!$B159,'CDCM Volume Forecasts'!$A$27:$AG$123,F$137,FALSE) -> 0 | G194: =VLOOKUP(Vlookup!$B159,'CDCM Volume Forecasts'!$A$27:$AG$123,G$137,FALSE) -> 0
A195: LDNO HV: NHH UMS category A | B195: =VLOOKUP(Vlookup!$B160,'CDCM Volume Forecasts'!$A$27:$AG$123,B$137,FALSE) -> 0 | C195: =VLOOKUP(Vlookup!$B160,'CDCM Volume Forecasts'!$A$27:$AG$123,C$137,FALSE) -> 0 | D195: =VLOOKUP(Vlookup!$B160,'CDCM Volume Forecasts'!$A$27:$AG$123,D$137,FALSE) -> 0 | E195: =VLOOKUP(Vlookup!$B160,'CDCM Volume Forecasts'!$A$27:$AG$123,E$137,FALSE) -> 0 | F195: =VLOOKUP(Vlookup!$B160,'CDCM Volume Forecasts'!$A$27:$AG$123,F$137,FALSE) -> 0 | G195: =VLOOKUP(Vlookup!$B160,'CDCM Volume Forecasts'!$A$27:$AG$123,G$137,FALSE) -> 0
A196: > NHH UMS category B | B196: =VLOOKUP(Vlookup!$B161,'CDCM Volume Forecasts'!$A$27:$AG$123,B$137,FALSE) -> 0 | C196: =VLOOKUP(Vlookup!$B161,'CDCM Volume Forecasts'!$A$27:$AG$123,C$137,FALSE) -> 0 | D196: =VLOOKUP(Vlookup!$B161,'CDCM Volume Forecasts'!$A$27:$AG$123,D$137,FALSE) -> 0 | E196: =VLOOKUP(Vlookup!$B161,'CDCM Volume Forecasts'!$A$27:$AG$123,E$137,FALSE) -> 0 | F196: =VLOOKUP(Vlookup!$B161,'CDCM Volume Forecasts'!$A$27:$AG$123,F$137,FALSE) -> 0 | G196: =VLOOKUP(Vlookup!$B161,'CDCM Volume Forecasts'!$A$27:$AG$123,G$137,FALSE) -> 0
A197: NHH UMS category B | B197: =VLOOKUP(Vlookup!$B162,'CDCM Volume Forecasts'!$A$27:$AG$123,B$137,FALSE) -> 9979.077425 | C197: =VLOOKUP(Vlookup!$B162,'CDCM Volume Forecasts'!$A$27:$AG$123,C$137,FALSE) -> 0 | D197: =VLOOKUP(Vlookup!$B162,'CDCM Volume Forecasts'!$A$27:$AG$123,D$137,FALSE) -> 0 | E197: =VLOOKUP(Vlookup!$B162,'CDCM Volume Forecasts'!$A$27:$AG$123,E$137,FALSE) -> 314 | F197: =VLOOKUP(Vlookup!$B162,'CDCM Volume Forecasts'!$A$27:$AG$123,F$137,FALSE) -> 0 | G197: =VLOOKUP(Vlookup!$B162,'CDCM Volume Forecasts'!$A$27:$AG$123,G$137,FALSE) -> 0
A198: LDNO LV: NHH UMS category B | B198: =VLOOKUP(Vlookup!$B163,'CDCM Volume Forecasts'!$A$27:$AG$123,B$137,FALSE) -> 149.5019649 | C198: =VLOOKUP(Vlookup!$B163,'CDCM Volume Forecasts'!$A$27:$AG$123,C$137,FALSE) -> 0 | D198: =VLOOKUP(Vlookup!$B163,'CDCM Volume Forecasts'!$A$27:$AG$123,D$137,FALSE) -> 0 | E198: =VLOOKUP(Vlookup!$B163,'CDCM Volume Forecasts'!$A$27:$AG$123,E$137,FALSE) -> 61 | F198: =VLOOKUP(Vlookup!$B163,'CDCM Volume Forecasts'!$A$27:$AG$123,F$137,FALSE) -> 0 | G198: =VLOOKUP(Vlookup!$B163,'CDCM Volume Forecasts'!$A$27:$AG$123,G$137,FALSE) -> 0
A199: LDNO HV: NHH UMS category B | B199: =VLOOKUP(Vlookup!$B164,'CDCM Volume Forecasts'!$A$27:$AG$123,B$137,FALSE) -> 173.1893333 | C199: =VLOOKUP(Vlookup!$B164,'CDCM Volume Forecasts'!$A$27:$AG$123,C$137,FALSE) -> 0 | D199: =VLOOKUP(Vlookup!$B164,'CDCM Volume Forecasts'!$A$27:$AG$123,D$137,FALSE) -> 0 | E199: =VLOOKUP(Vlookup!$B164,'CDCM Volume Forecasts'!$A$27:$AG$123,E$137,FALSE) -> 16 | F199: =VLOOKUP(Vlookup!$B164,'CDCM Volume Forecasts'!$A$27:$AG$123,F$137,FALSE) -> 0 | G199: =VLOOKUP(Vlookup!$B164,'CDCM Volume Forecasts'!$A$27:$AG$123,G$137,FALSE) -> 0
A200: > NHH UMS category C | B200: =VLOOKUP(Vlookup!$B165,'CDCM Volume Forecasts'!$A$27:$AG$123,B$137,FALSE) -> 0 | C200: =VLOOKUP(Vlookup!$B165,'CDCM Volume Forecasts'!$A$27:$AG$123,C$137,FALSE) -> 0 | D200: =VLOOKUP(Vlookup!$B165,'CDCM Volume Forecasts'!$A$27:$AG$123,D$137,FALSE) -> 0 | E200: =VLOOKUP(Vlookup!$B165,'CDCM Volume Forecasts'!$A$27:$AG$123,E$137,FALSE) -> 0 | F200: =VLOOKUP(Vlookup!$B165,'CDCM Volume Forecasts'!$A$27:$AG$123,F$137,FALSE) -> 0 | G200: =VLOOKUP(Vlookup!$B165,'CDCM Volume Forecasts'!$A$27:$AG$123,G$137,FALSE) -> 0
A201: NHH UMS category C | B201: =VLOOKUP(Vlookup!$B166,'CDCM Volume Forecasts'!$A$27:$AG$123,B$137,FALSE) -> 265.8081874 | C201: =VLOOKUP(Vlookup!$B166,'CDCM Volume Forecasts'!$A$27:$AG$123,C$137,FALSE) -> 0 | D201: =VLOOKUP(Vlookup!$B166,'CDCM Volume Forecasts'!$A$27:$AG$123,D$137,FALSE) -> 0 | E201: =VLOOKUP(Vlookup!$B166,'CDCM Volume Forecasts'!$A$27:$AG$123,E$137,FALSE) -> 7 | F201: =VLOOKUP(Vlookup!$B166,'CDCM Volume Forecasts'!$A$27:$AG$123,F$137,FALSE) -> 0 | G201: =VLOOKUP(Vlookup!$B166,'CDCM Volume Forecasts'!$A$27:$AG$123,G$137,FALSE) -> 0
A202: LDNO LV: NHH UMS category C | B202: =VLOOKUP(Vlookup!$B167,'CDCM Volume Forecasts'!$A$27:$AG$123,B$137,FALSE) -> 0 | C202: =VLOOKUP(Vlookup!$B167,'CDCM Volume Forecasts'!$A$27:$AG$123,C$137,FALSE) -> 0 | D202: =VLOOKUP(Vlookup!$B167,'CDCM Volume Forecasts'!$A$27:$AG$123,D$137,FALSE) -> 0 | E202: =VLOOKUP(Vlookup!$B167,'CDCM Volume Forecasts'!$A$27:$AG$123,E$137,FALSE) -> 0 | F202: =VLOOKUP(Vlookup!$B167,'CDCM Volume Forecasts'!$A$27:$AG$123,F$137,FALSE) -> 0 | G202: =VLOOKUP(Vlookup!$B167,'CDCM Volume Forecasts'!$A$27:$AG$123,G$137,FALSE) -> 0
A203: LDNO HV: NHH UMS category C | B203: =VLOOKUP(Vlookup!$B168,'CDCM Volume Forecasts'!$A$27:$AG$123,B$137,FALSE) -> 0 | C203: =VLOOKUP(Vlookup!$B168,'CDCM Volume Forecasts'!$A$27:$AG$123,C$137,FALSE) -> 0 | D203: =VLOOKUP(Vlookup!$B168,'CDCM Volume Forecasts'!$A$27:$AG$123,D$137,FALSE) -> 0 | E203: =VLOOKUP(Vlookup!$B168,'CDCM Volume Forecasts'!$A$27:$AG$123,E$137,FALSE) -> 0 | F203: =VLOOKUP(Vlookup!$B168,'CDCM Volume Forecasts'!$A$27:$AG$123,F$137,FALSE) -> 0 | G203: =VLOOKUP(Vlookup!$B168,'CDCM Volume Forecasts'!$A$27:$AG$123,G$137,FALSE) -> 0
A204: > NHH UMS category D | B204: =VLOOKUP(Vlookup!$B169,'CDCM Volume Forecasts'!$A$27:$AG$123,B$137,FALSE) -> 0 | C204: =VLOOKUP(Vlookup!$B169,'CDCM Volume Forecasts'!$A$27:$AG$123,C$137,FALSE) -> 0 | D204: =VLOOKUP(Vlookup!$B169,'CDCM Volume Forecasts'!$A$27:$AG$123,D$137,FALSE) -> 0 | E204: =VLOOKUP(Vlookup!$B169,'CDCM Volume Forecasts'!$A$27:$AG$123,E$137,FALSE) -> 0 | F204: =VLOOKUP(Vlookup!$B169,'CDCM Volume Forecasts'!$A$27:$AG$123,F$137,FALSE) -> 0 | G204: =VLOOKUP(Vlookup!$B169,'CDCM Volume Forecasts'!$A$27:$AG$123,G$137,FALSE) -> 0
A205: NHH UMS category D | B205: =VLOOKUP(Vlookup!$B170,'CDCM Volume Forecasts'!$A$27:$AG$123,B$137,FALSE) -> 0.07863787515 | C205: =VLOOKUP(Vlookup!$B170,'CDCM Volume Forecasts'!$A$27:$AG$123,C$137,FALSE) -> 0 | D205: =VLOOKUP(Vlookup!$B170,'CDCM Volume Forecasts'!$A$27:$AG$123,D$137,FALSE) -> 0 | E205: =VLOOKUP(Vlookup!$B170,'CDCM Volume Forecasts'!$A$27:$AG$123,E$137,FALSE) -> 1 | F205: =VLOOKUP(Vlookup!$B170,'CDCM Volume Forecasts'!$A$27:$AG$123,F$137,FALSE) -> 0 | G205: =VLOOKUP(Vlookup!$B170,'CDCM Volume Forecasts'!$A$27:$AG$123,G$137,FALSE) -> 0
A206: LDNO LV: NHH UMS category D | B206: =VLOOKUP(Vlookup!$B171,'CDCM Volume Forecasts'!$A$27:$AG$123,B$137,FALSE) -> 0 | C206: =VLOOKUP(Vlookup!$B171,'CDCM Volume Forecasts'!$A$27:$AG$123,C$137,FALSE) -> 0 | D206: =VLOOKUP(Vlookup!$B171,'CDCM Volume Forecasts'!$A$27:$AG$123,D$137,FALSE) -> 0 | E206: =VLOOKUP(Vlookup!$B171,'CDCM Volume Forecasts'!$A$27:$AG$123,E$137,FALSE) -> 0 | F206: =VLOOKUP(Vlookup!$B171,'CDCM Volume Forecasts'!$A$27:$AG$123,F$137,FALSE) -> 0 | G206: =VLOOKUP(Vlookup!$B171,'CDCM Volume Forecasts'!$A$27:$AG$123,G$137,FALSE) -> 0
A207: LDNO HV: NHH UMS category D | B207: =VLOOKUP(Vlookup!$B172,'CDCM Volume Forecasts'!$A$27:$AG$123,B$137,FALSE) -> 0 | C207: =VLOOKUP(Vlookup!$B172,'CDCM Volume Forecasts'!$A$27:$AG$123,C$137,FALSE) -> 0 | D207: =VLOOKUP(Vlookup!$B172,'CDCM Volume Forecasts'!$A$27:$AG$123,D$137,FALSE) -> 0 | E207: =VLOOKUP(Vlookup!$B172,'CDCM Volume Forecasts'!$A$27:$AG$123,E$137,FALSE) -> 0 | F207: =VLOOKUP(Vlookup!$B172,'CDCM Volume Forecasts'!$A$27:$AG$123,F$137,FALSE) -> 0 | G207: =VLOOKUP(Vlookup!$B172,'CDCM Volume Forecasts'!$A$27:$AG$123,G$137,FALSE) -> 0
A208: > LV UMS (Pseudo HH Metered) | B208: =VLOOKUP(Vlookup!$B173,'CDCM Volume Forecasts'!$A$27:$AG$123,B$137,FALSE) -> 0 | C208: =VLOOKUP(Vlookup!$B173,'CDCM Volume Forecasts'!$A$27:$AG$123,C$137,FALSE) -> 0 | D208: =VLOOKUP(Vlookup!$B173,'CDCM Volume Forecasts'!$A$27:$AG$123,D$137,FALSE) -> 0 | E208: =VLOOKUP(Vlookup!$B173,'CDCM Volume Forecasts'!$A$27:$AG$123,E$137,FALSE) -> 0 | F208: =VLOOKUP(Vlookup!$B173,'CDCM Volume Forecasts'!$A$27:$AG$123,F$137,FALSE) -> 0 | G208: =VLOOKUP(Vlookup!$B173,'CDCM Volume Forecasts'!$A$27:$AG$123,G$137,FALSE) -> 0
A209: LV UMS (Pseudo HH Metered) | B209: =VLOOKUP(Vlookup!$B174,'CDCM Volume Forecasts'!$A$27:$AG$123,B$137,FALSE) -> 14294.45497 | C209: =VLOOKUP(Vlookup!$B174,'CDCM Volume Forecasts'!$A$27:$AG$123,C$137,FALSE) -> 32942.96692 | D209: =VLOOKUP(Vlookup!$B174,'CDCM Volume Forecasts'!$A$27:$AG$123,D$137,FALSE) -> 213416.9559 | E209: =VLOOKUP(Vlookup!$B174,'CDCM Volume Forecasts'!$A$27:$AG$123,E$137,FALSE) -> 23 | F209: =VLOOKUP(Vlookup!$B174,'CDCM Volume Forecasts'!$A$27:$AG$123,F$137,FALSE) -> 0 | G209: =VLOOKUP(Vlookup!$B174,'CDCM Volume Forecasts'!$A$27:$AG$123,G$137,FALSE) -> 0
A210: LDNO LV: LV UMS (Pseudo HH Metered) | B210: =VLOOKUP(Vlookup!$B175,'CDCM Volume Forecasts'!$A$27:$AG$123,B$137,FALSE) -> 0 | C210: =VLOOKUP(Vlookup!$B175,'CDCM Volume Forecasts'!$A$27:$AG$123,C$137,FALSE) -> 0 | D210: =VLOOKUP(Vlookup!$B175,'CDCM Volume Forecasts'!$A$27:$AG$123,D$137,FALSE) -> 0 | E210: =VLOOKUP(Vlookup!$B175,'CDCM Volume Forecasts'!$A$27:$AG$123,E$137,FALSE) -> 0 | F210: =VLOOKUP(Vlookup!$B175,'CDCM Volume Forecasts'!$A$27:$AG$123,F$137,FALSE) -> 0 | G210: =VLOOKUP(Vlookup!$B175,'CDCM Volume Forecasts'!$A$27:$AG$123,G$137,FALSE) -> 0
A211: LDNO HV: LV UMS (Pseudo HH Metered) | B211: =VLOOKUP(Vlookup!$B176,'CDCM Volume Forecasts'!$A$27:$AG$123,B$137,FALSE) -> 0 | C211: =VLOOKUP(Vlookup!$B176,'CDCM Volume Forecasts'!$A$27:$AG$123,C$137,FALSE) -> 0 | D211: =VLOOKUP(Vlookup!$B176,'CDCM Volume Forecasts'!$A$27:$AG$123,D$137,FALSE) -> 0 | E211: =VLOOKUP(Vlookup!$B176,'CDCM Volume Forecasts'!$A$27:$AG$123,E$137,FALSE) -> 0 | F211: =VLOOKUP(Vlookup!$B176,'CDCM Volume Forecasts'!$A$27:$AG$123,F$137,FALSE) -> 0 | G211: =VLOOKUP(Vlookup!$B176,'CDCM Volume Forecasts'!$A$27:$AG$123,G$137,FALSE) -> 0
A212: > LV Generation NHH or Aggregate HH | B212: =VLOOKUP(Vlookup!$B177,'CDCM Volume Forecasts'!$A$27:$AG$123,B$137,FALSE) -> 0 | C212: =VLOOKUP(Vlookup!$B177,'CDCM Volume Forecasts'!$A$27:$AG$123,C$137,FALSE) -> 0 | D212: =VLOOKUP(Vlookup!$B177,'CDCM Volume Forecasts'!$A$27:$AG$123,D$137,FALSE) -> 0 | E212: =VLOOKUP(Vlookup!$B177,'CDCM Volume Forecasts'!$A$27:$AG$123,E$137,FALSE) -> 0 | F212: =VLOOKUP(Vlookup!$B177,'CDCM Volume Forecasts'!$A$27:$AG$123,F$137,FALSE) -> 0 | G212: =VLOOKUP(Vlookup!$B177,'CDCM Volume Forecasts'!$A$27:$AG$123,G$137,FALSE) -> 0
A213: LV Generation NHH or Aggregate HH | B213: =VLOOKUP(Vlookup!$B178,'CDCM Volume Forecasts'!$A$27:$AG$123,B$137,FALSE) -> 762.5555429 | C213: =VLOOKUP(Vlookup!$B178,'CDCM Volume Forecasts'!$A$27:$AG$123,C$137,FALSE) -> 0 | D213: =VLOOKUP(Vlookup!$B178,'CDCM Volume Forecasts'!$A$27:$AG$123,D$137,FALSE) -> 0 | E213: =VLOOKUP(Vlookup!$B178,'CDCM Volume Forecasts'!$A$27:$AG$123,E$137,FALSE) -> 61 | F213: =VLOOKUP(Vlookup!$B178,'CDCM Volume Forecasts'!$A$27:$AG$123,F$137,FALSE) -> 0 | G213: =VLOOKUP(Vlookup!$B178,'CDCM Volume Forecasts'!$A$27:$AG$123,G$137,FALSE) -> 0
A214: LDNO LV: LV Generation NHH or Aggregate HH | B214: =VLOOKUP(Vlookup!$B179,'CDCM Volume Forecasts'!$A$27:$AG$123,B$137,FALSE) -> 0 | C214: =VLOOKUP(Vlookup!$B179,'CDCM Volume Forecasts'!$A$27:$AG$123,C$137,FALSE) -> 0 | D214: =VLOOKUP(Vlookup!$B179,'CDCM Volume Forecasts'!$A$27:$AG$123,D$137,FALSE) -> 0 | E214: =VLOOKUP(Vlookup!$B179,'CDCM Volume Forecasts'!$A$27:$AG$123,E$137,FALSE) -> 0 | F214: =VLOOKUP(Vlookup!$B179,'CDCM Volume Forecasts'!$A$27:$AG$123,F$137,FALSE) -> 0 | G214: =VLOOKUP(Vlookup!$B179,'CDCM Volume Forecasts'!$A$27:$AG$123,G$137,FALSE) -> 0
A215: LDNO HV: LV Generation NHH or Aggregate HH | B215: =VLOOKUP(Vlookup!$B180,'CDCM Volume Forecasts'!$A$27:$AG$123,B$137,FALSE) -> 0 | C215: =VLOOKUP(Vlookup!$B180,'CDCM Volume Forecasts'!$A$27:$AG$123,C$137,FALSE) -> 0 | D215: =VLOOKUP(Vlookup!$B180,'CDCM Volume Forecasts'!$A$27:$AG$123,D$137,FALSE) -> 0 | E215: =VLOOKUP(Vlookup!$B180,'CDCM Volume Forecasts'!$A$27:$AG$123,E$137,FALSE) -> 0 | F215: =VLOOKUP(Vlookup!$B180,'CDCM Volume Forecasts'!$A$27:$AG$123,F$137,FALSE) -> 0 | G215: =VLOOKUP(Vlookup!$B180,'CDCM Volume Forecasts'!$A$27:$AG$123,G$137,FALSE) -> 0
A216: > LV Sub Generation NHH | B216: =VLOOKUP(Vlookup!$B181,'CDCM Volume Forecasts'!$A$27:$AG$123,B$137,FALSE) -> 0 | C216: =VLOOKUP(Vlookup!$B181,'CDCM Volume Forecasts'!$A$27:$AG$123,C$137,FALSE) -> 0 | D216: =VLOOKUP(Vlookup!$B181,'CDCM Volume Forecasts'!$A$27:$AG$123,D$137,FALSE) -> 0 | E216: =VLOOKUP(Vlookup!$B181,'CDCM Volume Forecasts'!$A$27:$AG$123,E$137,FALSE) -> 0 | F216: =VLOOKUP(Vlookup!$B181,'CDCM Volume Forecasts'!$A$27:$AG$123,F$137,FALSE) -> 0 | G216: =VLOOKUP(Vlookup!$B181,'CDCM Volume Forecasts'!$A$27:$AG$123,G$137,FALSE) -> 0
A217: LV Sub Generation NHH | B217: =VLOOKUP(Vlookup!$B182,'CDCM Volume Forecasts'!$A$27:$AG$123,B$137,FALSE) -> 0 | C217: =VLOOKUP(Vlookup!$B182,'CDCM Volume Forecasts'!$A$27:$AG$123,C$137,FALSE) -> 0 | D217: =VLOOKUP(Vlookup!$B182,'CDCM Volume Forecasts'!$A$27:$AG$123,D$137,FALSE) -> 0 | E217: =VLOOKUP(Vlookup!$B182,'CDCM Volume Forecasts'!$A$27:$AG$123,E$137,FALSE) -> 0 | F217: =VLOOKUP(Vlookup!$B182,'CDCM Volume Forecasts'!$A$27:$AG$123,F$137,FALSE) -> 0 | G217: =VLOOKUP(Vlookup!$B182,'CDCM Volume Forecasts'!$A$27:$AG$123,G$137,FALSE) -> 0
A218: LDNO HV: LV Sub Generation NHH | B218: =VLOOKUP(Vlookup!$B183,'CDCM Volume Forecasts'!$A$27:$AG$123,B$137,FALSE) -> 0 | C218: =VLOOKUP(Vlookup!$B183,'CDCM Volume Forecasts'!$A$27:$AG$123,C$137,FALSE) -> 0 | D218: =VLOOKUP(Vlookup!$B183,'CDCM Volume Forecasts'!$A$27:$AG$123,D$137,FALSE) -> 0 | E218: =VLOOKUP(Vlookup!$B183,'CDCM Volume Forecasts'!$A$27:$AG$123,E$137,FALSE) -> 0 | F218: =VLOOKUP(Vlookup!$B183,'CDCM Volume Forecasts'!$A$27:$AG$123,F$137,FALSE) -> 0 | G218: =VLOOKUP(Vlookup!$B183,'CDCM Volume Forecasts'!$A$27:$AG$123,G$137,FALSE) -> 0
A219: > LV Generation Intermittent | B219: =VLOOKUP(Vlookup!$B184,'CDCM Volume Forecasts'!$A$27:$AG$123,B$137,FALSE) -> 0 | C219: =VLOOKUP(Vlookup!$B184,'CDCM Volume Forecasts'!$A$27:$AG$123,C$137,FALSE) -> 0 | D219: =VLOOKUP(Vlookup!$B184,'CDCM Volume Forecasts'!$A$27:$AG$123,D$137,FALSE) -> 0 | E219: =VLOOKUP(Vlookup!$B184,'CDCM Volume Forecasts'!$A$27:$AG$123,E$137,FALSE) -> 0 | F219: =VLOOKUP(Vlookup!$B184,'CDCM Volume Forecasts'!$A$27:$AG$123,F$137,FALSE) -> 0 | G219: =VLOOKUP(Vlookup!$B184,'CDCM Volume Forecasts'!$A$27:$AG$123,G$137,FALSE) -> 0
A220: LV Generation Intermittent | B220: =VLOOKUP(Vlookup!$B185,'CDCM Volume Forecasts'!$A$27:$AG$123,B$137,FALSE) -> 29085.81854 | C220: =VLOOKUP(Vlookup!$B185,'CDCM Volume Forecasts'!$A$27:$AG$123,C$137,FALSE) -> 0 | D220: =VLOOKUP(Vlookup!$B185,'CDCM Volume Forecasts'!$A$27:$AG$123,D$137,FALSE) -> 0 | E220: =VLOOKUP(Vlookup!$B185,'CDCM Volume Forecasts'!$A$27:$AG$123,E$137,FALSE) -> 203 | F220: =VLOOKUP(Vlookup!$B185,'CDCM Volume Forecasts'!$A$27:$AG$123,F$137,FALSE) -> 0 | G220: =VLOOKUP(Vlookup!$B185,'CDCM Volume Forecasts'!$A$27:$AG$123,G$137,FALSE) -> 1127.6162
A221: LDNO LV: LV Generation Intermittent | B221: =VLOOKUP(Vlookup!$B186,'CDCM Volume Forecasts'!$A$27:$AG$123,B$137,FALSE) -> 0 | C221: =VLOOKUP(Vlookup!$B186,'CDCM Volume Forecasts'!$A$27:$AG$123,C$137,FALSE) -> 0 | D221: =VLOOKUP(Vlookup!$B186,'CDCM Volume Forecasts'!$A$27:$AG$123,D$137,FALSE) -> 0 | E221: =VLOOKUP(Vlookup!$B186,'CDCM Volume Forecasts'!$A$27:$AG$123,E$137,FALSE) -> 0 | F221: =VLOOKUP(Vlookup!$B186,'CDCM Volume Forecasts'!$A$27:$AG$123,F$137,FALSE) -> 0 | G221: =VLOOKUP(Vlookup!$B186,'CDCM Volume Forecasts'!$A$27:$AG$123,G$137,FALSE) -> 0
A222: LDNO HV: LV Generation Intermittent | B222: =VLOOKUP(Vlookup!$B187,'CDCM Volume Forecasts'!$A$27:$AG$123,B$137,FALSE) -> 0 | C222: =VLOOKUP(Vlookup!$B187,'CDCM Volume Forecasts'!$A$27:$AG$123,C$137,FALSE) -> 0 | D222: =VLOOKUP(Vlookup!$B187,'CDCM Volume Forecasts'!$A$27:$AG$123,D$137,FALSE) -> 0 | E222: =VLOOKUP(Vlookup!$B187,'CDCM Volume Forecasts'!$A$27:$AG$123,E$137,FALSE) -> 0 | F222: =VLOOKUP(Vlookup!$B187,'CDCM Volume Forecasts'!$A$27:$AG$123,F$137,FALSE) -> 0 | G222: =VLOOKUP(Vlookup!$B187,'CDCM Volume Forecasts'!$A$27:$AG$123,G$137,FALSE) -> 0
A223: > LV Generation Non-Intermittent | B223: =VLOOKUP(Vlookup!$B188,'CDCM Volume Forecasts'!$A$27:$AG$123,B$137,FALSE) -> 0 | C223: =VLOOKUP(Vlookup!$B188,'CDCM Volume Forecasts'!$A$27:$AG$123,C$137,FALSE) -> 0 | D223: =VLOOKUP(Vlookup!$B188,'CDCM Volume Forecasts'!$A$27:$AG$123,D$137,FALSE) -> 0 | E223: =VLOOKUP(Vlookup!$B188,'CDCM Volume Forecasts'!$A$27:$AG$123,E$137,FALSE) -> 0 | F223: =VLOOKUP(Vlookup!$B188,'CDCM Volume Forecasts'!$A$27:$AG$123,F$137,FALSE) -> 0 | G223: =VLOOKUP(Vlookup!$B188,'CDCM Volume Forecasts'!$A$27:$AG$123,G$137,FALSE) -> 0
A224: LV Generation Non-Intermittent | B224: =VLOOKUP(Vlookup!$B189,'CDCM Volume Forecasts'!$A$27:$AG$123,B$137,FALSE) -> 185.2772293 | C224: =VLOOKUP(Vlookup!$B189,'CDCM Volume Forecasts'!$A$27:$AG$123,C$137,FALSE) -> 727.6203214 | D224: =VLOOKUP(Vlookup!$B189,'CDCM Volume Forecasts'!$A$27:$AG$123,D$137,FALSE) -> 1587.459123 | E224: =VLOOKUP(Vlookup!$B189,'CDCM Volume Forecasts'!$A$27:$AG$123,E$137,FALSE) -> 21 | F224: =VLOOKUP(Vlookup!$B189,'CDCM Volume Forecasts'!$A$27:$AG$123,F$137,FALSE) -> 0 | G224: =VLOOKUP(Vlookup!$B189,'CDCM Volume Forecasts'!$A$27:$AG$123,G$137,FALSE) -> 47.8726
A225: LDNO LV: LV Generation Non-Intermittent | B225: =VLOOKUP(Vlookup!$B190,'CDCM Volume Forecasts'!$A$27:$AG$123,B$137,FALSE) -> 4.1045 | C225: =VLOOKUP(Vlookup!$B190,'CDCM Volume Forecasts'!$A$27:$AG$123,C$137,FALSE) -> 21.0403 | D225: =VLOOKUP(Vlookup!$B190,'CDCM Volume Forecasts'!$A$27:$AG$123,D$137,FALSE) -> 11.5663 | E225: =VLOOKUP(Vlookup!$B190,'CDCM Volume Forecasts'!$A$27:$AG$123,E$137,FALSE) -> 2 | F225: =VLOOKUP(Vlookup!$B190,'CDCM Volume Forecasts'!$A$27:$AG$123,F$137,FALSE) -> 0 | G225: =VLOOKUP(Vlookup!$B190,'CDCM Volume Forecasts'!$A$27:$AG$123,G$137,FALSE) -> 1.6612
A226: LDNO HV: LV Generation Non-Intermittent | B226: =VLOOKUP(Vlookup!$B191,'CDCM Volume Forecasts'!$A$27:$AG$123,B$137,FALSE) -> 0 | C226: =VLOOKUP(Vlookup!$B191,'CDCM Volume Forecasts'!$A$27:$AG$123,C$137,FALSE) -> 0 | D226: =VLOOKUP(Vlookup!$B191,'CDCM Volume Forecasts'!$A$27:$AG$123,D$137,FALSE) -> 0 | E226: =VLOOKUP(Vlookup!$B191,'CDCM Volume Forecasts'!$A$27:$AG$123,E$137,FALSE) -> 0 | F226: =VLOOKUP(Vlookup!$B191,'CDCM Volume Forecasts'!$A$27:$AG$123,F$137,FALSE) -> 0 | G226: =VLOOKUP(Vlookup!$B191,'CDCM Volume Forecasts'!$A$27:$AG$123,G$137,FALSE) -> 0
A227: > LV Sub Generation Intermittent | B227: =VLOOKUP(Vlookup!$B192,'CDCM Volume Forecasts'!$A$27:$AG$123,B$137,FALSE) -> 0 | C227: =VLOOKUP(Vlookup!$B192,'CDCM Volume Forecasts'!$A$27:$AG$123,C$137,FALSE) -> 0 | D227: =VLOOKUP(Vlookup!$B192,'CDCM Volume Forecasts'!$A$27:$AG$123,D$137,FALSE) -> 0 | E227: =VLOOKUP(Vlookup!$B192,'CDCM Volume Forecasts'!$A$27:$AG$123,E$137,FALSE) -> 0 | F227: =VLOOKUP(Vlookup!$B192,'CDCM Volume Forecasts'!$A$27:$AG$123,F$137,FALSE) -> 0 | G227: =VLOOKUP(Vlookup!$B192,'CDCM Volume Forecasts'!$A$27:$AG$123,G$137,FALSE) -> 0
A228: LV Sub Generation Intermittent | B228: =VLOOKUP(Vlookup!$B193,'CDCM Volume Forecasts'!$A$27:$AG$123,B$137,FALSE) -> 1410.54147 | C228: =VLOOKUP(Vlookup!$B193,'CDCM Volume Forecasts'!$A$27:$AG$123,C$137,FALSE) -> 0 | D228: =VLOOKUP(Vlookup!$B193,'CDCM Volume Forecasts'!$A$27:$AG$123,D$137,FALSE) -> 0 | E228: =VLOOKUP(Vlookup!$B193,'CDCM Volume Forecasts'!$A$27:$AG$123,E$137,FALSE) -> 24 | F228: =VLOOKUP(Vlookup!$B193,'CDCM Volume Forecasts'!$A$27:$AG$123,F$137,FALSE) -> 0 | G228: =VLOOKUP(Vlookup!$B193,'CDCM Volume Forecasts'!$A$27:$AG$123,G$137,FALSE) -> 35.7122
... 81 more rows

Sheet (Y+1)
A1: Input data (Y+1)
A4: 1000. Company, charging year, data version
B6: Company | C6: Year | D6: Version
A7: Company, charging year, data version | B7: =VLOOKUP(Vlookup!B7,'CDCM Forecast Data'!$A$14:$I$271,6,FALSE) -> ENWL | C7: =VLOOKUP(Vlookup!C7,'CDCM Forecast Data'!$A$14:$I$271,6,FALSE) -> 2018/19 | D7: =VLOOKUP(Vlookup!D7,'CDCM Forecast Data'!$A$14:$I$271,6,FALSE) -> v1
A9: 1010. Financial and general assumptions
A11: Sources: financial assumptions; calendar; network model.
A12: These financial assumptions determine the annuity rate applied to convert the asset values of the network model into an annual charge.
B13: Rate of return | C13: Annualisation period (years) | D13: Annuity proportion for customer-contributed assets | E13: Power factor | F13: Days in the charging period
A14: Financial and general assumptions | B14: =VLOOKUP(Vlookup!B14,'CDCM Forecast Data'!$A$14:$I$271,6,FALSE) -> 0.0417 | C14: =VLOOKUP(Vlookup!C14,'CDCM Forecast Data'!$A$14:$I$271,6,FALSE) -> 40 | E14: =VLOOKUP(Vlookup!E14,'CDCM Forecast Data'!$A$14:$I$271,6,FALSE) -> 0.95 | F14: =VLOOKUP(Vlookup!F14,'CDCM Forecast Data'!$A$14:$I$271,6,FALSE) -> 365
A16: 1017. Diversity allowance between top and bottom of network level
A18: Source: operational data analysis and/or network model.
A19: The diversity figure against GSP is the diversity between GSP Group (the whole system) and individual GSPs.
A20: The diversity figure against 132kV is the diversity between GSPs (the top of the 132kV network) and 132kV/EHV bulk supply points (the bottom of the 132kV network).
A21: The diversity figure against EHV is the diversity between 132kV/EHV bulk supply points (the top of the EHV network) and EHV/HV primary substations (the bottom of the EHV network).
A22: The diversity figure against HV is the diversity between EHV/HV primary substations (the top of the HV network) and HV/LV substations (the bottom of the HV network).
B23: Diversity allowance between top and bottom of network level
A24: GSPs | B24: =VLOOKUP(Vlookup!B24,'CDCM Forecast Data'!$A$14:$I$271,6,FALSE) -> 0.07420180118
A25: 132kV | B25: =VLOOKUP(Vlookup!B25,'CDCM Forecast Data'!$A$14:$I$271,6,FALSE) -> 0.04679205393
A26: 132kV/EHV
A27: EHV | B27: =VLOOKUP(Vlookup!B27,'CDCM Forecast Data'!$A$14:$I$271,6,FALSE) -> 0.0868884238
A28: EHV/HV
A29: HV | B29: =VLOOKUP(Vlookup!B29,'CDCM Forecast Data'!$A$14:$I$271,6,FALSE) -> 0.3056153455
A30: HV/LV
A31: LV circuits
A33: 1018. Proportion of relevant load going through 132kV/HV direct transformation
B35: 132kV/HV
A36: EHV/HV | B36: =VLOOKUP(Vlookup!B36,'CDCM Forecast Data'!$A$14:$I$271,6,FALSE) -> 0
A38: 1019. Network model GSP peak demand (MW)
B40: Network model GSP peak demand (MW)
A41: Network model GSP peak demand (MW) | B41: =VLOOKUP(Vlookup!B41,'CDCM Forecast Data'!$A$14:$I$271,6,FALSE) -> 500
A43: 1020. Gross asset cost by network level (£)
B45: Gross assets £
A46: 132kV | B46: =VLOOKUP(Vlookup!B46,'CDCM Forecast Data'!$A$14:$I$271,6,FALSE) -> 96347647.03
A47: 132kV/EHV | B47: =VLOOKUP(Vlookup!B47,'CDCM Forecast Data'!$A$14:$I$271,6,FALSE) -> 38110830.32
A48: EHV | B48: =VLOOKUP(Vlookup!B48,'CDCM Forecast Data'!$A$14:$I$271,6,FALSE) -> 96232423.18
A49: EHV/HV | B49: =VLOOKUP(Vlookup!B49,'CDCM Forecast Data'!$A$14:$I$271,6,FALSE) -> 60703739.44
A50: 132kV/HV | B50: =VLOOKUP(Vlookup!B50,'CDCM Forecast Data'!$A$14:$I$271,6,FALSE) -> 0
A51: HV | B51: =VLOOKUP(Vlookup!B51,'CDCM Forecast Data'!$A$14:$I$271,6,FALSE) -> 110206465.7
A52: HV/LV | B52: =VLOOKUP(Vlookup!B52,'CDCM Forecast Data'!$A$14:$I$271,6,FALSE) -> 100058698.6
A53: LV circuits | B53: =VLOOKUP(Vlookup!B53,'CDCM Forecast Data'!$A$14:$I$271,6,FALSE) -> 55468711.18
A55: 1022. LV service model asset cost (£)
B57: LV service model 1 | C57: LV service model 2 | D57: LV service model 3 | E57: LV service model 4 | F57: LV service model 5 | G57: LV service model 6 | H57: LV service model 7 | I57: LV service model 8
A58: LV service model asset cost (£) | B58: =VLOOKUP(Vlookup!B58,'CDCM Forecast Data'!$A$14:$I$271,6,FALSE) -> 10529.69282 | C58: =VLOOKUP(Vlookup!C58,'CDCM Forecast Data'!$A$14:$I$271,6,FALSE) -> 526.4846409 | D58: =VLOOKUP(Vlookup!D58,'CDCM Forecast Data'!$A$14:$I$271,6,FALSE) -> 2475.158421 | E58: =VLOOKUP(Vlookup!E58,'CDCM Forecast Data'!$A$14:$I$271,6,FALSE) -> 7945.553252 | F58: =VLOOKUP(Vlookup!F58,'CDCM Forecast Data'!$A$14:$I$271,6,FALSE) -> 289.3871989 | G58: =VLOOKUP(Vlookup!G58,'CDCM Forecast Data'!$A$14:$I$271,6,FALSE) -> 0 | H58: =VLOOKUP(Vlookup!H58,'CDCM Forecast Data'!$A$14:$I$271,6,FALSE) -> 0 | I58: =VLOOKUP(Vlookup!I58,'CDCM Forecast Data'!$A$14:$I$271,6,FALSE) -> 0
A60: 1023. HV service model asset cost (£)
B62: HV service model 1 | C62: HV service model 2 | D62: HV service model 3 | E62: HV service model 4 | F62: HV service model 5
A63: HV service model asset cost (£) | B63: =VLOOKUP(Vlookup!B63,'CDCM Forecast Data'!$A$14:$I$271,6,FALSE) -> 19764.98382 | C63: =VLOOKUP(Vlookup!C63,'CDCM Forecast Data'!$A$14:$I$271,6,FALSE) -> 17471.2122 | D63: =VLOOKUP(Vlookup!D63,'CDCM Forecast Data'!$A$14:$I$271,6,FALSE) -> 1176.454243 | E63: =VLOOKUP(Vlookup!E63,'CDCM Forecast Data'!$A$14:$I$271,6,FALSE) -> 0 | F63: =VLOOKUP(Vlookup!F63,'CDCM Forecast Data'!$A$14:$I$271,6,FALSE) -> 0
A65: 1025. Matrix of applicability of LV service models to tariffs with fixed charges
B66: 10 | C66: =B66+1 -> 11 | D66: 12 | E66: 13 | F66: 14 | G66: 15 | H66: 16 | I66: 17
B67: LV service model 1 | C67: LV service model 2 | D67: LV service model 3 | E67: LV service model 4 | F67: LV service model 5 | G67: LV service model 6 | H67: LV service model 7 | I67: LV service model 8
A68: Domestic Unrestricted | B68: =VLOOKUP($A68,'Mat of App'!$B$7:$AP$37,B$66,FALSE) -> 0.05 | C68: =VLOOKUP($A68,'Mat of App'!$B$7:$AP$37,C$66,FALSE) -> 0 | D68: =VLOOKUP($A68,'Mat of App'!$B$7:$AP$37,D$66,FALSE) -> 0 | E68: =VLOOKUP($A68,'Mat of App'!$B$7:$AP$37,E$66,FALSE) -> 0 | F68: =VLOOKUP($A68,'Mat of App'!$B$7:$AP$37,F$66,FALSE) -> 0 | G68: =VLOOKUP($A68,'Mat of App'!$B$7:$AP$37,G$66,FALSE) -> 0 | H68: =VLOOKUP($A68,'Mat of App'!$B$7:$AP$37,H$66,FALSE) -> 0 | I68: =VLOOKUP($A68,'Mat of App'!$B$7:$AP$37,I$66,FALSE) -> 0
A69: Domestic Two Rate | B69: =VLOOKUP($A69,'Mat of App'!$B$7:$AP$37,B$66,FALSE) -> 0.05 | C69: =VLOOKUP($A69,'Mat of App'!$B$7:$AP$37,C$66,FALSE) -> 0 | D69: =VLOOKUP($A69,'Mat of App'!$B$7:$AP$37,D$66,FALSE) -> 0 | E69: =VLOOKUP($A69,'Mat of App'!$B$7:$AP$37,E$66,FALSE) -> 0 | F69: =VLOOKUP($A69,'Mat of App'!$B$7:$AP$37,F$66,FALSE) -> 0 | G69: =VLOOKUP($A69,'Mat of App'!$B$7:$AP$37,G$66,FALSE) -> 0 | H69: =VLOOKUP($A69,'Mat of App'!$B$7:$AP$37,H$66,FALSE) -> 0 | I69: =VLOOKUP($A69,'Mat of App'!$B$7:$AP$37,I$66,FALSE) -> 0
A70: Small Non Domestic Unrestricted | B70: =VLOOKUP($A70,'Mat of App'!$B$7:$AP$37,B$66,FALSE) -> 0 | C70: =VLOOKUP($A70,'Mat of App'!$B$7:$AP$37,C$66,FALSE) -> 1 | D70: =VLOOKUP($A70,'Mat of App'!$B$7:$AP$37,D$66,FALSE) -> 0 | E70: =VLOOKUP($A70,'Mat of App'!$B$7:$AP$37,E$66,FALSE) -> 0 | F70: =VLOOKUP($A70,'Mat of App'!$B$7:$AP$37,F$66,FALSE) -> 0 | G70: =VLOOKUP($A70,'Mat of App'!$B$7:$AP$37,G$66,FALSE) -> 0 | H70: =VLOOKUP($A70,'Mat of App'!$B$7:$AP$37,H$66,FALSE) -> 0 | I70: =VLOOKUP($A70,'Mat of App'!$B$7:$AP$37,I$66,FALSE) -> 0
A71: Small Non Domestic Two Rate | B71: =VLOOKUP($A71,'Mat of App'!$B$7:$AP$37,B$66,FALSE) -> 0 | C71: =VLOOKUP($A71,'Mat of App'!$B$7:$AP$37,C$66,FALSE) -> 1 | D71: =VLOOKUP($A71,'Mat of App'!$B$7:$AP$37,D$66,FALSE) -> 0 | E71: =VLOOKUP($A71,'Mat of App'!$B$7:$AP$37,E$66,FALSE) -> 0 | F71: =VLOOKUP($A71,'Mat of App'!$B$7:$AP$37,F$66,FALSE) -> 0 | G71: =VLOOKUP($A71,'Mat of App'!$B$7:$AP$37,G$66,FALSE) -> 0 | H71: =VLOOKUP($A71,'Mat of App'!$B$7:$AP$37,H$66,FALSE) -> 0 | I71: =VLOOKUP($A71,'Mat of App'!$B$7:$AP$37,I$66,FALSE) -> 0
A72: LV Medium Non-Domestic | B72: =VLOOKUP($A72,'Mat of App'!$B$7:$AP$37,B$66,FALSE) -> 0 | C72: =VLOOKUP($A72,'Mat of App'!$B$7:$AP$37,C$66,FALSE) -> 0.1918509044 | D72: =VLOOKUP($A72,'Mat of App'!$B$7:$AP$37,D$66,FALSE) -> 0.8081490956 | E72: =VLOOKUP($A72,'Mat of App'!$B$7:$AP$37,E$66,FALSE) -> 0 | F72: =VLOOKUP($A72,'Mat of App'!$B$7:$AP$37,F$66,FALSE) -> 0 | G72: =VLOOKUP($A72,'Mat of App'!$B$7:$AP$37,G$66,FALSE) -> 0 | H72: =VLOOKUP($A72,'Mat of App'!$B$7:$AP$37,H$66,FALSE) -> 0 | I72: =VLOOKUP($A72,'Mat of App'!$B$7:$AP$37,I$66,FALSE) -> 0
A73: LV Sub Medium Non-Domestic | B73: =VLOOKUP($A73,'Mat of App'!$B$7:$AP$37,B$66,FALSE) -> 0 | C73: =VLOOKUP($A73,'Mat of App'!$B$7:$AP$37,C$66,FALSE) -> 0 | D73: =VLOOKUP($A73,'Mat of App'!$B$7:$AP$37,D$66,FALSE) -> 0 | E73: =VLOOKUP($A73,'Mat of App'!$B$7:$AP$37,E$66,FALSE) -> 1 | F73: =VLOOKUP($A73,'Mat of App'!$B$7:$AP$37,F$66,FALSE) -> 0 | G73: =VLOOKUP($A73,'Mat of App'!$B$7:$AP$37,G$66,FALSE) -> 0 | H73: =VLOOKUP($A73,'Mat of App'!$B$7:$AP$37,H$66,FALSE) -> 0 | I73: =VLOOKUP($A73,'Mat of App'!$B$7:$AP$37,I$66,FALSE) -> 0
A74: LV Network Domestic | B74: =VLOOKUP($A74,'Mat of App'!$B$7:$AP$37,B$66,FALSE) -> 0.05 | C74: =VLOOKUP($A74,'Mat of App'!$B$7:$AP$37,C$66,FALSE) -> 0 | D74: =VLOOKUP($A74,'Mat of App'!$B$7:$AP$37,D$66,FALSE) -> 0 | E74: =VLOOKUP($A74,'Mat of App'!$B$7:$AP$37,E$66,FALSE) -> 0 | F74: =VLOOKUP($A74,'Mat of App'!$B$7:$AP$37,F$66,FALSE) -> 0 | G74: =VLOOKUP($A74,'Mat of App'!$B$7:$AP$37,G$66,FALSE) -> 0 | H74: =VLOOKUP($A74,'Mat of App'!$B$7:$AP$37,H$66,FALSE) -> 0 | I74: =VLOOKUP($A74,'Mat of App'!$B$7:$AP$37,I$66,FALSE) -> 0
A75: LV Network Non-Domestic Non-CT | B75: =VLOOKUP($A75,'Mat of App'!$B$7:$AP$37,B$66,FALSE) -> 0 | C75: =VLOOKUP($A75,'Mat of App'!$B$7:$AP$37,C$66,FALSE) -> 1 | D75: =VLOOKUP($A75,'Mat of App'!$B$7:$AP$37,D$66,FALSE) -> 0 | E75: =VLOOKUP($A75,'Mat of App'!$B$7:$AP$37,E$66,FALSE) -> 0 | F75: =VLOOKUP($A75,'Mat of App'!$B$7:$AP$37,F$66,FALSE) -> 0 | G75: =VLOOKUP($A75,'Mat of App'!$B$7:$AP$37,G$66,FALSE) -> 0 | H75: =VLOOKUP($A75,'Mat of App'!$B$7:$AP$37,H$66,FALSE) -> 0 | I75: =VLOOKUP($A75,'Mat of App'!$B$7:$AP$37,I$66,FALSE) -> 0
A76: LV HH Metered | B76: =VLOOKUP($A76,'Mat of App'!$B$7:$AP$37,B$66,FALSE) -> 0 | C76: =VLOOKUP($A76,'Mat of App'!$B$7:$AP$37,C$66,FALSE) -> 0 | D76: =VLOOKUP($A76,'Mat of App'!$B$7:$AP$37,D$66,FALSE) -> 1 | E76: =VLOOKUP($A76,'Mat of App'!$B$7:$AP$37,E$66,FALSE) -> 0 | F76: =VLOOKUP($A76,'Mat of App'!$B$7:$AP$37,F$66,FALSE) -> 0 | G76: =VLOOKUP($A76,'Mat of App'!$B$7:$AP$37,G$66,FALSE) -> 0 | H76: =VLOOKUP($A76,'Mat of App'!$B$7:$AP$37,H$66,FALSE) -> 0 | I76: =VLOOKUP($A76,'Mat of App'!$B$7:$AP$37,I$66,FALSE) -> 0
A77: LV Sub HH Metered | B77: =VLOOKUP($A77,'Mat of App'!$B$7:$AP$37,B$66,FALSE) -> 0 | C77: =VLOOKUP($A77,'Mat of App'!$B$7:$AP$37,C$66,FALSE) -> 0 | D77: =VLOOKUP($A77,'Mat of App'!$B$7:$AP$37,D$66,FALSE) -> 0 | E77: =VLOOKUP($A77,'Mat of App'!$B$7:$AP$37,E$66,FALSE) -> 1 | F77: =VLOOKUP($A77,'Mat of App'!$B$7:$AP$37,F$66,FALSE) -> 0 | G77: =VLOOKUP($A77,'Mat of App'!$B$7:$AP$37,G$66,FALSE) -> 0 | H77: =VLOOKUP($A77,'Mat of App'!$B$7:$AP$37,H$66,FALSE) -> 0 | I77: =VLOOKUP($A77,'Mat of App'!$B$7:$AP$37,I$66,FALSE) -> 0
A78: LV Generation NHH or Aggregate HH | B78: =VLOOKUP($A78,'Mat of App'!$B$7:$AP$37,B$66,FALSE) -> 0 | C78: =VLOOKUP($A78,'Mat of App'!$B$7:$AP$37,C$66,FALSE) -> 0 | D78: =VLOOKUP($A78,'Mat of App'!$B$7:$AP$37,D$66,FALSE) -> 0 | E78: =VLOOKUP($A78,'Mat of App'!$B$7:$AP$37,E$66,FALSE) -> 0 | F78: =VLOOKUP($A78,'Mat of App'!$B$7:$AP$37,F$66,FALSE) -> 0 | G78: =VLOOKUP($A78,'Mat of App'!$B$7:$AP$37,G$66,FALSE) -> 0 | H78: =VLOOKUP($A78,'Mat of App'!$B$7:$AP$37,H$66,FALSE) -> 0 | I78: =VLOOKUP($A78,'Mat of App'!$B$7:$AP$37,I$66,FALSE) -> 0
A79: LV Sub Generation NHH | B79: =VLOOKUP($A79,'Mat of App'!$B$7:$AP$37,B$66,FALSE) -> 0 | C79: =VLOOKUP($A79,'Mat of App'!$B$7:$AP$37,C$66,FALSE) -> 0 | D79: =VLOOKUP($A79,'Mat of App'!$B$7:$AP$37,D$66,FALSE) -> 0 | E79: =VLOOKUP($A79,'Mat of App'!$B$7:$AP$37,E$66,FALSE) -> 0 | F79: =VLOOKUP($A79,'Mat of App'!$B$7:$AP$37,F$66,FALSE) -> 0 | G79: =VLOOKUP($A79,'Mat of App'!$B$7:$AP$37,G$66,FALSE) -> 0 | H79: =VLOOKUP($A79,'Mat of App'!$B$7:$AP$37,H$66,FALSE) -> 0 | I79: =VLOOKUP($A79,'Mat of App'!$B$7:$AP$37,I$66,FALSE) -> 0
A80: LV Generation Intermittent | B80: =VLOOKUP($A80,'Mat of App'!$B$7:$AP$37,B$66,FALSE) -> 0 | C80: =VLOOKUP($A80,'Mat of App'!$B$7:$AP$37,C$66,FALSE) -> 0 | D80: =VLOOKUP($A80,'Mat of App'!$B$7:$AP$37,D$66,FALSE) -> 0 | E80: =VLOOKUP($A80,'Mat of App'!$B$7:$AP$37,E$66,FALSE) -> 0 | F80: =VLOOKUP($A80,'Mat of App'!$B$7:$AP$37,F$66,FALSE) -> 0 | G80: =VLOOKUP($A80,'Mat of App'!$B$7:$AP$37,G$66,FALSE) -> 0 | H80: =VLOOKUP($A80,'Mat of App'!$B$7:$AP$37,H$66,FALSE) -> 0 | I80: =VLOOKUP($A80,'Mat of App'!$B$7:$AP$37,I$66,FALSE) -> 0
A81: LV Generation Non-Intermittent | B81: =VLOOKUP($A81,'Mat of App'!$B$7:$AP$37,B$66,FALSE) -> 0 | C81: =VLOOKUP($A81,'Mat of App'!$B$7:$AP$37,C$66,FALSE) -> 0 | D81: =VLOOKUP($A81,'Mat of App'!$B$7:$AP$37,D$66,FALSE) -> 0 | E81: =VLOOKUP($A81,'Mat of App'!$B$7:$AP$37,E$66,FALSE) -> 0 | F81: =VLOOKUP($A81,'Mat of App'!$B$7:$AP$37,F$66,FALSE) -> 0 | G81: =VLOOKUP($A81,'Mat of App'!$B$7:$AP$37,G$66,FALSE) -> 0 | H81: =VLOOKUP($A81,'Mat of App'!$B$7:$AP$37,H$66,FALSE) -> 0 | I81: =VLOOKUP($A81,'Mat of App'!$B$7:$AP$37,I$66,FALSE) -> 0
A82: LV Sub Generation Intermittent | B82: =VLOOKUP($A82,'Mat of App'!$B$7:$AP$37,B$66,FALSE) -> 0 | C82: =VLOOKUP($A82,'Mat of App'!$B$7:$AP$37,C$66,FALSE) -> 0 | D82: =VLOOKUP($A82,'Mat of App'!$B$7:$AP$37,D$66,FALSE) -> 0 | E82: =VLOOKUP($A82,'Mat of App'!$B$7:$AP$37,E$66,FALSE) -> 0 | F82: =VLOOKUP($A82,'Mat of App'!$B$7:$AP$37,F$66,FALSE) -> 0 | G82: =VLOOKUP($A82,'Mat of App'!$B$7:$AP$37,G$66,FALSE) -> 0 | H82: =VLOOKUP($A82,'Mat of App'!$B$7:$AP$37,H$66,FALSE) -> 0 | I82: =VLOOKUP($A82,'Mat of App'!$B$7:$AP$37,I$66,FALSE) -> 0
A83: LV Sub Generation Non-Intermittent | B83: =VLOOKUP($A83,'Mat of App'!$B$7:$AP$37,B$66,FALSE) -> 0 | C83: =VLOOKUP($A83,'Mat of App'!$B$7:$AP$37,C$66,FALSE) -> 0 | D83: =VLOOKUP($A83,'Mat of App'!$B$7:$AP$37,D$66,FALSE) -> 0 | E83: =VLOOKUP($A83,'Mat of App'!$B$7:$AP$37,E$66,FALSE) -> 0 | F83: =VLOOKUP($A83,'Mat of App'!$B$7:$AP$37,F$66,FALSE) -> 0 | G83: =VLOOKUP($A83,'Mat of App'!$B$7:$AP$37,G$66,FALSE) -> 0 | H83: =VLOOKUP($A83,'Mat of App'!$B$7:$AP$37,H$66,FALSE) -> 0 | I83: =VLOOKUP($A83,'Mat of App'!$B$7:$AP$37,I$66,FALSE) -> 0
A85: 1026. Matrix of applicability of LV service models to unmetered tariffs
A87: Source: service models
A88: Proportion of service model involved in connecting load of 1 MWh/year
B89: LV service model 1 | C89: LV service model 2 | D89: LV service model 3 | E89: LV service model 4 | F89: LV service model 5 | G89: LV service model 6 | H89: LV service model 7 | I89: LV service model 8
A90: All LV unmetered tariffs | B90: =VLOOKUP($A90,'Mat of App'!$B$7:$AP$37,B$66,FALSE) -> 0 | C90: =VLOOKUP($A90,'Mat of App'!$B$7:$AP$37,C$66,FALSE) -> 0 | D90: =VLOOKUP($A90,'Mat of App'!$B$7:$AP$37,D$66,FALSE) -> 0 | E90: =VLOOKUP($A90,'Mat of App'!$B$7:$AP$37,E$66,FALSE) -> 0 | F90: =VLOOKUP($A90,'Mat of App'!$B$7:$AP$37,F$66,FALSE) -> 2.872632768 | G90: =VLOOKUP($A90,'Mat of App'!$B$7:$AP$37,G$66,FALSE) -> 0 | H90: =VLOOKUP($A90,'Mat of App'!$B$7:$AP$37,H$66,FALSE) -> 0 | I90: =VLOOKUP($A90,'Mat of App'!$B$7:$AP$37,I$66,FALSE) -> 0
A92: 1028. Matrix of applicability of HV service models to tariffs with fixed charges
B93: 7 | C93: =B93+1 -> 8 | D93: =C93+1 -> 9 | E93: =D93+1 -> 10 | F93: =E93+1 -> 11
B94: HV service model 1 | C94: HV service model 2 | D94: HV service model 3 | E94: HV service model 4 | F94: HV service model 5
A95: HV Medium Non-Domestic | B95: =VLOOKUP($A95,'Mat of App'!$B$7:$AP$37,B$93,FALSE) -> 0 | C95: =VLOOKUP($A95,'Mat of App'!$B$7:$AP$37,C$93,FALSE) -> 1 | D95: =VLOOKUP($A95,'Mat of App'!$B$7:$AP$37,D$93,FALSE) -> 0 | E95: =VLOOKUP($A95,'Mat of App'!$B$7:$AP$37,E$93,FALSE) -> 0 | F95: =VLOOKUP($A95,'Mat of App'!$B$7:$AP$37,F$93,FALSE) -> 0
A96: HV HH Metered | B96: =VLOOKUP($A96,'Mat of App'!$B$7:$AP$37,B$93,FALSE) -> 0 | C96: =VLOOKUP($A96,'Mat of App'!$B$7:$AP$37,C$93,FALSE) -> 1 | D96: =VLOOKUP($A96,'Mat of App'!$B$7:$AP$37,D$93,FALSE) -> 0 | E96: =VLOOKUP($A96,'Mat of App'!$B$7:$AP$37,E$93,FALSE) -> 0 | F96: =VLOOKUP($A96,'Mat of App'!$B$7:$AP$37,F$93,FALSE) -> 0
A97: HV Generation Intermittent | B97: =VLOOKUP($A97,'Mat of App'!$B$7:$AP$37,B$93,FALSE) -> 0 | C97: =VLOOKUP($A97,'Mat of App'!$B$7:$AP$37,C$93,FALSE) -> 0 | D97: =VLOOKUP($A97,'Mat of App'!$B$7:$AP$37,D$93,FALSE) -> 1 | E97: =VLOOKUP($A97,'Mat of App'!$B$7:$AP$37,E$93,FALSE) -> 0 | F97: =VLOOKUP($A97,'Mat of App'!$B$7:$AP$37,F$93,FALSE) -> 0
A98: HV Generation Non-Intermittent | B98: =VLOOKUP($A98,'Mat of App'!$B$7:$AP$37,B$93,FALSE) -> 0 | C98: =VLOOKUP($A98,'Mat of App'!$B$7:$AP$37,C$93,FALSE) -> 0 | D98: =VLOOKUP($A98,'Mat of App'!$B$7:$AP$37,D$93,FALSE) -> 1 | E98: =VLOOKUP($A98,'Mat of App'!$B$7:$AP$37,E$93,FALSE) -> 0 | F98: =VLOOKUP($A98,'Mat of App'!$B$7:$AP$37,F$93,FALSE) -> 0
A100: 1032. Loss adjustment factors to transmission
A102: Source: losses model or loss adjustment factors at time of system peak.
B103: 132kV | C103: 132kV/EHV | D103: EHV | E103: EHV/HV | F103: HV | G103: HV/LV | H103: LV circuits
A104: Loss adjustment factor | B104: =VLOOKUP(Vlookup!B69,'CDCM Forecast Data'!$A$14:$I$271,6,FALSE) -> 1.010207653 | C104: =VLOOKUP(Vlookup!C69,'CDCM Forecast Data'!$A$14:$I$271,6,FALSE) -> 1.015167952 | D104: =VLOOKUP(Vlookup!D69,'CDCM Forecast Data'!$A$14:$I$271,6,FALSE) -> 1.021613121 | E104: =VLOOKUP(Vlookup!E69,'CDCM Forecast Data'!$A$14:$I$271,6,FALSE) -> 1.027143717 | F104: =VLOOKUP(Vlookup!F69,'CDCM Forecast Data'!$A$14:$I$271,6,FALSE) -> 1.039482236 | G104: =VLOOKUP(Vlookup!G69,'CDCM Forecast Data'!$A$14:$I$271,6,FALSE) -> 1.053113103 | H104: =VLOOKUP(Vlookup!H69,'CDCM Forecast Data'!$A$14:$I$271,6,FALSE) -> 1.105523229
A106: 1037. Embedded network (LDNO) discounts
A108: Source: separate price control disaggregation model.
B109: No discount | C109: LDNO LV: LV user | D109: LDNO HV: LV user | E109: LDNO HV: LV sub user | F109: LDNO HV: HV user
A110: LDNO discount | C110: =VLOOKUP(Vlookup!C75,'CDCM Forecast Data'!$A$14:$I$271,6,FALSE) -> 0.3545481139 | D110: =VLOOKUP(Vlookup!D75,'CDCM Forecast Data'!$A$14:$I$271,6,FALSE) -> 0.5759919482 | E110: =VLOOKUP(Vlookup!E75,'CDCM Forecast Data'!$A$14:$I$271,6,FALSE) -> 0.3351316791 | F110: =VLOOKUP(Vlookup!F75,'CDCM Forecast Data'!$A$14:$I$271,6,FALSE) -> 0.2148277515
A112: 1041. Load profile data for demand users
A114: Source: load data analysis.
B115: Coincidence factor | C115: Load factor
A116: Domestic Unrestricted | B116: =VLOOKUP(Vlookup!B81,'CDCM Forecast Data'!$A$14:$I$271,6,FALSE) -> 0.8913703454 | C116: =VLOOKUP(Vlookup!C81,'CDCM Forecast Data'!$A$14:$I$271,6,FALSE) -> 0.4462668473
A117: Domestic Two Rate | B117: =VLOOKUP(Vlookup!B82,'CDCM Forecast Data'!$A$14:$I$271,6,FALSE) -> 0.2951047042 | C117: =VLOOKUP(Vlookup!C82,'CDCM Forecast Data'!$A$14:$I$271,6,FALSE) -> 0.2467650034
A118: Domestic Off Peak (related MPAN) | C118: =VLOOKUP(Vlookup!C83,'CDCM Forecast Data'!$A$14:$I$271,6,FALSE) -> 0.1659632593
A119: Small Non Domestic Unrestricted | B119: =VLOOKUP(Vlookup!B84,'CDCM Forecast Data'!$A$14:$I$271,6,FALSE) -> 0.675023322 | C119: =VLOOKUP(Vlookup!C84,'CDCM Forecast Data'!$A$14:$I$271,6,FALSE) -> 0.3939683153
A120: Small Non Domestic Two Rate | B120: =VLOOKUP(Vlookup!B85,'CDCM Forecast Data'!$A$14:$I$271,6,FALSE) -> 0.7022639753 | C120: =VLOOKUP(Vlookup!C85,'CDCM Forecast Data'!$A$14:$I$271,6,FALSE) -> 0.5394924636
A121: Small Non Domestic Off Peak (related MPAN) | C121: =VLOOKUP(Vlookup!C86,'CDCM Forecast Data'!$A$14:$I$271,6,FALSE) -> 0.1655384635
A122: LV Medium Non-Domestic | B122: =VLOOKUP(Vlookup!B87,'CDCM Forecast Data'!$A$14:$I$271,6,FALSE) -> 0.8299720136 | C122: =VLOOKUP(Vlookup!C87,'CDCM Forecast Data'!$A$14:$I$271,6,FALSE) -> 0.5627043404
A123: LV Sub Medium Non-Domestic | B123: =VLOOKUP(Vlookup!B88,'CDCM Forecast Data'!$A$14:$I$271,6,FALSE) -> 0.7822989923 | C123: =VLOOKUP(Vlookup!C88,'CDCM Forecast Data'!$A$14:$I$271,6,FALSE) -> 0.5370681653
A124: HV Medium Non-Domestic | B124: =VLOOKUP(Vlookup!B89,'CDCM Forecast Data'!$A$14:$I$271,6,FALSE) -> 0.7647764369 | C124: =VLOOKUP(Vlookup!C89,'CDCM Forecast Data'!$A$14:$I$271,6,FALSE) -> 0.5247366167
A125: LV Network Domestic | B125: =VLOOKUP(Vlookup!B90,'CDCM Forecast Data'!$A$14:$I$271,6,FALSE) -> 0.8913703454 | C125: =VLOOKUP(Vlookup!C90,'CDCM Forecast Data'!$A$14:$I$271,6,FALSE) -> 0.4462668473
A126: LV Network Non-Domestic Non-CT | B126: =VLOOKUP(Vlookup!B91,'CDCM Forecast Data'!$A$14:$I$271,6,FALSE) -> 0.675023322 | C126: =VLOOKUP(Vlookup!C91,'CDCM Forecast Data'!$A$14:$I$271,6,FALSE) -> 0.3939683153
A127: LV HH Metered | B127: =VLOOKUP(Vlookup!B92,'CDCM Forecast Data'!$A$14:$I$271,6,FALSE) -> 0.8187070533 | C127: =VLOOKUP(Vlookup!C92,'CDCM Forecast Data'!$A$14:$I$271,6,FALSE) -> 0.5579677074
A128: LV Sub HH Metered | B128: =VLOOKUP(Vlookup!B93,'CDCM Forecast Data'!$A$14:$I$271,6,FALSE) -> 0.7867578525 | C128: =VLOOKUP(Vlookup!C93,'CDCM Forecast Data'!$A$14:$I$271,6,FALSE) -> 0.5593063082
A129: HV HH Metered | B129: =VLOOKUP(Vlookup!B94,'CDCM Forecast Data'!$A$14:$I$271,6,FALSE) -> 0.8573132903 | C129: =VLOOKUP(Vlookup!C94,'CDCM Forecast Data'!$A$14:$I$271,6,FALSE) -> 0.7117228058
A130: NHH UMS category A | B130: =VLOOKUP(Vlookup!B95,'CDCM Forecast Data'!$A$14:$I$271,6,FALSE) -> 1 | C130: =VLOOKUP(Vlookup!C95,'CDCM Forecast Data'!$A$14:$I$271,6,FALSE) -> 1
A131: NHH UMS category B | B131: =VLOOKUP(Vlookup!B96,'CDCM Forecast Data'!$A$14:$I$271,6,FALSE) -> 1 | C131: =VLOOKUP(Vlookup!C96,'CDCM Forecast Data'!$A$14:$I$271,6,FALSE) -> 0.4737220928
A132: NHH UMS category C | B132: =VLOOKUP(Vlookup!B97,'CDCM Forecast Data'!$A$14:$I$271,6,FALSE) -> 1 | C132: =VLOOKUP(Vlookup!C97,'CDCM Forecast Data'!$A$14:$I$271,6,FALSE) -> 0.2580136568
A133: NHH UMS category D | B133: =VLOOKUP(Vlookup!B98,'CDCM Forecast Data'!$A$14:$I$271,6,FALSE) -> 0 | C133: =VLOOKUP(Vlookup!C98,'CDCM Forecast Data'!$A$14:$I$271,6,FALSE) -> 0.5539154947
A134: LV UMS (Pseudo HH Metered) | B134: =VLOOKUP(Vlookup!B99,'CDCM Forecast Data'!$A$14:$I$271,6,FALSE) -> 0.9795893947 | C134: =VLOOKUP(Vlookup!C99,'CDCM Forecast Data'!$A$14:$I$271,6,FALSE) -> 0.4777791708
A136: 1053. Volume forecasts for the charging year
B137: 10 | C137: 11 | D137: 12 | E137: 13 | F137: 14 | G137: 15
A138: Source: forecast.
A139: Please include MPAN counts for tariffs with no fixed charge (e.g. off-peak tariffs),
A140: but exclude MPANs on tariffs with a fixed charge that are not subject to a fixed charge due to a site grouping arrangement.
B141: Rate 1 units (MWh) | C141: Rate 2 units (MWh) | D141: Rate 3 units (MWh) | E141: MPANs | F141: Import capacity (kVA) | G141: Reactive power units (MVArh)
A142: > Domestic Unrestricted | B142: =VLOOKUP(Vlookup!$B107,'CDCM Volume Forecasts'!$A$27:$AG$123,B$137,FALSE) -> 0 | C142: =VLOOKUP(Vlookup!$B107,'CDCM Volume Forecasts'!$A$27:$AG$123,C$137,FALSE) -> 0 | D142: =VLOOKUP(Vlookup!$B107,'CDCM Volume Forecasts'!$A$27:$AG$123,D$137,FALSE) -> 0 | E142: =VLOOKUP(Vlookup!$B107,'CDCM Volume Forecasts'!$A$27:$AG$123,E$137,FALSE) -> 0 | F142: =VLOOKUP(Vlookup!$B107,'CDCM Volume Forecasts'!$A$27:$AG$123,F$137,FALSE) -> 0 | G142: =VLOOKUP(Vlookup!$B107,'CDCM Volume Forecasts'!$A$27:$AG$123,G$137,FALSE) -> 0
A143: Domestic Unrestricted | B143: =VLOOKUP(Vlookup!$B108,'CDCM Volume Forecasts'!$A$27:$AG$123,B$137,FALSE) -> 6482567.84 | C143: =VLOOKUP(Vlookup!$B108,'CDCM Volume Forecasts'!$A$27:$AG$123,C$137,FALSE) -> 0 | D143: =VLOOKUP(Vlookup!$B108,'CDCM Volume Forecasts'!$A$27:$AG$123,D$137,FALSE) -> 0 | E143: =VLOOKUP(Vlookup!$B108,'CDCM Volume Forecasts'!$A$27:$AG$123,E$137,FALSE) -> 2012740.192 | F143: =VLOOKUP(Vlookup!$B108,'CDCM Volume Forecasts'!$A$27:$AG$123,F$137,FALSE) -> 0 | G143: =VLOOKUP(Vlookup!$B108,'CDCM Volume Forecasts'!$A$27:$AG$123,G$137,FALSE) -> 0
A144: LDNO LV: Domestic Unrestricted | B144: =VLOOKUP(Vlookup!$B109,'CDCM Volume Forecasts'!$A$27:$AG$123,B$137,FALSE) -> 106283.4531 | C144: =VLOOKUP(Vlookup!$B109,'CDCM Volume Forecasts'!$A$27:$AG$123,C$137,FALSE) -> 0 | D144: =VLOOKUP(Vlookup!$B109,'CDCM Volume Forecasts'!$A$27:$AG$123,D$137,FALSE) -> 0 | E144: =VLOOKUP(Vlookup!$B109,'CDCM Volume Forecasts'!$A$27:$AG$123,E$137,FALSE) -> 34915.642 | F144: =VLOOKUP(Vlookup!$B109,'CDCM Volume Forecasts'!$A$27:$AG$123,F$137,FALSE) -> 0 | G144: =VLOOKUP(Vlookup!$B109,'CDCM Volume Forecasts'!$A$27:$AG$123,G$137,FALSE) -> 0
A145: LDNO HV: Domestic Unrestricted | B145: =VLOOKUP(Vlookup!$B110,'CDCM Volume Forecasts'!$A$27:$AG$123,B$137,FALSE) -> 60792.46622 | C145: =VLOOKUP(Vlookup!$B110,'CDCM Volume Forecasts'!$A$27:$AG$123,C$137,FALSE) -> 0 | D145: =VLOOKUP(Vlookup!$B110,'CDCM Volume Forecasts'!$A$27:$AG$123,D$137,FALSE) -> 0 | E145: =VLOOKUP(Vlookup!$B110,'CDCM Volume Forecasts'!$A$27:$AG$123,E$137,FALSE) -> 18313.1438 | F145: =VLOOKUP(Vlookup!$B110,'CDCM Volume Forecasts'!$A$27:$AG$123,F$137,FALSE) -> 0 | G145: =VLOOKUP(Vlookup!$B110,'CDCM Volume Forecasts'!$A$27:$AG$123,G$137,FALSE) -> 0
A146: > Domestic Two Rate | B146: =VLOOKUP(Vlookup!$B111,'CDCM Volume Forecasts'!$A$27:$AG$123,B$137,FALSE) -> 0 | C146: =VLOOKUP(Vlookup!$B111,'CDCM Volume Forecasts'!$A$27:$AG$123,C$137,FALSE) -> 0 | D146: =VLOOKUP(Vlookup!$B111,'CDCM Volume Forecasts'!$A$27:$AG$123,D$137,FALSE) -> 0 | E146: =VLOOKUP(Vlookup!$B111,'CDCM Volume Forecasts'!$A$27:$AG$123,E$137,FALSE) -> 0 | F146: =VLOOKUP(Vlookup!$B111,'CDCM Volume Forecasts'!$A$27:$AG$123,F$137,FALSE) -> 0 | G146: =VLOOKUP(Vlookup!$B111,'CDCM Volume Forecasts'!$A$27:$AG$123,G$137,FALSE) -> 0
A147: Domestic Two Rate | B147: =VLOOKUP(Vlookup!$B112,'CDCM Volume Forecasts'!$A$27:$AG$123,B$137,FALSE) -> 468597.9162 | C147: =VLOOKUP(Vlookup!$B112,'CDCM Volume Forecasts'!$A$27:$AG$123,C$137,FALSE) -> 470845.8671 | D147: =VLOOKUP(Vlookup!$B112,'CDCM Volume Forecasts'!$A$27:$AG$123,D$137,FALSE) -> 0 | E147: =VLOOKUP(Vlookup!$B112,'CDCM Volume Forecasts'!$A$27:$AG$123,E$137,FALSE) -> 180575.5086 | F147: =VLOOKUP(Vlookup!$B112,'CDCM Volume Forecasts'!$A$27:$AG$123,F$137,FALSE) -> 0 | G147: =VLOOKUP(Vlookup!$B112,'CDCM Volume Forecasts'!$A$27:$AG$123,G$137,FALSE) -> 0
A148: LDNO LV: Domestic Two Rate | B148: =VLOOKUP(Vlookup!$B113,'CDCM Volume Forecasts'!$A$27:$AG$123,B$137,FALSE) -> 388.1285228 | C148: =VLOOKUP(Vlookup!$B113,'CDCM Volume Forecasts'!$A$27:$AG$123,C$137,FALSE) -> 103.9844528 | D148: =VLOOKUP(Vlookup!$B113,'CDCM Volume Forecasts'!$A$27:$AG$123,D$137,FALSE) -> 0 | E148: =VLOOKUP(Vlookup!$B113,'CDCM Volume Forecasts'!$A$27:$AG$123,E$137,FALSE) -> 145.5655 | F148: =VLOOKUP(Vlookup!$B113,'CDCM Volume Forecasts'!$A$27:$AG$123,F$137,FALSE) -> 0 | G148: =VLOOKUP(Vlookup!$B113,'CDCM Volume Forecasts'!$A$27:$AG$123,G$137,FALSE) -> 0
A149: LDNO HV: Domestic Two Rate | B149: =VLOOKUP(Vlookup!$B114,'CDCM Volume Forecasts'!$A$27:$AG$123,B$137,FALSE) -> 3010.889075 | C149: =VLOOKUP(Vlookup!$B114,'CDCM Volume Forecasts'!$A$27:$AG$123,C$137,FALSE) -> 2166.598953 | D149: =VLOOKUP(Vlookup!$B114,'CDCM Volume Forecasts'!$A$27:$AG$123,D$137,FALSE) -> 0 | E149: =VLOOKUP(Vlookup!$B114,'CDCM Volume Forecasts'!$A$27:$AG$123,E$137,FALSE) -> 1050.0794 | F149: =VLOOKUP(Vlookup!$B114,'CDCM Volume Forecasts'!$A$27:$AG$123,F$137,FALSE) -> 0 | G149: =VLOOKUP(Vlookup!$B114,'CDCM Volume Forecasts'!$A$27:$AG$123,G$137,FALSE) -> 0
A150: > Domestic Off Peak (related MPAN) | B150: =VLOOKUP(Vlookup!$B115,'CDCM Volume Forecasts'!$A$27:$AG$123,B$137,FALSE) -> 0 | C150: =VLOOKUP(Vlookup!$B115,'CDCM Volume Forecasts'!$A$27:$AG$123,C$137,FALSE) -> 0 | D150: =VLOOKUP(Vlookup!$B115,'CDCM Volume Forecasts'!$A$27:$AG$123,D$137,FALSE) -> 0 | E150: =VLOOKUP(Vlookup!$B115,'CDCM Volume Forecasts'!$A$27:$AG$123,E$137,FALSE) -> 0 | F150: =VLOOKUP(Vlookup!$B115,'CDCM Volume Forecasts'!$A$27:$AG$123,F$137,FALSE) -> 0 | G150: =VLOOKUP(Vlookup!$B115,'CDCM Volume Forecasts'!$A$27:$AG$123,G$137,FALSE) -> 0
A151: Domestic Off Peak (related MPAN) | B151: =VLOOKUP(Vlookup!$B116,'CDCM Volume Forecasts'!$A$27:$AG$123,B$137,FALSE) -> 16491.38444 | C151: =VLOOKUP(Vlookup!$B116,'CDCM Volume Forecasts'!$A$27:$AG$123,C$137,FALSE) -> 0 | D151: =VLOOKUP(Vlookup!$B116,'CDCM Volume Forecasts'!$A$27:$AG$123,D$137,FALSE) -> 0 | E151: =VLOOKUP(Vlookup!$B116,'CDCM Volume Forecasts'!$A$27:$AG$123,E$137,FALSE) -> 5298.5842 | F151: =VLOOKUP(Vlookup!$B116,'CDCM Volume Forecasts'!$A$27:$AG$123,F$137,FALSE) -> 0 | G151: =VLOOKUP(Vlookup!$B116,'CDCM Volume Forecasts'!$A$27:$AG$123,G$137,FALSE) -> 0
A152: LDNO LV: Domestic Off Peak (related MPAN) | B152: =VLOOKUP(Vlookup!$B117,'CDCM Volume Forecasts'!$A$27:$AG$123,B$137,FALSE) -> 0 | C152: =VLOOKUP(Vlookup!$B117,'CDCM Volume Forecasts'!$A$27:$AG$123,C$137,FALSE) -> 0 | D152: =VLOOKUP(Vlookup!$B117,'CDCM Volume Forecasts'!$A$27:$AG$123,D$137,FALSE) -> 0 | E152: =VLOOKUP(Vlookup!$B117,'CDCM Volume Forecasts'!$A$27:$AG$123,E$137,FALSE) -> 0 | F152: =VLOOKUP(Vlookup!$B117,'CDCM Volume Forecasts'!$A$27:$AG$123,F$137,FALSE) -> 0 | G152: =VLOOKUP(Vlookup!$B117,'CDCM Volume Forecasts'!$A$27:$AG$123,G$137,FALSE) -> 0
A153: LDNO HV: Domestic Off Peak (related MPAN) | B153: =VLOOKUP(Vlookup!$B118,'CDCM Volume Forecasts'!$A$27:$AG$123,B$137,FALSE) -> 0 | C153: =VLOOKUP(Vlookup!$B118,'CDCM Volume Forecasts'!$A$27:$AG$123,C$137,FALSE) -> 0 | D153: =VLOOKUP(Vlookup!$B118,'CDCM Volume Forecasts'!$A$27:$AG$123,D$137,FALSE) -> 0 | E153: =VLOOKUP(Vlookup!$B118,'CDCM Volume Forecasts'!$A$27:$AG$123,E$137,FALSE) -> 0 | F153: =VLOOKUP(Vlookup!$B118,'CDCM Volume Forecasts'!$A$27:$AG$123,F$137,FALSE) -> 0 | G153: =VLOOKUP(Vlookup!$B118,'CDCM Volume Forecasts'!$A$27:$AG$123,G$137,FALSE) -> 0
A154: > Small Non Domestic Unrestricted | B154: =VLOOKUP(Vlookup!$B119,'CDCM Volume Forecasts'!$A$27:$AG$123,B$137,FALSE) -> 0 | C154: =VLOOKUP(Vlookup!$B119,'CDCM Volume Forecasts'!$A$27:$AG$123,C$137,FALSE) -> 0 | D154: =VLOOKUP(Vlookup!$B119,'CDCM Volume Forecasts'!$A$27:$AG$123,D$137,FALSE) -> 0 | E154: =VLOOKUP(Vlookup!$B119,'CDCM Volume Forecasts'!$A$27:$AG$123,E$137,FALSE) -> 0 | F154: =VLOOKUP(Vlookup!$B119,'CDCM Volume Forecasts'!$A$27:$AG$123,F$137,FALSE) -> 0 | G154: =VLOOKUP(Vlookup!$B119,'CDCM Volume Forecasts'!$A$27:$AG$123,G$137,FALSE) -> 0
A155: Small Non Domestic Unrestricted | B155: =VLOOKUP(Vlookup!$B120,'CDCM Volume Forecasts'!$A$27:$AG$123,B$137,FALSE) -> 1555901.747 | C155: =VLOOKUP(Vlookup!$B120,'CDCM Volume Forecasts'!$A$27:$AG$123,C$137,FALSE) -> 0 | D155: =VLOOKUP(Vlookup!$B120,'CDCM Volume Forecasts'!$A$27:$AG$123,D$137,FALSE) -> 0 | E155: =VLOOKUP(Vlookup!$B120,'CDCM Volume Forecasts'!$A$27:$AG$123,E$137,FALSE) -> 123694.5346 | F155: =VLOOKUP(Vlookup!$B120,'CDCM Volume Forecasts'!$A$27:$AG$123,F$137,FALSE) -> 0 | G155: =VLOOKUP(Vlookup!$B120,'CDCM Volume Forecasts'!$A$27:$AG$123,G$137,FALSE) -> 0
A156: LDNO LV: Small Non Domestic Unrestricted | B156: =VLOOKUP(Vlookup!$B121,'CDCM Volume Forecasts'!$A$27:$AG$123,B$137,FALSE) -> 2734.050207 | C156: =VLOOKUP(Vlookup!$B121,'CDCM Volume Forecasts'!$A$27:$AG$123,C$137,FALSE) -> 0 | D156: =VLOOKUP(Vlookup!$B121,'CDCM Volume Forecasts'!$A$27:$AG$123,D$137,FALSE) -> 0 | E156: =VLOOKUP(Vlookup!$B121,'CDCM Volume Forecasts'!$A$27:$AG$123,E$137,FALSE) -> 332.2909 | F156: =VLOOKUP(Vlookup!$B121,'CDCM Volume Forecasts'!$A$27:$AG$123,F$137,FALSE) -> 0 | G156: =VLOOKUP(Vlookup!$B121,'CDCM Volume Forecasts'!$A$27:$AG$123,G$137,FALSE) -> 0
A157: LDNO HV: Small Non Domestic Unrestricted | B157: =VLOOKUP(Vlookup!$B122,'CDCM Volume Forecasts'!$A$27:$AG$123,B$137,FALSE) -> 5959.368159 | C157: =VLOOKUP(Vlookup!$B122,'CDCM Volume Forecasts'!$A$27:$AG$123,C$137,FALSE) -> 0 | D157: =VLOOKUP(Vlookup!$B122,'CDCM Volume Forecasts'!$A$27:$AG$123,D$137,FALSE) -> 0 | E157: =VLOOKUP(Vlookup!$B122,'CDCM Volume Forecasts'!$A$27:$AG$123,E$137,FALSE) -> 493.9188 | F157: =VLOOKUP(Vlookup!$B122,'CDCM Volume Forecasts'!$A$27:$AG$123,F$137,FALSE) -> 0 | G157: =VLOOKUP(Vlookup!$B122,'CDCM Volume Forecasts'!$A$27:$AG$123,G$137,FALSE) -> 0
A158: > Small Non Domestic Two Rate | B158: =VLOOKUP(Vlookup!$B123,'CDCM Volume Forecasts'!$A$27:$AG$123,B$137,FALSE) -> 0 | C158: =VLOOKUP(Vlookup!$B123,'CDCM Volume Forecasts'!$A$27:$AG$123,C$137,FALSE) -> 0 | D158: =VLOOKUP(Vlookup!$B123,'CDCM Volume Forecasts'!$A$27:$AG$123,D$137,FALSE) -> 0 | E158: =VLOOKUP(Vlookup!$B123,'CDCM Volume Forecasts'!$A$27:$AG$123,E$137,FALSE) -> 0 | F158: =VLOOKUP(Vlookup!$B123,'CDCM Volume Forecasts'!$A$27:$AG$123,F$137,FALSE) -> 0 | G158: =VLOOKUP(Vlookup!$B123,'CDCM Volume Forecasts'!$A$27:$AG$123,G$137,FALSE) -> 0
A159: Small Non Domestic Two Rate | B159: =VLOOKUP(Vlookup!$B124,'CDCM Volume Forecasts'!$A$27:$AG$123,B$137,FALSE) -> 563247.8933 | C159: =VLOOKUP(Vlookup!$B124,'CDCM Volume Forecasts'!$A$27:$AG$123,C$137,FALSE) -> 220251.9496 | D159: =VLOOKUP(Vlookup!$B124,'CDCM Volume Forecasts'!$A$27:$AG$123,D$137,FALSE) -> 0 | E159: =VLOOKUP(Vlookup!$B124,'CDCM Volume Forecasts'!$A$27:$AG$123,E$137,FALSE) -> 33552.3458 | F159: =VLOOKUP(Vlookup!$B124,'CDCM Volume Forecasts'!$A$27:$AG$123,F$137,FALSE) -> 0 | G159: =VLOOKUP(Vlookup!$B124,'CDCM Volume Forecasts'!$A$27:$AG$123,G$137,FALSE) -> 0
A160: LDNO LV: Small Non Domestic Two Rate | B160: =VLOOKUP(Vlookup!$B125,'CDCM Volume Forecasts'!$A$27:$AG$123,B$137,FALSE) -> 51.75729429 | C160: =VLOOKUP(Vlookup!$B125,'CDCM Volume Forecasts'!$A$27:$AG$123,C$137,FALSE) -> 50.03929071 | D160: =VLOOKUP(Vlookup!$B125,'CDCM Volume Forecasts'!$A$27:$AG$123,D$137,FALSE) -> 0 | E160: =VLOOKUP(Vlookup!$B125,'CDCM Volume Forecasts'!$A$27:$AG$123,E$137,FALSE) -> 31.1209 | F160: =VLOOKUP(Vlookup!$B125,'CDCM Volume Forecasts'!$A$27:$AG$123,F$137,FALSE) -> 0 | G160: =VLOOKUP(Vlookup!$B125,'CDCM Volume Forecasts'!$A$27:$AG$123,G$137,FALSE) -> 0
A161: LDNO HV: Small Non Domestic Two Rate | B161: =VLOOKUP(Vlookup!$B126,'CDCM Volume Forecasts'!$A$27:$AG$123,B$137,FALSE) -> 0 | C161: =VLOOKUP(Vlookup!$B126,'CDCM Volume Forecasts'!$A$27:$AG$123,C$137,FALSE) -> 0 | D161: =VLOOKUP(Vlookup!$B126,'CDCM Volume Forecasts'!$A$27:$AG$123,D$137,FALSE) -> 0 | E161: =VLOOKUP(Vlookup!$B126,'CDCM Volume Forecasts'!$A$27:$AG$123,E$137,FALSE) -> 0 | F161: =VLOOKUP(Vlookup!$B126,'CDCM Volume Forecasts'!$A$27:$AG$123,F$137,FALSE) -> 0 | G161: =VLOOKUP(Vlookup!$B126,'CDCM Volume Forecasts'!$A$27:$AG$123,G$137,FALSE) -> 0
A162: > Small Non Domestic Off Peak (related MPAN) | B162: =VLOOKUP(Vlookup!$B127,'CDCM Volume Forecasts'!$A$27:$AG$123,B$137,FALSE) -> 0 | C162: =VLOOKUP(Vlookup!$B127,'CDCM Volume Forecasts'!$A$27:$AG$123,C$137,FALSE) -> 0 | D162: =VLOOKUP(Vlookup!$B127,'CDCM Volume Forecasts'!$A$27:$AG$123,D$137,FALSE) -> 0 | E162: =VLOOKUP(Vlookup!$B127,'CDCM Volume Forecasts'!$A$27:$AG$123,E$137,FALSE) -> 0 | F162: =VLOOKUP(Vlookup!$B127,'CDCM Volume Forecasts'!$A$27:$AG$123,F$137,FALSE) -> 0 | G162: =VLOOKUP(Vlookup!$B127,'CDCM Volume Forecasts'!$A$27:$AG$123,G$137,FALSE) -> 0
A163: Small Non Domestic Off Peak (related MPAN) | B163: =VLOOKUP(Vlookup!$B128,'CDCM Volume Forecasts'!$A$27:$AG$123,B$137,FALSE) -> 18041.82497 | C163: =VLOOKUP(Vlookup!$B128,'CDCM Volume Forecasts'!$A$27:$AG$123,C$137,FALSE) -> 0 | D163: =VLOOKUP(Vlookup!$B128,'CDCM Volume Forecasts'!$A$27:$AG$123,D$137,FALSE) -> 0 | E163: =VLOOKUP(Vlookup!$B128,'CDCM Volume Forecasts'!$A$27:$AG$123,E$137,FALSE) -> 3544.7709 | F163: =VLOOKUP(Vlookup!$B128,'CDCM Volume Forecasts'!$A$27:$AG$123,F$137,FALSE) -> 0 | G163: =VLOOKUP(Vlookup!$B128,'CDCM Volume Forecasts'!$A$27:$AG$123,G$137,FALSE) -> 0
A164: LDNO LV: Small Non Domestic Off Peak (related MPAN) | B164: =VLOOKUP(Vlookup!$B129,'CDCM Volume Forecasts'!$A$27:$AG$123,B$137,FALSE) -> 0 | C164: =VLOOKUP(Vlookup!$B129,'CDCM Volume Forecasts'!$A$27:$AG$123,C$137,FALSE) -> 0 | D164: =VLOOKUP(Vlookup!$B129,'CDCM Volume Forecasts'!$A$27:$AG$123,D$137,FALSE) -> 0 | E164: =VLOOKUP(Vlookup!$B129,'CDCM Volume Forecasts'!$A$27:$AG$123,E$137,FALSE) -> 0 | F164: =VLOOKUP(Vlookup!$B129,'CDCM Volume Forecasts'!$A$27:$AG$123,F$137,FALSE) -> 0 | G164: =VLOOKUP(Vlookup!$B129,'CDCM Volume Forecasts'!$A$27:$AG$123,G$137,FALSE) -> 0
A165: LDNO HV: Small Non Domestic Off Peak (related MPAN) | B165: =VLOOKUP(Vlookup!$B130,'CDCM Volume Forecasts'!$A$27:$AG$123,B$137,FALSE) -> 0 | C165: =VLOOKUP(Vlookup!$B130,'CDCM Volume Forecasts'!$A$27:$AG$123,C$137,FALSE) -> 0 | D165: =VLOOKUP(Vlookup!$B130,'CDCM Volume Forecasts'!$A$27:$AG$123,D$137,FALSE) -> 0 | E165: =VLOOKUP(Vlookup!$B130,'CDCM Volume Forecasts'!$A$27:$AG$123,E$137,FALSE) -> 0 | F165: =VLOOKUP(Vlookup!$B130,'CDCM Volume Forecasts'!$A$27:$AG$123,F$137,FALSE) -> 0 | G165: =VLOOKUP(Vlookup!$B130,'CDCM Volume Forecasts'!$A$27:$AG$123,G$137,FALSE) -> 0
A166: > LV Medium Non-Domestic | B166: =VLOOKUP(Vlookup!$B131,'CDCM Volume Forecasts'!$A$27:$AG$123,B$137,FALSE) -> 0 | C166: =VLOOKUP(Vlookup!$B131,'CDCM Volume Forecasts'!$A$27:$AG$123,C$137,FALSE) -> 0 | D166: =VLOOKUP(Vlookup!$B131,'CDCM Volume Forecasts'!$A$27:$AG$123,D$137,FALSE) -> 0 | E166: =VLOOKUP(Vlookup!$B131,'CDCM Volume Forecasts'!$A$27:$AG$123,E$137,FALSE) -> 0 | F166: =VLOOKUP(Vlookup!$B131,'CDCM Volume Forecasts'!$A$27:$AG$123,F$137,FALSE) -> 0 | G166: =VLOOKUP(Vlookup!$B131,'CDCM Volume Forecasts'!$A$27:$AG$123,G$137,FALSE) -> 0
A167: LV Medium Non-Domestic | B167: =VLOOKUP(Vlookup!$B132,'CDCM Volume Forecasts'!$A$27:$AG$123,B$137,FALSE) -> 0 | C167: =VLOOKUP(Vlookup!$B132,'CDCM Volume Forecasts'!$A$27:$AG$123,C$137,FALSE) -> 0 | D167: =VLOOKUP(Vlookup!$B132,'CDCM Volume Forecasts'!$A$27:$AG$123,D$137,FALSE) -> 0 | E167: =VLOOKUP(Vlookup!$B132,'CDCM Volume Forecasts'!$A$27:$AG$123,E$137,FALSE) -> 0 | F167: =VLOOKUP(Vlookup!$B132,'CDCM Volume Forecasts'!$A$27:$AG$123,F$137,FALSE) -> 0 | G167: =VLOOKUP(Vlookup!$B132,'CDCM Volume Forecasts'!$A$27:$AG$123,G$137,FALSE) -> 0
A168: LDNO LV: LV Medium Non-Domestic | B168: =VLOOKUP(Vlookup!$B133,'CDCM Volume Forecasts'!$A$27:$AG$123,B$137,FALSE) -> 0 | C168: =VLOOKUP(Vlookup!$B133,'CDCM Volume Forecasts'!$A$27:$AG$123,C$137,FALSE) -> 0 | D168: =VLOOKUP(Vlookup!$B133,'CDCM Volume Forecasts'!$A$27:$AG$123,D$137,FALSE) -> 0 | E168: =VLOOKUP(Vlookup!$B133,'CDCM Volume Forecasts'!$A$27:$AG$123,E$137,FALSE) -> 0 | F168: =VLOOKUP(Vlookup!$B133,'CDCM Volume Forecasts'!$A$27:$AG$123,F$137,FALSE) -> 0 | G168: =VLOOKUP(Vlookup!$B133,'CDCM Volume Forecasts'!$A$27:$AG$123,G$137,FALSE) -> 0
A169: LDNO HV: LV Medium Non-Domestic | B169: =VLOOKUP(Vlookup!$B134,'CDCM Volume Forecasts'!$A$27:$AG$123,B$137,FALSE) -> 0 | C169: =VLOOKUP(Vlookup!$B134,'CDCM Volume Forecasts'!$A$27:$AG$123,C$137,FALSE) -> 0 | D169: =VLOOKUP(Vlookup!$B134,'CDCM Volume Forecasts'!$A$27:$AG$123,D$137,FALSE) -> 0 | E169: =VLOOKUP(Vlookup!$B134,'CDCM Volume Forecasts'!$A$27:$AG$123,E$137,FALSE) -> 0 | F169: =VLOOKUP(Vlookup!$B134,'CDCM Volume Forecasts'!$A$27:$AG$123,F$137,FALSE) -> 0 | G169: =VLOOKUP(Vlookup!$B134,'CDCM Volume Forecasts'!$A$27:$AG$123,G$137,FALSE) -> 0
A170: > LV Sub Medium Non-Domestic | B170: =VLOOKUP(Vlookup!$B135,'CDCM Volume Forecasts'!$A$27:$AG$123,B$137,FALSE) -> 0 | C170: =VLOOKUP(Vlookup!$B135,'CDCM Volume Forecasts'!$A$27:$AG$123,C$137,FALSE) -> 0 | D170: =VLOOKUP(Vlookup!$B135,'CDCM Volume Forecasts'!$A$27:$AG$123,D$137,FALSE) -> 0 | E170: =VLOOKUP(Vlookup!$B135,'CDCM Volume Forecasts'!$A$27:$AG$123,E$137,FALSE) -> 0 | F170: =VLOOKUP(Vlookup!$B135,'CDCM Volume Forecasts'!$A$27:$AG$123,F$137,FALSE) -> 0 | G170: =VLOOKUP(Vlookup!$B135,'CDCM Volume Forecasts'!$A$27:$AG$123,G$137,FALSE) -> 0
A171: LV Sub Medium Non-Domestic | B171: =VLOOKUP(Vlookup!$B136,'CDCM Volume Forecasts'!$A$27:$AG$123,B$137,FALSE) -> 0 | C171: =VLOOKUP(Vlookup!$B136,'CDCM Volume Forecasts'!$A$27:$AG$123,C$137,FALSE) -> 0 | D171: =VLOOKUP(Vlookup!$B136,'CDCM Volume Forecasts'!$A$27:$AG$123,D$137,FALSE) -> 0 | E171: =VLOOKUP(Vlookup!$B136,'CDCM Volume Forecasts'!$A$27:$AG$123,E$137,FALSE) -> 0 | F171: =VLOOKUP(Vlookup!$B136,'CDCM Volume Forecasts'!$A$27:$AG$123,F$137,FALSE) -> 0 | G171: =VLOOKUP(Vlookup!$B136,'CDCM Volume Forecasts'!$A$27:$AG$123,G$137,FALSE) -> 0
A172: > HV Medium Non-Domestic | B172: =VLOOKUP(Vlookup!$B137,'CDCM Volume Forecasts'!$A$27:$AG$123,B$137,FALSE) -> 0 | C172: =VLOOKUP(Vlookup!$B137,'CDCM Volume Forecasts'!$A$27:$AG$123,C$137,FALSE) -> 0 | D172: =VLOOKUP(Vlookup!$B137,'CDCM Volume Forecasts'!$A$27:$AG$123,D$137,FALSE) -> 0 | E172: =VLOOKUP(Vlookup!$B137,'CDCM Volume Forecasts'!$A$27:$AG$123,E$137,FALSE) -> 0 | F172: =VLOOKUP(Vlookup!$B137,'CDCM Volume Forecasts'!$A$27:$AG$123,F$137,FALSE) -> 0 | G172: =VLOOKUP(Vlookup!$B137,'CDCM Volume Forecasts'!$A$27:$AG$123,G$137,FALSE) -> 0
A173: HV Medium Non-Domestic | B173: =VLOOKUP(Vlookup!$B138,'CDCM Volume Forecasts'!$A$27:$AG$123,B$137,FALSE) -> 5663.162383 | C173: =VLOOKUP(Vlookup!$B138,'CDCM Volume Forecasts'!$A$27:$AG$123,C$137,FALSE) -> 1557.487787 | D173: =VLOOKUP(Vlookup!$B138,'CDCM Volume Forecasts'!$A$27:$AG$123,D$137,FALSE) -> 0 | E173: =VLOOKUP(Vlookup!$B138,'CDCM Volume Forecasts'!$A$27:$AG$123,E$137,FALSE) -> 60.234 | F173: =VLOOKUP(Vlookup!$B138,'CDCM Volume Forecasts'!$A$27:$AG$123,F$137,FALSE) -> 0 | G173: =VLOOKUP(Vlookup!$B138,'CDCM Volume Forecasts'!$A$27:$AG$123,G$137,FALSE) -> 0
A174: > LV Network Domestic | B174: =VLOOKUP(Vlookup!$B139,'CDCM Volume Forecasts'!$A$27:$AG$123,B$137,FALSE) -> 0 | C174: =VLOOKUP(Vlookup!$B139,'CDCM Volume Forecasts'!$A$27:$AG$123,C$137,FALSE) -> 0 | D174: =VLOOKUP(Vlookup!$B139,'CDCM Volume Forecasts'!$A$27:$AG$123,D$137,FALSE) -> 0 | E174: =VLOOKUP(Vlookup!$B139,'CDCM Volume Forecasts'!$A$27:$AG$123,E$137,FALSE) -> 0 | F174: =VLOOKUP(Vlookup!$B139,'CDCM Volume Forecasts'!$A$27:$AG$123,F$137,FALSE) -> 0 | G174: =VLOOKUP(Vlookup!$B139,'CDCM Volume Forecasts'!$A$27:$AG$123,G$137,FALSE) -> 0
A175: LV Network Domestic | B175: =VLOOKUP(Vlookup!$B140,'CDCM Volume Forecasts'!$A$27:$AG$123,B$137,FALSE) -> 0 | C175: =VLOOKUP(Vlookup!$B140,'CDCM Volume Forecasts'!$A$27:$AG$123,C$137,FALSE) -> 0 | D175: =VLOOKUP(Vlookup!$B140,'CDCM Volume Forecasts'!$A$27:$AG$123,D$137,FALSE) -> 0 | E175: =VLOOKUP(Vlookup!$B140,'CDCM Volume Forecasts'!$A$27:$AG$123,E$137,FALSE) -> 0 | F175: =VLOOKUP(Vlookup!$B140,'CDCM Volume Forecasts'!$A$27:$AG$123,F$137,FALSE) -> 0 | G175: =VLOOKUP(Vlookup!$B140,'CDCM Volume Forecasts'!$A$27:$AG$123,G$137,FALSE) -> 0
A176: LDNO LV: LV Network Domestic | B176: =VLOOKUP(Vlookup!$B141,'CDCM Volume Forecasts'!$A$27:$AG$123,B$137,FALSE) -> 0 | C176: =VLOOKUP(Vlookup!$B141,'CDCM Volume Forecasts'!$A$27:$AG$123,C$137,FALSE) -> 0 | D176: =VLOOKUP(Vlookup!$B141,'CDCM Volume Forecasts'!$A$27:$AG$123,D$137,FALSE) -> 0 | E176: =VLOOKUP(Vlookup!$B141,'CDCM Volume Forecasts'!$A$27:$AG$123,E$137,FALSE) -> 0 | F176: =VLOOKUP(Vlookup!$B141,'CDCM Volume Forecasts'!$A$27:$AG$123,F$137,FALSE) -> 0 | G176: =VLOOKUP(Vlookup!$B141,'CDCM Volume Forecasts'!$A$27:$AG$123,G$137,FALSE) -> 0
A177: LDNO HV: LV Network Domestic | B177: =VLOOKUP(Vlookup!$B142,'CDCM Volume Forecasts'!$A$27:$AG$123,B$137,FALSE) -> 0 | C177: =VLOOKUP(Vlookup!$B142,'CDCM Volume Forecasts'!$A$27:$AG$123,C$137,FALSE) -> 0 | D177: =VLOOKUP(Vlookup!$B142,'CDCM Volume Forecasts'!$A$27:$AG$123,D$137,FALSE) -> 0 | E177: =VLOOKUP(Vlookup!$B142,'CDCM Volume Forecasts'!$A$27:$AG$123,E$137,FALSE) -> 0 | F177: =VLOOKUP(Vlookup!$B142,'CDCM Volume Forecasts'!$A$27:$AG$123,F$137,FALSE) -> 0 | G177: =VLOOKUP(Vlookup!$B142,'CDCM Volume Forecasts'!$A$27:$AG$123,G$137,FALSE) -> 0
A178: > LV Network Non-Domestic Non-CT | B178: =VLOOKUP(Vlookup!$B143,'CDCM Volume Forecasts'!$A$27:$AG$123,B$137,FALSE) -> 0 | C178: =VLOOKUP(Vlookup!$B143,'CDCM Volume Forecasts'!$A$27:$AG$123,C$137,FALSE) -> 0 | D178: =VLOOKUP(Vlookup!$B143,'CDCM Volume Forecasts'!$A$27:$AG$123,D$137,FALSE) -> 0 | E178: =VLOOKUP(Vlookup!$B143,'CDCM Volume Forecasts'!$A$27:$AG$123,E$137,FALSE) -> 0 | F178: =VLOOKUP(Vlookup!$B143,'CDCM Volume Forecasts'!$A$27:$AG$123,F$137,FALSE) -> 0 | G178: =VLOOKUP(Vlookup!$B143,'CDCM Volume Forecasts'!$A$27:$AG$123,G$137,FALSE) -> 0
A179: LV Network Non-Domestic Non-CT | B179: =VLOOKUP(Vlookup!$B144,'CDCM Volume Forecasts'!$A$27:$AG$123,B$137,FALSE) -> 55390.60228 | C179: =VLOOKUP(Vlookup!$B144,'CDCM Volume Forecasts'!$A$27:$AG$123,C$137,FALSE) -> 196575.1406 | D179: =VLOOKUP(Vlookup!$B144,'CDCM Volume Forecasts'!$A$27:$AG$123,D$137,FALSE) -> 255161.7381 | E179: =VLOOKUP(Vlookup!$B144,'CDCM Volume Forecasts'!$A$27:$AG$123,E$137,FALSE) -> 5440.483457 | F179: =VLOOKUP(Vlookup!$B144,'CDCM Volume Forecasts'!$A$27:$AG$123,F$137,FALSE) -> 0 | G179: =VLOOKUP(Vlookup!$B144,'CDCM Volume Forecasts'!$A$27:$AG$123,G$137,FALSE) -> 0
A180: LDNO LV: LV Network Non-Domestic Non-CT | B180: =VLOOKUP(Vlookup!$B145,'CDCM Volume Forecasts'!$A$27:$AG$123,B$137,FALSE) -> 0 | C180: =VLOOKUP(Vlookup!$B145,'CDCM Volume Forecasts'!$A$27:$AG$123,C$137,FALSE) -> 0 | D180: =VLOOKUP(Vlookup!$B145,'CDCM Volume Forecasts'!$A$27:$AG$123,D$137,FALSE) -> 0 | E180: =VLOOKUP(Vlookup!$B145,'CDCM Volume Forecasts'!$A$27:$AG$123,E$137,FALSE) -> 0 | F180: =VLOOKUP(Vlookup!$B145,'CDCM Volume Forecasts'!$A$27:$AG$123,F$137,FALSE) -> 0 | G180: =VLOOKUP(Vlookup!$B145,'CDCM Volume Forecasts'!$A$27:$AG$123,G$137,FALSE) -> 0
A181: LDNO HV: LV Network Non-Domestic Non-CT | B181: =VLOOKUP(Vlookup!$B146,'CDCM Volume Forecasts'!$A$27:$AG$123,B$137,FALSE) -> 0 | C181: =VLOOKUP(Vlookup!$B146,'CDCM Volume Forecasts'!$A$27:$AG$123,C$137,FALSE) -> 0 | D181: =VLOOKUP(Vlookup!$B146,'CDCM Volume Forecasts'!$A$27:$AG$123,D$137,FALSE) -> 0 | E181: =VLOOKUP(Vlookup!$B146,'CDCM Volume Forecasts'!$A$27:$AG$123,E$137,FALSE) -> 0 | F181: =VLOOKUP(Vlookup!$B146,'CDCM Volume Forecasts'!$A$27:$AG$123,F$137,FALSE) -> 0 | G181: =VLOOKUP(Vlookup!$B146,'CDCM Volume Forecasts'!$A$27:$AG$123,G$137,FALSE) -> 0
A182: > LV HH Metered | B182: =VLOOKUP(Vlookup!$B147,'CDCM Volume Forecasts'!$A$27:$AG$123,B$137,FALSE) -> 0 | C182: =VLOOKUP(Vlookup!$B147,'CDCM Volume Forecasts'!$A$27:$AG$123,C$137,FALSE) -> 0 | D182: =VLOOKUP(Vlookup!$B147,'CDCM Volume Forecasts'!$A$27:$AG$123,D$137,FALSE) -> 0 | E182: =VLOOKUP(Vlookup!$B147,'CDCM Volume Forecasts'!$A$27:$AG$123,E$137,FALSE) -> 0 | F182: =VLOOKUP(Vlookup!$B147,'CDCM Volume Forecasts'!$A$27:$AG$123,F$137,FALSE) -> 0 | G182: =VLOOKUP(Vlookup!$B147,'CDCM Volume Forecasts'!$A$27:$AG$123,G$137,FALSE) -> 0
A183: LV HH Metered | B183: =VLOOKUP(Vlookup!$B148,'CDCM Volume Forecasts'!$A$27:$AG$123,B$137,FALSE) -> 241849.5398 | C183: =VLOOKUP(Vlookup!$B148,'CDCM Volume Forecasts'!$A$27:$AG$123,C$137,FALSE) -> 858297.3524 | D183: =VLOOKUP(Vlookup!$B148,'CDCM Volume Forecasts'!$A$27:$AG$123,D$137,FALSE) -> 1114101.425 | E183: =VLOOKUP(Vlookup!$B148,'CDCM Volume Forecasts'!$A$27:$AG$123,E$137,FALSE) -> 11623.80874 | F183: =VLOOKUP(Vlookup!$B148,'CDCM Volume Forecasts'!$A$27:$AG$123,F$137,FALSE) -> 1571337.839 | G183: =VLOOKUP(Vlookup!$B148,'CDCM Volume Forecasts'!$A$27:$AG$123,G$137,FALSE) -> 265954.621
A184: LDNO LV: LV HH Metered | B184: =VLOOKUP(Vlookup!$B149,'CDCM Volume Forecasts'!$A$27:$AG$123,B$137,FALSE) -> 357.9207006 | C184: =VLOOKUP(Vlookup!$B149,'CDCM Volume Forecasts'!$A$27:$AG$123,C$137,FALSE) -> 1434.801454 | D184: =VLOOKUP(Vlookup!$B149,'CDCM Volume Forecasts'!$A$27:$AG$123,D$137,FALSE) -> 1851.306008 | E184: =VLOOKUP(Vlookup!$B149,'CDCM Volume Forecasts'!$A$27:$AG$123,E$137,FALSE) -> 14.0546 | F184: =VLOOKUP(Vlookup!$B149,'CDCM Volume Forecasts'!$A$27:$AG$123,F$137,FALSE) -> 2619.652805 | G184: =VLOOKUP(Vlookup!$B149,'CDCM Volume Forecasts'!$A$27:$AG$123,G$137,FALSE) -> 225.8115
A185: LDNO HV: LV HH Metered | B185: =VLOOKUP(Vlookup!$B150,'CDCM Volume Forecasts'!$A$27:$AG$123,B$137,FALSE) -> 4217.495851 | C185: =VLOOKUP(Vlookup!$B150,'CDCM Volume Forecasts'!$A$27:$AG$123,C$137,FALSE) -> 18614.31458 | D185: =VLOOKUP(Vlookup!$B150,'CDCM Volume Forecasts'!$A$27:$AG$123,D$137,FALSE) -> 26038.1863 | E185: =VLOOKUP(Vlookup!$B150,'CDCM Volume Forecasts'!$A$27:$AG$123,E$137,FALSE) -> 103.4017 | F185: =VLOOKUP(Vlookup!$B150,'CDCM Volume Forecasts'!$A$27:$AG$123,F$137,FALSE) -> 31868.26995 | G185: =VLOOKUP(Vlookup!$B150,'CDCM Volume Forecasts'!$A$27:$AG$123,G$137,FALSE) -> 1419.72137
A186: > LV Sub HH Metered | B186: =VLOOKUP(Vlookup!$B151,'CDCM Volume Forecasts'!$A$27:$AG$123,B$137,FALSE) -> 0 | C186: =VLOOKUP(Vlookup!$B151,'CDCM Volume Forecasts'!$A$27:$AG$123,C$137,FALSE) -> 0 | D186: =VLOOKUP(Vlookup!$B151,'CDCM Volume Forecasts'!$A$27:$AG$123,D$137,FALSE) -> 0 | E186: =VLOOKUP(Vlookup!$B151,'CDCM Volume Forecasts'!$A$27:$AG$123,E$137,FALSE) -> 0 | F186: =VLOOKUP(Vlookup!$B151,'CDCM Volume Forecasts'!$A$27:$AG$123,F$137,FALSE) -> 0 | G186: =VLOOKUP(Vlookup!$B151,'CDCM Volume Forecasts'!$A$27:$AG$123,G$137,FALSE) -> 0
A187: LV Sub HH Metered | B187: =VLOOKUP(Vlookup!$B152,'CDCM Volume Forecasts'!$A$27:$AG$123,B$137,FALSE) -> 135380.7701 | C187: =VLOOKUP(Vlookup!$B152,'CDCM Volume Forecasts'!$A$27:$AG$123,C$137,FALSE) -> 491901.5611 | D187: =VLOOKUP(Vlookup!$B152,'CDCM Volume Forecasts'!$A$27:$AG$123,D$137,FALSE) -> 657633.9315 | E187: =VLOOKUP(Vlookup!$B152,'CDCM Volume Forecasts'!$A$27:$AG$123,E$137,FALSE) -> 2220.6268 | F187: =VLOOKUP(Vlookup!$B152,'CDCM Volume Forecasts'!$A$27:$AG$123,F$137,FALSE) -> 753452.9658 | G187: =VLOOKUP(Vlookup!$B152,'CDCM Volume Forecasts'!$A$27:$AG$123,G$137,FALSE) -> 114518.556
A188: LDNO HV: LV Sub HH Metered | B188: =VLOOKUP(Vlookup!$B153,'CDCM Volume Forecasts'!$A$27:$AG$123,B$137,FALSE) -> 55.33902 | C188: =VLOOKUP(Vlookup!$B153,'CDCM Volume Forecasts'!$A$27:$AG$123,C$137,FALSE) -> 260.89569 | D188: =VLOOKUP(Vlookup!$B153,'CDCM Volume Forecasts'!$A$27:$AG$123,D$137,FALSE) -> 369.256635 | E188: =VLOOKUP(Vlookup!$B153,'CDCM Volume Forecasts'!$A$27:$AG$123,E$137,FALSE) -> 3.0117 | F188: =VLOOKUP(Vlookup!$B153,'CDCM Volume Forecasts'!$A$27:$AG$123,F$137,FALSE) -> 1270.715058 | G188: =VLOOKUP(Vlookup!$B153,'CDCM Volume Forecasts'!$A$27:$AG$123,G$137,FALSE) -> 2.403
A189: > HV HH Metered | B189: =VLOOKUP(Vlookup!$B154,'CDCM Volume Forecasts'!$A$27:$AG$123,B$137,FALSE) -> 0 | C189: =VLOOKUP(Vlookup!$B154,'CDCM Volume Forecasts'!$A$27:$AG$123,C$137,FALSE) -> 0 | D189: =VLOOKUP(Vlookup!$B154,'CDCM Volume Forecasts'!$A$27:$AG$123,D$137,FALSE) -> 0 | E189: =VLOOKUP(Vlookup!$B154,'CDCM Volume Forecasts'!$A$27:$AG$123,E$137,FALSE) -> 0 | F189: =VLOOKUP(Vlookup!$B154,'CDCM Volume Forecasts'!$A$27:$AG$123,F$137,FALSE) -> 0 | G189: =VLOOKUP(Vlookup!$B154,'CDCM Volume Forecasts'!$A$27:$AG$123,G$137,FALSE) -> 0
A190: HV HH Metered | B190: =VLOOKUP(Vlookup!$B155,'CDCM Volume Forecasts'!$A$27:$AG$123,B$137,FALSE) -> 503922.0664 | C190: =VLOOKUP(Vlookup!$B155,'CDCM Volume Forecasts'!$A$27:$AG$123,C$137,FALSE) -> 1718111.295 | D190: =VLOOKUP(Vlookup!$B155,'CDCM Volume Forecasts'!$A$27:$AG$123,D$137,FALSE) -> 2821873.231 | E190: =VLOOKUP(Vlookup!$B155,'CDCM Volume Forecasts'!$A$27:$AG$123,E$137,FALSE) -> 2121.2407 | F190: =VLOOKUP(Vlookup!$B155,'CDCM Volume Forecasts'!$A$27:$AG$123,F$137,FALSE) -> 1809663.578 | G190: =VLOOKUP(Vlookup!$B155,'CDCM Volume Forecasts'!$A$27:$AG$123,G$137,FALSE) -> 388553.7762
A191: LDNO HV: HV HH Metered | B191: =VLOOKUP(Vlookup!$B156,'CDCM Volume Forecasts'!$A$27:$AG$123,B$137,FALSE) -> 1670.79005 | C191: =VLOOKUP(Vlookup!$B156,'CDCM Volume Forecasts'!$A$27:$AG$123,C$137,FALSE) -> 7287.442764 | D191: =VLOOKUP(Vlookup!$B156,'CDCM Volume Forecasts'!$A$27:$AG$123,D$137,FALSE) -> 12936.21195 | E191: =VLOOKUP(Vlookup!$B156,'CDCM Volume Forecasts'!$A$27:$AG$123,E$137,FALSE) -> 9.0351 | F191: =VLOOKUP(Vlookup!$B156,'CDCM Volume Forecasts'!$A$27:$AG$123,F$137,FALSE) -> 14376.27127 | G191: =VLOOKUP(Vlookup!$B156,'CDCM Volume Forecasts'!$A$27:$AG$123,G$137,FALSE) -> 78.66968
A192: > NHH UMS category A | B192: =VLOOKUP(Vlookup!$B157,'CDCM Volume Forecasts'!$A$27:$AG$123,B$137,FALSE) -> 0 | C192: =VLOOKUP(Vlookup!$B157,'CDCM Volume Forecasts'!$A$27:$AG$123,C$137,FALSE) -> 0 | D192: =VLOOKUP(Vlookup!$B157,'CDCM Volume Forecasts'!$A$27:$AG$123,D$137,FALSE) -> 0 | E192: =VLOOKUP(Vlookup!$B157,'CDCM Volume Forecasts'!$A$27:$AG$123,E$137,FALSE) -> 0 | F192: =VLOOKUP(Vlookup!$B157,'CDCM Volume Forecasts'!$A$27:$AG$123,F$137,FALSE) -> 0 | G192: =VLOOKUP(Vlookup!$B157,'CDCM Volume Forecasts'!$A$27:$AG$123,G$137,FALSE) -> 0
A193: NHH UMS category A | B193: =VLOOKUP(Vlookup!$B158,'CDCM Volume Forecasts'!$A$27:$AG$123,B$137,FALSE) -> 36304.52038 | C193: =VLOOKUP(Vlookup!$B158,'CDCM Volume Forecasts'!$A$27:$AG$123,C$137,FALSE) -> 0 | D193: =VLOOKUP(Vlookup!$B158,'CDCM Volume Forecasts'!$A$27:$AG$123,D$137,FALSE) -> 0 | E193: =VLOOKUP(Vlookup!$B158,'CDCM Volume Forecasts'!$A$27:$AG$123,E$137,FALSE) -> 244.9516 | F193: =VLOOKUP(Vlookup!$B158,'CDCM Volume Forecasts'!$A$27:$AG$123,F$137,FALSE) -> 0 | G193: =VLOOKUP(Vlookup!$B158,'CDCM Volume Forecasts'!$A$27:$AG$123,G$137,FALSE) -> 0
A194: LDNO LV: NHH UMS category A | B194: =VLOOKUP(Vlookup!$B159,'CDCM Volume Forecasts'!$A$27:$AG$123,B$137,FALSE) -> 0 | C194: =VLOOKUP(Vlookup!$B159,'CDCM Volume Forecasts'!$A$27:$AG$123,C$137,FALSE) -> 0 | D194: =VLOOKUP(Vlookup!$B159,'CDCM Volume Forecasts'!$A$27:$AG$123,D$137,FALSE) -> 0 | E194: =VLOOKUP(Vlookup!$B159,'CDCM Volume Forecasts'!$A$27:$AG$123,E$137,FALSE) -> 0 | F194: =VLOOKUP(Vlookup!$B159,'CDCM Volume Forecasts'!$A$27:$AG$123,F$137,FALSE) -> 0 | G194: =VLOOKUP(Vlookup!$B159,'CDCM Volume Forecasts'!$A$27:$AG$123,G$137,FALSE) -> 0
A195: LDNO HV: NHH UMS category A | B195: =VLOOKUP(Vlookup!$B160,'CDCM Volume Forecasts'!$A$27:$AG$123,B$137,FALSE) -> 0 | C195: =VLOOKUP(Vlookup!$B160,'CDCM Volume Forecasts'!$A$27:$AG$123,C$137,FALSE) -> 0 | D195: =VLOOKUP(Vlookup!$B160,'CDCM Volume Forecasts'!$A$27:$AG$123,D$137,FALSE) -> 0 | E195: =VLOOKUP(Vlookup!$B160,'CDCM Volume Forecasts'!$A$27:$AG$123,E$137,FALSE) -> 0 | F195: =VLOOKUP(Vlookup!$B160,'CDCM Volume Forecasts'!$A$27:$AG$123,F$137,FALSE) -> 0 | G195: =VLOOKUP(Vlookup!$B160,'CDCM Volume Forecasts'!$A$27:$AG$123,G$137,FALSE) -> 0
A196: > NHH UMS category B | B196: =VLOOKUP(Vlookup!$B161,'CDCM Volume Forecasts'!$A$27:$AG$123,B$137,FALSE) -> 0 | C196: =VLOOKUP(Vlookup!$B161,'CDCM Volume Forecasts'!$A$27:$AG$123,C$137,FALSE) -> 0 | D196: =VLOOKUP(Vlookup!$B161,'CDCM Volume Forecasts'!$A$27:$AG$123,D$137,FALSE) -> 0 | E196: =VLOOKUP(Vlookup!$B161,'CDCM Volume Forecasts'!$A$27:$AG$123,E$137,FALSE) -> 0 | F196: =VLOOKUP(Vlookup!$B161,'CDCM Volume Forecasts'!$A$27:$AG$123,F$137,FALSE) -> 0 | G196: =VLOOKUP(Vlookup!$B161,'CDCM Volume Forecasts'!$A$27:$AG$123,G$137,FALSE) -> 0
A197: NHH UMS category B | B197: =VLOOKUP(Vlookup!$B162,'CDCM Volume Forecasts'!$A$27:$AG$123,B$137,FALSE) -> 9879.286651 | C197: =VLOOKUP(Vlookup!$B162,'CDCM Volume Forecasts'!$A$27:$AG$123,C$137,FALSE) -> 0 | D197: =VLOOKUP(Vlookup!$B162,'CDCM Volume Forecasts'!$A$27:$AG$123,D$137,FALSE) -> 0 | E197: =VLOOKUP(Vlookup!$B162,'CDCM Volume Forecasts'!$A$27:$AG$123,E$137,FALSE) -> 315.2246 | F197: =VLOOKUP(Vlookup!$B162,'CDCM Volume Forecasts'!$A$27:$AG$123,F$137,FALSE) -> 0 | G197: =VLOOKUP(Vlookup!$B162,'CDCM Volume Forecasts'!$A$27:$AG$123,G$137,FALSE) -> 0
A198: LDNO LV: NHH UMS category B | B198: =VLOOKUP(Vlookup!$B163,'CDCM Volume Forecasts'!$A$27:$AG$123,B$137,FALSE) -> 148.0069452 | C198: =VLOOKUP(Vlookup!$B163,'CDCM Volume Forecasts'!$A$27:$AG$123,C$137,FALSE) -> 0 | D198: =VLOOKUP(Vlookup!$B163,'CDCM Volume Forecasts'!$A$27:$AG$123,D$137,FALSE) -> 0 | E198: =VLOOKUP(Vlookup!$B163,'CDCM Volume Forecasts'!$A$27:$AG$123,E$137,FALSE) -> 61.2379 | F198: =VLOOKUP(Vlookup!$B163,'CDCM Volume Forecasts'!$A$27:$AG$123,F$137,FALSE) -> 0 | G198: =VLOOKUP(Vlookup!$B163,'CDCM Volume Forecasts'!$A$27:$AG$123,G$137,FALSE) -> 0
A199: LDNO HV: NHH UMS category B | B199: =VLOOKUP(Vlookup!$B164,'CDCM Volume Forecasts'!$A$27:$AG$123,B$137,FALSE) -> 171.45744 | C199: =VLOOKUP(Vlookup!$B164,'CDCM Volume Forecasts'!$A$27:$AG$123,C$137,FALSE) -> 0 | D199: =VLOOKUP(Vlookup!$B164,'CDCM Volume Forecasts'!$A$27:$AG$123,D$137,FALSE) -> 0 | E199: =VLOOKUP(Vlookup!$B164,'CDCM Volume Forecasts'!$A$27:$AG$123,E$137,FALSE) -> 16.0624 | F199: =VLOOKUP(Vlookup!$B164,'CDCM Volume Forecasts'!$A$27:$AG$123,F$137,FALSE) -> 0 | G199: =VLOOKUP(Vlookup!$B164,'CDCM Volume Forecasts'!$A$27:$AG$123,G$137,FALSE) -> 0
A200: > NHH UMS category C | B200: =VLOOKUP(Vlookup!$B165,'CDCM Volume Forecasts'!$A$27:$AG$123,B$137,FALSE) -> 0 | C200: =VLOOKUP(Vlookup!$B165,'CDCM Volume Forecasts'!$A$27:$AG$123,C$137,FALSE) -> 0 | D200: =VLOOKUP(Vlookup!$B165,'CDCM Volume Forecasts'!$A$27:$AG$123,D$137,FALSE) -> 0 | E200: =VLOOKUP(Vlookup!$B165,'CDCM Volume Forecasts'!$A$27:$AG$123,E$137,FALSE) -> 0 | F200: =VLOOKUP(Vlookup!$B165,'CDCM Volume Forecasts'!$A$27:$AG$123,F$137,FALSE) -> 0 | G200: =VLOOKUP(Vlookup!$B165,'CDCM Volume Forecasts'!$A$27:$AG$123,G$137,FALSE) -> 0
A201: NHH UMS category C | B201: =VLOOKUP(Vlookup!$B166,'CDCM Volume Forecasts'!$A$27:$AG$123,B$137,FALSE) -> 263.1501055 | C201: =VLOOKUP(Vlookup!$B166,'CDCM Volume Forecasts'!$A$27:$AG$123,C$137,FALSE) -> 0 | D201: =VLOOKUP(Vlookup!$B166,'CDCM Volume Forecasts'!$A$27:$AG$123,D$137,FALSE) -> 0 | E201: =VLOOKUP(Vlookup!$B166,'CDCM Volume Forecasts'!$A$27:$AG$123,E$137,FALSE) -> 7.0273 | F201: =VLOOKUP(Vlookup!$B166,'CDCM Volume Forecasts'!$A$27:$AG$123,F$137,FALSE) -> 0 | G201: =VLOOKUP(Vlookup!$B166,'CDCM Volume Forecasts'!$A$27:$AG$123,G$137,FALSE) -> 0
A202: LDNO LV: NHH UMS category C | B202: =VLOOKUP(Vlookup!$B167,'CDCM Volume Forecasts'!$A$27:$AG$123,B$137,FALSE) -> 0 | C202: =VLOOKUP(Vlookup!$B167,'CDCM Volume Forecasts'!$A$27:$AG$123,C$137,FALSE) -> 0 | D202: =VLOOKUP(Vlookup!$B167,'CDCM Volume Forecasts'!$A$27:$AG$123,D$137,FALSE) -> 0 | E202: =VLOOKUP(Vlookup!$B167,'CDCM Volume Forecasts'!$A$27:$AG$123,E$137,FALSE) -> 0 | F202: =VLOOKUP(Vlookup!$B167,'CDCM Volume Forecasts'!$A$27:$AG$123,F$137,FALSE) -> 0 | G202: =VLOOKUP(Vlookup!$B167,'CDCM Volume Forecasts'!$A$27:$AG$123,G$137,FALSE) -> 0
A203: LDNO HV: NHH UMS category C | B203: =VLOOKUP(Vlookup!$B168,'CDCM Volume Forecasts'!$A$27:$AG$123,B$137,FALSE) -> 0 | C203: =VLOOKUP(Vlookup!$B168,'CDCM Volume Forecasts'!$A$27:$AG$123,C$137,FALSE) -> 0 | D203: =VLOOKUP(Vlookup!$B168,'CDCM Volume Forecasts'!$A$27:$AG$123,D$137,FALSE) -> 0 | E203: =VLOOKUP(Vlookup!$B168,'CDCM Volume Forecasts'!$A$27:$AG$123,E$137,FALSE) -> 0 | F203: =VLOOKUP(Vlookup!$B168,'CDCM Volume Forecasts'!$A$27:$AG$123,F$137,FALSE) -> 0 | G203: =VLOOKUP(Vlookup!$B168,'CDCM Volume Forecasts'!$A$27:$AG$123,G$137,FALSE) -> 0
A204: > NHH UMS category D | B204: =VLOOKUP(Vlookup!$B169,'CDCM Volume Forecasts'!$A$27:$AG$123,B$137,FALSE) -> 0 | C204: =VLOOKUP(Vlookup!$B169,'CDCM Volume Forecasts'!$A$27:$AG$123,C$137,FALSE) -> 0 | D204: =VLOOKUP(Vlookup!$B169,'CDCM Volume Forecasts'!$A$27:$AG$123,D$137,FALSE) -> 0 | E204: =VLOOKUP(Vlookup!$B169,'CDCM Volume Forecasts'!$A$27:$AG$123,E$137,FALSE) -> 0 | F204: =VLOOKUP(Vlookup!$B169,'CDCM Volume Forecasts'!$A$27:$AG$123,F$137,FALSE) -> 0 | G204: =VLOOKUP(Vlookup!$B169,'CDCM Volume Forecasts'!$A$27:$AG$123,G$137,FALSE) -> 0
A205: NHH UMS category D | B205: =VLOOKUP(Vlookup!$B170,'CDCM Volume Forecasts'!$A$27:$AG$123,B$137,FALSE) -> 0.0778514964 | C205: =VLOOKUP(Vlookup!$B170,'CDCM Volume Forecasts'!$A$27:$AG$123,C$137,FALSE) -> 0 | D205: =VLOOKUP(Vlookup!$B170,'CDCM Volume Forecasts'!$A$27:$AG$123,D$137,FALSE) -> 0 | E205: =VLOOKUP(Vlookup!$B170,'CDCM Volume Forecasts'!$A$27:$AG$123,E$137,FALSE) -> 1.0039 | F205: =VLOOKUP(Vlookup!$B170,'CDCM Volume Forecasts'!$A$27:$AG$123,F$137,FALSE) -> 0 | G205: =VLOOKUP(Vlookup!$B170,'CDCM Volume Forecasts'!$A$27:$AG$123,G$137,FALSE) -> 0
A206: LDNO LV: NHH UMS category D | B206: =VLOOKUP(Vlookup!$B171,'CDCM Volume Forecasts'!$A$27:$AG$123,B$137,FALSE) -> 0 | C206: =VLOOKUP(Vlookup!$B171,'CDCM Volume Forecasts'!$A$27:$AG$123,C$137,FALSE) -> 0 | D206: =VLOOKUP(Vlookup!$B171,'CDCM Volume Forecasts'!$A$27:$AG$123,D$137,FALSE) -> 0 | E206: =VLOOKUP(Vlookup!$B171,'CDCM Volume Forecasts'!$A$27:$AG$123,E$137,FALSE) -> 0 | F206: =VLOOKUP(Vlookup!$B171,'CDCM Volume Forecasts'!$A$27:$AG$123,F$137,FALSE) -> 0 | G206: =VLOOKUP(Vlookup!$B171,'CDCM Volume Forecasts'!$A$27:$AG$123,G$137,FALSE) -> 0
A207: LDNO HV: NHH UMS category D | B207: =VLOOKUP(Vlookup!$B172,'CDCM Volume Forecasts'!$A$27:$AG$123,B$137,FALSE) -> 0 | C207: =VLOOKUP(Vlookup!$B172,'CDCM Volume Forecasts'!$A$27:$AG$123,C$137,FALSE) -> 0 | D207: =VLOOKUP(Vlookup!$B172,'CDCM Volume Forecasts'!$A$27:$AG$123,D$137,FALSE) -> 0 | E207: =VLOOKUP(Vlookup!$B172,'CDCM Volume Forecasts'!$A$27:$AG$123,E$137,FALSE) -> 0 | F207: =VLOOKUP(Vlookup!$B172,'CDCM Volume Forecasts'!$A$27:$AG$123,F$137,FALSE) -> 0 | G207: =VLOOKUP(Vlookup!$B172,'CDCM Volume Forecasts'!$A$27:$AG$123,G$137,FALSE) -> 0
A208: > LV UMS (Pseudo HH Metered) | B208: =VLOOKUP(Vlookup!$B173,'CDCM Volume Forecasts'!$A$27:$AG$123,B$137,FALSE) -> 0 | C208: =VLOOKUP(Vlookup!$B173,'CDCM Volume Forecasts'!$A$27:$AG$123,C$137,FALSE) -> 0 | D208: =VLOOKUP(Vlookup!$B173,'CDCM Volume Forecasts'!$A$27:$AG$123,D$137,FALSE) -> 0 | E208: =VLOOKUP(Vlookup!$B173,'CDCM Volume Forecasts'!$A$27:$AG$123,E$137,FALSE) -> 0 | F208: =VLOOKUP(Vlookup!$B173,'CDCM Volume Forecasts'!$A$27:$AG$123,F$137,FALSE) -> 0 | G208: =VLOOKUP(Vlookup!$B173,'CDCM Volume Forecasts'!$A$27:$AG$123,G$137,FALSE) -> 0
A209: LV UMS (Pseudo HH Metered) | B209: =VLOOKUP(Vlookup!$B174,'CDCM Volume Forecasts'!$A$27:$AG$123,B$137,FALSE) -> 14151.51042 | C209: =VLOOKUP(Vlookup!$B174,'CDCM Volume Forecasts'!$A$27:$AG$123,C$137,FALSE) -> 32613.53725 | D209: =VLOOKUP(Vlookup!$B174,'CDCM Volume Forecasts'!$A$27:$AG$123,D$137,FALSE) -> 211282.7864 | E209: =VLOOKUP(Vlookup!$B174,'CDCM Volume Forecasts'!$A$27:$AG$123,E$137,FALSE) -> 23.0897 | F209: =VLOOKUP(Vlookup!$B174,'CDCM Volume Forecasts'!$A$27:$AG$123,F$137,FALSE) -> 0 | G209: =VLOOKUP(Vlookup!$B174,'CDCM Volume Forecasts'!$A$27:$AG$123,G$137,FALSE) -> 0
A210: LDNO LV: LV UMS (Pseudo HH Metered) | B210: =VLOOKUP(Vlookup!$B175,'CDCM Volume Forecasts'!$A$27:$AG$123,B$137,FALSE) -> 0 | C210: =VLOOKUP(Vlookup!$B175,'CDCM Volume Forecasts'!$A$27:$AG$123,C$137,FALSE) -> 0 | D210: =VLOOKUP(Vlookup!$B175,'CDCM Volume Forecasts'!$A$27:$AG$123,D$137,FALSE) -> 0 | E210: =VLOOKUP(Vlookup!$B175,'CDCM Volume Forecasts'!$A$27:$AG$123,E$137,FALSE) -> 0 | F210: =VLOOKUP(Vlookup!$B175,'CDCM Volume Forecasts'!$A$27:$AG$123,F$137,FALSE) -> 0 | G210: =VLOOKUP(Vlookup!$B175,'CDCM Volume Forecasts'!$A$27:$AG$123,G$137,FALSE) -> 0
A211: LDNO HV: LV UMS (Pseudo HH Metered) | B211: =VLOOKUP(Vlookup!$B176,'CDCM Volume Forecasts'!$A$27:$AG$123,B$137,FALSE) -> 0 | C211: =VLOOKUP(Vlookup!$B176,'CDCM Volume Forecasts'!$A$27:$AG$123,C$137,FALSE) -> 0 | D211: =VLOOKUP(Vlookup!$B176,'CDCM Volume Forecasts'!$A$27:$AG$123,D$137,FALSE) -> 0 | E211: =VLOOKUP(Vlookup!$B176,'CDCM Volume Forecasts'!$A$27:$AG$123,E$137,FALSE) -> 0 | F211: =VLOOKUP(Vlookup!$B176,'CDCM Volume Forecasts'!$A$27:$AG$123,F$137,FALSE) -> 0 | G211: =VLOOKUP(Vlookup!$B176,'CDCM Volume Forecasts'!$A$27:$AG$123,G$137,FALSE) -> 0
A212: > LV Generation NHH or Aggregate HH | B212: =VLOOKUP(Vlookup!$B177,'CDCM Volume Forecasts'!$A$27:$AG$123,B$137,FALSE) -> 0 | C212: =VLOOKUP(Vlookup!$B177,'CDCM Volume Forecasts'!$A$27:$AG$123,C$137,FALSE) -> 0 | D212: =VLOOKUP(Vlookup!$B177,'CDCM Volume Forecasts'!$A$27:$AG$123,D$137,FALSE) -> 0 | E212: =VLOOKUP(Vlookup!$B177,'CDCM Volume Forecasts'!$A$27:$AG$123,E$137,FALSE) -> 0 | F212: =VLOOKUP(Vlookup!$B177,'CDCM Volume Forecasts'!$A$27:$AG$123,F$137,FALSE) -> 0 | G212: =VLOOKUP(Vlookup!$B177,'CDCM Volume Forecasts'!$A$27:$AG$123,G$137,FALSE) -> 0
A213: LV Generation NHH or Aggregate HH | B213: =VLOOKUP(Vlookup!$B178,'CDCM Volume Forecasts'!$A$27:$AG$123,B$137,FALSE) -> 770.1810983 | C213: =VLOOKUP(Vlookup!$B178,'CDCM Volume Forecasts'!$A$27:$AG$123,C$137,FALSE) -> 0 | D213: =VLOOKUP(Vlookup!$B178,'CDCM Volume Forecasts'!$A$27:$AG$123,D$137,FALSE) -> 0 | E213: =VLOOKUP(Vlookup!$B178,'CDCM Volume Forecasts'!$A$27:$AG$123,E$137,FALSE) -> 61.2379 | F213: =VLOOKUP(Vlookup!$B178,'CDCM Volume Forecasts'!$A$27:$AG$123,F$137,FALSE) -> 0 | G213: =VLOOKUP(Vlookup!$B178,'CDCM Volume Forecasts'!$A$27:$AG$123,G$137,FALSE) -> 0
A214: LDNO LV: LV Generation NHH or Aggregate HH | B214: =VLOOKUP(Vlookup!$B179,'CDCM Volume Forecasts'!$A$27:$AG$123,B$137,FALSE) -> 0 | C214: =VLOOKUP(Vlookup!$B179,'CDCM Volume Forecasts'!$A$27:$AG$123,C$137,FALSE) -> 0 | D214: =VLOOKUP(Vlookup!$B179,'CDCM Volume Forecasts'!$A$27:$AG$123,D$137,FALSE) -> 0 | E214: =VLOOKUP(Vlookup!$B179,'CDCM Volume Forecasts'!$A$27:$AG$123,E$137,FALSE) -> 0 | F214: =VLOOKUP(Vlookup!$B179,'CDCM Volume Forecasts'!$A$27:$AG$123,F$137,FALSE) -> 0 | G214: =VLOOKUP(Vlookup!$B179,'CDCM Volume Forecasts'!$A$27:$AG$123,G$137,FALSE) -> 0
A215: LDNO HV: LV Generation NHH or Aggregate HH | B215: =VLOOKUP(Vlookup!$B180,'CDCM Volume Forecasts'!$A$27:$AG$123,B$137,FALSE) -> 0 | C215: =VLOOKUP(Vlookup!$B180,'CDCM Volume Forecasts'!$A$27:$AG$123,C$137,FALSE) -> 0 | D215: =VLOOKUP(Vlookup!$B180,'CDCM Volume Forecasts'!$A$27:$AG$123,D$137,FALSE) -> 0 | E215: =VLOOKUP(Vlookup!$B180,'CDCM Volume Forecasts'!$A$27:$AG$123,E$137,FALSE) -> 0 | F215: =VLOOKUP(Vlookup!$B180,'CDCM Volume Forecasts'!$A$27:$AG$123,F$137,FALSE) -> 0 | G215: =VLOOKUP(Vlookup!$B180,'CDCM Volume Forecasts'!$A$27:$AG$123,G$137,FALSE) -> 0
A216: > LV Sub Generation NHH | B216: =VLOOKUP(Vlookup!$B181,'CDCM Volume Forecasts'!$A$27:$AG$123,B$137,FALSE) -> 0 | C216: =VLOOKUP(Vlookup!$B181,'CDCM Volume Forecasts'!$A$27:$AG$123,C$137,FALSE) -> 0 | D216: =VLOOKUP(Vlookup!$B181,'CDCM Volume Forecasts'!$A$27:$AG$123,D$137,FALSE) -> 0 | E216: =VLOOKUP(Vlookup!$B181,'CDCM Volume Forecasts'!$A$27:$AG$123,E$137,FALSE) -> 0 | F216: =VLOOKUP(Vlookup!$B181,'CDCM Volume Forecasts'!$A$27:$AG$123,F$137,FALSE) -> 0 | G216: =VLOOKUP(Vlookup!$B181,'CDCM Volume Forecasts'!$A$27:$AG$123,G$137,FALSE) -> 0
A217: LV Sub Generation NHH | B217: =VLOOKUP(Vlookup!$B182,'CDCM Volume Forecasts'!$A$27:$AG$123,B$137,FALSE) -> 0 | C217: =VLOOKUP(Vlookup!$B182,'CDCM Volume Forecasts'!$A$27:$AG$123,C$137,FALSE) -> 0 | D217: =VLOOKUP(Vlookup!$B182,'CDCM Volume Forecasts'!$A$27:$AG$123,D$137,FALSE) -> 0 | E217: =VLOOKUP(Vlookup!$B182,'CDCM Volume Forecasts'!$A$27:$AG$123,E$137,FALSE) -> 0 | F217: =VLOOKUP(Vlookup!$B182,'CDCM Volume Forecasts'!$A$27:$AG$123,F$137,FALSE) -> 0 | G217: =VLOOKUP(Vlookup!$B182,'CDCM Volume Forecasts'!$A$27:$AG$123,G$137,FALSE) -> 0
A218: LDNO HV: LV Sub Generation NHH | B218: =VLOOKUP(Vlookup!$B183,'CDCM Volume Forecasts'!$A$27:$AG$123,B$137,FALSE) -> 0 | C218: =VLOOKUP(Vlookup!$B183,'CDCM Volume Forecasts'!$A$27:$AG$123,C$137,FALSE) -> 0 | D218: =VLOOKUP(Vlookup!$B183,'CDCM Volume Forecasts'!$A$27:$AG$123,D$137,FALSE) -> 0 | E218: =VLOOKUP(Vlookup!$B183,'CDCM Volume Forecasts'!$A$27:$AG$123,E$137,FALSE) -> 0 | F218: =VLOOKUP(Vlookup!$B183,'CDCM Volume Forecasts'!$A$27:$AG$123,F$137,FALSE) -> 0 | G218: =VLOOKUP(Vlookup!$B183,'CDCM Volume Forecasts'!$A$27:$AG$123,G$137,FALSE) -> 0
A219: > LV Generation Intermittent | B219: =VLOOKUP(Vlookup!$B184,'CDCM Volume Forecasts'!$A$27:$AG$123,B$137,FALSE) -> 0 | C219: =VLOOKUP(Vlookup!$B184,'CDCM Volume Forecasts'!$A$27:$AG$123,C$137,FALSE) -> 0 | D219: =VLOOKUP(Vlookup!$B184,'CDCM Volume Forecasts'!$A$27:$AG$123,D$137,FALSE) -> 0 | E219: =VLOOKUP(Vlookup!$B184,'CDCM Volume Forecasts'!$A$27:$AG$123,E$137,FALSE) -> 0 | F219: =VLOOKUP(Vlookup!$B184,'CDCM Volume Forecasts'!$A$27:$AG$123,F$137,FALSE) -> 0 | G219: =VLOOKUP(Vlookup!$B184,'CDCM Volume Forecasts'!$A$27:$AG$123,G$137,FALSE) -> 0
A220: LV Generation Intermittent | B220: =VLOOKUP(Vlookup!$B185,'CDCM Volume Forecasts'!$A$27:$AG$123,B$137,FALSE) -> 29376.67673 | C220: =VLOOKUP(Vlookup!$B185,'CDCM Volume Forecasts'!$A$27:$AG$123,C$137,FALSE) -> 0 | D220: =VLOOKUP(Vlookup!$B185,'CDCM Volume Forecasts'!$A$27:$AG$123,D$137,FALSE) -> 0 | E220: =VLOOKUP(Vlookup!$B185,'CDCM Volume Forecasts'!$A$27:$AG$123,E$137,FALSE) -> 203.7917 | F220: =VLOOKUP(Vlookup!$B185,'CDCM Volume Forecasts'!$A$27:$AG$123,F$137,FALSE) -> 0 | G220: =VLOOKUP(Vlookup!$B185,'CDCM Volume Forecasts'!$A$27:$AG$123,G$137,FALSE) -> 1127.6162
A221: LDNO LV: LV Generation Intermittent | B221: =VLOOKUP(Vlookup!$B186,'CDCM Volume Forecasts'!$A$27:$AG$123,B$137,FALSE) -> 0 | C221: =VLOOKUP(Vlookup!$B186,'CDCM Volume Forecasts'!$A$27:$AG$123,C$137,FALSE) -> 0 | D221: =VLOOKUP(Vlookup!$B186,'CDCM Volume Forecasts'!$A$27:$AG$123,D$137,FALSE) -> 0 | E221: =VLOOKUP(Vlookup!$B186,'CDCM Volume Forecasts'!$A$27:$AG$123,E$137,FALSE) -> 0 | F221: =VLOOKUP(Vlookup!$B186,'CDCM Volume Forecasts'!$A$27:$AG$123,F$137,FALSE) -> 0 | G221: =VLOOKUP(Vlookup!$B186,'CDCM Volume Forecasts'!$A$27:$AG$123,G$137,FALSE) -> 0
A222: LDNO HV: LV Generation Intermittent | B222: =VLOOKUP(Vlookup!$B187,'CDCM Volume Forecasts'!$A$27:$AG$123,B$137,FALSE) -> 0 | C222: =VLOOKUP(Vlookup!$B187,'CDCM Volume Forecasts'!$A$27:$AG$123,C$137,FALSE) -> 0 | D222: =VLOOKUP(Vlookup!$B187,'CDCM Volume Forecasts'!$A$27:$AG$123,D$137,FALSE) -> 0 | E222: =VLOOKUP(Vlookup!$B187,'CDCM Volume Forecasts'!$A$27:$AG$123,E$137,FALSE) -> 0 | F222: =VLOOKUP(Vlookup!$B187,'CDCM Volume Forecasts'!$A$27:$AG$123,F$137,FALSE) -> 0 | G222: =VLOOKUP(Vlookup!$B187,'CDCM Volume Forecasts'!$A$27:$AG$123,G$137,FALSE) -> 0
A223: > LV Generation Non-Intermittent | B223: =VLOOKUP(Vlookup!$B188,'CDCM Volume Forecasts'!$A$27:$AG$123,B$137,FALSE) -> 0 | C223: =VLOOKUP(Vlookup!$B188,'CDCM Volume Forecasts'!$A$27:$AG$123,C$137,FALSE) -> 0 | D223: =VLOOKUP(Vlookup!$B188,'CDCM Volume Forecasts'!$A$27:$AG$123,D$137,FALSE) -> 0 | E223: =VLOOKUP(Vlookup!$B188,'CDCM Volume Forecasts'!$A$27:$AG$123,E$137,FALSE) -> 0 | F223: =VLOOKUP(Vlookup!$B188,'CDCM Volume Forecasts'!$A$27:$AG$123,F$137,FALSE) -> 0 | G223: =VLOOKUP(Vlookup!$B188,'CDCM Volume Forecasts'!$A$27:$AG$123,G$137,FALSE) -> 0
A224: LV Generation Non-Intermittent | B224: =VLOOKUP(Vlookup!$B189,'CDCM Volume Forecasts'!$A$27:$AG$123,B$137,FALSE) -> 187.1300016 | C224: =VLOOKUP(Vlookup!$B189,'CDCM Volume Forecasts'!$A$27:$AG$123,C$137,FALSE) -> 734.8965246 | D224: =VLOOKUP(Vlookup!$B189,'CDCM Volume Forecasts'!$A$27:$AG$123,D$137,FALSE) -> 1603.333714 | E224: =VLOOKUP(Vlookup!$B189,'CDCM Volume Forecasts'!$A$27:$AG$123,E$137,FALSE) -> 21.0819 | F224: =VLOOKUP(Vlookup!$B189,'CDCM Volume Forecasts'!$A$27:$AG$123,F$137,FALSE) -> 0 | G224: =VLOOKUP(Vlookup!$B189,'CDCM Volume Forecasts'!$A$27:$AG$123,G$137,FALSE) -> 47.8726
A225: LDNO LV: LV Generation Non-Intermittent | B225: =VLOOKUP(Vlookup!$B190,'CDCM Volume Forecasts'!$A$27:$AG$123,B$137,FALSE) -> 4.145545 | C225: =VLOOKUP(Vlookup!$B190,'CDCM Volume Forecasts'!$A$27:$AG$123,C$137,FALSE) -> 21.250703 | D225: =VLOOKUP(Vlookup!$B190,'CDCM Volume Forecasts'!$A$27:$AG$123,D$137,FALSE) -> 11.681963 | E225: =VLOOKUP(Vlookup!$B190,'CDCM Volume Forecasts'!$A$27:$AG$123,E$137,FALSE) -> 2.0078 | F225: =VLOOKUP(Vlookup!$B190,'CDCM Volume Forecasts'!$A$27:$AG$123,F$137,FALSE) -> 0 | G225: =VLOOKUP(Vlookup!$B190,'CDCM Volume Forecasts'!$A$27:$AG$123,G$137,FALSE) -> 1.6612
A226: LDNO HV: LV Generation Non-Intermittent | B226: =VLOOKUP(Vlookup!$B191,'CDCM Volume Forecasts'!$A$27:$AG$123,B$137,FALSE) -> 0 | C226: =VLOOKUP(Vlookup!$B191,'CDCM Volume Forecasts'!$A$27:$AG$123,C$137,FALSE) -> 0 | D226: =VLOOKUP(Vlookup!$B191,'CDCM Volume Forecasts'!$A$27:$AG$123,D$137,FALSE) -> 0 | E226: =VLOOKUP(Vlookup!$B191,'CDCM Volume Forecasts'!$A$27:$AG$123,E$137,FALSE) -> 0 | F226: =VLOOKUP(Vlookup!$B191,'CDCM Volume Forecasts'!$A$27:$AG$123,F$137,FALSE) -> 0 | G226: =VLOOKUP(Vlookup!$B191,'CDCM Volume Forecasts'!$A$27:$AG$123,G$137,FALSE) -> 0
A227: > LV Sub Generation Intermittent | B227: =VLOOKUP(Vlookup!$B192,'CDCM Volume Forecasts'!$A$27:$AG$123,B$137,FALSE) -> 0 | C227: =VLOOKUP(Vlookup!$B192,'CDCM Volume Forecasts'!$A$27:$AG$123,C$137,FALSE) -> 0 | D227: =VLOOKUP(Vlookup!$B192,'CDCM Volume Forecasts'!$A$27:$AG$123,D$137,FALSE) -> 0 | E227: =VLOOKUP(Vlookup!$B192,'CDCM Volume Forecasts'!$A$27:$AG$123,E$137,FALSE) -> 0 | F227: =VLOOKUP(Vlookup!$B192,'CDCM Volume Forecasts'!$A$27:$AG$123,F$137,FALSE) -> 0 | G227: =VLOOKUP(Vlookup!$B192,'CDCM Volume Forecasts'!$A$27:$AG$123,G$137,FALSE) -> 0
A228: LV Sub Generation Intermittent | B228: =VLOOKUP(Vlookup!$B193,'CDCM Volume Forecasts'!$A$27:$AG$123,B$137,FALSE) -> 1424.646885 | C228: =VLOOKUP(Vlookup!$B193,'CDCM Volume Forecasts'!$A$27:$AG$123,C$137,FALSE) -> 0 | D228: =VLOOKUP(Vlookup!$B193,'CDCM Volume Forecasts'!$A$27:$AG$123,D$137,FALSE) -> 0 | E228: =VLOOKUP(Vlookup!$B193,'CDCM Volume Forecasts'!$A$27:$AG$123,E$137,FALSE) -> 24.0936 | F228: =VLOOKUP(Vlookup!$B193,'CDCM Volume Forecasts'!$A$27:$AG$123,F$137,FALSE) -> 0 | G228: =VLOOKUP(Vlookup!$B193,'CDCM Volume Forecasts'!$A$27:$AG$123,G$137,FALSE) -> 35.7122
... 81 more rows

Sheet (Y+2)
A1: Input data (Y+2)
A4: 1000. Company, charging year, data version
B6: Company | C6: Year | D6: Version
A7: Company, charging year, data version | B7: =VLOOKUP(Vlookup!B7,'CDCM Forecast Data'!$A$14:$I$271,7,FALSE) -> ENWL | C7: =VLOOKUP(Vlookup!C7,'CDCM Forecast Data'!$A$14:$I$271,7,FALSE) -> 2019/20 | D7: =VLOOKUP(Vlookup!D7,'CDCM Forecast Data'!$A$14:$I$271,7,FALSE) -> v1
A9: 1010. Financial and general assumptions
A11: Sources: financial assumptions; calendar; network model.
A12: These financial assumptions determine the annuity rate applied to convert the asset values of the network model into an annual charge.
B13: Rate of return | C13: Annualisation period (years) | D13: Annuity proportion for customer-contributed assets | E13: Power factor | F13: Days in the charging period
A14: Financial and general assumptions | B14: =VLOOKUP(Vlookup!B14,'CDCM Forecast Data'!$A$14:$I$271,7,FALSE) -> 0.0417 | C14: =VLOOKUP(Vlookup!C14,'CDCM Forecast Data'!$A$14:$I$271,7,FALSE) -> 40 | E14: =VLOOKUP(Vlookup!E14,'CDCM Forecast Data'!$A$14:$I$271,7,FALSE) -> 0.95 | F14: =VLOOKUP(Vlookup!F14,'CDCM Forecast Data'!$A$14:$I$271,7,FALSE) -> 366
A16: 1017. Diversity allowance between top and bottom of network level
A18: Source: operational data analysis and/or network model.
A19: The diversity figure against GSP is the diversity between GSP Group (the whole system) and individual GSPs.
A20: The diversity figure against 132kV is the diversity between GSPs (the top of the 132kV network) and 132kV/EHV bulk supply points (the bottom of the 132kV network).
A21: The diversity figure against EHV is the diversity between 132kV/EHV bulk supply points (the top of the EHV network) and EHV/HV primary substations (the bottom of the EHV network).
A22: The diversity figure against HV is the diversity between EHV/HV primary substations (the top of the HV network) and HV/LV substations (the bottom of the HV network).
B23: Diversity allowance between top and bottom of network level
A24: GSPs | B24: =VLOOKUP(Vlookup!B24,'CDCM Forecast Data'!$A$14:$I$271,7,FALSE) -> 0.07420180118
A25: 132kV | B25: =VLOOKUP(Vlookup!B25,'CDCM Forecast Data'!$A$14:$I$271,7,FALSE) -> 0.04679205393
A26: 132kV/EHV
A27: EHV | B27: =VLOOKUP(Vlookup!B27,'CDCM Forecast Data'!$A$14:$I$271,7,FALSE) -> 0.0868884238
A28: EHV/HV
A29: HV | B29: =VLOOKUP(Vlookup!B29,'CDCM Forecast Data'!$A$14:$I$271,7,FALSE) -> 0.3056153455
A30: HV/LV
A31: LV circuits
A33: 1018. Proportion of relevant load going through 132kV/HV direct transformation
B35: 132kV/HV
A36: EHV/HV | B36: =VLOOKUP(Vlookup!B36,'CDCM Forecast Data'!$A$14:$I$271,7,FALSE) -> 0
A38: 1019. Network model GSP peak demand (MW)
B40: Network model GSP peak demand (MW)
A41: Network model GSP peak demand (MW) | B41: =VLOOKUP(Vlookup!B41,'CDCM Forecast Data'!$A$14:$I$271,7,FALSE) -> 500
A43: 1020. Gross asset cost by network level (£)
B45: Gross assets £
A46: 132kV | B46: =VLOOKUP(Vlookup!B46,'CDCM Forecast Data'!$A$14:$I$271,7,FALSE) -> 99334424.08
A47: 132kV/EHV | B47: =VLOOKUP(Vlookup!B47,'CDCM Forecast Data'!$A$14:$I$271,7,FALSE) -> 39292266.06
A48: EHV | B48: =VLOOKUP(Vlookup!B48,'CDCM Forecast Data'!$A$14:$I$271,7,FALSE) -> 99215628.3
A49: EHV/HV | B49: =VLOOKUP(Vlookup!B49,'CDCM Forecast Data'!$A$14:$I$271,7,FALSE) -> 62585555.36
A50: 132kV/HV | B50: =VLOOKUP(Vlookup!B50,'CDCM Forecast Data'!$A$14:$I$271,7,FALSE) -> 0
A51: HV | B51: =VLOOKUP(Vlookup!B51,'CDCM Forecast Data'!$A$14:$I$271,7,FALSE) -> 113622866.1
A52: HV/LV | B52: =VLOOKUP(Vlookup!B52,'CDCM Forecast Data'!$A$14:$I$271,7,FALSE) -> 103160518.3
A53: LV circuits | B53: =VLOOKUP(Vlookup!B53,'CDCM Forecast Data'!$A$14:$I$271,7,FALSE) -> 57188241.22
A55: 1022. LV service model asset cost (£)
B57: LV service model 1 | C57: LV service model 2 | D57: LV service model 3 | E57: LV service model 4 | F57: LV service model 5 | G57: LV service model 6 | H57: LV service model 7 | I57: LV service model 8
A58: LV service model asset cost (£) | B58: =VLOOKUP(Vlookup!B58,'CDCM Forecast Data'!$A$14:$I$271,7,FALSE) -> 10856.11329 | C58: =VLOOKUP(Vlookup!C58,'CDCM Forecast Data'!$A$14:$I$271,7,FALSE) -> 542.8056647 | D58: =VLOOKUP(Vlookup!D58,'CDCM Forecast Data'!$A$14:$I$271,7,FALSE) -> 2551.888332 | E58: =VLOOKUP(Vlookup!E58,'CDCM Forecast Data'!$A$14:$I$271,7,FALSE) -> 8191.865403 | F58: =VLOOKUP(Vlookup!F58,'CDCM Forecast Data'!$A$14:$I$271,7,FALSE) -> 298.3582021 | G58: =VLOOKUP(Vlookup!G58,'CDCM Forecast Data'!$A$14:$I$271,7,FALSE) -> 0 | H58: =VLOOKUP(Vlookup!H58,'CDCM Forecast Data'!$A$14:$I$271,7,FALSE) -> 0 | I58: =VLOOKUP(Vlookup!I58,'CDCM Forecast Data'!$A$14:$I$271,7,FALSE) -> 0
A60: 1023. HV service model asset cost (£)
B62: HV service model 1 | C62: HV service model 2 | D62: HV service model 3 | E62: HV service model 4 | F62: HV service model 5
A63: HV service model asset cost (£) | B63: =VLOOKUP(Vlookup!B63,'CDCM Forecast Data'!$A$14:$I$271,7,FALSE) -> 20377.69832 | C63: =VLOOKUP(Vlookup!C63,'CDCM Forecast Data'!$A$14:$I$271,7,FALSE) -> 18012.81978 | D63: =VLOOKUP(Vlookup!D63,'CDCM Forecast Data'!$A$14:$I$271,7,FALSE) -> 1212.924325 | E63: =VLOOKUP(Vlookup!E63,'CDCM Forecast Data'!$A$14:$I$271,7,FALSE) -> 0 | F63: =VLOOKUP(Vlookup!F63,'CDCM Forecast Data'!$A$14:$I$271,7,FALSE) -> 0
A65: 1025. Matrix of applicability of LV service models to tariffs with fixed charges
B66: 18 | C66: =B66+1 -> 19 | D66: 20 | E66: 21 | F66: 22 | G66: 23 | H66: 24 | I66: 25
B67: LV service model 1 | C67: LV service model 2 | D67: LV service model 3 | E67: LV service model 4 | F67: LV service model 5 | G67: LV service model 6 | H67: LV service model 7 | I67: LV service model 8
A68: Domestic Unrestricted | B68: =VLOOKUP($A68,'Mat of App'!$B$7:$AP$37,B$66,FALSE) -> 0.05 | C68: =VLOOKUP($A68,'Mat of App'!$B$7:$AP$37,C$66,FALSE) -> 0 | D68: =VLOOKUP($A68,'Mat of App'!$B$7:$AP$37,D$66,FALSE) -> 0 | E68: =VLOOKUP($A68,'Mat of App'!$B$7:$AP$37,E$66,FALSE) -> 0 | F68: =VLOOKUP($A68,'Mat of App'!$B$7:$AP$37,F$66,FALSE) -> 0 | G68: =VLOOKUP($A68,'Mat of App'!$B$7:$AP$37,G$66,FALSE) -> 0 | H68: =VLOOKUP($A68,'Mat of App'!$B$7:$AP$37,H$66,FALSE) -> 0 | I68: =VLOOKUP($A68,'Mat of App'!$B$7:$AP$37,I$66,FALSE) -> 0
A69: Domestic Two Rate | B69: =VLOOKUP($A69,'Mat of App'!$B$7:$AP$37,B$66,FALSE) -> 0.05 | C69: =VLOOKUP($A69,'Mat of App'!$B$7:$AP$37,C$66,FALSE) -> 0 | D69: =VLOOKUP($A69,'Mat of App'!$B$7:$AP$37,D$66,FALSE) -> 0 | E69: =VLOOKUP($A69,'Mat of App'!$B$7:$AP$37,E$66,FALSE) -> 0 | F69: =VLOOKUP($A69,'Mat of App'!$B$7:$AP$37,F$66,FALSE) -> 0 | G69: =VLOOKUP($A69,'Mat of App'!$B$7:$AP$37,G$66,FALSE) -> 0 | H69: =VLOOKUP($A69,'Mat of App'!$B$7:$AP$37,H$66,FALSE) -> 0 | I69: =VLOOKUP($A69,'Mat of App'!$B$7:$AP$37,I$66,FALSE) -> 0
A70: Small Non Domestic Unrestricted | B70: =VLOOKUP($A70,'Mat of App'!$B$7:$AP$37,B$66,FALSE) -> 0 | C70: =VLOOKUP($A70,'Mat of App'!$B$7:$AP$37,C$66,FALSE) -> 1 | D70: =VLOOKUP($A70,'Mat of App'!$B$7:$AP$37,D$66,FALSE) -> 0 | E70: =VLOOKUP($A70,'Mat of App'!$B$7:$AP$37,E$66,FALSE) -> 0 | F70: =VLOOKUP($A70,'Mat of App'!$B$7:$AP$37,F$66,FALSE) -> 0 | G70: =VLOOKUP($A70,'Mat of App'!$B$7:$AP$37,G$66,FALSE) -> 0 | H70: =VLOOKUP($A70,'Mat of App'!$B$7:$AP$37,H$66,FALSE) -> 0 | I70: =VLOOKUP($A70,'Mat of App'!$B$7:$AP$37,I$66,FALSE) -> 0
A71: Small Non Domestic Two Rate | B71: =VLOOKUP($A71,'Mat of App'!$B$7:$AP$37,B$66,FALSE) -> 0 | C71: =VLOOKUP($A71,'Mat of App'!$B$7:$AP$37,C$66,FALSE) -> 1 | D71: =VLOOKUP($A71,'Mat of App'!$B$7:$AP$37,D$66,FALSE) -> 0 | E71: =VLOOKUP($A71,'Mat of App'!$B$7:$AP$37,E$66,FALSE) -> 0 | F71: =VLOOKUP($A71,'Mat of App'!$B$7:$AP$37,F$66,FALSE) -> 0 | G71: =VLOOKUP($A71,'Mat of App'!$B$7:$AP$37,G$66,FALSE) -> 0 | H71: =VLOOKUP($A71,'Mat of App'!$B$7:$AP$37,H$66,FALSE) -> 0 | I71: =VLOOKUP($A71,'Mat of App'!$B$7:$AP$37,I$66,FALSE) -> 0
A72: LV Medium Non-Domestic | B72: =VLOOKUP($A72,'Mat of App'!$B$7:$AP$37,B$66,FALSE) -> 0 | C72: =VLOOKUP($A72,'Mat of App'!$B$7:$AP$37,C$66,FALSE) -> 0.1918509044 | D72: =VLOOKUP($A72,'Mat of App'!$B$7:$AP$37,D$66,FALSE) -> 0.8081490956 | E72: =VLOOKUP($A72,'Mat of App'!$B$7:$AP$37,E$66,FALSE) -> 0 | F72: =VLOOKUP($A72,'Mat of App'!$B$7:$AP$37,F$66,FALSE) -> 0 | G72: =VLOOKUP($A72,'Mat of App'!$B$7:$AP$37,G$66,FALSE) -> 0 | H72: =VLOOKUP($A72,'Mat of App'!$B$7:$AP$37,H$66,FALSE) -> 0 | I72: =VLOOKUP($A72,'Mat of App'!$B$7:$AP$37,I$66,FALSE) -> 0
A73: LV Sub Medium Non-Domestic | B73: =VLOOKUP($A73,'Mat of App'!$B$7:$AP$37,B$66,FALSE) -> 0 | C73: =VLOOKUP($A73,'Mat of App'!$B$7:$AP$37,C$66,FALSE) -> 0 | D73: =VLOOKUP($A73,'Mat of App'!$B$7:$AP$37,D$66,FALSE) -> 0 | E73: =VLOOKUP($A73,'Mat of App'!$B$7:$AP$37,E$66,FALSE) -> 1 | F73: =VLOOKUP($A73,'Mat of App'!$B$7:$AP$37,F$66,FALSE) -> 0 | G73: =VLOOKUP($A73,'Mat of App'!$B$7:$AP$37,G$66,FALSE) -> 0 | H73: =VLOOKUP($A73,'Mat of App'!$B$7:$AP$37,H$66,FALSE) -> 0 | I73: =VLOOKUP($A73,'Mat of App'!$B$7:$AP$37,I$66,FALSE) -> 0
A74: LV Network Domestic | B74: =VLOOKUP($A74,'Mat of App'!$B$7:$AP$37,B$66,FALSE) -> 0.05 | C74: =VLOOKUP($A74,'Mat of App'!$B$7:$AP$37,C$66,FALSE) -> 0 | D74: =VLOOKUP($A74,'Mat of App'!$B$7:$AP$37,D$66,FALSE) -> 0 | E74: =VLOOKUP($A74,'Mat of App'!$B$7:$AP$37,E$66,FALSE) -> 0 | F74: =VLOOKUP($A74,'Mat of App'!$B$7:$AP$37,F$66,FALSE) -> 0 | G74: =VLOOKUP($A74,'Mat of App'!$B$7:$AP$37,G$66,FALSE) -> 0 | H74: =VLOOKUP($A74,'Mat of App'!$B$7:$AP$37,H$66,FALSE) -> 0 | I74: =VLOOKUP($A74,'Mat of App'!$B$7:$AP$37,I$66,FALSE) -> 0
A75: LV Network Non-Domestic Non-CT | B75: =VLOOKUP($A75,'Mat of App'!$B$7:$AP$37,B$66,FALSE) -> 0 | C75: =VLOOKUP($A75,'Mat of App'!$B$7:$AP$37,C$66,FALSE) -> 1 | D75: =VLOOKUP($A75,'Mat of App'!$B$7:$AP$37,D$66,FALSE) -> 0 | E75: =VLOOKUP($A75,'Mat of App'!$B$7:$AP$37,E$66,FALSE) -> 0 | F75: =VLOOKUP($A75,'Mat of App'!$B$7:$AP$37,F$66,FALSE) -> 0 | G75: =VLOOKUP($A75,'Mat of App'!$B$7:$AP$37,G$66,FALSE) -> 0 | H75: =VLOOKUP($A75,'Mat of App'!$B$7:$AP$37,H$66,FALSE) -> 0 | I75: =VLOOKUP($A75,'Mat of App'!$B$7:$AP$37,I$66,FALSE) -> 0
A76: LV HH Metered | B76: =VLOOKUP($A76,'Mat of App'!$B$7:$AP$37,B$66,FALSE) -> 0 | C76: =VLOOKUP($A76,'Mat of App'!$B$7:$AP$37,C$66,FALSE) -> 0 | D76: =VLOOKUP($A76,'Mat of App'!$B$7:$AP$37,D$66,FALSE) -> 1 | E76: =VLOOKUP($A76,'Mat of App'!$B$7:$AP$37,E$66,FALSE) -> 0 | F76: =VLOOKUP($A76,'Mat of App'!$B$7:$AP$37,F$66,FALSE) -> 0 | G76: =VLOOKUP($A76,'Mat of App'!$B$7:$AP$37,G$66,FALSE) -> 0 | H76: =VLOOKUP($A76,'Mat of App'!$B$7:$AP$37,H$66,FALSE) -> 0 | I76: =VLOOKUP($A76,'Mat of App'!$B$7:$AP$37,I$66,FALSE) -> 0
A77: LV Sub HH Metered | B77: =VLOOKUP($A77,'Mat of App'!$B$7:$AP$37,B$66,FALSE) -> 0 | C77: =VLOOKUP($A77,'Mat of App'!$B$7:$AP$37,C$66,FALSE) -> 0 | D77: =VLOOKUP($A77,'Mat of App'!$B$7:$AP$37,D$66,FALSE) -> 0 | E77: =VLOOKUP($A77,'Mat of App'!$B$7:$AP$37,E$66,FALSE) -> 1 | F77: =VLOOKUP($A77,'Mat of App'!$B$7:$AP$37,F$66,FALSE) -> 0 | G77: =VLOOKUP($A77,'Mat of App'!$B$7:$AP$37,G$66,FALSE) -> 0 | H77: =VLOOKUP($A77,'Mat of App'!$B$7:$AP$37,H$66,FALSE) -> 0 | I77: =VLOOKUP($A77,'Mat of App'!$B$7:$AP$37,I$66,FALSE) -> 0
A78: LV Generation NHH or Aggregate HH | B78: =VLOOKUP($A78,'Mat of App'!$B$7:$AP$37,B$66,FALSE) -> 0 | C78: =VLOOKUP($A78,'Mat of App'!$B$7:$AP$37,C$66,FALSE) -> 0 | D78: =VLOOKUP($A78,'Mat of App'!$B$7:$AP$37,D$66,FALSE) -> 0 | E78: =VLOOKUP($A78,'Mat of App'!$B$7:$AP$37,E$66,FALSE) -> 0 | F78: =VLOOKUP($A78,'Mat of App'!$B$7:$AP$37,F$66,FALSE) -> 0 | G78: =VLOOKUP($A78,'Mat of App'!$B$7:$AP$37,G$66,FALSE) -> 0 | H78: =VLOOKUP($A78,'Mat of App'!$B$7:$AP$37,H$66,FALSE) -> 0 | I78: =VLOOKUP($A78,'Mat of App'!$B$7:$AP$37,I$66,FALSE) -> 0
A79: LV Sub Generation NHH | B79: =VLOOKUP($A79,'Mat of App'!$B$7:$AP$37,B$66,FALSE) -> 0 | C79: =VLOOKUP($A79,'Mat of App'!$B$7:$AP$37,C$66,FALSE) -> 0 | D79: =VLOOKUP($A79,'Mat of App'!$B$7:$AP$37,D$66,FALSE) -> 0 | E79: =VLOOKUP($A79,'Mat of App'!$B$7:$AP$37,E$66,FALSE) -> 0 | F79: =VLOOKUP($A79,'Mat of App'!$B$7:$AP$37,F$66,FALSE) -> 0 | G79: =VLOOKUP($A79,'Mat of App'!$B$7:$AP$37,G$66,FALSE) -> 0 | H79: =VLOOKUP($A79,'Mat of App'!$B$7:$AP$37,H$66,FALSE) -> 0 | I79: =VLOOKUP($A79,'Mat of App'!$B$7:$AP$37,I$66,FALSE) -> 0
A80: LV Generation Intermittent | B80: =VLOOKUP($A80,'Mat of App'!$B$7:$AP$37,B$66,FALSE) -> 0 | C80: =VLOOKUP($A80,'Mat of App'!$B$7:$AP$37,C$66,FALSE) -> 0 | D80: =VLOOKUP($A80,'Mat of App'!$B$7:$AP$37,D$66,FALSE) -> 0 | E80: =VLOOKUP($A80,'Mat of App'!$B$7:$AP$37,E$66,FALSE) -> 0 | F80: =VLOOKUP($A80,'Mat of App'!$B$7:$AP$37,F$66,FALSE) -> 0 | G80: =VLOOKUP($A80,'Mat of App'!$B$7:$AP$37,G$66,FALSE) -> 0 | H80: =VLOOKUP($A80,'Mat of App'!$B$7:$AP$37,H$66,FALSE) -> 0 | I80: =VLOOKUP($A80,'Mat of App'!$B$7:$AP$37,I$66,FALSE) -> 0
A81: LV Generation Non-Intermittent | B81: =VLOOKUP($A81,'Mat of App'!$B$7:$AP$37,B$66,FALSE) -> 0 | C81: =VLOOKUP($A81,'Mat of App'!$B$7:$AP$37,C$66,FALSE) -> 0 | D81: =VLOOKUP($A81,'Mat of App'!$B$7:$AP$37,D$66,FALSE) -> 0 | E81: =VLOOKUP($A81,'Mat of App'!$B$7:$AP$37,E$66,FALSE) -> 0 | F81: =VLOOKUP($A81,'Mat of App'!$B$7:$AP$37,F$66,FALSE) -> 0 | G81: =VLOOKUP($A81,'Mat of App'!$B$7:$AP$37,G$66,FALSE) -> 0 | H81: =VLOOKUP($A81,'Mat of App'!$B$7:$AP$37,H$66,FALSE) -> 0 | I81: =VLOOKUP($A81,'Mat of App'!$B$7:$AP$37,I$66,FALSE) -> 0
A82: LV Sub Generation Intermittent | B82: =VLOOKUP($A82,'Mat of App'!$B$7:$AP$37,B$66,FALSE) -> 0 | C82: =VLOOKUP($A82,'Mat of App'!$B$7:$AP$37,C$66,FALSE) -> 0 | D82: =VLOOKUP($A82,'Mat of App'!$B$7:$AP$37,D$66,FALSE) -> 0 | E82: =VLOOKUP($A82,'Mat of App'!$B$7:$AP$37,E$66,FALSE) -> 0 | F82: =VLOOKUP($A82,'Mat of App'!$B$7:$AP$37,F$66,FALSE) -> 0 | G82: =VLOOKUP($A82,'Mat of App'!$B$7:$AP$37,G$66,FALSE) -> 0 | H82: =VLOOKUP($A82,'Mat of App'!$B$7:$AP$37,H$66,FALSE) -> 0 | I82: =VLOOKUP($A82,'Mat of App'!$B$7:$AP$37,I$66,FALSE) -> 0
A83: LV Sub Generation Non-Intermittent | B83: =VLOOKUP($A83,'Mat of App'!$B$7:$AP$37,B$66,FALSE) -> 0 | C83: =VLOOKUP($A83,'Mat of App'!$B$7:$AP$37,C$66,FALSE) -> 0 | D83: =VLOOKUP($A83,'Mat of App'!$B$7:$AP$37,D$66,FALSE) -> 0 | E83: =VLOOKUP($A83,'Mat of App'!$B$7:$AP$37,E$66,FALSE) -> 0 | F83: =VLOOKUP($A83,'Mat of App'!$B$7:$AP$37,F$66,FALSE) -> 0 | G83: =VLOOKUP($A83,'Mat of App'!$B$7:$AP$37,G$66,FALSE) -> 0 | H83: =VLOOKUP($A83,'Mat of App'!$B$7:$AP$37,H$66,FALSE) -> 0 | I83: =VLOOKUP($A83,'Mat of App'!$B$7:$AP$37,I$66,FALSE) -> 0
A85: 1026. Matrix of applicability of LV service models to unmetered tariffs
A87: Source: service models
A88: Proportion of service model involved in connecting load of 1 MWh/year
B89: LV service model 1 | C89: LV service model 2 | D89: LV service model 3 | E89: LV service model 4 | F89: LV service model 5 | G89: LV service model 6 | H89: LV service model 7 | I89: LV service model 8
A90: All LV unmetered tariffs | B90: =VLOOKUP($A90,'Mat of App'!$B$7:$AP$37,B$66,FALSE) -> 0 | C90: =VLOOKUP($A90,'Mat of App'!$B$7:$AP$37,C$66,FALSE) -> 0 | D90: =VLOOKUP($A90,'Mat of App'!$B$7:$AP$37,D$66,FALSE) -> 0 | E90: =VLOOKUP($A90,'Mat of App'!$B$7:$AP$37,E$66,FALSE) -> 0 | F90: =VLOOKUP($A90,'Mat of App'!$B$7:$AP$37,F$66,FALSE) -> 2.872632768 | G90: =VLOOKUP($A90,'Mat of App'!$B$7:$AP$37,G$66,FALSE) -> 0 | H90: =VLOOKUP($A90,'Mat of App'!$B$7:$AP$37,H$66,FALSE) -> 0 | I90: =VLOOKUP($A90,'Mat of App'!$B$7:$AP$37,I$66,FALSE) -> 0
A92: 1028. Matrix of applicability of HV service models to tariffs with fixed charges
B93: 12 | C93: =B93+1 -> 13 | D93: =C93+1 -> 14 | E93: =D93+1 -> 15 | F93: =E93+1 -> 16
B94: HV service model 1 | C94: HV service model 2 | D94: HV service model 3 | E94: HV service model 4 | F94: HV service model 5
A95: HV Medium Non-Domestic | B95: =VLOOKUP($A95,'Mat of App'!$B$7:$AP$37,B$93,FALSE) -> 0 | C95: =VLOOKUP($A95,'Mat of App'!$B$7:$AP$37,C$93,FALSE) -> 1 | D95: =VLOOKUP($A95,'Mat of App'!$B$7:$AP$37,D$93,FALSE) -> 0 | E95: =VLOOKUP($A95,'Mat of App'!$B$7:$AP$37,E$93,FALSE) -> 0 | F95: =VLOOKUP($A95,'Mat of App'!$B$7:$AP$37,F$93,FALSE) -> 0
A96: HV HH Metered | B96: =VLOOKUP($A96,'Mat of App'!$B$7:$AP$37,B$93,FALSE) -> 0 | C96: =VLOOKUP($A96,'Mat of App'!$B$7:$AP$37,C$93,FALSE) -> 1 | D96: =VLOOKUP($A96,'Mat of App'!$B$7:$AP$37,D$93,FALSE) -> 0 | E96: =VLOOKUP($A96,'Mat of App'!$B$7:$AP$37,E$93,FALSE) -> 0 | F96: =VLOOKUP($A96,'Mat of App'!$B$7:$AP$37,F$93,FALSE) -> 0
A97: HV Generation Intermittent | B97: =VLOOKUP($A97,'Mat of App'!$B$7:$AP$37,B$93,FALSE) -> 0 | C97: =VLOOKUP($A97,'Mat of App'!$B$7:$AP$37,C$93,FALSE) -> 0 | D97: =VLOOKUP($A97,'Mat of App'!$B$7:$AP$37,D$93,FALSE) -> 1 | E97: =VLOOKUP($A97,'Mat of App'!$B$7:$AP$37,E$93,FALSE) -> 0 | F97: =VLOOKUP($A97,'Mat of App'!$B$7:$AP$37,F$93,FALSE) -> 0
A98: HV Generation Non-Intermittent | B98: =VLOOKUP($A98,'Mat of App'!$B$7:$AP$37,B$93,FALSE) -> 0 | C98: =VLOOKUP($A98,'Mat of App'!$B$7:$AP$37,C$93,FALSE) -> 0 | D98: =VLOOKUP($A98,'Mat of App'!$B$7:$AP$37,D$93,FALSE) -> 1 | E98: =VLOOKUP($A98,'Mat of App'!$B$7:$AP$37,E$93,FALSE) -> 0 | F98: =VLOOKUP($A98,'Mat of App'!$B$7:$AP$37,F$93,FALSE) -> 0
A100: 1032. Loss adjustment factors to transmission
A102: Source: losses model or loss adjustment factors at time of system peak.
B103: 132kV | C103: 132kV/EHV | D103: EHV | E103: EHV/HV | F103: HV | G103: HV/LV | H103: LV circuits
A104: Loss adjustment factor | B104: =VLOOKUP(Vlookup!B69,'CDCM Forecast Data'!$A$14:$I$271,7,FALSE) -> 1.010207653 | C104: =VLOOKUP(Vlookup!C69,'CDCM Forecast Data'!$A$14:$I$271,7,FALSE) -> 1.015167952 | D104: =VLOOKUP(Vlookup!D69,'CDCM Forecast Data'!$A$14:$I$271,7,FALSE) -> 1.021613121 | E104: =VLOOKUP(Vlookup!E69,'CDCM Forecast Data'!$A$14:$I$271,7,FALSE) -> 1.027143717 | F104: =VLOOKUP(Vlookup!F69,'CDCM Forecast Data'!$A$14:$I$271,7,FALSE) -> 1.039482236 | G104: =VLOOKUP(Vlookup!G69,'CDCM Forecast Data'!$A$14:$I$271,7,FALSE) -> 1.053113103 | H104: =VLOOKUP(Vlookup!H69,'CDCM Forecast Data'!$A$14:$I$271,7,FALSE) -> 1.105523229
A106: 1037. Embedded network (LDNO) discounts
A108: Source: separate price control disaggregation model.
B109: No discount | C109: LDNO LV: LV user | D109: LDNO HV: LV user | E109: LDNO HV: LV sub user | F109: LDNO HV: HV user
A110: LDNO discount | C110: =VLOOKUP(Vlookup!C75,'CDCM Forecast Data'!$A$14:$I$271,7,FALSE) -> 0.3545481139 | D110: =VLOOKUP(Vlookup!D75,'CDCM Forecast Data'!$A$14:$I$271,7,FALSE) -> 0.5759919482 | E110: =VLOOKUP(Vlookup!E75,'CDCM Forecast Data'!$A$14:$I$271,7,FALSE) -> 0.3351316791 | F110: =VLOOKUP(Vlookup!F75,'CDCM Forecast Data'!$A$14:$I$271,7,FALSE) -> 0.2148277515
A112: 1041. Load profile data for demand users
A114: Source: load data analysis.
B115: Coincidence factor | C115: Load factor
A116: Domestic Unrestricted | B116: =VLOOKUP(Vlookup!B81,'CDCM Forecast Data'!$A$14:$I$271,6,FALSE) -> 0.8913703454 | C116: =VLOOKUP(Vlookup!C81,'CDCM Forecast Data'!$A$14:$I$271,6,FALSE) -> 0.4462668473
A117: Domestic Two Rate | B117: =VLOOKUP(Vlookup!B82,'CDCM Forecast Data'!$A$14:$I$271,6,FALSE) -> 0.2951047042 | C117: =VLOOKUP(Vlookup!C82,'CDCM Forecast Data'!$A$14:$I$271,6,FALSE) -> 0.2467650034
A118: Domestic Off Peak (related MPAN) | C118: =VLOOKUP(Vlookup!C83,'CDCM Forecast Data'!$A$14:$I$271,6,FALSE) -> 0.1659632593
A119: Small Non Domestic Unrestricted | B119: =VLOOKUP(Vlookup!B84,'CDCM Forecast Data'!$A$14:$I$271,6,FALSE) -> 0.675023322 | C119: =VLOOKUP(Vlookup!C84,'CDCM Forecast Data'!$A$14:$I$271,6,FALSE) -> 0.3939683153
A120: Small Non Domestic Two Rate | B120: =VLOOKUP(Vlookup!B85,'CDCM Forecast Data'!$A$14:$I$271,6,FALSE) -> 0.7022639753 | C120: =VLOOKUP(Vlookup!C85,'CDCM Forecast Data'!$A$14:$I$271,6,FALSE) -> 0.5394924636
A121: Small Non Domestic Off Peak (related MPAN) | C121: =VLOOKUP(Vlookup!C86,'CDCM Forecast Data'!$A$14:$I$271,6,FALSE) -> 0.1655384635
A122: LV Medium Non-Domestic | B122: =VLOOKUP(Vlookup!B87,'CDCM Forecast Data'!$A$14:$I$271,6,FALSE) -> 0.8299720136 | C122: =VLOOKUP(Vlookup!C87,'CDCM Forecast Data'!$A$14:$I$271,6,FALSE) -> 0.5627043404
A123: LV Sub Medium Non-Domestic | B123: =VLOOKUP(Vlookup!B88,'CDCM Forecast Data'!$A$14:$I$271,6,FALSE) -> 0.7822989923 | C123: =VLOOKUP(Vlookup!C88,'CDCM Forecast Data'!$A$14:$I$271,6,FALSE) -> 0.5370681653
A124: HV Medium Non-Domestic | B124: =VLOOKUP(Vlookup!B89,'CDCM Forecast Data'!$A$14:$I$271,6,FALSE) -> 0.7647764369 | C124: =VLOOKUP(Vlookup!C89,'CDCM Forecast Data'!$A$14:$I$271,6,FALSE) -> 0.5247366167
A125: LV Network Domestic | B125: =VLOOKUP(Vlookup!B90,'CDCM Forecast Data'!$A$14:$I$271,6,FALSE) -> 0.8913703454 | C125: =VLOOKUP(Vlookup!C90,'CDCM Forecast Data'!$A$14:$I$271,6,FALSE) -> 0.4462668473
A126: LV Network Non-Domestic Non-CT | B126: =VLOOKUP(Vlookup!B91,'CDCM Forecast Data'!$A$14:$I$271,6,FALSE) -> 0.675023322 | C126: =VLOOKUP(Vlookup!C91,'CDCM Forecast Data'!$A$14:$I$271,6,FALSE) -> 0.3939683153
A127: LV HH Metered | B127: =VLOOKUP(Vlookup!B92,'CDCM Forecast Data'!$A$14:$I$271,6,FALSE) -> 0.8187070533 | C127: =VLOOKUP(Vlookup!C92,'CDCM Forecast Data'!$A$14:$I$271,6,FALSE) -> 0.5579677074
A128: LV Sub HH Metered | B128: =VLOOKUP(Vlookup!B93,'CDCM Forecast Data'!$A$14:$I$271,6,FALSE) -> 0.7867578525 | C128: =VLOOKUP(Vlookup!C93,'CDCM Forecast Data'!$A$14:$I$271,6,FALSE) -> 0.5593063082
A129: HV HH Metered | B129: =VLOOKUP(Vlookup!B94,'CDCM Forecast Data'!$A$14:$I$271,6,FALSE) -> 0.8573132903 | C129: =VLOOKUP(Vlookup!C94,'CDCM Forecast Data'!$A$14:$I$271,6,FALSE) -> 0.7117228058
A130: NHH UMS category A | B130: =VLOOKUP(Vlookup!B95,'CDCM Forecast Data'!$A$14:$I$271,6,FALSE) -> 1 | C130: =VLOOKUP(Vlookup!C95,'CDCM Forecast Data'!$A$14:$I$271,6,FALSE) -> 1
A131: NHH UMS category B | B131: =VLOOKUP(Vlookup!B96,'CDCM Forecast Data'!$A$14:$I$271,6,FALSE) -> 1 | C131: =VLOOKUP(Vlookup!C96,'CDCM Forecast Data'!$A$14:$I$271,6,FALSE) -> 0.4737220928
A132: NHH UMS category C | B132: =VLOOKUP(Vlookup!B97,'CDCM Forecast Data'!$A$14:$I$271,6,FALSE) -> 1 | C132: =VLOOKUP(Vlookup!C97,'CDCM Forecast Data'!$A$14:$I$271,6,FALSE) -> 0.2580136568
A133: NHH UMS category D | B133: =VLOOKUP(Vlookup!B98,'CDCM Forecast Data'!$A$14:$I$271,6,FALSE) -> 0 | C133: =VLOOKUP(Vlookup!C98,'CDCM Forecast Data'!$A$14:$I$271,6,FALSE) -> 0.5539154947
A134: LV UMS (Pseudo HH Metered) | B134: =VLOOKUP(Vlookup!B99,'CDCM Forecast Data'!$A$14:$I$271,6,FALSE) -> 0.9795893947 | C134: =VLOOKUP(Vlookup!C99,'CDCM Forecast Data'!$A$14:$I$271,6,FALSE) -> 0.4777791708
A136: 1053. Volume forecasts for the charging year
B137: 16 | C137: 17 | D137: 18 | E137: 19 | F137: 20 | G137: 21
A138: Source: forecast.
